Workbook

Sheet AER NRs (hidden)
B1: AER NAMED RANGES
B3: DROP DOWN SELECTORS USED IN WORKBOOKS
B5: COVER SHEET | C5: dms_DataQuality_List | D5: dms_Confid_status_List
C6: -- select -- | D6: -- select --
C7: Actual | D7: Public
C8: Estimate | D8: Confidential
C9: Consolidated
C12: For all files either AER or business needs to be able to specify the type of submission | D12: For PTRM & RFM templates we must provide a choice in case they change their form of control - otherwise it is drawn from the business specific lookup table above.
C13: dms_SourceList | D13: dms_FormControl_Choices
C14: -- select -- | D14: Revenue cap
C15: After appeal | D15: Revenue yield
C16: Draft decision | D16: Weighted average price cap
C17: Final decision
C18: Regulatory proposal
C19: Revised regulatory proposal
K22: This is used to create an image to insert on 6.3 STPIS sheet - not for dropdown lists. | N22: GAS
B23: CA & RESET RINS DNSP | C23: dms_DNSP_020301_SubstationType | D23: dms_DNSP_020301_ProjectType | E23: dms_DNSP_020301_ProjectTrigger | F23: dms_DNSP_020302_ProjectType | G23: dms_DNSP_020302_ProjectTrigger | H23: dms_STPIS_Exclusion_List | I23: dms_Reason_Interruption | J23: dms_Reason_Interruption_Detailed | K23: Reason for interruption | N23: dms_N0205_AssetType
C24: Subtransmission substation | D24: New substation establishment | E24: Demand growth | F24: New line on new route - single circuit | G24: Demand growth | H24: Weather | I24: Animal | J24: Animal impact | K24: Animal | L24: Animal impact | N24: Cast Iron
C25: Zone substation | D25: Substation upgrade - capacity | E25: Voltage issues | F25: New line on new route - dual circuit | G25: Voltage issues | H25: Equipment failure | I25: Asset failure | J25: Animal nesting/burrowing, etc and other | L25: Animal nesting/burrowing, etc and other | N25: PVC
C26: Switching station | D26: Substation upgrade - voltage | E26: Reactive power issue | F26: New line on new route - other | G26: Reactive power issue | H26: Operational error | I26: Other | J26: Other | L26: Other | N26: Polyamide
C27: Other | D27: Other | E27: Fault level issues | F27: Line rebuild over existing route - single circuit | G27: Fault level issues | H27: Vegetation | I27: Overloads | J27: LV | K27: Asset failure | L27: LV | N27: High density polyethylene (80)
E28: Safety | F28: Line rebuild over existing route - dual circuit | G28: Net market benefit | H28: Animals | I28: Planned | J28: Distribution substation | L28: Distribution substation | N28: High density polyethylene (100)
E29: Environment | F29: Reconductor - Single circuit | G29: Safety | H29: Third party impacts | I29: Network business | J29: HV | L29: HV | N29: High density polyethylene (250)
E30: Other | F30: Reconductor - Dual circuit | G30: Environment | H30: Transmission failure | I30: Third party | J30: Zone substation | L30: Zone substation | N30: High density polyethylene (575)
F31: Reconductor - Other | G31: Other | H31: Load shedding | I31: Unknown | J31: Subtransmission | L31: Subtransmission | N31: Medium density polyethylene
F32: Line upgrade - raising/retensoring | H32: Inter-distributor connection failure | I32: Vegetation | J32: insert description of 'other' | K32: Other | L32: insert description of 'other' | N32: Unprotected steel
F33: Line upgrade - voltage upgrade | H33: Other | I33: Weather | J33: Network error | K33: Overloads | N33: Protected steel
F34: Line upgrade - capacity | I34: 2 - STPIS Exclusion (3.3)(a) | J34: Switching and protection error | K34: Planned | N34: Other
F35: String spare circuit | I35: 3 - STPIS Exclusion (3.3)(a) | J35: Fire | K35: Network business | L35: Network error
F36: Other | I36: 4 - STPIS Exclusion (3.3)(a) | J36: Other | L36: Switching and protection error
I37: 5 - STPIS Exclusion (3.3)(a) | J37: Dig-in | K37: Third party | L37: Fire
I38: 6 - STPIS Exclusion (3.3)(a) | J38: Unauthorised access | L38: Other
I39: 7 - STPIS Exclusion (3.3)(a) | J39: Vehicle impact | L39: Dig-in
J40: Unknown | L40: Unauthorised access
J41: Blow-in/Fall-in - NSP responsibility | L41: Vehicle impact
J42: Grow-in - NSP responsibility | K42: Unknown | L42: Unknown
J43: Blow-in/Fall-in - Other responsible party | K43: Vegetation | L43: Blow-in/Fall-in - NSP responsibility
J44: Grow-in - Other responsible party | L44: Grow-in - NSP responsibility
L45: Blow-in/Fall-in - Other responsible party
L46: Grow-in - Other responsible party
K47: Weather
K48: 2 - STPIS Exclusion (3.3)(a)
K49: 3 - STPIS Exclusion (3.3)(a)
K50: 4 - STPIS Exclusion (3.3)(a)
K51: 5 - STPIS Exclusion (3.3)(a)
K52: 6 - STPIS Exclusion (3.3)(a)
K53: 7 - STPIS Exclusion (3.3)(a)
B56: CA & RESET RINS TNSP | C56: dms_TNSP_0203_SubstationType | D56: dms_TNSP_020301_ProjectType | E56: dms_TNSP_020301_ProjectTrigger | F56: dms_TNSP_020302_ProjectType | G56: dms_TNSP_0203_ProjectTrigger
C57: Terminal station | D57: New substation establishment | E57: Demand growth | F57: New line on new route - single circuit | G57: Demand growth
C58: Switching station | D58: Capacity upgrade | E58: Voltage issues | F58: New line on new route - dual circuit | G58: Voltage issues
C59: Transmission substation | D59: Voltage upgrade | E59: Reactive power issue | F59: New line on new route - other | G59: Reactive power issue
C60: Other | D60: Other | E60: Fault level issues | F60: Line rebuild over existing route - single circuit | G60: Fault level issues
E61: Net market benefit | F61: Line rebuild over existing route - dual circuit | G61: Net market benefit
E62: Safety | F62: Reconductor - Single circuit | G62: Safety
E63: Environment | F63: Reconductor - Dual circuit | G63: Environment
E64: Other | F64: Reconductor - Other | G64: Other
F65: Line upgrade - raising/retensoring
F66: Line upgrade - voltage upgrade
F67: Line upgrade - capacity
F68: String spare circuit
F69: Other
B73: NAMED RANGES USED IN ETL PROCESS
M74: GAS ARR & RESET
B75: CA & RESET RINS DNSP ONLY | C75: dms_020303_01_UOM | D75: dms_020501_01_UOM | E75: dms_020501_02_UOM | F75: dms_020501_03_UOM | G75: dms_020501_04_UOM | H75: dms_020701_01_UOM | I75: dms_020701_02_UOM | J75: dms_020701_01_Rows | K75: dms_040102_01_UOM | L75: dms_040102_04_UOM | M75: dms_S140101_UOM | N75: dms_S140201_UOM | O75: dms_E050201_UOM | P75: dms_E050202_UOM
C76: Circuit line length in km | D76: 0's | E76: 0's | F76: 0's | G76: 0's | H76: km | I76: km | J76: Route line length within zone | K76: 0's | L76: days | M76: number | N76: number per km | O76: per metre per connection | P76: metres per connection
C77: Circuit line length in km | D77: 0's | E77: 0's | F77: 0's | G77: 0's | H77: 0's | I77: 0's | J77: Number of maintenance spans | K77: 0's | L77: 0's | M77: number | N77: number | O77: per service per connection | P77: number per connection
C78: Circuit line length in km | D78: MVA added | E78: MVA added | F78: MVA added | G78: MVA added | H78: km | I78: km | J78: Total length of maintenance spans | K78: 0's | L78: $0s | M78: number | N78: number | O78: number per connection | P78: number per connection
C79: Circuit line length in km | D79: 0's | E79: 0's | F79: 0's | G79: 0's | H79: km | I79: km | J79: Length of vegetation corridors | K79: $0s | L79: 0's | M79: km
C80: Number | D80: total spend $0s | E80: total spend $0s | F80: total spend $0s | G80: total spend $0s | H80: 0's | I80: 0's | J80: Average number of trees per maintenance span
C81: Number | D81: net circuit km added | E81: net circuit km added | F81: net circuit km added | G81: net circuit km added | H81: years | I81: years | J81: Average frequency of cutting cycle
C82: Number | D82: total spend $0s | E82: total spend $0s | F82: total spend $0s | G82: total spend $0s
D83: net circuit km added | E83: net circuit km added | F83: net circuit km added | G83: net circuit km added
D84: total spend $0s | E84: total spend $0s | F84: total spend $0s | G84: total spend $0s
D85: 0's | F85: $0s
D86: 0's
D87: 0's
D88: $0s
B91: CA & RESET RINS TNSP ONLY | C91: dms_020701_01_UOM
C92: km
C93: 0's
C94: km
C95: 0's
C96: km
C97: metres
C98: years
B101: CA & RESET RINS DNSP & TNSP | C101: dms_020603_01_UOM
C102: 0's
C103: 0's
C104: 0's
C105: 0's
C106: (per cent)
B109: EB & RESET RINS DNSP ONLY | C109: dms_030601_01_UOM | D109: dms_030601_02_UOM | E109: dms_030701_01_UOM | F109: dms_030702_01_UOM | G109: dms_030703_01_UOM
C110: minutes/customer | D110: minutes/customer | E110: Customer / km | F110: % | G110: km
C111: minutes/customer | D111: minutes/customer | E111: MWh/customer | F111: Number of spans
C112: interruptions/customer | D112: interruptions/customer | E112: kVA / customer | F112: Number of spans
C113: interruptions/customer | D113: interruptions/customer | F113: Number of spans
F114: Number of spans
F115: Years
F116: Years
F117: Trees
F118: Trees
F119: Defects
F120: Defects
F121: Spans
F122: km
F123: Spans
C125: WHEN INSERTING COVER SHEET INTO A TNSP FILE - APPLY THESE NAMED RANGES
B126: EB & RESET RINS TNSP ONLY | C126: dms_030601_01_UOM | E126: dms_030701_01_UOM | F126: dms_030702_01_UOM
C127: % | E127: Number of spans | F127: km
C128: number | E128: Years | F128: %
C129: number | E129: Trees | F129: km
C130: % | E130: Defects | F130: number
C131: number | E131: Number of spans
C132: number | E132: km
C133: % | E133: km
C134: number | E134: Number of spans
C135: number
C136: %
C137: number
C138: %
C139: number
C140: %
C141: number
B143: EB & RESET RINS DNSP & TNSP | C143: dms_EB_RAB_PIT
C144: Beginning of year
C145: End of year
C146: End of year
C147: End of year
C148: End of year
C149: End of year
B151: ARR DNSP ONLY | C151: dms_030605_UOM | D151: dms_03060703_UOM | E151: dms_E020202_UOM | F151: Spare
C152: number | D152: number | E152: Length of mains replaced
C153: number | D153: number | E153: Number of services replaced
C154: number | D154: number
C155: number | D155: number
C156: number | D156: (per cent)
C157: number
C158: number
C159: number
C160: number
C161: number
C162: number
C163: number
C164: (per cent)
C165: (per cent)
B167: RFM | C167: dms_Beg | D167: dms_Mid | E167: dms_End
C168: Beginning of year | D168: Mid year | E168: End of Year
B170: PTRM | C170: dms_PTRM_RAB_PIT | D170: dms_PTRM_TAB_PIT | E170: DMS_Xfactor
C171: Beginning of year | D171: Beginning of year | E171: x factors
C172: End of year | D172: End of year
C173: End of year | D173: End of year
C174: End of year | D174: End of year
C175: End of year
B178: STPIS & MIC NAMED RANGES
B180: These "row descriptions" are the column headings in the various templates but become row descriptions in the ETL process
B182: Table 6.3 sustained interruptions - row descriptions | C182: dms_060301_CustNo_Affected_Row | D182: dms_060301_Avg_Duration_Sustained_Int_Row | E182: dms_060301_Effect_unplanned_SAIDI_Row | F182: dms_060301_Effect_unplanned_SAIFI_Row
C183: Number of customers affected by the interruption | D183: Average duration of sustained customer interruption | E183: Effect on unplanned SAIDI | F183: Effect on unplanned SAIFI
B186: Table 6.1 telephone answering - row descriptions and start date | C186: dms_060101_Rows | D186: dms_060102_Rows | E186: dms_060101_StartDateTxt
C187: Total number of calls (after removing excluded events) | D187: Number of calls answered within 30 seconds (after excluding excluded events) | E187: =dms_060701_StartDateTxt -> 1-Jul-2013
B190: Table 6.8.1 - row descriptions | C190: dms_060801_01_Rows | D190: dms_060801_02_Rows | E190: dms_060801_03_Rows | F190: dms_060801_04_Rows
C191: Number of interruptions | D191: Duration of interruptions | E191: Total unplanned minutes off supply | F191: Effect on unplanned MAIFI
B194: Table 7.9.4 - market impact component - row descriptions | C194: dms_070904_01_Rows | D194: without exclusions | E194: with exclusions
B197: These headings (Lists) are determined from the INDEX/MATCH function on the NSP selected on the Business & other details sheet
B199: Table 6.7.1 - daily performance data - unplanned - MAIFI -- row descriptions and header named range values | C199: dms_060701_Feeder_Header_Lvl4 | D199: =INDEX(dms_FeederName_1,MATCH(dms_TradingName,dms_TradingName_List)) -> CBD | E199: =INDEX(dms_FeederName_1,MATCH(dms_TradingName,dms_TradingName_List)) -> CBD | F199: =INDEX(dms_FeederName_2,MATCH(dms_TradingName,dms_TradingName_List)) -> Urban | G199: =INDEX(dms_FeederName_2,MATCH(dms_TradingName,dms_TradingName_List)) -> Urban | H199: =INDEX(dms_FeederName_3,MATCH(dms_TradingName,dms_TradingName_List)) -> Short rural | I199: =INDEX(dms_FeederName_3,MATCH(dms_TradingName,dms_TradingName_List)) -> Short rural | J199: =INDEX(dms_FeederName_4,MATCH(dms_TradingName,dms_TradingName_List)) -> Long rural | K199: =INDEX(dms_FeederName_4,MATCH(dms_TradingName,dms_TradingName_List)) -> Long rural | L199: =IF((INDEX(dms_FeederName_5,MATCH(dms_TradingName,dms_TradingName_List))=0),"Network",(INDEX(dms_FeederName_5,MATCH(dms_TradingName,dms_TradingName_List)))) -> Network | M199: =IF((INDEX(dms_FeederName_5,MATCH(dms_TradingName,dms_TradingName_List))=0),"Network",(INDEX(dms_FeederName_5,MATCH(dms_TradingName,dms_TradingName_List)))) -> Network | N199: Network | O199: Network
C201: dms_060701_Rows | D201: All events | E201: After removing excluded events | F201: All events | G201: After removing excluded events | H201: All events | I201: After removing excluded events | J201: All events | K201: After removing excluded events | L201: All events | M201: After removing excluded events | N201: All events | O201: After removing excluded events
D202: the number of column headings changes from 10 to 12 depending on the number of feeder categories for the NSP
C204: dms_0603_FeederList | D204: =INDEX(dms_FeederName_1,MATCH(dms_TradingName,dms_TradingName_List)) -> CBD | E204: =INDEX(dms_FeederName_2,MATCH(dms_TradingName,dms_TradingName_List)) -> Urban | F204: =INDEX(dms_FeederName_3,MATCH(dms_TradingName,dms_TradingName_List)) -> Short rural | G204: =INDEX(dms_FeederName_4,MATCH(dms_TradingName,dms_TradingName_List)) -> Long rural
B207: Use these to add to specific worksheets in existing files | C207: Use these to add to specific worksheets in existing files
B210: ARRs 6.7 STPIS daily performance | C210: dms_060101_Values | D210: dms_060102_Values | E210: dms_060701_Values
C211: dms_LeapYear
B214: ARR's 6.8 STPIS exclusions | C214: dms_060801_Event_Date | D214: dms_060801_OutageID | E214: dms_060801_FeederID | F214: dms_060801_FeederClass | G214: dms_060801_CauseID | H214: dms_060801_01_Values | I214: dms_060801_02_Values | J214: dms_060801_03_Values | K214: dms_060801_Excl_Cat | L214: dms_060801_04_Values
C215: dms_060801_StartCell
B218: CA 6.3 sustained interruptions | C218: dms_060301_Event_Date | D218: dms_060301_Event_Time | E218: dms_060301_AssetID | F218: dms_060301_FeederClass | G218: dms_060301_Reason | H218: dms_060301_DetailedReason | I218: dms_060301_CustNo_Affected_Values | J218: dms_060301_Avg_Duration_Sustained_Int_Values | K218: dms_060301_Effect_unplanned_SAIDI_Values | L218: dms_060301_Effect_unplanned_SAIFI_Values | M218: dms_060301_MED

Sheet AER lookups (hidden)
B1: AER LOOKUP TABLES
B3: Data in these columns used for data validation and database purposes.
B4: Date last modified: | C4: 2017-01-16 | D4: added (Albury and Victora) for AGN
C5: 2016-10-17 | D5: updated TransGrid's correct legal name, corrected TasNetworks (T) to June financial year
C6: 2017-02-01 | D6: inserted Power and Water, added NRs (dms_FeederCat_1 and dms_FeederCat_2)
C7: 2017-03-03 | D7: inserted AEMO as a business
C8: 2018-03-28 | D8: major changes to accommodate STPIS
C9: Template Version | D9: 5
Z11: FOR ELECTRICITY BUSINESSES ONLY
Z12: Feeder Types | AD12: TasNetworks (D) | AE12: Feeder Names
Z14: CBD | AA14: Urban | AB14: Short rural | AC14: long rural | AD14: EXTRA
B15: dms_TradingName_List | C15: dms_TradingNameFull_List | D15: dms_ABN_List | E15: dms_JurisdictionList | F15: dms_Sector_List | G15: dms_Segment_List | H15: dms_FormControl_List | I15: dms_RPT_List | J15: dms_RPTMonth_List | K15: dms_CRCPlength_List | L15: dms_FRCPlength_List | M15: dms_PRCPlength_List | N15: dms_663_List | O15: dms_DeterminationRef_List | P15: dms_Addr1_List | Q15: dms_Addr2_List | R15: dms_Suburb_List | S15: dms_State_List | T15: dms_PostCode_List | U15: dms_PAddr1_List | V15: dms_PAddr2_List | W15: dms_PSuburb_List | X15: dms_PState_List | Y15: dms_PPostCode_List | Z15: dms_CBD_flag | AA15: dms_Urban_flag | AB15: dms_ShortRural_flag | AC15: dms_LongRural_flag | AD15: dms_FeederType_5_flag | AE15: dms_FeederName_1 | AF15: dms_FeederName_2 | AG15: dms_FeederName_3 | AH15: dms_FeederName_4 | AI15: dms_FeederName_5 | AJ15: dms_Public_Lighting_List | AK15: Name
B16: AEMO | C16: Australian Energy Market Operator Ltd | D16: 94072010327 | E16: Vic | F16: Electricity | G16: Transmission | H16: - | I16: Financial | J16: March | K16: 5 | L16: 5 | M16: 5 | N16: x | O16: - | P16: Level 22 | Q16: 530 Collins Street | R16: MELBOURNE | S16: Vic | T16: 3000 | U16: GPO Box 2008 | W16: MELBOURNE | X16: Vic | Y16: 3001 | Z16: NO | AA16: NO | AB16: NO | AC16: NO | AD16: NO | AE16: CBD | AF16: Urban | AG16: Short rural | AH16: Long rural | AJ16: NO | AK16: =B16 -> AEMO
B17: AusNet (T) | C17: Ausnet Services (Transmission) Ltd | D17: 48116124362 | E17: Vic | F17: Electricity | G17: Transmission | H17: Revenue cap | I17: Financial | J17: March | K17: 5 | L17: 5 | M17: 5 | N17: 2 | O17: transmission determination | P17: Level 32 | Q17: 2 Southbank Boulevard | R17: SOUTHBANK | S17: Vic | T17: 3006 | U17: Locked Bag 14051 | W17: MELBOURNE CITY MAIL CENTRE | X17: Vic | Y17: 8001 | Z17: NO | AA17: NO | AB17: NO | AC17: NO | AD17: NO | AE17: CBD | AF17: Urban | AG17: Short rural | AH17: Long rural | AJ17: NO | AK17: AusNet (T)
B18: Australian Transmission Co. | C18: Australian Transmission Co. | D18: 11222333444 | E18: NSW | F18: Electricity | G18: Transmission | H18: Revenue cap | I18: Financial | J18: June | K18: 5 | L18: 5 | M18: 5 | N18: 5 | O18: transmission determination | P18: 123 Straight Street | R18: SYDNEY | S18: NSW | T18: 2000 | U18: PO Box 123 | W18: SYDNEY | X18: NSW | Y18: 2000 | Z18: NO | AA18: NO | AB18: NO | AC18: NO | AD18: NO | AE18: CBD | AF18: Urban | AG18: Short rural | AH18: Long rural | AJ18: NO | AK18: Australian Transmission Co.
B19: Basslink | C19: Basslink | D19: 52 090 996 231 | E19: Vic-Tas | F19: Electricity | G19: Transmission | H19: Revenue cap | I19: Financial | J19: June | K19: 5 | L19: 5 | M19: 5 | N19: 5 | O19: transmission determination | P19: Level 25 | Q19: 580 George Street | R19: SYDNEY | S19: NSW | T19: 2000 | U19: PO Box R41 | W19: ROYAL EXCHANGE | X19: NSW | Y19: 1225 | Z19: NO | AA19: NO | AB19: NO | AC19: NO | AD19: NO | AE19: CBD | AF19: Urban | AG19: Short rural | AH19: Long rural | AJ19: NO | AK19: Basslink
B20: Directlink | C20: Directlink | D20: 16779340889 | E20: Qld | F20: Electricity | G20: Transmission | H20: Revenue cap | I20: Financial | J20: June | K20: 5 | L20: 5 | M20: 5 | N20: 5 | O20: transmission determination | P20: Level 25 | Q20: 580 George Street | R20: SYDNEY | S20: NSW | T20: 2000 | U20: PO Box R41 | W20: ROYAL EXCHANGE | X20: NSW | Y20: 1225 | Z20: NO | AA20: NO | AB20: NO | AC20: NO | AD20: NO | AE20: CBD | AF20: Urban | AG20: Short rural | AH20: Long rural | AJ20: NO | AK20: Directlink
B21: ElectraNet | C21: ElectraNet | D21: 41094482416 | E21: SA | F21: Electricity | G21: Transmission | H21: Revenue cap | I21: Financial | J21: June | K21: 5 | L21: 5 | M21: 5 | N21: 5 | O21: transmission determination | P21: 52-55 East Terrace | Q21: Rymill Park | R21: ADELAIDE | S21: SA | T21: 5000 | U21: PO Box 7096 | V21: Hutt Street Post Office | W21: ADELAIDE | X21: SA | Y21: 5000 | Z21: NO | AA21: NO | AB21: NO | AC21: NO | AD21: NO | AE21: CBD | AF21: Urban | AG21: Short rural | AH21: Long rural | AJ21: NO | AK21: ElectraNet
B22: Murraylink | C22: Murraylink | D22: 79181207909 | E22: SA | F22: Electricity | G22: Transmission | H22: Revenue cap | I22: Financial | J22: June | K22: 5 | L22: 5 | M22: 5 | N22: 5 | O22: transmission determination | P22: Level 19 | Q22: 580 George Street | R22: SYDNEY | S22: NSW | T22: 2000 | U22: PO Box R41 | W22: ROYAL EXCHANGE | X22: NSW | Y22: 1225 | Z22: NO | AA22: NO | AB22: NO | AC22: NO | AD22: NO | AE22: CBD | AF22: Urban | AG22: Short rural | AH22: Long rural | AJ22: NO | AK22: Murraylink
B23: Powerlink | C23: Queensland Electricity Transmission Corporation Limited trading as Powerlink Queensland | D23: 82078849233 | E23: Qld | F23: Electricity | G23: Transmission | H23: Revenue cap | I23: Financial | J23: June | K23: 5 | L23: 5 | M23: 5 | N23: 5 | O23: transmission determination | P23: 33 Harold St | R23: VIRGINIA | S23: Qld | T23: 4014 | U23: PO Box 1193 | W23: VIRGINIA | X23: QLD | Y23: 4014 | Z23: NO | AA23: NO | AB23: NO | AC23: NO | AD23: NO | AE23: CBD | AF23: Urban | AG23: Short rural | AH23: Long rural | AJ23: NO | AK23: Powerlink
B24: TasNetworks (T) | C24: TasNetworks (T) | D24: 24167357299 | E24: Tas | F24: Electricity | G24: Transmission | H24: Revenue cap | I24: Financial | J24: June | K24: 5 | L24: 5 | M24: 5 | N24: 5 | O24: transmission determination | P24: 1-7 Maria Street | R24: LENAH VALLEY | S24: Tas | T24: 7008 | U24: PO Box 606 | W24: MOONAH | X24: Tas | Y24: 7009 | Z24: NO | AA24: NO | AB24: NO | AC24: NO | AD24: NO | AE24: CBD | AF24: Urban | AG24: Short rural | AH24: Long rural | AJ24: NO | AK24: TasNetworks (T)
B25: TransGrid | C25: NSW Electricity Networks Operations Pty Ltd trading as TransGrid | D25: 70 250 995 390 | E25: NSW | F25: Electricity | G25: Transmission | H25: Revenue cap | I25: Financial | J25: June | K25: 4 | L25: 5 | M25: 5 | N25: 5 | O25: transmission determination | P25: 180 Thomas Street | R25: SYDNEY | S25: NSW | T25: 2000 | U25: PO Box A1000 | W25: SYDNEY SOUTH | X25: NSW | Y25: 1235 | Z25: NO | AA25: NO | AB25: NO | AC25: NO | AD25: NO | AE25: CBD | AF25: Urban | AG25: Short rural | AH25: Long rural | AJ25: NO | AK25: TransGrid
B30: The Reg Year Ending (dms_RYE) must be set to the last year of the regulatory period. For forecast data is is usually (FRCP_y5) for actual it is a single year (CRY). For historical actual data the RYE will need to be set manually in the business details sheet by setting the dms_Multiyear_flag to 1 and putting the correct value in 'dms_Specified_FinalYear. See cells C67:C68
B31: dms_Model_List | C31: dms_Model_Name_Format1 | D31: dms_Worksheet_List | E31: dms_Model_Span_List
B32: ARR | C32: Annual Reporting | D32: =IF(dms_MultiYear_ResponseFlag="yes","NEW HISTORICAL ANNUAL REPORTING","ANNUAL REPORTING") -> ANNUAL REPORTING | E32: 1
B33: CA | C33: Category Analysis | D33: =IF(dms_MultiYear_ResponseFlag="yes","NEW HISTORICAL CATEGORY ANALYSIS","CATEGORY ANALYSIS") -> CATEGORY ANALYSIS | E33: 1
B34: CESS | C34: Capitlal Expenditure | D34: CAPITLAL EXPENDITURE SHARING SCHEMING | E34: 5
B35: CPI | C35: CPI | D35: CPI | E35: 5
B36: EB | C36: Economic Benchmarking | D36: =IF(dms_MultiYear_ResponseFlag="yes","NEW HISTORICAL ECONOMIC BENCHMARKING","ECONOMIC BENCHMARKING") -> ECONOMIC BENCHMARKING | E36: 1
B37: Pricing | C37: Pricing Proposal | D37: PRICING PROPOSAL | E37: 5
B38: PTRM | C38: Post Tax Revenue Model | D38: POST TAX REVENUE MODEL | E38: 5
B39: Reset | C39: Regulatory Reporting (Reset) | D39: REGULATORY REPORTING STATEMENT | E39: 5
B40: RFM | C40: Roll Forward Model | D40: ROLL FORWARD MODEL | E40: 5
B41: WACC | C41: Weighted Average Cost of Capital | D41: WEIGHTED AVERAGE COST OF CAPITAL | E41: 1
B45: Financial | C45: Calendar | E45: PREVIOUS | G45: CURRENT | I45: FORTHCOMING
B46: 1987-88 | C46: 1988 | D46: PRCP_y1 | E46: =INDEX(INDIRECT(dms_RPT),dms_PRCP_start_row) -> 2010-11 | F46: CRCP_y1 | G46: =INDEX(INDIRECT(dms_RPT),dms_CRCP_start_row) -> 2015-16 | H46: =FRCP_y1 -> 2020-21 | I46: =INDEX(INDIRECT(dms_RPT),dms_FRCP_start_row) -> 2020-21
B47: 1988-89 | C47: 1989 | D47: PRCP_y2 | E47: =INDEX(INDIRECT(dms_RPT),dms_PRCP_start_row+1) -> 2011-12 | F47: CRCP_y2 | G47: =INDEX(INDIRECT(dms_RPT),dms_CRCP_start_row+1) -> 2016-17 | H47: FRCP_y2 | I47: =INDEX(INDIRECT(dms_RPT),dms_FRCP_start_row+1) -> 2021-22
B48: 1989-90 | C48: 1990 | D48: PRCP_y3 | E48: =INDEX(INDIRECT(dms_RPT),dms_PRCP_start_row+2) -> 2012-13 | F48: CRCP_y3 | G48: =INDEX(INDIRECT(dms_RPT),dms_CRCP_start_row+2) -> 2017-18 | H48: FRCP_y3 | I48: =INDEX(INDIRECT(dms_RPT),dms_FRCP_start_row+2) -> 2022-23
B49: 1990-91 | C49: 1991 | D49: PRCP_y4 | E49: =INDEX(INDIRECT(dms_RPT),dms_PRCP_start_row+3) -> 2013-14 | F49: CRCP_y4 | G49: =INDEX(INDIRECT(dms_RPT),dms_CRCP_start_row+3) -> 2018-19 | H49: FRCP_y4 | I49: =INDEX(INDIRECT(dms_RPT),dms_FRCP_start_row+3) -> 2023-24
B50: 1991-92 | C50: 1992 | D50: PRCP_y5 | E50: =INDEX(INDIRECT(dms_RPT),dms_PRCP_start_row+4) -> 2014-15 | F50: CRCP_y5 | G50: =INDEX(INDIRECT(dms_RPT),dms_CRCP_start_row+4) -> 2019-20 | H50: FRCP_y5 | I50: =INDEX(INDIRECT(dms_RPT),dms_FRCP_start_row+4) -> 2024-25
B51: 1992-93 | C51: 1993 | D51: PRCP_y6 | E51: =INDEX(INDIRECT(dms_RPT),dms_PRCP_start_row+5) -> 2015-16 | F51: CRCP_y6 | G51: =INDEX(INDIRECT(dms_RPT),dms_CRCP_start_row+5) -> 2020-21 | H51: FRCP_y6 | I51: =INDEX(INDIRECT(dms_RPT),dms_FRCP_start_row+5) -> 2025-26
B52: 1993-94 | C52: 1994 | D52: PRCP_y7 | E52: =INDEX(INDIRECT(dms_RPT),dms_PRCP_start_row+6) -> 2016-17 | F52: CRCP_y7 | G52: =INDEX(INDIRECT(dms_RPT),dms_CRCP_start_row+6) -> 2021-22 | H52: FRCP_y7 | I52: =INDEX(INDIRECT(dms_RPT),dms_FRCP_start_row+6) -> 2026-27
B53: 1994-95 | C53: 1995 | D53: PRCP_y8 | E53: =INDEX(INDIRECT(dms_RPT),dms_PRCP_start_row+7) -> 2017-18 | F53: CRCP_y8 | G53: =INDEX(INDIRECT(dms_RPT),dms_CRCP_start_row+7) -> 2022-23 | H53: FRCP_y8 | I53: =INDEX(INDIRECT(dms_RPT),dms_FRCP_start_row+7) -> 2027-28
B54: 1995-96 | C54: 1996 | D54: PRCP_y9 | E54: =INDEX(INDIRECT(dms_RPT),dms_PRCP_start_row+8) -> 2018-19 | F54: CRCP_y9 | G54: =INDEX(INDIRECT(dms_RPT),dms_CRCP_start_row+8) -> 2023-24 | H54: FRCP_y9 | I54: =INDEX(INDIRECT(dms_RPT),dms_FRCP_start_row+8) -> 2028-29
B55: 1996-97 | C55: 1997 | D55: PRCP_y10 | E55: =INDEX(INDIRECT(dms_RPT),dms_PRCP_start_row+9) -> 2019-20 | F55: CRCP_y10 | G55: =INDEX(INDIRECT(dms_RPT),dms_CRCP_start_row+9) -> 2024-25 | H55: FRCP_y10 | I55: =INDEX(INDIRECT(dms_RPT),dms_FRCP_start_row+9) -> 2029-30
B56: 1997-98 | C56: 1998 | D56: PRCP_y11 | E56: =INDEX(INDIRECT(dms_RPT),dms_PRCP_start_row+10) -> 2020-21 | F56: CRCP_y11 | G56: =INDEX(INDIRECT(dms_RPT),dms_CRCP_start_row+10) -> 2025-26 | H56: FRCP_y11 | I56: =INDEX(INDIRECT(dms_RPT),dms_FRCP_start_row+10) -> 2030-31
B57: 1998-99 | C57: 1999 | D57: PRCP_y12 | E57: =INDEX(INDIRECT(dms_RPT),dms_PRCP_start_row+11) -> 2021-22 | F57: CRCP_y12 | G57: =INDEX(INDIRECT(dms_RPT),dms_CRCP_start_row+11) -> 2026-27 | H57: FRCP_y12 | I57: =INDEX(INDIRECT(dms_RPT),dms_FRCP_start_row+11) -> 2031-32
B58: 1999-00 | C58: 2000 | D58: PRCP_y13 | E58: =INDEX(INDIRECT(dms_RPT),dms_PRCP_start_row+12) -> 2022-23 | F58: CRCP_y13 | G58: =INDEX(INDIRECT(dms_RPT),dms_CRCP_start_row+12) -> 2027-28 | H58: FRCP_y13 | I58: =INDEX(INDIRECT(dms_RPT),dms_FRCP_start_row+12) -> 2032-33
B59: 2000-01 | C59: 2001 | D59: PRCP_y14 | E59: =INDEX(INDIRECT(dms_RPT),dms_PRCP_start_row+13) -> 2023-24 | F59: CRCP_y14 | G59: =INDEX(INDIRECT(dms_RPT),dms_CRCP_start_row+13) -> 2028-29 | H59: FRCP_y14 | I59: =INDEX(INDIRECT(dms_RPT),dms_FRCP_start_row+13) -> 2033-34
B60: 2001-02 | C60: 2002 | D60: PRCP_y15 | E60: =INDEX(INDIRECT(dms_RPT),dms_PRCP_start_row+14) -> 2024-25 | F60: CRCP_y15 | G60: =INDEX(INDIRECT(dms_RPT),dms_CRCP_start_row+14) -> 2029-30 | H60: FRCP_y15 | I60: =INDEX(INDIRECT(dms_RPT),dms_FRCP_start_row+14) -> 2034-35
B61: 2002-03 | C61: 2003 | D61: PRCP_y16 | E61: =INDEX(INDIRECT(dms_RPT),dms_PRCP_start_row+15) -> 2025-26 | F61: CRCP_y16 | G61: =INDEX(INDIRECT(dms_RPT),dms_CRCP_start_row+15) -> 2030-31 | H61: FRCP_y16 | I61: =INDEX(INDIRECT(dms_RPT),dms_FRCP_start_row+15) -> 2035-36
B62: 2003-04 | C62: 2004
B63: 2004-05 | C63: 2005
B64: 2005-06 | C64: 2006 | E64: CRY - FRY
B65: 2006-07 | C65: 2007 | D65: dms_y1 | E65: =IFERROR(INDEX(INDIRECT(dms_RPT),dms_CRY_start_row),0) -> 2018-19
B66: 2007-08 | C66: 2008 | D66: dms_y2 | E66: =IFERROR(INDEX(INDIRECT(dms_RPT),dms_CRY_start_row+1),0) -> 2019-20
B67: 2008-09 | C67: 2009 | D67: dms_y3 | E67: =IFERROR(INDEX(INDIRECT(dms_RPT),dms_CRY_start_row+2),0) -> 2020-21
B68: 2009-10 | C68: 2010 | D68: dms_y4 | E68: =IFERROR(INDEX(INDIRECT(dms_RPT),dms_CRY_start_row+3),0) -> 2021-22
B69: 2010-11 | C69: 2011 | D69: dms_y5 | E69: =IFERROR(INDEX(INDIRECT(dms_RPT),dms_CRY_start_row+4),0) -> 2022-23
B70: 2011-12 | C70: 2012 | D70: dms_y6 | E70: =IFERROR(INDEX(INDIRECT(dms_RPT),dms_CRY_start_row+5),0) -> 2023-24
B71: 2012-13 | C71: 2013 | D71: dms_y7 | E71: =IFERROR(INDEX(INDIRECT(dms_RPT),dms_CRY_start_row+6),0) -> 2024-25
B72: 2013-14 | C72: 2014 | D72: dms_y8 | E72: =IFERROR(INDEX(INDIRECT(dms_RPT),dms_CRY_start_row+7),0) -> 2025-26
B73: 2014-15 | C73: 2015 | D73: dms_y9 | E73: =IFERROR(INDEX(INDIRECT(dms_RPT),dms_CRY_start_row+8),0) -> 2026-27
B74: 2015-16 | C74: 2016 | D74: dms_y10 | E74: =IFERROR(INDEX(INDIRECT(dms_RPT),dms_CRY_start_row+9),0) -> 2027-28
B75: 2016-17 | C75: 2017 | D75: dms_y11 | E75: =IFERROR(INDEX(INDIRECT(dms_RPT),dms_CRY_start_row+10),0) -> 2028-29
B76: 2017-18 | C76: 2018 | D76: dms_y12 | E76: =IFERROR(INDEX(INDIRECT(dms_RPT),dms_CRY_start_row+11),0) -> 2029-30
B77: 2018-19 | C77: 2019 | D77: dms_y13 | E77: =IFERROR(INDEX(INDIRECT(dms_RPT),dms_CRY_start_row+12),0) -> 2030-31
B78: 2019-20 | C78: 2020 | D78: dms_y14 | E78: =IFERROR(INDEX(INDIRECT(dms_RPT),dms_CRY_start_row+13),0) -> 2031-32
B79: 2020-21 | C79: 2021 | D79: dms_y15 | E79: =IFERROR(INDEX(INDIRECT(dms_RPT),dms_CRY_start_row+14),0) -> 2032-33
B80: 2021-22 | C80: 2022 | D80: dms_y16 | E80: =IFERROR(INDEX(INDIRECT(dms_RPT),dms_CRY_start_row+15),0) -> 2033-34
B81: 2022-23 | C81: 2023
B82: 2023-24 | C82: 2024
B83: 2024-25 | C83: 2025
B84: 2025-26 | C84: 2026
B85: 2026-27 | C85: 2027
B86: 2027-28 | C86: 2028
B87: 2028-29 | C87: 2029
B88: 2029-30 | C88: 2030
B89: 2030-31 | C89: 2031
B90: 2031-32 | C90: 2032
B91: 2032-33 | C91: 2033
B92: 2033-34 | C92: 2034
B93: 2034-35 | C93: 2035
B94: 2035-36 | C94: 2036
B95: 2036-37 | C95: 2037

Sheet AER ETL (hidden)
B1: AER ETL INFORMATION
B3: USES NAMED RANGES FLAG | C3: yes | D3: dms_Defined_Names_Used
B5: IF THIS IS AN ABC RIN - make sure the the named range CRY is applied and the named range dms_dollar_nom_UOM is applied
B6: IF THIS IS A RESET RIN - make sure the named ranges CRY and dms_dollar_nom_UOM are NOT present in the workbook
B7: FOR ABC RINS THAT SPAN MULTIPLE YEARS - make sure MultiYear Flag is set and final year entered as required
B9: Full trading name | C9: =INDEX(dms_TradingNameFull_List,MATCH(dms_TradingName,dms_TradingName_List)) -> Basslink | E9: dms_TradingNameFull
B10: Trading name | C10: =dms_TradingName -> Basslink
A11: Selected here | B11: Model / RIN | C11: RFM | D11: dms_Model
A12: Read from Business & other details | B12: Source | C12: =dms_Selected_Source -> Regulatory proposal | D12: dms_Source
B13: Data quality | C13: Consolidated | D13: For DB purposes this is always Consoldiated
B14: Data status | C14: Public | D14: For DB purposes this is always Public
B15: Amendment reason | C15: =dms_Amendment_Text -> . | F15: dms_AmendmentReason
B16: Submission date | C16: =dms_Typed_Submission_Date -> dd/mm/yy | D16: dms_SubmissionDate
A18: Redundant | B18: EBSS - First application of scheme in forthcoming period? | C18: No
A19: Pre-populated from lookup table | B19: Data ingestion data quality | C19: Consolidated | D19: dms_DataQuality | E19: Always Consolidated
B20: Sector | C20: =INDEX(dms_Sector_List,MATCH(dms_TradingName,dms_TradingName_List)) -> Electricity | D20: dms_Sector | E20: =INDEX(dms_Sector_List,MATCH(dms_TradingName,dms_TradingName_List))
B21: Segment | C21: =INDEX(dms_Segment_List,MATCH(dms_TradingName,dms_TradingName_List)) -> Transmission | D21: dms_Segment | E21: =INDEX(dms_Segment_List,MATCH(dms_TradingName,dms_TradingName_List))
B22: Regulatory Year Ending | C22: =dms_RYE_result -> 2020 | D22: dms_RYE | E22: =IF(dms_MultiYear_Flag=1,LEFT(dms_Specified_FinalYear,2)&RIGHT(dms_Specified_FinalYear,2),INDEX(dms_RYE_Formula_Result,MATCH(dms_Model,dms_Model_List)))
B23: Reporting Period Type | C23: =INDEX(dms_RPT_List,MATCH(dms_TradingName,dms_TradingName_List)) -> Financial | D23: dms_RPT | E23: =INDEX(dms_RPT_List,MATCH(dms_TradingName,dms_TradingName_List))
B24: EB/CA Unit of Measure for Monetary Values | C24: $0s | D24: dms_dollar_nom_UOM | E24: If the cover sheet is attached to an ABC RIN apply the NAMED RANGE to the cell
B25: Security Classification | C25: Public | D25: dms_Classification | E25: Always Public
B26: Jurisdiction | C26: =INDEX(dms_JurisdictionList,MATCH(dms_TradingName,dms_TradingName_List)) -> Vic-Tas | D26: dms_Jurisdiction | E26: =INDEX(dms_JurisdictionList,MATCH(dms_TradingName,dms_TradingName_List))
A27: Relevant for PTRM, RFMs and Reset RINS | B27: $ REAL REFERENCES
B28: Does the named range CRY exist in this file? | C28: =IFERROR(CRY,"NO") -> NO
B29: CRY-1 (last full calendar year before CRY) | C29: =IFERROR(IF(dms_RPT="calendar",CRY-1,LEFT(CRY,4)),"CRY not present") -> CRY not present | D29: dms_Cal_Year_B4_CRY | E29: '=IF(dms_RPT="financial",VALUE(LEFT(dms_SingleYear_FinalYear_Result,4)),VALUE(LEFT(dms_SingleYear_FinalYear_Result,4)-1))
B30: Dollar $ real month | C30: =INDEX(dms_RPTMonth_List,MATCH(dms_TradingName,dms_TradingName_List)) -> June | D30: dms_RPTMonth | E30: =INDEX(dms_RPTMonth_List,MATCH(dms_TradingName,dms_TradingName_List))
B31: Dollar $ real (the last month before the FRCP_y1) | C31: =IF(dms_SingleYearModel="yes",CONCATENATE(dms_RPTMonth)&" "&VALUE((LEFT(dms_CRY_start_year,2)&RIGHT(dms_CRY_start_year,2))),CONCATENATE(dms_RPTMonth)&" "&dms_DollarReal_year) -> June 2020 | D31: dms_DollarReal | E31: =IF(SUM(dms_SingleYear_Model)>0,CONCATENATE(dms_RPTMonth)&" "&VALUE((LEFT(CRY,2))&RIGHT(CRY,2)),CONCATENATE(dms_RPTMonth)&" "&VALUE((LEFT(dms_RYE,2)&RIGHT(dms_RYE,2))))
B32: Dollar $ real previous year (PRCP_y5) | C32: =CONCATENATE(dms_RPTMonth)&" "&dms_Previous_DollarReal_year -> June 2015 | D32: dms_DollarReal_Prev | E32: =IF(SUM(dms_SingleYear_Model)>0,CONCATENATE(dms_RPTMonth)&" "&VALUE(((LEFT(CRY,2))&RIGHT(CRY,2))-1),CONCATENATE(dms_RPTMonth)&" "&VALUE(((LEFT(dms_CRCP_FirstYear_Result,2)&RIGHT(dms_CRCP_FirstYear_Result,2))))-1)
B33: PTRM/ RFMs
B34: Form of control | C34: =INDEX(dms_FormControl_List,MATCH(dms_TradingName,dms_TradingName_List)) -> Revenue cap | D34: dms_FormControl | E34: =INDEX(dms_FormControl_List,MATCH(dms_TradingName,dms_TradingName_List))
A35: All potential values for Regulatory Years or RYEs as calculated | B35: This block works out the various RYE's for ALL RIN types and MODELS
B36: dms_start_year | C36: =FRCP_y1 -> 2020-21 | D36: =FRCP_y1 | E36: FRCP_y1 from cover sheet
B37: dms_CRY_start_year | C37: =IFERROR(CRY,CRCP_y4) -> 2018-19 | D37: =IFERROR(CRY,CRCP_y4)
B38: dms_CRY_start_row | C38: =IFERROR(MATCH(dms_CRY_start_year,INDIRECT(dms_RPT),0),0) -> 32 | D38: =IFERROR(MATCH(dms_CRY_start_year,INDIRECT(dms_RPT),0),0)
B39: dms_FRCP_start_row | C39: =MATCH(dms_start_year,INDIRECT(dms_RPT),0) -> 34 | D39: =MATCH(dms_start_year,INDIRECT(dms_RPT),0) | E39: Uses FRCP_y1 as a start reference
B40: dms_CRCP_start_row | C40: =dms_FRCP_start_row-dms_CRCPlength_Num -> 29 | D40: =dms_FRCP_start_row-dms_CRCPlength_Num | E40: Uses the value in dms_CRCPlength_Num
B41: dms_PRCP_start_row | C41: =dms_FRCP_start_row-dms_CRCPlength_Num-dms_PRCPlength_Num -> 24 | D41: =dms_FRCP_start_row-dms_CRCPlength_Num-dms_PRCPlength_Num | E41: Uses the value in dms_CRCPlength_Num and dms_PRCPlength_Num
B42: dms_RYE_start_row | C42: =dms_FRCP_start_row+(dms_FRCPlength_Num-1) -> 38 | D42: =dms_FRCP_start_row+(dms_FRCPlength_Num-1) | E42: Uses the value in dms_FRCPlength_Num-1
B43: FRCP_start_year | C43: =INDEX(INDIRECT(dms_RPT),dms_FRCP_start_row) -> 2020-21 | D43: =INDEX(INDIRECT(dms_RPT),dms_FRCP_start_row) | E43: Converts the FRCP start row to display the year
B44: CRCP_start_year | C44: =INDEX(INDIRECT(dms_RPT),dms_CRCP_start_row) -> 2015-16 | D44: =INDEX(INDIRECT(dms_RPT),dms_CRCP_start_row) | E44: Converts the CRCP start row to display the year
B45: PRCP_start_year | C45: =INDEX(INDIRECT(dms_RPT),dms_PRCP_start_row) -> 2010-11 | D45: =INDEX(INDIRECT(dms_RPT),dms_PRCP_start_row) | E45: Converts the PRCP start row to display the year
B46: FRCP_final_year | C46: =INDEX(INDIRECT(dms_RPT),dms_FRCP_start_row+dms_FRCPlength_Num-1) -> 2024-25 | D46: =INDEX(INDIRECT(dms_RPT),dms_FRCP_start_row+dms_FRCPlength_Num-1) | E46: Finds the FRCP final year
B47: CRCP_final_year | C47: =INDEX(INDIRECT(dms_RPT),dms_CRCP_start_row+dms_CRCPlength_Num-1) -> 2019-20 | D47: =INDEX(INDIRECT(dms_RPT),dms_CRCP_start_row+dms_CRCPlength_Num-1) | E47: Finds the CRCP final year
B48: PRCP_final_year | C48: =INDEX(INDIRECT(dms_RPT),dms_PRCP_start_row+dms_FRCPlength_Num-1) -> 2014-15 | D48: =INDEX(INDIRECT(dms_RPT),dms_PRCP_start_row+dms_FRCPlength_Num-1) | E48: Finds the PRCP final year
B49: dms_Reset_final_year | C49: =INDEX(INDIRECT(dms_RPT),dms_RYE_start_row) -> 2024-25 | D49: =INDEX(INDIRECT(dms_RPT),dms_RYE_start_row) | E49: For Resets and PTRM/RFMs (same as FRCP_final_year)
B50: dms_SpecifiedYear_final_year | C50: =FRY ->  | D50: =FRY | E50: FRY from cover sheet
B51: dms_DollarReal_year | C51: =LEFT(CRCP_final_year,2)&RIGHT(CRCP_final_year,2) -> 2020 | D51: =LEFT(CRCP_final_year,2)&RIGHT(CRCP_final_year,2) | E51: Uses the value in CRCP_final_year
B52: dms_Previous_DollarReal_year | C52: =LEFT(PRCP_final_year,2)&RIGHT(PRCP_final_year,2) -> 2015 | D52: =LEFT(PRCP_final_year,2)&RIGHT(PRCP_final_year,2) | E52: Uses the value in PRCP_final_year
B53: dms_CRY_RYE | C53: =IFERROR(LEFT(CRY,2)&RIGHT(CRY,2),0) -> 0 | D53: =IFERROR(LEFT(CRY,2)&RIGHT(CRY,2),0) | E53: For ABC single year RINS
B54: dms_Reset_RYE | C54: =IF(dms_Model_Span>1,IF(dms_Model="RFM",(LEFT(dms_DollarReal_year,2)&RIGHT(dms_DollarReal_year,2)),(LEFT(dms_Reset_final_year,2)&RIGHT(dms_Reset_final_year,2))),0) -> 2020 | D54: =IF(dms_Model_Span>1,IF(dms_Model="RFM",(LEFT(dms_DollarReal_year,2)&RIGHT(dms_DollarReal_year,2)),(LEFT(dms_Reset_final_year,2)&RIGHT(dms_Reset_final_year,2))),0) | E54: If model span > 1 then uses dms_Reset_RYE otherwise it's a multi year ABC and uses dms_Specified_RYE
B55: dms_Specified_RYE | C55: =IF(dms_MultiYear_ResponseFlag="Yes",(LEFT(dms_Specified_FinalYear,2)&RIGHT(dms_Specified_FinalYear,2)),0) -> 0 | D55: =IF(dms_MultiYear_ResponseFlag="Yes",(LEFT(dms_Specified_FinalYear,2)&RIGHT(dms_Specified_FinalYear,2)),0) | E55: If multi year ABC - uses dms_Specified_FinalYear
B56: dms_Model_Span | C56: =INDEX(dms_Model_Span_List,MATCH(dms_Model,dms_Model_List)) -> 5 | D56: =INDEX(dms_Model_Span_List,MATCH(dms_Model,dms_Model_List)) | E56: A result of 5 is used to signify that it is more than 1 year span
B57: dms_RYE_result | C57: =IF(dms_MultiYear_ResponseFlag="yes",dms_Specified_RYE,(IF(dms_Model_Span>1,dms_Reset_RYE,dms_CRY_RYE))) -> 2020 | D57: =IF(dms_MultiYear_ResponseFlag="yes",dms_Specified_RYE,(IF(dms_Model_Span>1,dms_Reset_RYE,dms_CRY_RYE))) | E57: Nested IF - feeds into dms_RYE
B58: dms_Reset_Span | C58: =IF(dms_Reset_RYE>0,CONCATENATE(FRCP_y1," to ",FRCP_final_year),0) -> 2020-21 to 2024-25 | D58: =IF(dms_Reset_RYE>0,CONCATENATE(FRCP_y1," to ",FRCP_final_year),0) | E58: Reset span of years as text
B59: dms_SpecifiedYear_Span | C59: =IF(dms_Specified_RYE>0,CONCATENATE(CRY," to ",dms_Specified_FinalYear),0) -> 0 | D59: =IF(dms_Specified_RYE>0,CONCATENATE(CRY," to ",dms_Specified_FinalYear),0) | E59: Multi year ABC span of years as text
B60: dms_Header_Span | C60: =IF(dms_MultiYear_Flag=1,dms_SpecifiedYear_Span,IF(dms_Model_Span>1,dms_y1&" - "&FRCP_final_year,CRY)) -> 2018-19 - 2024-25 | D60: =IF(dms_MultiYear_Flag=1,dms_SpecifiedYear_Span,IF(dms_Model_Span>1,dms_Reset_Span,CRY)) | E60: NESTED IF - for Sheet Headers
B61: ABC RINS THAT SPAN MULTIPLE YEARS
B62: This is a multi year ABC RIN? | C62: No
C63: =IF(dms_MultiYear_ResponseFlag="No",0,1) -> 0 | D63: dms_MultiYear_Flag | E63: This is set from the answer provided above
C64: =IF(dms_MultiYear_Flag=1,FRY,"not a Multiple year submission") -> not a Multiple year submission | D64: dms_Specified_FinalYear | E64: The result here is returned to dms_CRCP_FinalYear_Result if response to Q in C73 is "yes" and dms_MultiYear_Flag is set to 1
B65: Start year for 5.2 in Multi year ABC RINS | C65: =IFERROR(IF(dms_MultiYear_Flag=1,FRY,CRY),"not an ABC") -> not an ABC | D65: dms_0502_Inst_Year | E65: =IF(dms_MultiYear_Flag=1,FRY,CRY) | G65: For single year RINS this is CRY - multi year RINS need to start a the end of the span of years (ie. FRY)
B66: WHAT IS THE RYE?
B67: Reg Period Lengths
B68: PRCP length in years | C68: =INDEX(dms_PRCPlength_List,MATCH(dms_TradingName,dms_TradingName_List)) -> 5 | D68: dms_PRCPlength_Num | E68: =INDEX(dms_PRCPlength_List,MATCH(dms_TradingName,dms_TradingName_List))
B69: CRCP length in years | C69: =INDEX(dms_CRCPlength_List,MATCH(dms_TradingName,dms_TradingName_List)) -> 5 | D69: dms_CRCPlength_Num | E69: =INDEX(dms_CRCPlength_List,MATCH(dms_TradingName,dms_TradingName_List))
B70: FRCP length in years | C70: =INDEX(dms_FRCPlength_List,MATCH(dms_TradingName,dms_TradingName_List)) -> 5 | D70: dms_FRCPlength_Num | E70: =INDEX(dms_FRCPlength_List,MATCH(dms_TradingName,dms_TradingName_List))
B71: Single year RIN?
B72: Single Year ABC RIN ? | C72: =IF(dms_Model="EB",1,0) -> 0 | D72: dms_EB
C73: =IF(dms_Model="CA",1,0) -> 0 | D73: dms_CA | E73: =dms_SingleYear_Model
C74: =IF(dms_Model="ARR",1,0) -> 0 | D74: dms_ARR
B75: Is this a single Year ABC RIN? | C75: =IF(SUM(dms_SingleYear_Model)=1,"yes","no") -> no | D75: dms_SingleYearModel | E75: =IF(SUM(dms_SingleYear_Model)=1,"yes","no")
B76: Single Year Final Year Result | C76: =IF(AND(dms_SingleYearModel="yes",dms_MultiYear_Flag=0),CRY,0) -> 0 | D76: dms_SingleYear_FinalYear_Result | E76: =IFERROR(IF(SUM(dms_SingleYear_Model)<>0,(INDIRECT(dms_SingleYear_FinalYear_Ref)),"not a single year RIN"),"CRY not present")
B77: Multi year RIN?
B79: Multi Year Reset/Model? | C79: =IF(dms_Model_Span>1,"yes","no") -> yes
B80: Final year result for Reset/Model | C80: =IF(dms_Model_Span>1,dms_Reset_final_year,0) -> 2024-25 | D80: dms_MultiYear_FinalYear_Result | E80: dms_CRCP_FinalYear_Result
B82: Multi Year ABC RIN? | C82: =IF(dms_MultiYear_Flag=1,"yes","no") -> no | D82: dms_MultiYear_ABC_RIN
B83: Final year result for ABC multi year | C83: =IF(dms_MultiYear_Flag=1,C50,0) -> 0
B85: EB RINS
B86: Calendar Year for table 3.6 data | C86: =IFERROR(IF(dms_Segment="Transmission",dms_Cal_Year_B4_CRY,CRY),"CRY not present") -> CRY not present | D86: dms_0306_Year | E86: =IF(dms_Segment="Transmission",dms_Cal_Year_B4_CRY,CRY)
B87: CA RINS
B88: Find how many rows in tables 6.3 sustained interruptions? | E88: dms_060301_MaxRows only returns a valid value when cover sheet is attached to a CA file
C89: =IF(dms_Model<>"CA","not a CA","Is a CA") -> not a CA | E89: =IF(dms_Model<>"CA","not a CA","Is a CA")
B90: dms_060301_Avg_Duration_Sustained_Int_Values present? | C90: =IFERROR(IF(INDEX(dms_060301_Avg_Duration_Sustained_Int_Values,1,1)<>"","yes","no"),"no") -> no | D90: dms_060301_checkvalue | E90: =IFERROR(IF(INDEX(dms_060301_Avg_Duration_Sustained_Int_Values,1,1)<>"","yes","no"),"no")
C91: =IF(AND(dms_Model="CA",(dms_060301_checkvalue="no")),"error - NR not present","no errors") -> no errors | E91: =IF(AND(dms_Model="CA",(dms_060301_checkvalue="no")),"error - NR not present","no errors")
B92: Table 6.3.1 - last row reference | C92: =IFERROR(IF(dms_Model="CA",LOOKUP(2,1/(dms_060301_Avg_Duration_Sustained_Int_Values<>""),(ROW(dms_060301_Avg_Duration_Sustained_Int_Values))),"not a CA"),"6.3 not present") -> not a CA | D92: dms_060301_LastRow | E92: =IFERROR(IF(dms_Model="CA",LOOKUP(2,1/(dms_060301_Avg_Duration_Sustained_Int_Values<>""),(ROW(dms_060301_Avg_Duration_Sustained_Int_Values))),"not a CA"),"6.3 not present")
B93: Table 6.3.1 - max number rows | C93: =IFERROR(IF(dms_Model="CA",(dms_060301_LastRow-15),"not a CA"),"error") -> not a CA | D93: dms_060301_MaxRows | E93: =IFERROR(IF(dms_Model="CA",(dms_060301_LastRow-15),"not a CA"),"error")
B94: Table 6.6.3 - Public lighting repair - no. business days | C94: =INDEX(dms_663_List,MATCH(dms_TradingName,dms_TradingName_List)) -> 5 | D94: dms_663 | E94: =INDEX(dms_663_List,MATCH(dms_TradingName,dms_TradingName_List))
B95: ARR or RESET RINS
B96: How many rows in tables 6.1 or 6.7? (leap year?) | C96: insert dms_LeapYear NR if required | E96: 'dms_LeapYear is used to determine dms_060701_Max_Rows BUT it is only found on worksheet 6.1 or 6.7 and the date value in the cell is used to determine whether it is a leap year
B97: Is dms_LeapYear named range present? | C97: =IFERROR(IF(dms_LeapYear,"yes"),"no") -> no
B98: Table 6.7.1 - includes a leap year? | C98: =IFERROR(IF(MONTH(DATE(YEAR(dms_LeapYear),2,29))=2,"is a leap year","not a leap year"), "dms_LeapYear not present") -> dms_LeapYear not present | D98: dms_LeapYear_Result | E98: =IFERROR(IF(MONTH(DATE(YEAR(dms_LeapYear),2,29))=2,"is a leap year","not a leap year"),"dms_LeapYear not present")
B99: MaxRows if Reset and leap year | C99: =IF(dms_LeapYear_Result="is a leap year",1827,1826) -> 1826 | D99: dms_060701_Reset_MaxRows | E99: =IF(dms_LeapYear_Result="is a leap year",1827,1826) | H99: number of days present in Reset RIN table
B100: MaxRows if ARR and leap year | C100: =IF(dms_LeapYear_Result="is a leap year",366,365) -> 365 | D100: dms_060701_ARR_MaxRows | E100: =IF(dms_LeapYear_Result="is a leap year",366,365) | H100: number of days present in ARR RIN table
B101: Table 6.7.1 - Max Rows (leap year/ non leap year) | C101: =IF(dms_Model="ARR",dms_060701_ARR_MaxRows,IF(dms_Model="Reset",dms_060701_Reset_MaxRows,"not a relevant RIN type")) -> not a relevant RIN type | D101: dms_060701_MaxRows | E101: =IF(dms_Model="ARR",dms_060701_ARR_MaxRows,IF(dms_Model="Reset",dms_060701_Reset_MaxRows,"not a relevant RIN type"))
B102: How many columns in 6.7? (4 or 5 feeder categories) | C102: =IF(dms_FifthFeeder_flag_NSP="NO","This NSP has only 4 feeder categories","This NSP has 5 feeder categories") -> This NSP has only 4 feeder categories
B103: Table 6.7.1 - Last column (# of feeder categories > 4) | C103: =IF(dms_FifthFeeder_flag_NSP="NO",10,12) -> 10 | D103: dms_060701_MaxCols | E103: =IF(dms_FifthFeeder_flag_NSP="NO",8,10)
B104: Table 6.7.1 - Number of offset rows | C104: =IF(dms_Model="ARR",15,9) -> 9 | D104: dms_060701_OffsetRows | E104: =IF(dms_Model="ARR",15,9)
B105: Start date for telephone answering in 6.1 or 6.7? | E105: Using 060101 as naming standard not 060701 for start dates
B106: Table 6.1.1 and 6.7.1 - Start Date as Text | C106: =IF(dms_SingleYearModel="yes",(CONCATENATE(IF(LEN(CRY)=4,"1-Jan-","1-Jul-"),LEFT(CRY,4))),(CONCATENATE(IF(LEN(PRCP_y4)=4,"1-Jan-","1-Jul-"),LEFT(PRCP_y4,4)))) -> 1-Jul-2013 | D106: dms_060101_StartDateTxt | E106: =IF(SUM(dms_SingleYear_Model)>1,(CONCATENATE(IF(LEN(CRY)=4,"1-Jan-","1-Jul-"),LEFT(CRY,4))),(CONCATENATE(IF(LEN(CRCP_y4)=4,"1-Jan-","1-Jul-"),LEFT(CRCP_y4,4))))
B107: Table 6.1.1 and 6.7.1 - Start Date as Date Value | C107: =DATEVALUE(dms_060701_StartDateTxt) -> 41456 | D107: dms_060101_StartDateVal | E107: =DATEVALUE(dms_060701_StartDateTxt)
B108: ARRs
B109: How many rows in table 6.8? | C109: insert dms_060801_StartCell NR if required | E109: dms_060801_StartCell is only found on worksheet 6.8 and is used to determine the starting date for the date range
B110: Is dms_060801_StartCell named range present? | C110: yes | E110: =IFERROR(IF((ROW(dms_060801_StartCell)-1)=1,"yes","yes"),"no")
B111: Table 6.8 - Number of offset rows | C111: 12 | D111: dms_0608_OffsetRows | E111: =IFERROR(IF(dms_Model="ARR",(ROW(dms_060801_StartCell)-1),"not an ARR"),"6.8 error")
B112: Table 6.8 - Last row | C112: 0 | D112: dms_0608_LastRow | E112: =IFERROR(IF(dms_060801_StartCell<>"",IF(dms_Model="ARR",(LOOKUP(2,1/(dms_060801_01_Values<>""),(ROW(dms_060801_01_Values)))),"not an ARR"),0),"0")
B113: Table 6.8 - MaxRows | C113: =IFERROR(IF(dms_Model="ARR",(MAX(0,dms_0608_LastRow-dms_0608_OffsetRows)),"not an ARR"),"0") -> not an ARR | D113: dms_060801_MaxRows | E113: =IFERROR(IF(dms_Model="ARR",(MAX(0,dms_0608_LastRow-dms_0608_OffsetRows)),"not an ARR"),"0")
B114: TNSP RESET RINS
B115: Table 7.9.4 only appears in TNSPs Reset RIN
B116: Table 7.9.4 - first year | C116: =LEFT(PRCP_y3,4) -> 2012 | D116: dms_070904_Start_Year | E116: =LEFT(PRCP_y3,4)
B118: MISC
B119: Distribution Determination Reference | C119: =INDEX(dms_DeterminationRef_List,MATCH(dms_TradingName,dms_TradingName_List)) -> transmission determination | D119: dms_DeterminationRef
B120: Public lighting NSP? | C120: =INDEX(dms_Public_Lighting_List,MATCH(dms_TradingName,dms_TradingName_List)) -> NO | D120: dms_Public_Lighting | E120: =INDEX(dms_Public_Lighting_List,MATCH(dms_TradingName,dms_TradingName_List))
B121: CBD Feeder for this business | C121: =INDEX(dms_CBD_flag,MATCH(dms_TradingName,dms_TradingName_List)) -> NO | D121: dms_CBD_flag_NSP
B122: Urban Feeder for this business | C122: =INDEX(dms_Urban_flag,MATCH(dms_TradingName,dms_TradingName_List)) -> NO | D122: dms_Urban_flag_NSP
B123: Short rural Feeder for this business | C123: =INDEX(dms_ShortRural_flag,MATCH(dms_TradingName,dms_TradingName_List)) -> NO | D123: dms_ShortRural_flag_NSP
B124: Long rural Feeder for this business | C124: =INDEX(dms_LongRural_flag,MATCH(dms_TradingName,dms_TradingName_List)) -> NO | D124: dms_LongRural_flag_NSP
B125: Fifth Feeder Category (eg. TasNetworks (D)) | C125: =INDEX(dms_FeederType_5_flag,MATCH(dms_TradingName,dms_TradingName_List)) -> NO | D125: dms_FifthFeeder_flag_NSP | E125: =INDEX(dms_FeederType_5_flag,MATCH(dms_TradingName,dms_TradingName_List))
B127: DISCARD FILES
B128: discard this record? | C128: NO | D128: dms_DISCARD | E128: If record is to be discarded from DB set this flag to YES
B130: SUBSET FILES
B131: Is this Submission File a Subset File | C131: NO | D131: dms_Partial
B134: REGULATORY YEARS FOR MULTI RYE SUBMISSIONS
B135: Multiple RYE flag | C135: NO | D135: dms_Multi_RYE_flag
C136: Manually specify RYE | D136: Named ranges to apply
C137: 2013 | D137: dms_RYE_01
C138: 2014 | D138: dms_RYE_02
C139: 2015 | D139: dms_RYE_03
C140: 2016 | D140: dms_RYE_04
C141: 2017 | D141: dms_RYE_05
C142: 2018 | D142: dms_RYE_06
C143: 2019 | D143: dms_RYE_07
C144: 2020 | D144: dms_RYE_08
C145: 2021 | D145: dms_RYE_09

Sheet Business & other details (hidden)
V1: =INDEX(dms_Worksheet_List,MATCH(dms_Model,dms_Model_List)) -> ROLL FORWARD MODEL
V2: =INDEX(dms_TradingNameFull_List,MATCH(dms_TradingName,dms_TradingName_List)) -> Basslink
V3: =dms_Header_Span -> 2018-19 - 2024-25
V4: BUSINESS & OTHER DETAILS
V6: INSTRUCTIONS
V7: Complete the following business details regulatory template before entering data or values in any other regulatory template. This regulatory template is linked to other cells within the spreadsheet and automatically generates column headings and conditional formatting to distinguish business specific input and non-input cells.
Q9: SUBMISSION PARTICULARS INPUT SHEET
V12: ENTITY DETAILS
V14: Business Name
V16: Short name | AL16: =dms_InputTradingName -> Basslink
V17: ACN/ABN | AL17: =INDEX(dms_ABN_List,MATCH(dms_TradingName,dms_TradingName_List)) -> 52 090 996 231
V21: Business Address | BQ21: Postal Address
V23: Address 1 | AL23: =INDEX(dms_Addr1_List,MATCH(dms_TradingName,dms_TradingName_List)) -> Level 25 | BI23: Address 1 | BQ23: =INDEX(dms_PAddr1_List,MATCH(dms_TradingName,dms_TradingName_List)) -> PO Box R41
V24: Address 2 | AL24: =IF(ISBLANK(INDEX(dms_Addr2_List,MATCH(dms_TradingName,dms_TradingName_List))),"",(INDEX(dms_Addr2_List,MATCH(dms_TradingName,dms_TradingName_List)))) -> 580 George Street | BI24: Address 2 | BQ24: =IF(ISBLANK(INDEX(dms_PAddr2_List,MATCH(dms_TradingName,dms_TradingName_List))),"",(INDEX(dms_PAddr2_List,MATCH(dms_TradingName,dms_TradingName_List)))) -> 
V25: Suburb | AL25: =INDEX(dms_Suburb_List,MATCH(dms_TradingName,dms_TradingName_List)) -> SYDNEY | BI25: Suburb | BQ25: =INDEX(dms_PSuburb_List,MATCH(dms_TradingName,dms_TradingName_List)) -> ROYAL EXCHANGE
V26: State | AL26: =INDEX(dms_State_List,MATCH(dms_TradingName,dms_TradingName_List)) -> NSW | AV26: Post code | BI26: State | BQ26: =INDEX(dms_PState_List,MATCH(dms_TradingName,dms_TradingName_List)) -> NSW | CA26: Post code
BA28: `
V30: Contact Names
V32: Name | AL32: -- enter name -- | BI32: Name | BQ32: -- enter name --
V33: Phone | AL33: -- enter phone number -- | BI33: Phone | BQ33: -- enter phone number --
V34: Email | AL34: -- enter email address -- | BI34: Email | BQ34: -- enter email address --
Q39: REGULATORY CONTROL PERIODS
Z42: Forthcoming period | AL42: 2020-21 | AU42: =FRCP_y2 -> 2021-22 | BD42: =FRCP_y3 -> 2022-23 | BM42: =FRCP_y4 -> 2023-24 | BV42: =FRCP_y5 -> 2024-25
AL43: =FRCP_y6 -> 2025-26 | AU43: =FRCP_y7 -> 2026-27 | BD43: =FRCP_y8 -> 2027-28 | BM43: =FRCP_y9 -> 2028-29 | BV43: =FRCP_y10 -> 2029-30
AL44: =FRCP_y11 -> 2030-31 | AU44: =FRCP_y12 -> 2031-32 | BD44: =FRCP_y13 -> 2032-33 | BM44: =FRCP_y14 -> 2033-34 | BV44: =FRCP_y15 -> 2034-35
X46: RESETS | Z46: Current period | AL46: =CRCP_y1 -> 2015-16 | AU46: =CRCP_y2 -> 2016-17 | BD46: =CRCP_y3 -> 2017-18 | BM46: =CRCP_y4 -> 2018-19 | BV46: =CRCP_y5 -> 2019-20
AL47: =CRCP_y6 -> 2020-21 | AU47: =CRCP_y7 -> 2021-22 | BD47: =CRCP_y8 -> 2022-23 | BM47: =CRCP_y9 -> 2023-24 | BV47: =CRCP_y10 -> 2024-25
AL48: =CRCP_y11 -> 2025-26 | AU48: =CRCP_y12 -> 2026-27 | BD48: =CRCP_y13 -> 2027-28 | BM48: =CRCP_y14 -> 2028-29 | BV48: =CRCP_y15 -> 2029-30
Z50: Previous period | AL50: =PRCP_y1 -> 2010-11 | AU50: =PRCP_y2 -> 2011-12 | BD50: =PRCP_y3 -> 2012-13 | BM50: =PRCP_y4 -> 2013-14 | BV50: =PRCP_y5 -> 2014-15
AL51: =PRCP_y6 -> 2015-16 | AU51: =PRCP_y7 -> 2016-17 | BD51: =PRCP_y8 -> 2017-18 | BM51: =PRCP_y9 -> 2018-19 | BV51: =PRCP_y10 -> 2019-20
AL52: =PRCP_y11 -> 2020-21 | AU52: =PRCP_y12 -> 2021-22 | BD52: =PRCP_y13 -> 2022-23 | BM52: =PRCP_y14 -> 2023-24 | BV52: =PRCP_y15 -> 2024-25
Q55: SUBMISSION DETAILS
Z57: RIN type | AL57: =INDIRECT(dms_Model) -> Roll Forward Model
Z59: Source | AL59: =dms_InputSource -> Regulatory proposal
X61: THIS FILE | Z61: Data Quality | AL61: Consolidated
Z63: Confidentiality Status | AL63: Public
Z65: Amended RIN Amendment Reason | AL65: .
Z69: Submission Date | AL69: dd/mm/yy | BD69: Please enter date this file submitted to AER

Sheet Intro
G2: Electricity Transmission Network Service Provider
I3: Roll Forward Model
L4: Version: | M4: 4.1
L5: Date: | M5: May 2022
B8: Introduction | J8: Electricity Transmission Model
C14: This model is used by the AER to determine the opening regulatory and tax asset bases for a transmission network service provider. It also calculates the weighted average remaining asset lives for regulatory and tax purposes using the asset values as weights.
C15: The roll forward of the asset base is undertaken in nominal terms.
C17: INSTRUCTIONS FOR USE
C18: The RFM handbook is available on the AER website at http://www.aer.gov.au
C20: a. Fill out input cells on the 'DMS Input' sheet. These input cells are highlighted blue.
C21: This provides information on the service provider submitting the RFM and the context for the RFM preparation.
C22: This information also controls the automatic import of the RFM into the AER's Data Management System (DMS).
C24: b. Fill out input cells on the 'RFM Input' sheet. These input cells are highlighted blue.
C25: This provides the data for the RFM calculations.
C26: In general, input expenditure data should be valued in nominal dollar terms of the year indicated.
C27: Units and basis for entry are specified where required for each data table.
C29: c. The values in the 'PTRM input summary' sheet
C30: This sheet summarises the key outputs of the RFM. These include the opening regulatory and tax asset values, and remaining asset lives. They become the inputs to the PTRM.
C33: VERSION RECORD
C35: Version | D35: Date | F35: Description
C36: 1 | D36: September 2007 | F36: Initial model
C38: 2 | D38: December 2010 | F38: Modified calculations to allow for establising a closing RAB based on as commissioned capex
F39: Adjusted depreciation calculation formula in the RAB roll forward
F40: Added the weighted average approach to roll forward the remaining asset lives at the end of the regulatory control period and summary tables
C42: 3 | D42: October 2015 | F42: Added new input sections for as commissioned RAB and end of period adjustments, and removed redundant inputs
F43: Built-in option to select actual or forecast depreciation approach for the RAB roll forward
F44: Updated inputs to handle different annual WACCs due to time-varying return on debt
F45: Modified calculations of weighted average remaining lives for RAB and TAB to track capex year-by-year over multiple periods
F46: Enabled automatic import into AER DMS
C48: 4 | D48: April 2020 | F48: Changes made to accommodate the final tax report findings including immediiate expensing and diminishing value approach to tax depreciation
F49: Built-in option to select actual or forecasat depreciation approach for the TAB roll forward
F50: Added t-2 ex post review of capex true-up calculations
F51: Free-fill 'Inputs working' sheet added to base RFM
F52: Attached an additional file to the RFM for the AER approach to year-by-year tracked depreciation
C54: 4.1 | D54: May 2022 | F54: Fixed default adjustments for capitalised provisions calculation in 'Inputs working' sheet and minor formula error in 'TAB roll forward' and 'Remaining lives' sheets

Sheet DMS input
B2: =$C$16&" - DMS Input"&" - TNSP RFM - version "&Intro!$M$4 -> Basslink - DMS Input - TNSP RFM - version 4.1 | G2: Input cells are in blue
B6: This sheet requests information that allows the AER to automatically import the RFM into our data management system (DMS).
B7: This sheet's metadata relates to the business and context for the RFM (rather than the RFM itself).
B8: Only change blue input cells. To facilitate the automatic import, please do not delete or add rows on this sheet.
B9: Throughout the rest of the workbook, defined name ranges are used to identify data that is imported into the DMS.
B12: Entity details
B14: Trading name | C14: Basslink
B15: ACN / ABN | C15: =INDEX(dms_ABN_List,MATCH(dms_TradingName,dms_TradingName_List)) -> 52 090 996 231
B16: Business short name | C16: Basslink
B19: Regulatory process details
B22: Source | C22: Regulatory proposal
B23: Amended model submission - reason

Sheet RFM input
E2: ='DMS input'!$C$16&" - RFM Input"&" - TNSP RFM - version "&Intro!$M$4 -> Basslink - RFM Input - TNSP RFM - version 4.1 | G2: Input cells are in blue
E5: ="Opening Regulatory Asset Base for "&IF(LEN($Z$7)>4,CONCATENATE(LEFT($Z$7,4)-1&"-"&IF($Z$7>"2009-10",,"0")&RIGHT($Z$7,2)-1),$Z$7-1)&" and Opening Tax Asset Base for "&$Z$7&" ($m Nominal)" -> Opening Regulatory Asset Base for 2005-06 and Opening Tax Asset Base for 2006-07 ($m Nominal)
F6: Asset Class Name | I6: Opening Asset Value (Partially As Incurred) | J6: Opening Asset Value (As Commissioned) | K6: Average Remaining Life (Year) | L6: Standard Life (Year) | M6: Forecast Net Capex (As Incurred) | N6: Forecast Net Capex (As Commissioned) | O6: Forecast Regulatory Depreciation (Partially As Incurred) | P6: Forecast Regulatory Depreciation (As Commissioned) | Q6: Difference in Final Year Capex (As Incurred) | R6: Difference in Final Year Capex (As Commissioned) | S6: Return on Difference in Final Year Capex ( As Incurred) | T6: Return on Difference in Final Year Capex (As Commissioned) | U6: Other Final Year Adjustments (As Incurred) | V6: Other Final Year Adjustments (As Commissioned) | W6: Opening Tax Asset Value | X6: Average Tax Remaining Life (Year) | Y6: Tax Standard Life (Year) | Z6: Base Regulatory Year | AA6: Length of Regulatory Control Period (Year)
E7: Asset Class 1 | F7: AC FILTERS | I7: 12.31172719 | J7: =I7 -> 12.31172719 | K7: 10 | L7: 10 | M7: 0 | N7: 0 | O7: 0 | P7: 0 | Q7: 0 | R7: 0 | S7: 0 | T7: 0 | U7: 0 | V7: 0 | W7: 12.31172719 | X7: =Y7 -> 15 | Y7: 15 | Z7: 2006-07 | AA7: 9
E8: Asset Class 2 | F8: AC SWITCHYARD | I8: 7.205981239 | J8: =I8 -> 7.205981239 | K8: 40 | L8: 40 | M8: 0 | N8: 0 | O8: 0 | P8: 0 | Q8: 0 | R8: 0 | S8: 0 | T8: 0 | U8: 0 | V8: 0 | W8: 7.205981239 | X8: =Y8 -> 40 | Y8: 40
E9: Asset Class 3 | F9: AUXILIARY SYSTEMS | I9: 13.55007458 | J9: 13.55007458 | K9: 30 | L9: 30 | M9: 0 | N9: 0 | O9: 0 | P9: 0 | Q9: 0 | R9: 0 | S9: 0 | T9: 0 | U9: 0 | V9: 0 | W9: 13.55007458 | X9: 40 | Y9: 40
E10: Asset Class 4 | F10: CABLE | I10: 583.3348003 | J10: 583.3348003 | K10: 40 | L10: 40 | M10: 0 | N10: 0 | O10: 0 | P10: 0 | Q10: 0 | R10: 0 | S10: 0 | T10: 0 | U10: 0 | V10: 0 | W10: 583.3348003 | X10: 40 | Y10: 40
E11: Asset Class 5 | F11: CONTROL SYSTEM | I11: 4.520039704 | J11: 4.520039704 | K11: 20 | L11: 20 | M11: 0 | N11: 0 | O11: 0 | P11: 0 | Q11: 0 | R11: 0 | S11: 0 | T11: 0 | U11: 0 | V11: 0 | W11: 4.520039704 | X11: 15 | Y11: 15
E12: Asset Class 6 | F12: CONVERTER TRANSFORMER | I12: 182.0674478 | J12: 182.0674478 | K12: 21 | L12: 21 | M12: 0 | N12: 0 | O12: 0 | P12: 0 | Q12: 0 | R12: 0 | S12: 0 | T12: 0 | U12: 0 | V12: 0 | W12: 182.0674478 | X12: 25 | Y12: 25
E13: Asset Class 7 | F13: DC FILTER | I13: 0.2686195024 | J13: 0.2686195024 | K13: 10 | L13: 10 | M13: 0 | N13: 0 | O13: 0 | P13: 0 | Q13: 0 | R13: 0 | S13: 0 | T13: 0 | U13: 0 | V13: 0 | W13: 0.2686195024 | X13: 15 | Y13: 15
E14: Asset Class 8 | F14: DC SWITCHYARD | I14: 1.482286036 | J14: 1.482286036 | K14: 40 | L14: 40 | M14: 0 | N14: 0 | O14: 0 | P14: 0 | Q14: 0 | R14: 0 | S14: 0 | T14: 0 | U14: 0 | V14: 0 | W14: 1.482286036 | X14: 40 | Y14: 40
E15: Asset Class 9 | F15: EASEMENT | I15: 7.751826606 | J15: 7.751826606 | K15: n/a | L15: n/a | M15: 0 | N15: 0 | O15: 0 | P15: 0 | Q15: 0 | R15: 0 | S15: 0 | T15: 0 | U15: 0 | V15: 0 | W15: 7.751826606 | X15: n/a | Y15: n/a
E16: Asset Class 10 | F16: FREEHOLD LAND | I16: 2.444517267 | J16: 2.444517267 | K16: n/a | L16: n/a | M16: 0 | N16: 0 | O16: 0 | P16: 0 | Q16: 0 | R16: 0 | S16: 0 | T16: 0 | U16: 0 | V16: 0 | W16: 2.444517267 | X16: n/a | Y16: n/a
E17: Asset Class 11 | F17: MEASURING DEVICES | I17: 7.895002684 | J17: 7.895002684 | K17: 10 | L17: 10 | M17: 0 | N17: 0 | O17: 0 | P17: 0 | Q17: 0 | R17: 0 | S17: 0 | T17: 0 | U17: 0 | V17: 0 | W17: 7.895002684 | X17: 15 | Y17: 15
E18: Asset Class 12 | F18: MOTOR VEHICLES | I18: 0.03726218234 | J18: 0.03726218234 | K18: 5 | L18: 5 | M18: 0 | N18: 0 | O18: 0 | P18: 0 | Q18: 0 | R18: 0 | S18: 0 | T18: 0 | U18: 0 | V18: 0 | W18: 0.03726218234 | X18: 8 | Y18: 8
E19: Asset Class 13 | F19: OTHER | I19: 3.62320643 | J19: 3.62320643 | K19: 5 | L19: 5 | M19: 0 | N19: 0 | O19: 0 | P19: 0 | Q19: 0 | R19: 0 | S19: 0 | T19: 0 | U19: 0 | V19: 0 | W19: 3.62320643 | X19: 15 | Y19: 15
E20: Asset Class 14 | F20: OVERHEAD LINES | I20: 84.08708783 | J20: 84.08708783 | K20: 40 | L20: 40 | M20: 0 | N20: 0 | O20: 0 | P20: 0 | Q20: 0 | R20: 0 | S20: 0 | T20: 0 | U20: 0 | V20: 0 | W20: 84.08708783 | X20: 40 | Y20: 40
E21: Asset Class 15 | F21: SMOOTHING REACTOR | I21: 1.894111876 | J21: 1.894111876 | K21: 35 | L21: 35 | M21: 0 | N21: 0 | O21: 0 | P21: 0 | Q21: 0 | R21: 0 | S21: 0 | T21: 0 | U21: 0 | V21: 0 | W21: 1.894111876 | X21: 25 | Y21: 25
E22: Asset Class 16 | F22: STATION POWER SUPPLY | I22: 9.136219936 | J22: 9.136219936 | K22: 13 | L22: 13 | M22: 0 | N22: 0 | O22: 0 | P22: 0 | Q22: 0 | R22: 0 | S22: 0 | T22: 0 | U22: 0 | V22: 0 | W22: 9.136219936 | X22: 40 | Y22: 40
E23: Asset Class 17 | F23: SWITCHYARD COMPONENTS | I23: 3.814052551 | J23: 3.814052551 | K23: 40 | L23: 40 | M23: 0 | N23: 0 | O23: 0 | P23: 0 | Q23: 0 | R23: 0 | S23: 0 | T23: 0 | U23: 0 | V23: 0 | W23: 3.814052551 | X23: 40 | Y23: 40
E24: Asset Class 18 | F24: VALVE COOLING | I24: 0.6457199578 | J24: 0.6457199578 | K24: 13 | L24: 13 | M24: 0 | N24: 0 | O24: 0 | P24: 0 | Q24: 0 | R24: 0 | S24: 0 | T24: 0 | U24: 0 | V24: 0 | W24: 0.6457199578 | X24: 15 | Y24: 15
E25: Asset Class 19 | F25: VALVE HALL | I25: 32.33191575 | J25: 32.33191575 | K25: 40 | L25: 40 | M25: 0 | N25: 0 | O25: 0 | P25: 0 | Q25: 0 | R25: 0 | S25: 0 | T25: 0 | U25: 0 | V25: 0 | W25: 32.33191575 | X25: 30 | Y25: 30
E26: Asset Class 20
E27: Asset Class 21
E28: Asset Class 22
E29: Asset Class 23
E30: Asset Class 24
E31: Asset Class 25
E32: Asset Class 26
E33: Asset Class 27
E34: Asset Class 28
E35: Asset Class 29
E36: Asset Class 30
E37: Asset Class 31
E38: Asset Class 32
E39: Asset Class 33
E40: Asset Class 34
E41: Asset Class 35
E42: Asset Class 36
E43: Asset Class 37
E44: Asset Class 38
E45: Asset Class 39
E46: Asset Class 40
E47: Asset Class 41
E48: Asset Class 42
E49: Asset Class 43
E50: Asset Class 44
E51: Asset Class 45
E52: Asset Class 46
E53: Asset Class 47 | F53: Spare straight-line tax asset class
E54: Asset Class 48 | F54: BUILDING INSTALLATION | I54: 18.05496712 | J54: =I54 -> 18.05496712 | K54: =L54 -> 40 | L54: 40 | M54: 0 | N54: 0 | O54: 0 | P54: 0 | Q54: 0 | R54: 0 | S54: 0 | T54: 0 | U54: 0 | V54: 0 | W54: 18.05496712 | X54: =Y54 -> 40 | Y54: 40
E55: Asset Class 49 | F55: IN-HOUSE SOFTWARE | I55: 0 | J55: 0 | K55: 5 | L55: 5 | M55: 0 | N55: 0 | O55: 0 | P55: 0 | Q55: 0 | R55: 0 | S55: 0 | T55: 0 | U55: 0 | V55: 0 | W55: 0 | X55: 5 | Y55: 5
E56: Asset Class 50 | F56: Equity raising costs
E57: Total | I57: =SUM(I7:I56) -> 976.4568665 | J57: =SUM(J7:J56) -> 976.4568665 | M57: =SUM(M7:M56) -> 0 | N57: 0 | O57: 0 | P57: 0 | Q57: 0 | R57: 0 | S57: 0 | T57: 0 | U57: 0 | V57: 0 | W57: =SUM(W7:W56) -> 976.4568665
E59: Actual Capital Expenditure – As Incurred ($m Nominal)
E60: Year | G60: =IF(LEN(H60)>4,CONCATENATE(LEFT(H60,4)-1&"-"&IF(H60>"2009-10",,"0")&RIGHT(H60,2)-1),H60-1) -> 2005-06 | H60: =Z7 -> 2006-07 | I60: =IF(LEN(H60)>4,CONCATENATE(LEFT(H60,4)+1&"-"&IF(H60>"2007-08",,"0")&RIGHT(H60,2)+1),H60+1) -> 2007-08 | J60: =IF(LEN(I60)>4,CONCATENATE(LEFT(I60,4)+1&"-"&IF(I60>"2007-08",,"0")&RIGHT(I60,2)+1),I60+1) -> 2008-09 | K60: 2009-10 | L60: 2010-11 | M60: 2011-12 | N60: 2012-13 | O60: 2013-14 | P60: 2014-15 | Q60: 2015-16
E61: =Asset1 -> AC FILTERS | H61: 0 | I61: 0 | J61: 0 | K61: 0 | L61: 0 | M61: 0 | N61: 0 | O61: 0 | P61: 0
E62: =Asset2 -> AC SWITCHYARD | H62: 0 | I62: 0 | J62: 0 | K62: 0.42216 | L62: 0 | M62: 0 | N62: 0 | O62: 0 | P62: 0
E63: =Asset3 -> AUXILIARY SYSTEMS | H63: 0 | I63: 0 | J63: 0.00672727 | K63: 0 | L63: 0 | M63: 0 | N63: 0 | O63: 0 | P63: 0
E64: =Asset4 -> CABLE | H64: 0.1214055 | I64: 0 | J64: 0.137157 | K64: 0 | L64: 0 | M64: 0 | N64: 0 | O64: 0 | P64: 0
E65: =Asset5 -> CONTROL SYSTEM | H65: 0 | I65: 0 | J65: 0 | K65: 0 | L65: 0 | M65: 0 | N65: 0 | O65: 0 | P65: 0
E66: =Asset6 -> CONVERTER TRANSFORMER | H66: 0.038042 | I66: 0.4313632 | J66: 0 | K66: 0.13642186 | L66: 0.505369 | M66: 1.531255 | N66: 0.00485 | O66: 0.01259091 | P66: 0.0274
E67: =Asset7 -> DC FILTER | H67: 0.0185934 | I67: 0 | J67: 0 | K67: 0 | L67: 0 | M67: 0 | N67: 0 | O67: 0 | P67: 0
E68: =Asset8 -> DC SWITCHYARD | H68: 0 | I68: 0 | J68: 0 | K68: 0.17987 | L68: 0.02 | M68: 0 | N68: 0 | O68: 0.96788177 | P68: 0
E69: =Asset9 -> EASEMENT | H69: 0 | I69: 0 | J69: 0 | K69: 0 | L69: 0 | M69: 0 | N69: 0 | O69: 0 | P69: 0
E70: =Asset10 -> FREEHOLD LAND | H70: 0 | I70: 0 | J70: 0 | K70: 0 | L70: 0 | M70: 0 | N70: 0 | O70: 0 | P70: 0
E71: =Asset11 -> MEASURING DEVICES | H71: 0 | I71: 0 | J71: 0 | K71: 0 | L71: 0 | M71: 0 | N71: 0 | O71: 0 | P71: 0
E72: =Asset12 -> MOTOR VEHICLES | H72: 0 | I72: 0 | J72: 0 | K72: 0 | L72: 0 | M72: 0 | N72: 0 | O72: 0 | P72: 0
E73: =Asset13 -> OTHER | H73: 0 | I73: 0 | J73: 0 | K73: 0 | L73: 0 | M73: 0 | N73: 0 | O73: 0 | P73: 0
E74: =Asset14 -> OVERHEAD LINES | H74: 0 | I74: 0 | J74: 0 | K74: 0 | L74: 0 | M74: 0 | N74: 0 | O74: 0 | P74: 0
E75: =Asset15 -> SMOOTHING REACTOR | H75: 0 | I75: 0 | J75: 0 | K75: 0 | L75: 0 | M75: 0 | N75: 0 | O75: 0 | P75: 0
E76: =Asset16 -> STATION POWER SUPPLY | H76: 0 | I76: 0 | J76: 0 | K76: 0 | L76: 0 | M76: 0 | N76: 0 | O76: 0 | P76: 0
E77: =Asset17 -> SWITCHYARD COMPONENTS | H77: 0 | I77: 0 | J77: 0 | K77: 0 | L77: 0 | M77: 0 | N77: 0 | O77: 0 | P77: 0
E78: =Asset18 -> VALVE COOLING | H78: 0 | I78: 0 | J78: 0 | K78: 0 | L78: 0 | M78: 0 | N78: 0 | O78: 0 | P78: 0
E79: =Asset19 -> VALVE HALL | H79: 0 | I79: 0.09142 | J79: 0 | K79: 0 | L79: 0 | M79: 0 | N79: 0 | O79: 0 | P79: 0
E80: =Asset20 -> 0
E81: =Asset21 -> 0
E82: =Asset22 -> 0
E83: =Asset23 -> 0
E84: =Asset24 -> 0
E85: =Asset25 -> 0
E86: =Asset26 -> 0
E87: =Asset27 -> 0
E88: =Asset28 -> 0
E89: =Asset29 -> 0
E90: =Asset30 -> 0
E91: =Asset31 -> 0
E92: =Asset32 -> 0
E93: =Asset33 -> 0
E94: =Asset34 -> 0
E95: =Asset35 -> 0
E96: =Asset36 -> 0
E97: =Asset37 -> 0
E98: =Asset38 -> 0
E99: =Asset39 -> 0
E100: =Asset40 -> 0
E101: =Asset41 -> 0
E102: =Asset42 -> 0
E103: =Asset43 -> 0
E104: =Asset44 -> 0
E105: =Asset45 -> 0
E106: =Asset46 -> 0
E107: =Asset47 -> Spare straight-line tax asset class
E108: =Asset48 -> BUILDING INSTALLATION | H108: 0.05537622 | I108: 0.014357 | J108: 0.001144 | K108: 0 | L108: 0 | M108: 0 | N108: 0 | O108: 0 | P108: 0
E109: =Asset49 -> IN-HOUSE SOFTWARE | H109: 0 | I109: 0 | J109: 0 | K109: 0 | L109: 0 | M109: 0 | N109: 0 | O109: 0 | P109: 0
E110: =Asset50 -> Equity raising costs
E111: Total | G111: =SUM(G61:G110) -> 0 | H111: =SUM(H61:H110) -> 0.23341712 | I111: 0.5371402 | J111: 0.14502827 | K111: 0.73845186 | L111: 0.525369 | M111: 1.531255 | N111: 0.00485 | O111: 0.98047268 | P111: 0.0274 | Q111: 0
R112: =SUM(G111:Q111) -> 4.72338413
E113: Actual Asset Disposal – As Incurred ($m Nominal)
E114: Year | G114: =G$60 -> 2005-06 | H114: =H$60 -> 2006-07 | I114: 2007-08 | J114: 2008-09 | K114: 2009-10 | L114: 2010-11 | M114: 2011-12 | N114: 2012-13 | O114: 2013-14 | P114: 2014-15 | Q114: 2015-16
E115: =Asset1 -> AC FILTERS | H115: 0 | I115: 0 | J115: 0 | K115: 0 | L115: 0 | M115: 0 | N115: 0 | O115: 0 | P115: 0
E116: =Asset2 -> AC SWITCHYARD | H116: 0 | I116: 0 | J116: 0 | K116: 0 | L116: 0 | M116: 0 | N116: 0 | O116: 0 | P116: 0
E117: =Asset3 -> AUXILIARY SYSTEMS | H117: 0 | I117: 0 | J117: 0 | K117: 0 | L117: 0 | M117: 0 | N117: 0 | O117: 0 | P117: 0
E118: =Asset4 -> CABLE | H118: 0 | I118: 0 | J118: 0 | K118: 0 | L118: 0 | M118: 0 | N118: 0 | O118: 0 | P118: 0
E119: =Asset5 -> CONTROL SYSTEM | H119: 0 | I119: 0 | J119: 0 | K119: 0 | L119: 0 | M119: 0 | N119: 0 | O119: 0 | P119: 0
E120: =Asset6 -> CONVERTER TRANSFORMER | H120: 0 | I120: 0 | J120: 0 | K120: 0 | L120: 0 | M120: 0 | N120: 0 | O120: 0 | P120: 0
E121: =Asset7 -> DC FILTER | H121: 0 | I121: 0 | J121: 0 | K121: 0 | L121: 0 | M121: 0 | N121: 0 | O121: 0 | P121: 0
E122: =Asset8 -> DC SWITCHYARD | H122: 0 | I122: 0 | J122: 0 | K122: 0 | L122: 0 | M122: 0 | N122: 0 | O122: 0 | P122: 0
E123: =Asset9 -> EASEMENT | H123: 0 | I123: 0 | J123: 0 | K123: 0 | L123: 0 | M123: 0 | N123: 0 | O123: 0 | P123: 0
E124: =Asset10 -> FREEHOLD LAND | H124: 0 | I124: 0 | J124: 0 | K124: 0 | L124: 0 | M124: 0 | N124: 0 | O124: 0 | P124: 0
E125: =Asset11 -> MEASURING DEVICES | H125: 0 | I125: 0 | J125: 0 | K125: 0 | L125: 0 | M125: 0 | N125: 0 | O125: 0 | P125: 0
E126: =Asset12 -> MOTOR VEHICLES | H126: 0 | I126: 0 | J126: 0 | K126: 0 | L126: 0 | M126: 0 | N126: 0 | O126: 0 | P126: 0
E127: =Asset13 -> OTHER | H127: 0 | I127: 0 | J127: 0 | K127: 0 | L127: 0 | M127: 0 | N127: 0 | O127: 0 | P127: 0
E128: =Asset14 -> OVERHEAD LINES | H128: 0 | I128: 0 | J128: 0 | K128: 0 | L128: 0 | M128: 0 | N128: 0 | O128: 0 | P128: 0
E129: =Asset15 -> SMOOTHING REACTOR | H129: 0 | I129: 0 | J129: 0 | K129: 0 | L129: 0 | M129: 0 | N129: 0 | O129: 0 | P129: 0
E130: =Asset16 -> STATION POWER SUPPLY | H130: 0 | I130: 0 | J130: 0 | K130: 0 | L130: 0 | M130: 0 | N130: 0 | O130: 0 | P130: 0
E131: =Asset17 -> SWITCHYARD COMPONENTS | H131: 0 | I131: 0 | J131: 0 | K131: 0 | L131: 0 | M131: 0 | N131: 0 | O131: 0 | P131: 0
E132: =Asset18 -> VALVE COOLING | H132: 0 | I132: 0 | J132: 0 | K132: 0 | L132: 0 | M132: 0 | N132: 0 | O132: 0 | P132: 0
E133: =Asset19 -> VALVE HALL | H133: 0 | I133: 0 | J133: 0 | K133: 0 | L133: 0 | M133: 0 | N133: 0 | O133: 0 | P133: 0
E134: =Asset20 -> 0
E135: =Asset21 -> 0
E136: =Asset22 -> 0
E137: =Asset23 -> 0
E138: =Asset24 -> 0
E139: =Asset25 -> 0
E140: =Asset26 -> 0
E141: =Asset27 -> 0
E142: =Asset28 -> 0
E143: =Asset29 -> 0
E144: =Asset30 -> 0
E145: =Asset31 -> 0
E146: =Asset32 -> 0
E147: =Asset33 -> 0
E148: =Asset34 -> 0
E149: =Asset35 -> 0
E150: =Asset36 -> 0
E151: =Asset37 -> 0
E152: =Asset38 -> 0
E153: =Asset39 -> 0
E154: =Asset40 -> 0
E155: =Asset41 -> 0
E156: =Asset42 -> 0
E157: =Asset43 -> 0
E158: =Asset44 -> 0
E159: =Asset45 -> 0
E160: =Asset46 -> 0
E161: =Asset47 -> Spare straight-line tax asset class
E162: =Asset48 -> BUILDING INSTALLATION | H162: 0 | I162: 0 | J162: 0 | K162: 0 | L162: 0 | M162: 0 | N162: 0 | O162: 0 | P162: 0
E163: =Asset49 -> IN-HOUSE SOFTWARE | H163: 0 | I163: 0 | J163: 0 | K163: 0 | L163: 0 | M163: 0 | N163: 0 | O163: 0 | P163: 0
E164: =Asset50 -> Equity raising costs
E165: Total | G165: =SUM(G115:G164) -> 0 | H165: =SUM(H115:H164) -> 0 | I165: 0 | J165: 0 | K165: 0 | L165: 0 | M165: 0 | N165: 0 | O165: 0 | P165: 0 | Q165: 0
R166: =SUM(G165:Q165) -> 0
E167: ="Actual Net Capital Expenditure – As Incurred ($m Real "&IF(LEN($Z$7)>4,CONCATENATE(LEFT($Z$7, 4)-1 &"-" &IF($Z$7>"2009-10",,"0") &RIGHT($Z$7,2)-1),$Z$7-1)&")" -> Actual Net Capital Expenditure – As Incurred ($m Real 2005-06)
E168: Year | G168: =G$60 -> 2005-06 | H168: =H$60 -> 2006-07 | I168: 2007-08 | J168: 2008-09 | K168: 2009-10 | L168: 2010-11 | M168: 2011-12 | N168: 2012-13 | O168: 2013-14 | P168: 2014-15 | Q168: 2015-16
E169: =Asset1 -> AC FILTERS | G169: =(G61-G115)/G$386 -> 0 | H169: 0 | I169: 0 | J169: 0 | K169: 0 | L169: 0 | M169: 0 | N169: 0 | O169: 0 | P169: 0 | Q169: 0
E170: =Asset2 -> AC SWITCHYARD | G170: =(G62-G116)/G$386 -> 0 | H170: 0 | I170: 0 | J170: 0 | K170: 0.3746955243 | L170: 0 | M170: 0 | N170: 0 | O170: 0 | P170: 0 | Q170: 0
E171: =Asset3 -> AUXILIARY SYSTEMS | G171: =(G63-G117)/G$386 -> 0 | H171: 0 | I171: 0 | J171: 0.006116377265 | K171: 0 | L171: 0 | M171: 0 | N171: 0 | O171: 0 | P171: 0 | Q171: 0
E172: =Asset4 -> CABLE | G172: =(G64-G118)/G$386 -> 0 | H172: 0.1179572964 | I172: 0 | J172: 0.12470199 | K172: 0 | L172: 0 | M172: 0 | N172: 0 | O172: 0 | P172: 0 | Q172: 0
E173: =Asset5 -> CONTROL SYSTEM | G173: =(G65-G119)/G$386 -> 0 | H173: 0 | I173: 0 | J173: 0 | K173: 0 | L173: 0 | M173: 0 | N173: 0 | O173: 0 | P173: 0 | Q173: 0
E174: =Asset6 -> CONVERTER TRANSFORMER | G174: =(G66-G120)/G$386 -> 0 | H174: 0.03696151716 | I174: 0.4089482531 | J174: 0 | K174: 0.1210836184 | L174: 0.4358276775 | M174: 1.278901684 | N174: 0.003985835836 | O174: 0.01009486046 | P174: 0.02134288425 | Q174: 0
E175: =Asset7 -> DC FILTER | G175: =(G67-G121)/G$386 -> 0 | H175: 0.01806530343 | I175: 0 | J175: 0 | K175: 0 | L175: 0 | M175: 0 | N175: 0 | O175: 0 | P175: 0 | Q175: 0
E176: =Asset8 -> DC SWITCHYARD | G176: =(G68-G122)/G$386 -> 0 | H176: 0 | I176: 0 | J176: 0 | K176: 0.1596467784 | L176: 0.01724789916 | M176: 0 | N176: 0 | O176: 0.7760067707 | P176: 0 | Q176: 0
E177: =Asset9 -> EASEMENT | G177: =(G69-G123)/G$386 -> 0 | H177: 0 | I177: 0 | J177: 0 | K177: 0 | L177: 0 | M177: 0 | N177: 0 | O177: 0 | P177: 0 | Q177: 0
E178: =Asset10 -> FREEHOLD LAND | G178: =(G70-G124)/G$386 -> 0 | H178: 0 | I178: 0 | J178: 0 | K178: 0 | L178: 0 | M178: 0 | N178: 0 | O178: 0 | P178: 0 | Q178: 0
E179: =Asset11 -> MEASURING DEVICES | G179: =(G71-G125)/G$386 -> 0 | H179: 0 | I179: 0 | J179: 0 | K179: 0 | L179: 0 | M179: 0 | N179: 0 | O179: 0 | P179: 0 | Q179: 0
E180: =Asset12 -> MOTOR VEHICLES | G180: =(G72-G126)/G$386 -> 0 | H180: 0 | I180: 0 | J180: 0 | K180: 0 | L180: 0 | M180: 0 | N180: 0 | O180: 0 | P180: 0 | Q180: 0
E181: =Asset13 -> OTHER | G181: =(G73-G127)/G$386 -> 0 | H181: 0 | I181: 0 | J181: 0 | K181: 0 | L181: 0 | M181: 0 | N181: 0 | O181: 0 | P181: 0 | Q181: 0
E182: =Asset14 -> OVERHEAD LINES | G182: =(G74-G128)/G$386 -> 0 | H182: 0 | I182: 0 | J182: 0 | K182: 0 | L182: 0 | M182: 0 | N182: 0 | O182: 0 | P182: 0 | Q182: 0
E183: =Asset15 -> SMOOTHING REACTOR | G183: =(G75-G129)/G$386 -> 0 | H183: 0 | I183: 0 | J183: 0 | K183: 0 | L183: 0 | M183: 0 | N183: 0 | O183: 0 | P183: 0 | Q183: 0
E184: =Asset16 -> STATION POWER SUPPLY | G184: =(G76-G130)/G$386 -> 0 | H184: 0 | I184: 0 | J184: 0 | K184: 0 | L184: 0 | M184: 0 | N184: 0 | O184: 0 | P184: 0 | Q184: 0
E185: =Asset17 -> SWITCHYARD COMPONENTS | G185: =(G77-G131)/G$386 -> 0 | H185: 0 | I185: 0 | J185: 0 | K185: 0 | L185: 0 | M185: 0 | N185: 0 | O185: 0 | P185: 0 | Q185: 0
E186: =Asset18 -> VALVE COOLING | G186: =(G78-G132)/G$386 -> 0 | H186: 0 | I186: 0 | J186: 0 | K186: 0 | L186: 0 | M186: 0 | N186: 0 | O186: 0 | P186: 0 | Q186: 0
E187: =Asset19 -> VALVE HALL | G187: =(G79-G133)/G$386 -> 0 | H187: 0 | I187: 0.08666953811 | J187: 0 | K187: 0 | L187: 0 | M187: 0 | N187: 0 | O187: 0 | P187: 0 | Q187: 0
E188: =Asset20 -> 0 | G188: =(G80-G134)/G$386 -> 0 | H188: 0 | I188: 0 | J188: 0 | K188: 0 | L188: 0 | M188: 0 | N188: 0 | O188: 0 | P188: 0 | Q188: 0
E189: =Asset21 -> 0 | G189: =(G81-G135)/G$386 -> 0 | H189: 0 | I189: 0 | J189: 0 | K189: 0 | L189: 0 | M189: 0 | N189: 0 | O189: 0 | P189: 0 | Q189: 0
E190: =Asset22 -> 0 | G190: =(G82-G136)/G$386 -> 0 | H190: 0 | I190: 0 | J190: 0 | K190: 0 | L190: 0 | M190: 0 | N190: 0 | O190: 0 | P190: 0 | Q190: 0
E191: =Asset23 -> 0 | G191: =(G83-G137)/G$386 -> 0 | H191: 0 | I191: 0 | J191: 0 | K191: 0 | L191: 0 | M191: 0 | N191: 0 | O191: 0 | P191: 0 | Q191: 0
E192: =Asset24 -> 0 | G192: =(G84-G138)/G$386 -> 0 | H192: 0 | I192: 0 | J192: 0 | K192: 0 | L192: 0 | M192: 0 | N192: 0 | O192: 0 | P192: 0 | Q192: 0
E193: =Asset25 -> 0 | G193: =(G85-G139)/G$386 -> 0 | H193: 0 | I193: 0 | J193: 0 | K193: 0 | L193: 0 | M193: 0 | N193: 0 | O193: 0 | P193: 0 | Q193: 0
E194: =Asset26 -> 0 | G194: =(G86-G140)/G$386 -> 0 | H194: 0 | I194: 0 | J194: 0 | K194: 0 | L194: 0 | M194: 0 | N194: 0 | O194: 0 | P194: 0 | Q194: 0
E195: =Asset27 -> 0 | G195: =(G87-G141)/G$386 -> 0 | H195: 0 | I195: 0 | J195: 0 | K195: 0 | L195: 0 | M195: 0 | N195: 0 | O195: 0 | P195: 0 | Q195: 0
E196: =Asset28 -> 0 | G196: =(G88-G142)/G$386 -> 0 | H196: 0 | I196: 0 | J196: 0 | K196: 0 | L196: 0 | M196: 0 | N196: 0 | O196: 0 | P196: 0 | Q196: 0
E197: =Asset29 -> 0 | G197: =(G89-G143)/G$386 -> 0 | H197: 0 | I197: 0 | J197: 0 | K197: 0 | L197: 0 | M197: 0 | N197: 0 | O197: 0 | P197: 0 | Q197: 0
E198: =Asset30 -> 0 | G198: =(G90-G144)/G$386 -> 0 | H198: 0 | I198: 0 | J198: 0 | K198: 0 | L198: 0 | M198: 0 | N198: 0 | O198: 0 | P198: 0 | Q198: 0
E199: =Asset31 -> 0 | G199: =(G91-G145)/G$386 -> 0 | H199: 0 | I199: 0 | J199: 0 | K199: 0 | L199: 0 | M199: 0 | N199: 0 | O199: 0 | P199: 0 | Q199: 0
E200: =Asset32 -> 0 | G200: =(G92-G146)/G$386 -> 0 | H200: 0 | I200: 0 | J200: 0 | K200: 0 | L200: 0 | M200: 0 | N200: 0 | O200: 0 | P200: 0 | Q200: 0
E201: =Asset33 -> 0 | G201: =(G93-G147)/G$386 -> 0 | H201: 0 | I201: 0 | J201: 0 | K201: 0 | L201: 0 | M201: 0 | N201: 0 | O201: 0 | P201: 0 | Q201: 0
E202: =Asset34 -> 0 | G202: =(G94-G148)/G$386 -> 0 | H202: 0 | I202: 0 | J202: 0 | K202: 0 | L202: 0 | M202: 0 | N202: 0 | O202: 0 | P202: 0 | Q202: 0
E203: =Asset35 -> 0 | G203: =(G95-G149)/G$386 -> 0 | H203: 0 | I203: 0 | J203: 0 | K203: 0 | L203: 0 | M203: 0 | N203: 0 | O203: 0 | P203: 0 | Q203: 0
E204: =Asset36 -> 0 | G204: =(G96-G150)/G$386 -> 0 | H204: 0 | I204: 0 | J204: 0 | K204: 0 | L204: 0 | M204: 0 | N204: 0 | O204: 0 | P204: 0 | Q204: 0
... 415 more rows

Sheet Adjustment for previous period
B2: ='DMS input'!$C$16&" - Adjustment For Previous Period"&" - TNSP RFM - version "&Intro!$M$4 -> Basslink - Adjustment For Previous Period - TNSP RFM - version 4.1
B4: Year | F4: ='RFM input'!F384 -> 2004-05 | G4: ='RFM input'!G60 -> 2005-06 | H4: ='RFM input'!H60 -> 2006-07 | I4: ='RFM input'!I60 -> 2007-08 | J4: ='RFM input'!J60 -> 2008-09 | K4: ='RFM input'!K60 -> 2009-10 | L4: ='RFM input'!L60 -> 2010-11 | M4: ='RFM input'!M60 -> 2011-12 | N4: ='RFM input'!N60 -> 2012-13 | O4: ='RFM input'!O60 -> 2013-14 | P4: ='RFM input'!P60 -> 2014-15 | Q4: ='RFM input'!Q60 -> 2015-16
B6: Actual CPI Inflation Rate | F6: ='RFM input'!F$385 -> 0.02369077307 | G6: ='RFM input'!G$385 -> 0.02923264312 | H6: ='RFM input'!H$385 -> 0.02485207101 | I6: ='RFM input'!I$385 -> 0.04272517321 | J6: ='RFM input'!J$385 -> 0.02436323367 | K6: ='RFM input'!K$385 -> 0.02918918919 | L6: ='RFM input'!L$385 -> 0.03256302521 | M6: ='RFM input'!M$385 -> 0.01627670397 | N6: ='RFM input'!N$385 -> 0.02502502503 | O6: ='RFM input'!O$385 -> 0.029296875 | P6: ='RFM input'!P$385 -> 0.01328273245 | Q6: ='RFM input'!Q$385 -> 0.01310861423
B7: Actual CPI (one year lagged) | F7: ='RFM input'!F$386 -> 0.9768574909 | G7: ='RFM input'!G$386 -> 1 | H7: ='RFM input'!H$386 -> 1.029232643 | I7: ='RFM input'!I$386 -> 1.054811206 | J7: ='RFM input'!J$386 -> 1.099878197 | K7: ='RFM input'!K$386 -> 1.126674787 | L7: ='RFM input'!L$386 -> 1.15956151 | M7: ='RFM input'!M$386 -> 1.197320341 | N7: ='RFM input'!N$386 -> 1.21680877 | O7: ='RFM input'!O$386 -> 1.24725944 | P7: ='RFM input'!P$386 -> 1.283800244 | Q7: ='RFM input'!Q$386 -> 1.300852619
B8: Nominal Vanilla WACC (fixed real time varying) | F8: ='RFM input'!F392 -> 0.09897098699 | G8: ='RFM input'!G392 -> 0.09616856697 | H8: =vanilla1 -> 0.09717023772 | I8: =vanilla2 -> 0.1168942939 | J8: =vanilla3 -> 0.08927944827 | K8: =vanilla4 -> 0.103019865 | L8: =vanilla5 -> 0.1070774338 | M8: =vanilla6 -> 0.0831473366 | N8: =vanilla7 -> 0.09031348503 | O8: =vanilla8 -> 0.0980192803 | P8: =vanilla9 -> 0.07454433922 | Q8: =vanilla10 -> -0.01145868473
B9: Real Vanilla WACC | F9: ='RFM input'!F391 -> 0.07353804088 | G9: ='RFM input'!G391 -> 0.06503478519 | H9: ='RFM input'!H$391 -> 0.07056449292 | I9: ='RFM input'!I$391 -> 0.0711300759 | J9: ='RFM input'!J$391 -> 0.06337226139 | K9: ='RFM input'!K$391 -> 0.07173673861 | L9: ='RFM input'!L$391 -> 0.07216451369 | M9: ='RFM input'!M$391 -> 0.06579963151 | N9: ='RFM input'!N$391 -> 0.06369450347 | O9: ='RFM input'!O$391 -> 0.06676635961 | P9: ='RFM input'!P$391 -> 0.060458552 | Q9: ='RFM input'!Q$391 -> -0.02424942263
B11: Nominal Adjustments for Difference Between Forecast and Actual Net Capex in Final Year (t-1) - As Incurred
B13: Nominal Forecast Net Capex (previous regulatory control period) | G13: =SUM(G14:G63) -> 0
C14: =Asset1 -> AC FILTERS | G14: ='RFM input'!M7 -> 0
C15: =Asset2 -> AC SWITCHYARD | G15: ='RFM input'!M8 -> 0
C16: =Asset3 -> AUXILIARY SYSTEMS | G16: ='RFM input'!M9 -> 0
C17: =Asset4 -> CABLE | G17: ='RFM input'!M10 -> 0
C18: =Asset5 -> CONTROL SYSTEM | G18: ='RFM input'!M11 -> 0
C19: =Asset6 -> CONVERTER TRANSFORMER | G19: ='RFM input'!M12 -> 0
C20: =Asset7 -> DC FILTER | G20: ='RFM input'!M13 -> 0
C21: =Asset8 -> DC SWITCHYARD | G21: ='RFM input'!M14 -> 0
C22: =Asset9 -> EASEMENT | G22: ='RFM input'!M15 -> 0
C23: =Asset10 -> FREEHOLD LAND | G23: ='RFM input'!M16 -> 0
C24: =Asset11 -> MEASURING DEVICES | G24: ='RFM input'!M17 -> 0
C25: =Asset12 -> MOTOR VEHICLES | G25: ='RFM input'!M18 -> 0
C26: =Asset13 -> OTHER | G26: ='RFM input'!M19 -> 0
C27: =Asset14 -> OVERHEAD LINES | G27: ='RFM input'!M20 -> 0
C28: =Asset15 -> SMOOTHING REACTOR | G28: ='RFM input'!M21 -> 0
C29: =Asset16 -> STATION POWER SUPPLY | G29: ='RFM input'!M22 -> 0
C30: =Asset17 -> SWITCHYARD COMPONENTS | G30: ='RFM input'!M23 -> 0
C31: =Asset18 -> VALVE COOLING | G31: ='RFM input'!M24 -> 0
C32: =Asset19 -> VALVE HALL | G32: ='RFM input'!M25 -> 0
C33: =Asset20 -> 0 | G33: ='RFM input'!M26 -> 0
C34: =Asset21 -> 0 | G34: ='RFM input'!M27 -> 0
C35: =Asset22 -> 0 | G35: ='RFM input'!M28 -> 0
C36: =Asset23 -> 0 | G36: ='RFM input'!M29 -> 0
C37: =Asset24 -> 0 | G37: ='RFM input'!M30 -> 0
C38: =Asset25 -> 0 | G38: ='RFM input'!M31 -> 0
C39: =Asset26 -> 0 | G39: ='RFM input'!M32 -> 0
C40: =Asset27 -> 0 | G40: ='RFM input'!M33 -> 0
C41: =Asset28 -> 0 | G41: ='RFM input'!M34 -> 0
C42: =Asset29 -> 0 | G42: ='RFM input'!M35 -> 0
C43: =Asset30 -> 0 | G43: ='RFM input'!M36 -> 0
C44: =Asset31 -> 0 | G44: ='RFM input'!M37 -> 0
C45: =Asset32 -> 0 | G45: ='RFM input'!M38 -> 0
C46: =Asset33 -> 0 | G46: ='RFM input'!M39 -> 0
C47: =Asset34 -> 0 | G47: ='RFM input'!M40 -> 0
C48: =Asset35 -> 0 | G48: ='RFM input'!M41 -> 0
C49: =Asset36 -> 0 | G49: ='RFM input'!M42 -> 0
C50: =Asset37 -> 0 | G50: ='RFM input'!M43 -> 0
C51: =Asset38 -> 0 | G51: ='RFM input'!M44 -> 0
C52: =Asset39 -> 0 | G52: ='RFM input'!M45 -> 0
C53: =Asset40 -> 0 | G53: ='RFM input'!M46 -> 0
C54: =Asset41 -> 0 | G54: ='RFM input'!M47 -> 0
C55: =Asset42 -> 0 | G55: ='RFM input'!M48 -> 0
C56: =Asset43 -> 0 | G56: ='RFM input'!M49 -> 0
C57: =Asset44 -> 0 | G57: ='RFM input'!M50 -> 0
C58: =Asset45 -> 0 | G58: ='RFM input'!M51 -> 0
C59: =Asset46 -> 0 | G59: ='RFM input'!M52 -> 0
C60: =Asset47 -> Spare straight-line tax asset class | G60: ='RFM input'!M53 -> 0
C61: =Asset48 -> BUILDING INSTALLATION | G61: ='RFM input'!M54 -> 0
C62: =Asset49 -> IN-HOUSE SOFTWARE | G62: ='RFM input'!M55 -> 0
C63: =Asset50 -> Equity raising costs | G63: ='RFM input'!M56 -> 0
B65: Nominal Actual Net Capex | G65: =SUM(G66:G115) -> 0
C66: =Asset1 -> AC FILTERS | G66: ='RFM input'!G169*(1+previous_vanilla)^0.5 -> 0
C67: =Asset2 -> AC SWITCHYARD | G67: ='RFM input'!G170*(1+previous_vanilla)^0.5 -> 0
C68: =Asset3 -> AUXILIARY SYSTEMS | G68: ='RFM input'!G171*(1+previous_vanilla)^0.5 -> 0
C69: =Asset4 -> CABLE | G69: ='RFM input'!G172*(1+previous_vanilla)^0.5 -> 0
C70: =Asset5 -> CONTROL SYSTEM | G70: ='RFM input'!G173*(1+previous_vanilla)^0.5 -> 0
C71: =Asset6 -> CONVERTER TRANSFORMER | G71: ='RFM input'!G174*(1+previous_vanilla)^0.5 -> 0
C72: =Asset7 -> DC FILTER | G72: ='RFM input'!G175*(1+previous_vanilla)^0.5 -> 0
C73: =Asset8 -> DC SWITCHYARD | G73: ='RFM input'!G176*(1+previous_vanilla)^0.5 -> 0
C74: =Asset9 -> EASEMENT | G74: ='RFM input'!G177*(1+previous_vanilla)^0.5 -> 0
C75: =Asset10 -> FREEHOLD LAND | G75: ='RFM input'!G178*(1+previous_vanilla)^0.5 -> 0
C76: =Asset11 -> MEASURING DEVICES | G76: ='RFM input'!G179*(1+previous_vanilla)^0.5 -> 0
C77: =Asset12 -> MOTOR VEHICLES | G77: ='RFM input'!G180*(1+previous_vanilla)^0.5 -> 0
C78: =Asset13 -> OTHER | G78: ='RFM input'!G181*(1+previous_vanilla)^0.5 -> 0
C79: =Asset14 -> OVERHEAD LINES | G79: ='RFM input'!G182*(1+previous_vanilla)^0.5 -> 0
C80: =Asset15 -> SMOOTHING REACTOR | G80: ='RFM input'!G183*(1+previous_vanilla)^0.5 -> 0
C81: =Asset16 -> STATION POWER SUPPLY | G81: ='RFM input'!G184*(1+previous_vanilla)^0.5 -> 0
C82: =Asset17 -> SWITCHYARD COMPONENTS | G82: ='RFM input'!G185*(1+previous_vanilla)^0.5 -> 0
C83: =Asset18 -> VALVE COOLING | G83: ='RFM input'!G186*(1+previous_vanilla)^0.5 -> 0
C84: =Asset19 -> VALVE HALL | G84: ='RFM input'!G187*(1+previous_vanilla)^0.5 -> 0
C85: =Asset20 -> 0 | G85: ='RFM input'!G188*(1+previous_vanilla)^0.5 -> 0
C86: =Asset21 -> 0 | G86: ='RFM input'!G189*(1+previous_vanilla)^0.5 -> 0
C87: =Asset22 -> 0 | G87: ='RFM input'!G190*(1+previous_vanilla)^0.5 -> 0
C88: =Asset23 -> 0 | G88: ='RFM input'!G191*(1+previous_vanilla)^0.5 -> 0
C89: =Asset24 -> 0 | G89: ='RFM input'!G192*(1+previous_vanilla)^0.5 -> 0
C90: =Asset25 -> 0 | G90: ='RFM input'!G193*(1+previous_vanilla)^0.5 -> 0
C91: =Asset26 -> 0 | G91: ='RFM input'!G194*(1+previous_vanilla)^0.5 -> 0
C92: =Asset27 -> 0 | G92: ='RFM input'!G195*(1+previous_vanilla)^0.5 -> 0
C93: =Asset28 -> 0 | G93: ='RFM input'!G196*(1+previous_vanilla)^0.5 -> 0
C94: =Asset29 -> 0 | G94: ='RFM input'!G197*(1+previous_vanilla)^0.5 -> 0
C95: =Asset30 -> 0 | G95: ='RFM input'!G198*(1+previous_vanilla)^0.5 -> 0
C96: =Asset31 -> 0 | G96: ='RFM input'!G199*(1+previous_vanilla)^0.5 -> 0
C97: =Asset32 -> 0 | G97: ='RFM input'!G200*(1+previous_vanilla)^0.5 -> 0
C98: =Asset33 -> 0 | G98: ='RFM input'!G201*(1+previous_vanilla)^0.5 -> 0
C99: =Asset34 -> 0 | G99: ='RFM input'!G202*(1+previous_vanilla)^0.5 -> 0
C100: =Asset35 -> 0 | G100: ='RFM input'!G203*(1+previous_vanilla)^0.5 -> 0
C101: =Asset36 -> 0 | G101: ='RFM input'!G204*(1+previous_vanilla)^0.5 -> 0
C102: =Asset37 -> 0 | G102: ='RFM input'!G205*(1+previous_vanilla)^0.5 -> 0
C103: =Asset38 -> 0 | G103: ='RFM input'!G206*(1+previous_vanilla)^0.5 -> 0
C104: =Asset39 -> 0 | G104: ='RFM input'!G207*(1+previous_vanilla)^0.5 -> 0
C105: =Asset40 -> 0 | G105: ='RFM input'!G208*(1+previous_vanilla)^0.5 -> 0
C106: =Asset41 -> 0 | G106: ='RFM input'!G209*(1+previous_vanilla)^0.5 -> 0
C107: =Asset42 -> 0 | G107: ='RFM input'!G210*(1+previous_vanilla)^0.5 -> 0
C108: =Asset43 -> 0 | G108: ='RFM input'!G211*(1+previous_vanilla)^0.5 -> 0
C109: =Asset44 -> 0 | G109: ='RFM input'!G212*(1+previous_vanilla)^0.5 -> 0
C110: =Asset45 -> 0 | G110: ='RFM input'!G213*(1+previous_vanilla)^0.5 -> 0
C111: =Asset46 -> 0 | G111: ='RFM input'!G214*(1+previous_vanilla)^0.5 -> 0
C112: =Asset47 -> Spare straight-line tax asset class | G112: ='RFM input'!G215*(1+previous_vanilla)^0.5 -> 0
C113: =Asset48 -> BUILDING INSTALLATION | G113: ='RFM input'!G216*(1+previous_vanilla)^0.5 -> 0
C114: =Asset49 -> IN-HOUSE SOFTWARE | G114: ='RFM input'!G217*(1+previous_vanilla)^0.5 -> 0
C115: =Asset50 -> Equity raising costs | G115: ='RFM input'!G218*(1+previous_vanilla)^0.5 -> 0
B117: Nominal Difference Between Actual and Forecast Net Capex | G117: =SUM(G118:G167) -> 0
C118: =Asset1 -> AC FILTERS | G118: =G66-G14 -> 0
C119: =Asset2 -> AC SWITCHYARD | G119: =G67-G15 -> 0
C120: =Asset3 -> AUXILIARY SYSTEMS | G120: 0
C121: =Asset4 -> CABLE | G121: 0
C122: =Asset5 -> CONTROL SYSTEM | G122: 0
C123: =Asset6 -> CONVERTER TRANSFORMER | G123: 0
C124: =Asset7 -> DC FILTER | G124: 0
C125: =Asset8 -> DC SWITCHYARD | G125: 0
C126: =Asset9 -> EASEMENT | G126: 0
C127: =Asset10 -> FREEHOLD LAND | G127: 0
C128: =Asset11 -> MEASURING DEVICES | G128: 0
C129: =Asset12 -> MOTOR VEHICLES | G129: 0
C130: =Asset13 -> OTHER | G130: 0
C131: =Asset14 -> OVERHEAD LINES | G131: 0
C132: =Asset15 -> SMOOTHING REACTOR | G132: 0
C133: =Asset16 -> STATION POWER SUPPLY | G133: 0
C134: =Asset17 -> SWITCHYARD COMPONENTS | G134: 0
C135: =Asset18 -> VALVE COOLING | G135: 0
C136: =Asset19 -> VALVE HALL | G136: 0
C137: =Asset20 -> 0 | G137: 0
C138: =Asset21 -> 0 | G138: 0
C139: =Asset22 -> 0 | G139: 0
C140: =Asset23 -> 0 | G140: 0
C141: =Asset24 -> 0 | G141: 0
C142: =Asset25 -> 0 | G142: 0
C143: =Asset26 -> 0 | G143: 0
C144: =Asset27 -> 0 | G144: 0
C145: =Asset28 -> 0 | G145: 0
C146: =Asset29 -> 0 | G146: 0
C147: =Asset30 -> 0 | G147: 0
C148: =Asset31 -> 0 | G148: 0
C149: =Asset32 -> 0 | G149: 0
C150: =Asset33 -> 0 | G150: 0
C151: =Asset34 -> 0 | G151: 0
C152: =Asset35 -> 0 | G152: 0
C153: =Asset36 -> 0 | G153: 0
C154: =Asset37 -> 0 | G154: 0
C155: =Asset38 -> 0 | G155: 0
C156: =Asset39 -> 0 | G156: 0
C157: =Asset40 -> 0 | G157: 0
C158: =Asset41 -> 0 | G158: 0
C159: =Asset42 -> 0 | G159: 0
C160: =Asset43 -> 0 | G160: 0
C161: =Asset44 -> 0 | G161: 0
C162: =Asset45 -> 0 | G162: 0
C163: =Asset46 -> 0 | G163: 0
C164: =Asset47 -> Spare straight-line tax asset class | G164: 0
C165: =Asset48 -> BUILDING INSTALLATION | G165: 0
C166: =Asset49 -> IN-HOUSE SOFTWARE | G166: 0
C167: =Asset50 -> Equity raising costs | G167: 0
B169: Compounded Nominal Return on Difference - Net Capex | H169: =SUM(H170,H172,H174,H176,H178,H180,H182,H184,H186,H188,H190,H192,H194,H196,H198,H200,H202,H204,H206,H208,H210,H212,H214,H216,H218,H220,H222,H224,H226,H228,H230,H232,H234,H236,H238,H240,H242,H244,H246,H248,H250,H252,H254,H256,H258,H260,H262,H264,H266,H268) -> 0 | I169: =SUM(I170,I172,I174,I176,I178,I180,I182,I184,I186,I188,I190,I192,I194,I196,I198,I200,I202,I204,I206,I208,I210,I212,I214,I216,I218,I220,I222,I224,I226,I228,I230,I232,I234,I236,I238,I240,I242,I244,I246,I248,I250,I252,I254,I256,I258,I260,I262,I264,I266,I268) -> 0 | J169: 0 | K169: 0 | L169: 0 | M169: 0 | N169: 0 | O169: 0 | P169: 0 | Q169: 0
C170: =Asset1 -> AC FILTERS | H170: =($G118+(SUM($G170:G170)))*H$8 -> 0 | I170: =($G118+(SUM($G170:H170)))*I$8 -> 0 | J170: =IF(COUNT($H170:I170)>='RFM input'!$AA$7,0,($G118+(SUM($G170:I170)))*J$8) -> 0 | K170: =IF(COUNT($H170:J170)>='RFM input'!$AA$7,0,($G118+(SUM($G170:J170)))*K$8) -> 0 | L170: =IF(COUNT($H170:K170)>='RFM input'!$AA$7,0,($G118+(SUM($G170:K170)))*L$8) -> 0 | M170: =IF(COUNT($H170:L170)>='RFM input'!$AA$7,0,($G118+(SUM($G170:L170)))*M$8) -> 0 | N170: =IF(COUNT($H170:M170)>='RFM input'!$AA$7,0,($G118+(SUM($G170:M170)))*N$8) -> 0 | O170: =IF(COUNT($H170:N170)>='RFM input'!$AA$7,0,($G118+(SUM($G170:N170)))*O$8) -> 0 | P170: =IF(COUNT($H170:O170)>='RFM input'!$AA$7,0,($G118+(SUM($G170:O170)))*P$8) -> 0 | Q170: =IF(COUNT($H170:P170)>='RFM input'!$AA$7,0,($G118+(SUM($G170:P170)))*Q$8) -> 0
C171: Sub-total | I171: =IF(COUNT($H170:I170)='RFM input'!$AA$7,SUM($G170:I170),0) -> 0 | J171: =IF(COUNT($H170:J170)='RFM input'!$AA$7,SUM($G170:J170),0) -> 0 | K171: =IF(COUNT($H170:K170)='RFM input'!$AA$7,SUM($G170:K170),0) -> 0 | L171: =IF(COUNT($H170:L170)='RFM input'!$AA$7,SUM($G170:L170),0) -> 0 | M171: =IF(COUNT($H170:M170)='RFM input'!$AA$7,SUM($G170:M170),0) -> 0 | N171: =IF(COUNT($H170:N170)='RFM input'!$AA$7,SUM($G170:N170),0) -> 0 | O171: =IF(COUNT($H170:O170)='RFM input'!$AA$7,SUM($G170:O170),0) -> 0 | P171: =IF(COUNT($H170:P170)='RFM input'!$AA$7,SUM($G170:P170),0) -> 0 | Q171: =IF(COUNT($H170:Q170)='RFM input'!$AA$7,SUM($G170:Q170),0) -> 0
C172: =Asset2 -> AC SWITCHYARD | H172: =($G119+(SUM($G172:G172)))*H$8 -> 0 | I172: =($G119+(SUM($G172:H172)))*I$8 -> 0 | J172: =IF(COUNT($H172:I172)>='RFM input'!$AA$7,0,($G119+(SUM($G172:I172)))*J$8) -> 0 | K172: =IF(COUNT($H172:J172)>='RFM input'!$AA$7,0,($G119+(SUM($G172:J172)))*K$8) -> 0 | L172: =IF(COUNT($H172:K172)>='RFM input'!$AA$7,0,($G119+(SUM($G172:K172)))*L$8) -> 0 | M172: =IF(COUNT($H172:L172)>='RFM input'!$AA$7,0,($G119+(SUM($G172:L172)))*M$8) -> 0 | N172: =IF(COUNT($H172:M172)>='RFM input'!$AA$7,0,($G119+(SUM($G172:M172)))*N$8) -> 0 | O172: =IF(COUNT($H172:N172)>='RFM input'!$AA$7,0,($G119+(SUM($G172:N172)))*O$8) -> 0 | P172: =IF(COUNT($H172:O172)>='RFM input'!$AA$7,0,($G119+(SUM($G172:O172)))*P$8) -> 0 | Q172: =IF(COUNT($H172:P172)>='RFM input'!$AA$7,0,($G119+(SUM($G172:P172)))*Q$8) -> 0
C173: Sub-total | I173: =IF(COUNT($H172:I172)='RFM input'!$AA$7,SUM($G172:I172),0) -> 0 | J173: =IF(COUNT($H172:J172)='RFM input'!$AA$7,SUM($G172:J172),0) -> 0 | K173: =IF(COUNT($H172:K172)='RFM input'!$AA$7,SUM($G172:K172),0) -> 0 | L173: =IF(COUNT($H172:L172)='RFM input'!$AA$7,SUM($G172:L172),0) -> 0 | M173: =IF(COUNT($H172:M172)='RFM input'!$AA$7,SUM($G172:M172),0) -> 0 | N173: =IF(COUNT($H172:N172)='RFM input'!$AA$7,SUM($G172:N172),0) -> 0 | O173: =IF(COUNT($H172:O172)='RFM input'!$AA$7,SUM($G172:O172),0) -> 0 | P173: =IF(COUNT($H172:P172)='RFM input'!$AA$7,SUM($G172:P172),0) -> 0 | Q173: =IF(COUNT($H172:Q172)='RFM input'!$AA$7,SUM($G172:Q172),0) -> 0
C174: =Asset3 -> AUXILIARY SYSTEMS | H174: =($G120+(SUM($G174:G174)))*H$8 -> 0 | I174: =($G120+(SUM($G174:H174)))*I$8 -> 0 | J174: =IF(COUNT($H174:I174)>='RFM input'!$AA$7,0,($G120+(SUM($G174:I174)))*J$8) -> 0 | K174: =IF(COUNT($H174:J174)>='RFM input'!$AA$7,0,($G120+(SUM($G174:J174)))*K$8) -> 0 | L174: =IF(COUNT($H174:K174)>='RFM input'!$AA$7,0,($G120+(SUM($G174:K174)))*L$8) -> 0 | M174: =IF(COUNT($H174:L174)>='RFM input'!$AA$7,0,($G120+(SUM($G174:L174)))*M$8) -> 0 | N174: =IF(COUNT($H174:M174)>='RFM input'!$AA$7,0,($G120+(SUM($G174:M174)))*N$8) -> 0 | O174: =IF(COUNT($H174:N174)>='RFM input'!$AA$7,0,($G120+(SUM($G174:N174)))*O$8) -> 0 | P174: =IF(COUNT($H174:O174)>='RFM input'!$AA$7,0,($G120+(SUM($G174:O174)))*P$8) -> 0 | Q174: =IF(COUNT($H174:P174)>='RFM input'!$AA$7,0,($G120+(SUM($G174:P174)))*Q$8) -> 0
C175: Sub-total | I175: =IF(COUNT($H174:I174)='RFM input'!$AA$7,SUM($G174:I174),0) -> 0 | J175: =IF(COUNT($H174:J174)='RFM input'!$AA$7,SUM($G174:J174),0) -> 0 | K175: =IF(COUNT($H174:K174)='RFM input'!$AA$7,SUM($G174:K174),0) -> 0 | L175: =IF(COUNT($H174:L174)='RFM input'!$AA$7,SUM($G174:L174),0) -> 0 | M175: =IF(COUNT($H174:M174)='RFM input'!$AA$7,SUM($G174:M174),0) -> 0 | N175: =IF(COUNT($H174:N174)='RFM input'!$AA$7,SUM($G174:N174),0) -> 0 | O175: =IF(COUNT($H174:O174)='RFM input'!$AA$7,SUM($G174:O174),0) -> 0 | P175: =IF(COUNT($H174:P174)='RFM input'!$AA$7,SUM($G174:P174),0) -> 0 | Q175: =IF(COUNT($H174:Q174)='RFM input'!$AA$7,SUM($G174:Q174),0) -> 0
C176: =Asset4 -> CABLE | H176: =($G121+(SUM($G176:G176)))*H$8 -> 0 | I176: =($G121+(SUM($G176:H176)))*I$8 -> 0 | J176: =IF(COUNT($H176:I176)>='RFM input'!$AA$7,0,($G121+(SUM($G176:I176)))*J$8) -> 0 | K176: =IF(COUNT($H176:J176)>='RFM input'!$AA$7,0,($G121+(SUM($G176:J176)))*K$8) -> 0 | L176: =IF(COUNT($H176:K176)>='RFM input'!$AA$7,0,($G121+(SUM($G176:K176)))*L$8) -> 0 | M176: =IF(COUNT($H176:L176)>='RFM input'!$AA$7,0,($G121+(SUM($G176:L176)))*M$8) -> 0 | N176: =IF(COUNT($H176:M176)>='RFM input'!$AA$7,0,($G121+(SUM($G176:M176)))*N$8) -> 0 | O176: =IF(COUNT($H176:N176)>='RFM input'!$AA$7,0,($G121+(SUM($G176:N176)))*O$8) -> 0 | P176: =IF(COUNT($H176:O176)>='RFM input'!$AA$7,0,($G121+(SUM($G176:O176)))*P$8) -> 0 | Q176: =IF(COUNT($H176:P176)>='RFM input'!$AA$7,0,($G121+(SUM($G176:P176)))*Q$8) -> 0
C177: Sub-total | I177: =IF(COUNT($H176:I176)='RFM input'!$AA$7,SUM($G176:I176),0) -> 0 | J177: =IF(COUNT($H176:J176)='RFM input'!$AA$7,SUM($G176:J176),0) -> 0 | K177: =IF(COUNT($H176:K176)='RFM input'!$AA$7,SUM($G176:K176),0) -> 0 | L177: =IF(COUNT($H176:L176)='RFM input'!$AA$7,SUM($G176:L176),0) -> 0 | M177: =IF(COUNT($H176:M176)='RFM input'!$AA$7,SUM($G176:M176),0) -> 0 | N177: =IF(COUNT($H176:N176)='RFM input'!$AA$7,SUM($G176:N176),0) -> 0 | O177: =IF(COUNT($H176:O176)='RFM input'!$AA$7,SUM($G176:O176),0) -> 0 | P177: =IF(COUNT($H176:P176)='RFM input'!$AA$7,SUM($G176:P176),0) -> 0 | Q177: =IF(COUNT($H176:Q176)='RFM input'!$AA$7,SUM($G176:Q176),0) -> 0
C178: =Asset5 -> CONTROL SYSTEM | H178: =($G122+(SUM($G178:G178)))*H$8 -> 0 | I178: =($G122+(SUM($G178:H178)))*I$8 -> 0 | J178: =IF(COUNT($H178:I178)>='RFM input'!$AA$7,0,($G122+(SUM($G178:I178)))*J$8) -> 0 | K178: =IF(COUNT($H178:J178)>='RFM input'!$AA$7,0,($G122+(SUM($G178:J178)))*K$8) -> 0 | L178: =IF(COUNT($H178:K178)>='RFM input'!$AA$7,0,($G122+(SUM($G178:K178)))*L$8) -> 0 | M178: =IF(COUNT($H178:L178)>='RFM input'!$AA$7,0,($G122+(SUM($G178:L178)))*M$8) -> 0 | N178: =IF(COUNT($H178:M178)>='RFM input'!$AA$7,0,($G122+(SUM($G178:M178)))*N$8) -> 0 | O178: =IF(COUNT($H178:N178)>='RFM input'!$AA$7,0,($G122+(SUM($G178:N178)))*O$8) -> 0 | P178: =IF(COUNT($H178:O178)>='RFM input'!$AA$7,0,($G122+(SUM($G178:O178)))*P$8) -> 0 | Q178: =IF(COUNT($H178:P178)>='RFM input'!$AA$7,0,($G122+(SUM($G178:P178)))*Q$8) -> 0
C179: Sub-total | I179: =IF(COUNT($H178:I178)='RFM input'!$AA$7,SUM($G178:I178),0) -> 0 | J179: =IF(COUNT($H178:J178)='RFM input'!$AA$7,SUM($G178:J178),0) -> 0 | K179: =IF(COUNT($H178:K178)='RFM input'!$AA$7,SUM($G178:K178),0) -> 0 | L179: =IF(COUNT($H178:L178)='RFM input'!$AA$7,SUM($G178:L178),0) -> 0 | M179: =IF(COUNT($H178:M178)='RFM input'!$AA$7,SUM($G178:M178),0) -> 0 | N179: =IF(COUNT($H178:N178)='RFM input'!$AA$7,SUM($G178:N178),0) -> 0 | O179: =IF(COUNT($H178:O178)='RFM input'!$AA$7,SUM($G178:O178),0) -> 0 | P179: =IF(COUNT($H178:P178)='RFM input'!$AA$7,SUM($G178:P178),0) -> 0 | Q179: =IF(COUNT($H178:Q178)='RFM input'!$AA$7,SUM($G178:Q178),0) -> 0
C180: =Asset6 -> CONVERTER TRANSFORMER | H180: =($G123+(SUM($G180:G180)))*H$8 -> 0 | I180: =($G123+(SUM($G180:H180)))*I$8 -> 0 | J180: =IF(COUNT($H180:I180)>='RFM input'!$AA$7,0,($G123+(SUM($G180:I180)))*J$8) -> 0 | K180: =IF(COUNT($H180:J180)>='RFM input'!$AA$7,0,($G123+(SUM($G180:J180)))*K$8) -> 0 | L180: =IF(COUNT($H180:K180)>='RFM input'!$AA$7,0,($G123+(SUM($G180:K180)))*L$8) -> 0 | M180: =IF(COUNT($H180:L180)>='RFM input'!$AA$7,0,($G123+(SUM($G180:L180)))*M$8) -> 0 | N180: =IF(COUNT($H180:M180)>='RFM input'!$AA$7,0,($G123+(SUM($G180:M180)))*N$8) -> 0 | O180: =IF(COUNT($H180:N180)>='RFM input'!$AA$7,0,($G123+(SUM($G180:N180)))*O$8) -> 0 | P180: =IF(COUNT($H180:O180)>='RFM input'!$AA$7,0,($G123+(SUM($G180:O180)))*P$8) -> 0 | Q180: =IF(COUNT($H180:P180)>='RFM input'!$AA$7,0,($G123+(SUM($G180:P180)))*Q$8) -> 0
C181: Sub-total | I181: =IF(COUNT($H180:I180)='RFM input'!$AA$7,SUM($G180:I180),0) -> 0 | J181: =IF(COUNT($H180:J180)='RFM input'!$AA$7,SUM($G180:J180),0) -> 0 | K181: =IF(COUNT($H180:K180)='RFM input'!$AA$7,SUM($G180:K180),0) -> 0 | L181: =IF(COUNT($H180:L180)='RFM input'!$AA$7,SUM($G180:L180),0) -> 0 | M181: =IF(COUNT($H180:M180)='RFM input'!$AA$7,SUM($G180:M180),0) -> 0 | N181: =IF(COUNT($H180:N180)='RFM input'!$AA$7,SUM($G180:N180),0) -> 0 | O181: =IF(COUNT($H180:O180)='RFM input'!$AA$7,SUM($G180:O180),0) -> 0 | P181: =IF(COUNT($H180:P180)='RFM input'!$AA$7,SUM($G180:P180),0) -> 0 | Q181: =IF(COUNT($H180:Q180)='RFM input'!$AA$7,SUM($G180:Q180),0) -> 0
C182: =Asset7 -> DC FILTER | H182: =($G124+(SUM($G182:G182)))*H$8 -> 0 | I182: =($G124+(SUM($G182:H182)))*I$8 -> 0 | J182: =IF(COUNT($H182:I182)>='RFM input'!$AA$7,0,($G124+(SUM($G182:I182)))*J$8) -> 0 | K182: =IF(COUNT($H182:J182)>='RFM input'!$AA$7,0,($G124+(SUM($G182:J182)))*K$8) -> 0 | L182: =IF(COUNT($H182:K182)>='RFM input'!$AA$7,0,($G124+(SUM($G182:K182)))*L$8) -> 0 | M182: =IF(COUNT($H182:L182)>='RFM input'!$AA$7,0,($G124+(SUM($G182:L182)))*M$8) -> 0 | N182: =IF(COUNT($H182:M182)>='RFM input'!$AA$7,0,($G124+(SUM($G182:M182)))*N$8) -> 0 | O182: =IF(COUNT($H182:N182)>='RFM input'!$AA$7,0,($G124+(SUM($G182:N182)))*O$8) -> 0 | P182: =IF(COUNT($H182:O182)>='RFM input'!$AA$7,0,($G124+(SUM($G182:O182)))*P$8) -> 0 | Q182: =IF(COUNT($H182:P182)>='RFM input'!$AA$7,0,($G124+(SUM($G182:P182)))*Q$8) -> 0
C183: Sub-total | I183: =IF(COUNT($H182:I182)='RFM input'!$AA$7,SUM($G182:I182),0) -> 0 | J183: =IF(COUNT($H182:J182)='RFM input'!$AA$7,SUM($G182:J182),0) -> 0 | K183: =IF(COUNT($H182:K182)='RFM input'!$AA$7,SUM($G182:K182),0) -> 0 | L183: =IF(COUNT($H182:L182)='RFM input'!$AA$7,SUM($G182:L182),0) -> 0 | M183: =IF(COUNT($H182:M182)='RFM input'!$AA$7,SUM($G182:M182),0) -> 0 | N183: =IF(COUNT($H182:N182)='RFM input'!$AA$7,SUM($G182:N182),0) -> 0 | O183: =IF(COUNT($H182:O182)='RFM input'!$AA$7,SUM($G182:O182),0) -> 0 | P183: =IF(COUNT($H182:P182)='RFM input'!$AA$7,SUM($G182:P182),0) -> 0 | Q183: =IF(COUNT($H182:Q182)='RFM input'!$AA$7,SUM($G182:Q182),0) -> 0
C184: =Asset8 -> DC SWITCHYARD | H184: =($G125+(SUM($G184:G184)))*H$8 -> 0 | I184: =($G125+(SUM($G184:H184)))*I$8 -> 0 | J184: =IF(COUNT($H184:I184)>='RFM input'!$AA$7,0,($G125+(SUM($G184:I184)))*J$8) -> 0 | K184: =IF(COUNT($H184:J184)>='RFM input'!$AA$7,0,($G125+(SUM($G184:J184)))*K$8) -> 0 | L184: =IF(COUNT($H184:K184)>='RFM input'!$AA$7,0,($G125+(SUM($G184:K184)))*L$8) -> 0 | M184: =IF(COUNT($H184:L184)>='RFM input'!$AA$7,0,($G125+(SUM($G184:L184)))*M$8) -> 0 | N184: =IF(COUNT($H184:M184)>='RFM input'!$AA$7,0,($G125+(SUM($G184:M184)))*N$8) -> 0 | O184: =IF(COUNT($H184:N184)>='RFM input'!$AA$7,0,($G125+(SUM($G184:N184)))*O$8) -> 0 | P184: =IF(COUNT($H184:O184)>='RFM input'!$AA$7,0,($G125+(SUM($G184:O184)))*P$8) -> 0 | Q184: =IF(COUNT($H184:P184)>='RFM input'!$AA$7,0,($G125+(SUM($G184:P184)))*Q$8) -> 0
C185: Sub-total | I185: =IF(COUNT($H184:I184)='RFM input'!$AA$7,SUM($G184:I184),0) -> 0 | J185: =IF(COUNT($H184:J184)='RFM input'!$AA$7,SUM($G184:J184),0) -> 0 | K185: =IF(COUNT($H184:K184)='RFM input'!$AA$7,SUM($G184:K184),0) -> 0 | L185: =IF(COUNT($H184:L184)='RFM input'!$AA$7,SUM($G184:L184),0) -> 0 | M185: =IF(COUNT($H184:M184)='RFM input'!$AA$7,SUM($G184:M184),0) -> 0 | N185: =IF(COUNT($H184:N184)='RFM input'!$AA$7,SUM($G184:N184),0) -> 0 | O185: =IF(COUNT($H184:O184)='RFM input'!$AA$7,SUM($G184:O184),0) -> 0 | P185: =IF(COUNT($H184:P184)='RFM input'!$AA$7,SUM($G184:P184),0) -> 0 | Q185: =IF(COUNT($H184:Q184)='RFM input'!$AA$7,SUM($G184:Q184),0) -> 0
C186: =Asset9 -> EASEMENT | H186: =($G126+(SUM($G186:G186)))*H$8 -> 0 | I186: =($G126+(SUM($G186:H186)))*I$8 -> 0 | J186: =IF(COUNT($H186:I186)>='RFM input'!$AA$7,0,($G126+(SUM($G186:I186)))*J$8) -> 0 | K186: =IF(COUNT($H186:J186)>='RFM input'!$AA$7,0,($G126+(SUM($G186:J186)))*K$8) -> 0 | L186: =IF(COUNT($H186:K186)>='RFM input'!$AA$7,0,($G126+(SUM($G186:K186)))*L$8) -> 0 | M186: =IF(COUNT($H186:L186)>='RFM input'!$AA$7,0,($G126+(SUM($G186:L186)))*M$8) -> 0 | N186: =IF(COUNT($H186:M186)>='RFM input'!$AA$7,0,($G126+(SUM($G186:M186)))*N$8) -> 0 | O186: =IF(COUNT($H186:N186)>='RFM input'!$AA$7,0,($G126+(SUM($G186:N186)))*O$8) -> 0 | P186: =IF(COUNT($H186:O186)>='RFM input'!$AA$7,0,($G126+(SUM($G186:O186)))*P$8) -> 0 | Q186: =IF(COUNT($H186:P186)>='RFM input'!$AA$7,0,($G126+(SUM($G186:P186)))*Q$8) -> 0
C187: Sub-total | I187: =IF(COUNT($H186:I186)='RFM input'!$AA$7,SUM($G186:I186),0) -> 0 | J187: =IF(COUNT($H186:J186)='RFM input'!$AA$7,SUM($G186:J186),0) -> 0 | K187: =IF(COUNT($H186:K186)='RFM input'!$AA$7,SUM($G186:K186),0) -> 0 | L187: =IF(COUNT($H186:L186)='RFM input'!$AA$7,SUM($G186:L186),0) -> 0 | M187: =IF(COUNT($H186:M186)='RFM input'!$AA$7,SUM($G186:M186),0) -> 0 | N187: =IF(COUNT($H186:N186)='RFM input'!$AA$7,SUM($G186:N186),0) -> 0 | O187: =IF(COUNT($H186:O186)='RFM input'!$AA$7,SUM($G186:O186),0) -> 0 | P187: =IF(COUNT($H186:P186)='RFM input'!$AA$7,SUM($G186:P186),0) -> 0 | Q187: =IF(COUNT($H186:Q186)='RFM input'!$AA$7,SUM($G186:Q186),0) -> 0
C188: =Asset10 -> FREEHOLD LAND | H188: =($G127+(SUM($G188:G188)))*H$8 -> 0 | I188: =($G127+(SUM($G188:H188)))*I$8 -> 0 | J188: =IF(COUNT($H188:I188)>='RFM input'!$AA$7,0,($G127+(SUM($G188:I188)))*J$8) -> 0 | K188: =IF(COUNT($H188:J188)>='RFM input'!$AA$7,0,($G127+(SUM($G188:J188)))*K$8) -> 0 | L188: =IF(COUNT($H188:K188)>='RFM input'!$AA$7,0,($G127+(SUM($G188:K188)))*L$8) -> 0 | M188: =IF(COUNT($H188:L188)>='RFM input'!$AA$7,0,($G127+(SUM($G188:L188)))*M$8) -> 0 | N188: =IF(COUNT($H188:M188)>='RFM input'!$AA$7,0,($G127+(SUM($G188:M188)))*N$8) -> 0 | O188: =IF(COUNT($H188:N188)>='RFM input'!$AA$7,0,($G127+(SUM($G188:N188)))*O$8) -> 0 | P188: =IF(COUNT($H188:O188)>='RFM input'!$AA$7,0,($G127+(SUM($G188:O188)))*P$8) -> 0 | Q188: =IF(COUNT($H188:P188)>='RFM input'!$AA$7,0,($G127+(SUM($G188:P188)))*Q$8) -> 0
C189: Sub-total | I189: =IF(COUNT($H188:I188)='RFM input'!$AA$7,SUM($G188:I188),0) -> 0 | J189: =IF(COUNT($H188:J188)='RFM input'!$AA$7,SUM($G188:J188),0) -> 0 | K189: =IF(COUNT($H188:K188)='RFM input'!$AA$7,SUM($G188:K188),0) -> 0 | L189: =IF(COUNT($H188:L188)='RFM input'!$AA$7,SUM($G188:L188),0) -> 0 | M189: =IF(COUNT($H188:M188)='RFM input'!$AA$7,SUM($G188:M188),0) -> 0 | N189: =IF(COUNT($H188:N188)='RFM input'!$AA$7,SUM($G188:N188),0) -> 0 | O189: =IF(COUNT($H188:O188)='RFM input'!$AA$7,SUM($G188:O188),0) -> 0 | P189: =IF(COUNT($H188:P188)='RFM input'!$AA$7,SUM($G188:P188),0) -> 0 | Q189: =IF(COUNT($H188:Q188)='RFM input'!$AA$7,SUM($G188:Q188),0) -> 0
C190: =Asset11 -> MEASURING DEVICES | H190: =($G128+(SUM($G190:G190)))*H$8 -> 0 | I190: =($G128+(SUM($G190:H190)))*I$8 -> 0 | J190: =IF(COUNT($H190:I190)>='RFM input'!$AA$7,0,($G128+(SUM($G190:I190)))*J$8) -> 0 | K190: =IF(COUNT($H190:J190)>='RFM input'!$AA$7,0,($G128+(SUM($G190:J190)))*K$8) -> 0 | L190: =IF(COUNT($H190:K190)>='RFM input'!$AA$7,0,($G128+(SUM($G190:K190)))*L$8) -> 0 | M190: =IF(COUNT($H190:L190)>='RFM input'!$AA$7,0,($G128+(SUM($G190:L190)))*M$8) -> 0 | N190: =IF(COUNT($H190:M190)>='RFM input'!$AA$7,0,($G128+(SUM($G190:M190)))*N$8) -> 0 | O190: =IF(COUNT($H190:N190)>='RFM input'!$AA$7,0,($G128+(SUM($G190:N190)))*O$8) -> 0 | P190: =IF(COUNT($H190:O190)>='RFM input'!$AA$7,0,($G128+(SUM($G190:O190)))*P$8) -> 0 | Q190: =IF(COUNT($H190:P190)>='RFM input'!$AA$7,0,($G128+(SUM($G190:P190)))*Q$8) -> 0
C191: Sub-total | I191: =IF(COUNT($H190:I190)='RFM input'!$AA$7,SUM($G190:I190),0) -> 0 | J191: =IF(COUNT($H190:J190)='RFM input'!$AA$7,SUM($G190:J190),0) -> 0 | K191: =IF(COUNT($H190:K190)='RFM input'!$AA$7,SUM($G190:K190),0) -> 0 | L191: =IF(COUNT($H190:L190)='RFM input'!$AA$7,SUM($G190:L190),0) -> 0 | M191: =IF(COUNT($H190:M190)='RFM input'!$AA$7,SUM($G190:M190),0) -> 0 | N191: =IF(COUNT($H190:N190)='RFM input'!$AA$7,SUM($G190:N190),0) -> 0 | O191: =IF(COUNT($H190:O190)='RFM input'!$AA$7,SUM($G190:O190),0) -> 0 | P191: =IF(COUNT($H190:P190)='RFM input'!$AA$7,SUM($G190:P190),0) -> 0 | Q191: =IF(COUNT($H190:Q190)='RFM input'!$AA$7,SUM($G190:Q190),0) -> 0
C192: =Asset12 -> MOTOR VEHICLES | H192: =($G129+(SUM($G192:G192)))*H$8 -> 0 | I192: =($G129+(SUM($G192:H192)))*I$8 -> 0 | J192: =IF(COUNT($H192:I192)>='RFM input'!$AA$7,0,($G129+(SUM($G192:I192)))*J$8) -> 0 | K192: =IF(COUNT($H192:J192)>='RFM input'!$AA$7,0,($G129+(SUM($G192:J192)))*K$8) -> 0 | L192: =IF(COUNT($H192:K192)>='RFM input'!$AA$7,0,($G129+(SUM($G192:K192)))*L$8) -> 0 | M192: =IF(COUNT($H192:L192)>='RFM input'!$AA$7,0,($G129+(SUM($G192:L192)))*M$8) -> 0 | N192: =IF(COUNT($H192:M192)>='RFM input'!$AA$7,0,($G129+(SUM($G192:M192)))*N$8) -> 0 | O192: =IF(COUNT($H192:N192)>='RFM input'!$AA$7,0,($G129+(SUM($G192:N192)))*O$8) -> 0 | P192: =IF(COUNT($H192:O192)>='RFM input'!$AA$7,0,($G129+(SUM($G192:O192)))*P$8) -> 0 | Q192: =IF(COUNT($H192:P192)>='RFM input'!$AA$7,0,($G129+(SUM($G192:P192)))*Q$8) -> 0
C193: Sub-total | I193: =IF(COUNT($H192:I192)='RFM input'!$AA$7,SUM($G192:I192),0) -> 0 | J193: =IF(COUNT($H192:J192)='RFM input'!$AA$7,SUM($G192:J192),0) -> 0 | K193: =IF(COUNT($H192:K192)='RFM input'!$AA$7,SUM($G192:K192),0) -> 0 | L193: =IF(COUNT($H192:L192)='RFM input'!$AA$7,SUM($G192:L192),0) -> 0 | M193: =IF(COUNT($H192:M192)='RFM input'!$AA$7,SUM($G192:M192),0) -> 0 | N193: =IF(COUNT($H192:N192)='RFM input'!$AA$7,SUM($G192:N192),0) -> 0 | O193: =IF(COUNT($H192:O192)='RFM input'!$AA$7,SUM($G192:O192),0) -> 0 | P193: =IF(COUNT($H192:P192)='RFM input'!$AA$7,SUM($G192:P192),0) -> 0 | Q193: =IF(COUNT($H192:Q192)='RFM input'!$AA$7,SUM($G192:Q192),0) -> 0
C194: =Asset13 -> OTHER | H194: =($G130+(SUM($G194:G194)))*H$8 -> 0 | I194: =($G130+(SUM($G194:H194)))*I$8 -> 0 | J194: =IF(COUNT($H194:I194)>='RFM input'!$AA$7,0,($G130+(SUM($G194:I194)))*J$8) -> 0 | K194: =IF(COUNT($H194:J194)>='RFM input'!$AA$7,0,($G130+(SUM($G194:J194)))*K$8) -> 0 | L194: =IF(COUNT($H194:K194)>='RFM input'!$AA$7,0,($G130+(SUM($G194:K194)))*L$8) -> 0 | M194: =IF(COUNT($H194:L194)>='RFM input'!$AA$7,0,($G130+(SUM($G194:L194)))*M$8) -> 0 | N194: =IF(COUNT($H194:M194)>='RFM input'!$AA$7,0,($G130+(SUM($G194:M194)))*N$8) -> 0 | O194: =IF(COUNT($H194:N194)>='RFM input'!$AA$7,0,($G130+(SUM($G194:N194)))*O$8) -> 0 | P194: =IF(COUNT($H194:O194)>='RFM input'!$AA$7,0,($G130+(SUM($G194:O194)))*P$8) -> 0 | Q194: =IF(COUNT($H194:P194)>='RFM input'!$AA$7,0,($G130+(SUM($G194:P194)))*Q$8) -> 0
C195: Sub-total | I195: =IF(COUNT($H194:I194)='RFM input'!$AA$7,SUM($G194:I194),0) -> 0 | J195: =IF(COUNT($H194:J194)='RFM input'!$AA$7,SUM($G194:J194),0) -> 0 | K195: =IF(COUNT($H194:K194)='RFM input'!$AA$7,SUM($G194:K194),0) -> 0 | L195: =IF(COUNT($H194:L194)='RFM input'!$AA$7,SUM($G194:L194),0) -> 0 | M195: =IF(COUNT($H194:M194)='RFM input'!$AA$7,SUM($G194:M194),0) -> 0 | N195: =IF(COUNT($H194:N194)='RFM input'!$AA$7,SUM($G194:N194),0) -> 0 | O195: =IF(COUNT($H194:O194)='RFM input'!$AA$7,SUM($G194:O194),0) -> 0 | P195: =IF(COUNT($H194:P194)='RFM input'!$AA$7,SUM($G194:P194),0) -> 0 | Q195: =IF(COUNT($H194:Q194)='RFM input'!$AA$7,SUM($G194:Q194),0) -> 0
C196: =Asset14 -> OVERHEAD LINES | H196: =($G131+(SUM($G196:G196)))*H$8 -> 0 | I196: =($G131+(SUM($G196:H196)))*I$8 -> 0 | J196: =IF(COUNT($H196:I196)>='RFM input'!$AA$7,0,($G131+(SUM($G196:I196)))*J$8) -> 0 | K196: =IF(COUNT($H196:J196)>='RFM input'!$AA$7,0,($G131+(SUM($G196:J196)))*K$8) -> 0 | L196: =IF(COUNT($H196:K196)>='RFM input'!$AA$7,0,($G131+(SUM($G196:K196)))*L$8) -> 0 | M196: =IF(COUNT($H196:L196)>='RFM input'!$AA$7,0,($G131+(SUM($G196:L196)))*M$8) -> 0 | N196: =IF(COUNT($H196:M196)>='RFM input'!$AA$7,0,($G131+(SUM($G196:M196)))*N$8) -> 0 | O196: =IF(COUNT($H196:N196)>='RFM input'!$AA$7,0,($G131+(SUM($G196:N196)))*O$8) -> 0 | P196: =IF(COUNT($H196:O196)>='RFM input'!$AA$7,0,($G131+(SUM($G196:O196)))*P$8) -> 0 | Q196: =IF(COUNT($H196:P196)>='RFM input'!$AA$7,0,($G131+(SUM($G196:P196)))*Q$8) -> 0
C197: Sub-total | I197: =IF(COUNT($H196:I196)='RFM input'!$AA$7,SUM($G196:I196),0) -> 0 | J197: =IF(COUNT($H196:J196)='RFM input'!$AA$7,SUM($G196:J196),0) -> 0 | K197: =IF(COUNT($H196:K196)='RFM input'!$AA$7,SUM($G196:K196),0) -> 0 | L197: =IF(COUNT($H196:L196)='RFM input'!$AA$7,SUM($G196:L196),0) -> 0 | M197: =IF(COUNT($H196:M196)='RFM input'!$AA$7,SUM($G196:M196),0) -> 0 | N197: =IF(COUNT($H196:N196)='RFM input'!$AA$7,SUM($G196:N196),0) -> 0 | O197: =IF(COUNT($H196:O196)='RFM input'!$AA$7,SUM($G196:O196),0) -> 0 | P197: =IF(COUNT($H196:P196)='RFM input'!$AA$7,SUM($G196:P196),0) -> 0 | Q197: =IF(COUNT($H196:Q196)='RFM input'!$AA$7,SUM($G196:Q196),0) -> 0
C198: =Asset15 -> SMOOTHING REACTOR | H198: =($G132+(SUM($G198:G198)))*H$8 -> 0 | I198: =($G132+(SUM($G198:H198)))*I$8 -> 0 | J198: =IF(COUNT($H198:I198)>='RFM input'!$AA$7,0,($G132+(SUM($G198:I198)))*J$8) -> 0 | K198: =IF(COUNT($H198:J198)>='RFM input'!$AA$7,0,($G132+(SUM($G198:J198)))*K$8) -> 0 | L198: =IF(COUNT($H198:K198)>='RFM input'!$AA$7,0,($G132+(SUM($G198:K198)))*L$8) -> 0 | M198: =IF(COUNT($H198:L198)>='RFM input'!$AA$7,0,($G132+(SUM($G198:L198)))*M$8) -> 0 | N198: =IF(COUNT($H198:M198)>='RFM input'!$AA$7,0,($G132+(SUM($G198:M198)))*N$8) -> 0 | O198: =IF(COUNT($H198:N198)>='RFM input'!$AA$7,0,($G132+(SUM($G198:N198)))*O$8) -> 0 | P198: =IF(COUNT($H198:O198)>='RFM input'!$AA$7,0,($G132+(SUM($G198:O198)))*P$8) -> 0 | Q198: =IF(COUNT($H198:P198)>='RFM input'!$AA$7,0,($G132+(SUM($G198:P198)))*Q$8) -> 0
C199: Sub-total | I199: =IF(COUNT($H198:I198)='RFM input'!$AA$7,SUM($G198:I198),0) -> 0 | J199: =IF(COUNT($H198:J198)='RFM input'!$AA$7,SUM($G198:J198),0) -> 0 | K199: =IF(COUNT($H198:K198)='RFM input'!$AA$7,SUM($G198:K198),0) -> 0 | L199: =IF(COUNT($H198:L198)='RFM input'!$AA$7,SUM($G198:L198),0) -> 0 | M199: =IF(COUNT($H198:M198)='RFM input'!$AA$7,SUM($G198:M198),0) -> 0 | N199: =IF(COUNT($H198:N198)='RFM input'!$AA$7,SUM($G198:N198),0) -> 0 | O199: =IF(COUNT($H198:O198)='RFM input'!$AA$7,SUM($G198:O198),0) -> 0 | P199: =IF(COUNT($H198:P198)='RFM input'!$AA$7,SUM($G198:P198),0) -> 0 | Q199: =IF(COUNT($H198:Q198)='RFM input'!$AA$7,SUM($G198:Q198),0) -> 0
C200: =Asset16 -> STATION POWER SUPPLY | H200: =($G133+(SUM($G200:G200)))*H$8 -> 0 | I200: =($G133+(SUM($G200:H200)))*I$8 -> 0 | J200: =IF(COUNT($H200:I200)>='RFM input'!$AA$7,0,($G133+(SUM($G200:I200)))*J$8) -> 0 | K200: =IF(COUNT($H200:J200)>='RFM input'!$AA$7,0,($G133+(SUM($G200:J200)))*K$8) -> 0 | L200: =IF(COUNT($H200:K200)>='RFM input'!$AA$7,0,($G133+(SUM($G200:K200)))*L$8) -> 0 | M200: =IF(COUNT($H200:L200)>='RFM input'!$AA$7,0,($G133+(SUM($G200:L200)))*M$8) -> 0 | N200: =IF(COUNT($H200:M200)>='RFM input'!$AA$7,0,($G133+(SUM($G200:M200)))*N$8) -> 0 | O200: =IF(COUNT($H200:N200)>='RFM input'!$AA$7,0,($G133+(SUM($G200:N200)))*O$8) -> 0 | P200: =IF(COUNT($H200:O200)>='RFM input'!$AA$7,0,($G133+(SUM($G200:O200)))*P$8) -> 0 | Q200: =IF(COUNT($H200:P200)>='RFM input'!$AA$7,0,($G133+(SUM($G200:P200)))*Q$8) -> 0
C201: Sub-total | I201: =IF(COUNT($H200:I200)='RFM input'!$AA$7,SUM($G200:I200),0) -> 0 | J201: =IF(COUNT($H200:J200)='RFM input'!$AA$7,SUM($G200:J200),0) -> 0 | K201: =IF(COUNT($H200:K200)='RFM input'!$AA$7,SUM($G200:K200),0) -> 0 | L201: =IF(COUNT($H200:L200)='RFM input'!$AA$7,SUM($G200:L200),0) -> 0 | M201: =IF(COUNT($H200:M200)='RFM input'!$AA$7,SUM($G200:M200),0) -> 0 | N201: =IF(COUNT($H200:N200)='RFM input'!$AA$7,SUM($G200:N200),0) -> 0 | O201: =IF(COUNT($H200:O200)='RFM input'!$AA$7,SUM($G200:O200),0) -> 0 | P201: =IF(COUNT($H200:P200)='RFM input'!$AA$7,SUM($G200:P200),0) -> 0 | Q201: =IF(COUNT($H200:Q200)='RFM input'!$AA$7,SUM($G200:Q200),0) -> 0
C202: =Asset17 -> SWITCHYARD COMPONENTS | H202: =($G134+(SUM($G202:G202)))*H$8 -> 0 | I202: =($G134+(SUM($G202:H202)))*I$8 -> 0 | J202: =IF(COUNT($H202:I202)>='RFM input'!$AA$7,0,($G134+(SUM($G202:I202)))*J$8) -> 0 | K202: =IF(COUNT($H202:J202)>='RFM input'!$AA$7,0,($G134+(SUM($G202:J202)))*K$8) -> 0 | L202: =IF(COUNT($H202:K202)>='RFM input'!$AA$7,0,($G134+(SUM($G202:K202)))*L$8) -> 0 | M202: =IF(COUNT($H202:L202)>='RFM input'!$AA$7,0,($G134+(SUM($G202:L202)))*M$8) -> 0 | N202: =IF(COUNT($H202:M202)>='RFM input'!$AA$7,0,($G134+(SUM($G202:M202)))*N$8) -> 0 | O202: =IF(COUNT($H202:N202)>='RFM input'!$AA$7,0,($G134+(SUM($G202:N202)))*O$8) -> 0 | P202: =IF(COUNT($H202:O202)>='RFM input'!$AA$7,0,($G134+(SUM($G202:O202)))*P$8) -> 0 | Q202: =IF(COUNT($H202:P202)>='RFM input'!$AA$7,0,($G134+(SUM($G202:P202)))*Q$8) -> 0
C203: Sub-total | I203: =IF(COUNT($H202:I202)='RFM input'!$AA$7,SUM($G202:I202),0) -> 0 | J203: =IF(COUNT($H202:J202)='RFM input'!$AA$7,SUM($G202:J202),0) -> 0 | K203: =IF(COUNT($H202:K202)='RFM input'!$AA$7,SUM($G202:K202),0) -> 0 | L203: =IF(COUNT($H202:L202)='RFM input'!$AA$7,SUM($G202:L202),0) -> 0 | M203: =IF(COUNT($H202:M202)='RFM input'!$AA$7,SUM($G202:M202),0) -> 0 | N203: =IF(COUNT($H202:N202)='RFM input'!$AA$7,SUM($G202:N202),0) -> 0 | O203: =IF(COUNT($H202:O202)='RFM input'!$AA$7,SUM($G202:O202),0) -> 0 | P203: =IF(COUNT($H202:P202)='RFM input'!$AA$7,SUM($G202:P202),0) -> 0 | Q203: =IF(COUNT($H202:Q202)='RFM input'!$AA$7,SUM($G202:Q202),0) -> 0
C204: =Asset18 -> VALVE COOLING | H204: =($G135+(SUM($G204:G204)))*H$8 -> 0 | I204: =($G135+(SUM($G204:H204)))*I$8 -> 0 | J204: =IF(COUNT($H204:I204)>='RFM input'!$AA$7,0,($G135+(SUM($G204:I204)))*J$8) -> 0 | K204: =IF(COUNT($H204:J204)>='RFM input'!$AA$7,0,($G135+(SUM($G204:J204)))*K$8) -> 0 | L204: =IF(COUNT($H204:K204)>='RFM input'!$AA$7,0,($G135+(SUM($G204:K204)))*L$8) -> 0 | M204: =IF(COUNT($H204:L204)>='RFM input'!$AA$7,0,($G135+(SUM($G204:L204)))*M$8) -> 0 | N204: =IF(COUNT($H204:M204)>='RFM input'!$AA$7,0,($G135+(SUM($G204:M204)))*N$8) -> 0 | O204: =IF(COUNT($H204:N204)>='RFM input'!$AA$7,0,($G135+(SUM($G204:N204)))*O$8) -> 0 | P204: =IF(COUNT($H204:O204)>='RFM input'!$AA$7,0,($G135+(SUM($G204:O204)))*P$8) -> 0 | Q204: =IF(COUNT($H204:P204)>='RFM input'!$AA$7,0,($G135+(SUM($G204:P204)))*Q$8) -> 0
C205: Sub-total | I205: =IF(COUNT($H204:I204)='RFM input'!$AA$7,SUM($G204:I204),0) -> 0 | J205: =IF(COUNT($H204:J204)='RFM input'!$AA$7,SUM($G204:J204),0) -> 0 | K205: =IF(COUNT($H204:K204)='RFM input'!$AA$7,SUM($G204:K204),0) -> 0 | L205: =IF(COUNT($H204:L204)='RFM input'!$AA$7,SUM($G204:L204),0) -> 0 | M205: =IF(COUNT($H204:M204)='RFM input'!$AA$7,SUM($G204:M204),0) -> 0 | N205: =IF(COUNT($H204:N204)='RFM input'!$AA$7,SUM($G204:N204),0) -> 0 | O205: =IF(COUNT($H204:O204)='RFM input'!$AA$7,SUM($G204:O204),0) -> 0 | P205: =IF(COUNT($H204:P204)='RFM input'!$AA$7,SUM($G204:P204),0) -> 0 | Q205: =IF(COUNT($H204:Q204)='RFM input'!$AA$7,SUM($G204:Q204),0) -> 0
C206: =Asset19 -> VALVE HALL | H206: =($G136+(SUM($G206:G206)))*H$8 -> 0 | I206: =($G136+(SUM($G206:H206)))*I$8 -> 0 | J206: =IF(COUNT($H206:I206)>='RFM input'!$AA$7,0,($G136+(SUM($G206:I206)))*J$8) -> 0 | K206: =IF(COUNT($H206:J206)>='RFM input'!$AA$7,0,($G136+(SUM($G206:J206)))*K$8) -> 0 | L206: =IF(COUNT($H206:K206)>='RFM input'!$AA$7,0,($G136+(SUM($G206:K206)))*L$8) -> 0 | M206: =IF(COUNT($H206:L206)>='RFM input'!$AA$7,0,($G136+(SUM($G206:L206)))*M$8) -> 0 | N206: =IF(COUNT($H206:M206)>='RFM input'!$AA$7,0,($G136+(SUM($G206:M206)))*N$8) -> 0 | O206: =IF(COUNT($H206:N206)>='RFM input'!$AA$7,0,($G136+(SUM($G206:N206)))*O$8) -> 0 | P206: =IF(COUNT($H206:O206)>='RFM input'!$AA$7,0,($G136+(SUM($G206:O206)))*P$8) -> 0 | Q206: =IF(COUNT($H206:P206)>='RFM input'!$AA$7,0,($G136+(SUM($G206:P206)))*Q$8) -> 0
C207: Sub-total | I207: =IF(COUNT($H206:I206)='RFM input'!$AA$7,SUM($G206:I206),0) -> 0 | J207: =IF(COUNT($H206:J206)='RFM input'!$AA$7,SUM($G206:J206),0) -> 0 | K207: =IF(COUNT($H206:K206)='RFM input'!$AA$7,SUM($G206:K206),0) -> 0 | L207: =IF(COUNT($H206:L206)='RFM input'!$AA$7,SUM($G206:L206),0) -> 0 | M207: =IF(COUNT($H206:M206)='RFM input'!$AA$7,SUM($G206:M206),0) -> 0 | N207: =IF(COUNT($H206:N206)='RFM input'!$AA$7,SUM($G206:N206),0) -> 0 | O207: =IF(COUNT($H206:O206)='RFM input'!$AA$7,SUM($G206:O206),0) -> 0 | P207: =IF(COUNT($H206:P206)='RFM input'!$AA$7,SUM($G206:P206),0) -> 0 | Q207: =IF(COUNT($H206:Q206)='RFM input'!$AA$7,SUM($G206:Q206),0) -> 0
C208: =Asset20 -> 0 | H208: =($G137+(SUM($G208:G208)))*H$8 -> 0 | I208: =($G137+(SUM($G208:H208)))*I$8 -> 0 | J208: =IF(COUNT($H208:I208)>='RFM input'!$AA$7,0,($G137+(SUM($G208:I208)))*J$8) -> 0 | K208: =IF(COUNT($H208:J208)>='RFM input'!$AA$7,0,($G137+(SUM($G208:J208)))*K$8) -> 0 | L208: =IF(COUNT($H208:K208)>='RFM input'!$AA$7,0,($G137+(SUM($G208:K208)))*L$8) -> 0 | M208: =IF(COUNT($H208:L208)>='RFM input'!$AA$7,0,($G137+(SUM($G208:L208)))*M$8) -> 0 | N208: =IF(COUNT($H208:M208)>='RFM input'!$AA$7,0,($G137+(SUM($G208:M208)))*N$8) -> 0 | O208: =IF(COUNT($H208:N208)>='RFM input'!$AA$7,0,($G137+(SUM($G208:N208)))*O$8) -> 0 | P208: =IF(COUNT($H208:O208)>='RFM input'!$AA$7,0,($G137+(SUM($G208:O208)))*P$8) -> 0 | Q208: =IF(COUNT($H208:P208)>='RFM input'!$AA$7,0,($G137+(SUM($G208:P208)))*Q$8) -> 0
... 830 more rows

Sheet RAB roll forward
C2: ='DMS input'!$C$16&" - Asset Roll Forward"&" - TNSP RFM - version "&Intro!$M$4 -> Basslink - Asset Roll Forward - TNSP RFM - version 4.1
G3: 0 | H3: =G3+1 -> 1 | I3: 2 | J3: 3 | K3: 4 | L3: 5 | M3: 6 | N3: 7 | O3: 8 | P3: 9 | Q3: 10 | R3: 11
C4: Year | G4: ='RFM input'!G60 -> 2005-06 | H4: ='RFM input'!H60 -> 2006-07 | I4: ='RFM input'!I60 -> 2007-08 | J4: ='RFM input'!J60 -> 2008-09 | K4: ='RFM input'!K60 -> 2009-10 | L4: ='RFM input'!L60 -> 2010-11 | M4: ='RFM input'!M60 -> 2011-12 | N4: ='RFM input'!N60 -> 2012-13 | O4: ='RFM input'!O60 -> 2013-14 | P4: ='RFM input'!P60 -> 2014-15 | Q4: ='RFM input'!Q60 -> 2015-16 | R4: =IF(LEN(Q4)>4,CONCATENATE(LEFT(Q4, 4)+1 &"-" &IF(Q4>"2007-08",,"0") &RIGHT(Q4,2)+1),Q4+1) -> 2016-17
C6: Actual CPI Inflation Rate | G6: ='RFM input'!G385 -> 0.02923264312 | H6: ='RFM input'!H385 -> 0.02485207101 | I6: ='RFM input'!I385 -> 0.04272517321 | J6: ='RFM input'!J385 -> 0.02436323367 | K6: ='RFM input'!K385 -> 0.02918918919 | L6: ='RFM input'!L385 -> 0.03256302521 | M6: ='RFM input'!M385 -> 0.01627670397 | N6: ='RFM input'!N385 -> 0.02502502503 | O6: ='RFM input'!O385 -> 0.029296875 | P6: ='RFM input'!P385 -> 0.01328273245 | Q6: ='RFM input'!Q385 -> 0.01310861423
C7: Actual CPI (one year lagged) | G7: ='RFM input'!G386 -> 1 | H7: ='RFM input'!H386 -> 1.029232643 | I7: ='RFM input'!I386 -> 1.054811206 | J7: ='RFM input'!J386 -> 1.099878197 | K7: ='RFM input'!K386 -> 1.126674787 | L7: ='RFM input'!L386 -> 1.15956151 | M7: ='RFM input'!M386 -> 1.197320341 | N7: ='RFM input'!N386 -> 1.21680877 | O7: ='RFM input'!O386 -> 1.24725944 | P7: ='RFM input'!P386 -> 1.283800244 | Q7: ='RFM input'!Q386 -> 1.300852619
C9: ="Asset Values ($m Real "&G4&")" -> Asset Values ($m Real 2005-06)
C11: Real Actual Net Capex - As Incurred | H11: =SUM(H12:H61) -> 0.2375506174 | I11: =SUM(I12:I61) -> 0.5381693471 | J11: 0.1376187878 | K11: 0.6883594519 | L11: 0.4767159152 | M11: 1.331008801 | N11: 0.004161933141 | O11: 0.8237277188 | P11: 0.02212408301 | Q11: 0
D12: =Asset1 -> AC FILTERS | H12: ='RFM input'!H169*(1+vanilla1)^0.5 -> 0 | I12: ='RFM input'!I169*(1+vanilla2)^0.5 -> 0 | J12: ='RFM input'!J169*(1+vanilla3)^0.5 -> 0 | K12: ='RFM input'!K169*(1+vanilla4)^0.5 -> 0 | L12: ='RFM input'!L169*(1+vanilla5)^0.5 -> 0 | M12: ='RFM input'!M169*(1+vanilla6)^0.5 -> 0 | N12: ='RFM input'!N169*(1+vanilla7)^0.5 -> 0 | O12: ='RFM input'!O169*(1+vanilla8)^0.5 -> 0 | P12: ='RFM input'!P169*(1+vanilla9)^0.5 -> 0 | Q12: ='RFM input'!Q169*(1+vanilla10)^0.5 -> 0
D13: =Asset2 -> AC SWITCHYARD | H13: ='RFM input'!H170*(1+vanilla1)^0.5 -> 0 | I13: ='RFM input'!I170*(1+vanilla2)^0.5 -> 0 | J13: ='RFM input'!J170*(1+vanilla3)^0.5 -> 0 | K13: ='RFM input'!K170*(1+vanilla4)^0.5 -> 0.3935230473 | L13: ='RFM input'!L170*(1+vanilla5)^0.5 -> 0 | M13: ='RFM input'!M170*(1+vanilla6)^0.5 -> 0 | N13: ='RFM input'!N170*(1+vanilla7)^0.5 -> 0 | O13: ='RFM input'!O170*(1+vanilla8)^0.5 -> 0 | P13: ='RFM input'!P170*(1+vanilla9)^0.5 -> 0 | Q13: ='RFM input'!Q170*(1+vanilla10)^0.5 -> 0
D14: =Asset3 -> AUXILIARY SYSTEMS | H14: ='RFM input'!H171*(1+vanilla1)^0.5 -> 0 | I14: ='RFM input'!I171*(1+vanilla2)^0.5 -> 0 | J14: ='RFM input'!J171*(1+vanilla3)^0.5 -> 0.006383574338 | K14: ='RFM input'!K171*(1+vanilla4)^0.5 -> 0 | L14: ='RFM input'!L171*(1+vanilla5)^0.5 -> 0 | M14: ='RFM input'!M171*(1+vanilla6)^0.5 -> 0 | N14: ='RFM input'!N171*(1+vanilla7)^0.5 -> 0 | O14: ='RFM input'!O171*(1+vanilla8)^0.5 -> 0 | P14: ='RFM input'!P171*(1+vanilla9)^0.5 -> 0 | Q14: ='RFM input'!Q171*(1+vanilla10)^0.5 -> 0
D15: =Asset4 -> CABLE | H15: ='RFM input'!H172*(1+vanilla1)^0.5 -> 0.1235554251 | I15: ='RFM input'!I172*(1+vanilla2)^0.5 -> 0 | J15: ='RFM input'!J172*(1+vanilla3)^0.5 -> 0.1301496603 | K15: ='RFM input'!K172*(1+vanilla4)^0.5 -> 0 | L15: ='RFM input'!L172*(1+vanilla5)^0.5 -> 0 | M15: ='RFM input'!M172*(1+vanilla6)^0.5 -> 0 | N15: ='RFM input'!N172*(1+vanilla7)^0.5 -> 0 | O15: ='RFM input'!O172*(1+vanilla8)^0.5 -> 0 | P15: ='RFM input'!P172*(1+vanilla9)^0.5 -> 0 | Q15: ='RFM input'!Q172*(1+vanilla10)^0.5 -> 0
D16: =Asset5 -> CONTROL SYSTEM | H16: ='RFM input'!H173*(1+vanilla1)^0.5 -> 0 | I16: ='RFM input'!I173*(1+vanilla2)^0.5 -> 0 | J16: ='RFM input'!J173*(1+vanilla3)^0.5 -> 0 | K16: ='RFM input'!K173*(1+vanilla4)^0.5 -> 0 | L16: ='RFM input'!L173*(1+vanilla5)^0.5 -> 0 | M16: ='RFM input'!M173*(1+vanilla6)^0.5 -> 0 | N16: ='RFM input'!N173*(1+vanilla7)^0.5 -> 0 | O16: ='RFM input'!O173*(1+vanilla8)^0.5 -> 0 | P16: ='RFM input'!P173*(1+vanilla9)^0.5 -> 0 | Q16: ='RFM input'!Q173*(1+vanilla10)^0.5 -> 0
D17: =Asset6 -> CONVERTER TRANSFORMER | H17: ='RFM input'!H174*(1+vanilla1)^0.5 -> 0.0387156717 | I17: ='RFM input'!I174*(1+vanilla2)^0.5 -> 0.4321896811 | J17: ='RFM input'!J174*(1+vanilla3)^0.5 -> 0 | K17: ='RFM input'!K174*(1+vanilla4)^0.5 -> 0.1271677707 | L17: ='RFM input'!L174*(1+vanilla5)^0.5 -> 0.4585680642 | M17: ='RFM input'!M174*(1+vanilla6)^0.5 -> 1.331008801 | N17: ='RFM input'!N174*(1+vanilla7)^0.5 -> 0.004161933141 | O17: ='RFM input'!O174*(1+vanilla8)^0.5 -> 0.01057804239 | P17: ='RFM input'!P174*(1+vanilla9)^0.5 -> 0.02212408301 | Q17: ='RFM input'!Q174*(1+vanilla10)^0.5 -> 0
D18: =Asset7 -> DC FILTER | H18: ='RFM input'!H175*(1+vanilla1)^0.5 -> 0.01892266364 | I18: ='RFM input'!I175*(1+vanilla2)^0.5 -> 0 | J18: ='RFM input'!J175*(1+vanilla3)^0.5 -> 0 | K18: ='RFM input'!K175*(1+vanilla4)^0.5 -> 0 | L18: ='RFM input'!L175*(1+vanilla5)^0.5 -> 0 | M18: ='RFM input'!M175*(1+vanilla6)^0.5 -> 0 | N18: ='RFM input'!N175*(1+vanilla7)^0.5 -> 0 | O18: ='RFM input'!O175*(1+vanilla8)^0.5 -> 0 | P18: ='RFM input'!P175*(1+vanilla9)^0.5 -> 0 | Q18: ='RFM input'!Q175*(1+vanilla10)^0.5 -> 0
D19: =Asset8 -> DC SWITCHYARD | H19: ='RFM input'!H176*(1+vanilla1)^0.5 -> 0 | I19: ='RFM input'!I176*(1+vanilla2)^0.5 -> 0 | J19: ='RFM input'!J176*(1+vanilla3)^0.5 -> 0 | K19: ='RFM input'!K176*(1+vanilla4)^0.5 -> 0.167668634 | L19: ='RFM input'!L176*(1+vanilla5)^0.5 -> 0.01814785094 | M19: ='RFM input'!M176*(1+vanilla6)^0.5 -> 0 | N19: ='RFM input'!N176*(1+vanilla7)^0.5 -> 0 | O19: ='RFM input'!O176*(1+vanilla8)^0.5 -> 0.8131496764 | P19: ='RFM input'!P176*(1+vanilla9)^0.5 -> 0 | Q19: ='RFM input'!Q176*(1+vanilla10)^0.5 -> 0
D20: =Asset9 -> EASEMENT | H20: ='RFM input'!H177*(1+vanilla1)^0.5 -> 0 | I20: ='RFM input'!I177*(1+vanilla2)^0.5 -> 0 | J20: ='RFM input'!J177*(1+vanilla3)^0.5 -> 0 | K20: ='RFM input'!K177*(1+vanilla4)^0.5 -> 0 | L20: ='RFM input'!L177*(1+vanilla5)^0.5 -> 0 | M20: ='RFM input'!M177*(1+vanilla6)^0.5 -> 0 | N20: ='RFM input'!N177*(1+vanilla7)^0.5 -> 0 | O20: ='RFM input'!O177*(1+vanilla8)^0.5 -> 0 | P20: ='RFM input'!P177*(1+vanilla9)^0.5 -> 0 | Q20: ='RFM input'!Q177*(1+vanilla10)^0.5 -> 0
D21: =Asset10 -> FREEHOLD LAND | H21: ='RFM input'!H178*(1+vanilla1)^0.5 -> 0 | I21: ='RFM input'!I178*(1+vanilla2)^0.5 -> 0 | J21: ='RFM input'!J178*(1+vanilla3)^0.5 -> 0 | K21: ='RFM input'!K178*(1+vanilla4)^0.5 -> 0 | L21: ='RFM input'!L178*(1+vanilla5)^0.5 -> 0 | M21: ='RFM input'!M178*(1+vanilla6)^0.5 -> 0 | N21: ='RFM input'!N178*(1+vanilla7)^0.5 -> 0 | O21: ='RFM input'!O178*(1+vanilla8)^0.5 -> 0 | P21: ='RFM input'!P178*(1+vanilla9)^0.5 -> 0 | Q21: ='RFM input'!Q178*(1+vanilla10)^0.5 -> 0
D22: =Asset11 -> MEASURING DEVICES | H22: ='RFM input'!H179*(1+vanilla1)^0.5 -> 0 | I22: ='RFM input'!I179*(1+vanilla2)^0.5 -> 0 | J22: ='RFM input'!J179*(1+vanilla3)^0.5 -> 0 | K22: ='RFM input'!K179*(1+vanilla4)^0.5 -> 0 | L22: ='RFM input'!L179*(1+vanilla5)^0.5 -> 0 | M22: ='RFM input'!M179*(1+vanilla6)^0.5 -> 0 | N22: ='RFM input'!N179*(1+vanilla7)^0.5 -> 0 | O22: ='RFM input'!O179*(1+vanilla8)^0.5 -> 0 | P22: ='RFM input'!P179*(1+vanilla9)^0.5 -> 0 | Q22: ='RFM input'!Q179*(1+vanilla10)^0.5 -> 0
D23: =Asset12 -> MOTOR VEHICLES | H23: ='RFM input'!H180*(1+vanilla1)^0.5 -> 0 | I23: ='RFM input'!I180*(1+vanilla2)^0.5 -> 0 | J23: ='RFM input'!J180*(1+vanilla3)^0.5 -> 0 | K23: ='RFM input'!K180*(1+vanilla4)^0.5 -> 0 | L23: ='RFM input'!L180*(1+vanilla5)^0.5 -> 0 | M23: ='RFM input'!M180*(1+vanilla6)^0.5 -> 0 | N23: ='RFM input'!N180*(1+vanilla7)^0.5 -> 0 | O23: ='RFM input'!O180*(1+vanilla8)^0.5 -> 0 | P23: ='RFM input'!P180*(1+vanilla9)^0.5 -> 0 | Q23: ='RFM input'!Q180*(1+vanilla10)^0.5 -> 0
D24: =Asset13 -> OTHER | H24: ='RFM input'!H181*(1+vanilla1)^0.5 -> 0 | I24: ='RFM input'!I181*(1+vanilla2)^0.5 -> 0 | J24: ='RFM input'!J181*(1+vanilla3)^0.5 -> 0 | K24: ='RFM input'!K181*(1+vanilla4)^0.5 -> 0 | L24: ='RFM input'!L181*(1+vanilla5)^0.5 -> 0 | M24: ='RFM input'!M181*(1+vanilla6)^0.5 -> 0 | N24: ='RFM input'!N181*(1+vanilla7)^0.5 -> 0 | O24: ='RFM input'!O181*(1+vanilla8)^0.5 -> 0 | P24: ='RFM input'!P181*(1+vanilla9)^0.5 -> 0 | Q24: ='RFM input'!Q181*(1+vanilla10)^0.5 -> 0
D25: =Asset14 -> OVERHEAD LINES | H25: ='RFM input'!H182*(1+vanilla1)^0.5 -> 0 | I25: ='RFM input'!I182*(1+vanilla2)^0.5 -> 0 | J25: ='RFM input'!J182*(1+vanilla3)^0.5 -> 0 | K25: ='RFM input'!K182*(1+vanilla4)^0.5 -> 0 | L25: ='RFM input'!L182*(1+vanilla5)^0.5 -> 0 | M25: ='RFM input'!M182*(1+vanilla6)^0.5 -> 0 | N25: ='RFM input'!N182*(1+vanilla7)^0.5 -> 0 | O25: ='RFM input'!O182*(1+vanilla8)^0.5 -> 0 | P25: ='RFM input'!P182*(1+vanilla9)^0.5 -> 0 | Q25: ='RFM input'!Q182*(1+vanilla10)^0.5 -> 0
D26: =Asset15 -> SMOOTHING REACTOR | H26: ='RFM input'!H183*(1+vanilla1)^0.5 -> 0 | I26: ='RFM input'!I183*(1+vanilla2)^0.5 -> 0 | J26: ='RFM input'!J183*(1+vanilla3)^0.5 -> 0 | K26: ='RFM input'!K183*(1+vanilla4)^0.5 -> 0 | L26: ='RFM input'!L183*(1+vanilla5)^0.5 -> 0 | M26: ='RFM input'!M183*(1+vanilla6)^0.5 -> 0 | N26: ='RFM input'!N183*(1+vanilla7)^0.5 -> 0 | O26: ='RFM input'!O183*(1+vanilla8)^0.5 -> 0 | P26: ='RFM input'!P183*(1+vanilla9)^0.5 -> 0 | Q26: ='RFM input'!Q183*(1+vanilla10)^0.5 -> 0
D27: =Asset16 -> STATION POWER SUPPLY | H27: ='RFM input'!H184*(1+vanilla1)^0.5 -> 0 | I27: ='RFM input'!I184*(1+vanilla2)^0.5 -> 0 | J27: ='RFM input'!J184*(1+vanilla3)^0.5 -> 0 | K27: ='RFM input'!K184*(1+vanilla4)^0.5 -> 0 | L27: ='RFM input'!L184*(1+vanilla5)^0.5 -> 0 | M27: ='RFM input'!M184*(1+vanilla6)^0.5 -> 0 | N27: ='RFM input'!N184*(1+vanilla7)^0.5 -> 0 | O27: ='RFM input'!O184*(1+vanilla8)^0.5 -> 0 | P27: ='RFM input'!P184*(1+vanilla9)^0.5 -> 0 | Q27: ='RFM input'!Q184*(1+vanilla10)^0.5 -> 0
D28: =Asset17 -> SWITCHYARD COMPONENTS | H28: ='RFM input'!H185*(1+vanilla1)^0.5 -> 0 | I28: ='RFM input'!I185*(1+vanilla2)^0.5 -> 0 | J28: ='RFM input'!J185*(1+vanilla3)^0.5 -> 0 | K28: ='RFM input'!K185*(1+vanilla4)^0.5 -> 0 | L28: ='RFM input'!L185*(1+vanilla5)^0.5 -> 0 | M28: ='RFM input'!M185*(1+vanilla6)^0.5 -> 0 | N28: ='RFM input'!N185*(1+vanilla7)^0.5 -> 0 | O28: ='RFM input'!O185*(1+vanilla8)^0.5 -> 0 | P28: ='RFM input'!P185*(1+vanilla9)^0.5 -> 0 | Q28: ='RFM input'!Q185*(1+vanilla10)^0.5 -> 0
D29: =Asset18 -> VALVE COOLING | H29: ='RFM input'!H186*(1+vanilla1)^0.5 -> 0 | I29: ='RFM input'!I186*(1+vanilla2)^0.5 -> 0 | J29: ='RFM input'!J186*(1+vanilla3)^0.5 -> 0 | K29: ='RFM input'!K186*(1+vanilla4)^0.5 -> 0 | L29: ='RFM input'!L186*(1+vanilla5)^0.5 -> 0 | M29: ='RFM input'!M186*(1+vanilla6)^0.5 -> 0 | N29: ='RFM input'!N186*(1+vanilla7)^0.5 -> 0 | O29: ='RFM input'!O186*(1+vanilla8)^0.5 -> 0 | P29: ='RFM input'!P186*(1+vanilla9)^0.5 -> 0 | Q29: ='RFM input'!Q186*(1+vanilla10)^0.5 -> 0
D30: =Asset19 -> VALVE HALL | H30: ='RFM input'!H187*(1+vanilla1)^0.5 -> 0 | I30: ='RFM input'!I187*(1+vanilla2)^0.5 -> 0.09159515842 | J30: ='RFM input'!J187*(1+vanilla3)^0.5 -> 0 | K30: ='RFM input'!K187*(1+vanilla4)^0.5 -> 0 | L30: ='RFM input'!L187*(1+vanilla5)^0.5 -> 0 | M30: ='RFM input'!M187*(1+vanilla6)^0.5 -> 0 | N30: ='RFM input'!N187*(1+vanilla7)^0.5 -> 0 | O30: ='RFM input'!O187*(1+vanilla8)^0.5 -> 0 | P30: ='RFM input'!P187*(1+vanilla9)^0.5 -> 0 | Q30: ='RFM input'!Q187*(1+vanilla10)^0.5 -> 0
D31: =Asset20 -> 0 | H31: ='RFM input'!H188*(1+vanilla1)^0.5 -> 0 | I31: ='RFM input'!I188*(1+vanilla2)^0.5 -> 0 | J31: ='RFM input'!J188*(1+vanilla3)^0.5 -> 0 | K31: ='RFM input'!K188*(1+vanilla4)^0.5 -> 0 | L31: ='RFM input'!L188*(1+vanilla5)^0.5 -> 0 | M31: ='RFM input'!M188*(1+vanilla6)^0.5 -> 0 | N31: ='RFM input'!N188*(1+vanilla7)^0.5 -> 0 | O31: ='RFM input'!O188*(1+vanilla8)^0.5 -> 0 | P31: ='RFM input'!P188*(1+vanilla9)^0.5 -> 0 | Q31: ='RFM input'!Q188*(1+vanilla10)^0.5 -> 0
D32: =Asset21 -> 0 | H32: ='RFM input'!H189*(1+vanilla1)^0.5 -> 0 | I32: ='RFM input'!I189*(1+vanilla2)^0.5 -> 0 | J32: ='RFM input'!J189*(1+vanilla3)^0.5 -> 0 | K32: ='RFM input'!K189*(1+vanilla4)^0.5 -> 0 | L32: ='RFM input'!L189*(1+vanilla5)^0.5 -> 0 | M32: ='RFM input'!M189*(1+vanilla6)^0.5 -> 0 | N32: ='RFM input'!N189*(1+vanilla7)^0.5 -> 0 | O32: ='RFM input'!O189*(1+vanilla8)^0.5 -> 0 | P32: ='RFM input'!P189*(1+vanilla9)^0.5 -> 0 | Q32: ='RFM input'!Q189*(1+vanilla10)^0.5 -> 0
D33: =Asset22 -> 0 | H33: ='RFM input'!H190*(1+vanilla1)^0.5 -> 0 | I33: ='RFM input'!I190*(1+vanilla2)^0.5 -> 0 | J33: ='RFM input'!J190*(1+vanilla3)^0.5 -> 0 | K33: ='RFM input'!K190*(1+vanilla4)^0.5 -> 0 | L33: ='RFM input'!L190*(1+vanilla5)^0.5 -> 0 | M33: ='RFM input'!M190*(1+vanilla6)^0.5 -> 0 | N33: ='RFM input'!N190*(1+vanilla7)^0.5 -> 0 | O33: ='RFM input'!O190*(1+vanilla8)^0.5 -> 0 | P33: ='RFM input'!P190*(1+vanilla9)^0.5 -> 0 | Q33: ='RFM input'!Q190*(1+vanilla10)^0.5 -> 0
D34: =Asset23 -> 0 | H34: ='RFM input'!H191*(1+vanilla1)^0.5 -> 0 | I34: ='RFM input'!I191*(1+vanilla2)^0.5 -> 0 | J34: ='RFM input'!J191*(1+vanilla3)^0.5 -> 0 | K34: ='RFM input'!K191*(1+vanilla4)^0.5 -> 0 | L34: ='RFM input'!L191*(1+vanilla5)^0.5 -> 0 | M34: ='RFM input'!M191*(1+vanilla6)^0.5 -> 0 | N34: ='RFM input'!N191*(1+vanilla7)^0.5 -> 0 | O34: ='RFM input'!O191*(1+vanilla8)^0.5 -> 0 | P34: ='RFM input'!P191*(1+vanilla9)^0.5 -> 0 | Q34: ='RFM input'!Q191*(1+vanilla10)^0.5 -> 0
D35: =Asset24 -> 0 | H35: ='RFM input'!H192*(1+vanilla1)^0.5 -> 0 | I35: ='RFM input'!I192*(1+vanilla2)^0.5 -> 0 | J35: ='RFM input'!J192*(1+vanilla3)^0.5 -> 0 | K35: ='RFM input'!K192*(1+vanilla4)^0.5 -> 0 | L35: ='RFM input'!L192*(1+vanilla5)^0.5 -> 0 | M35: ='RFM input'!M192*(1+vanilla6)^0.5 -> 0 | N35: ='RFM input'!N192*(1+vanilla7)^0.5 -> 0 | O35: ='RFM input'!O192*(1+vanilla8)^0.5 -> 0 | P35: ='RFM input'!P192*(1+vanilla9)^0.5 -> 0 | Q35: ='RFM input'!Q192*(1+vanilla10)^0.5 -> 0
D36: =Asset25 -> 0 | H36: ='RFM input'!H193*(1+vanilla1)^0.5 -> 0 | I36: ='RFM input'!I193*(1+vanilla2)^0.5 -> 0 | J36: ='RFM input'!J193*(1+vanilla3)^0.5 -> 0 | K36: ='RFM input'!K193*(1+vanilla4)^0.5 -> 0 | L36: ='RFM input'!L193*(1+vanilla5)^0.5 -> 0 | M36: ='RFM input'!M193*(1+vanilla6)^0.5 -> 0 | N36: ='RFM input'!N193*(1+vanilla7)^0.5 -> 0 | O36: ='RFM input'!O193*(1+vanilla8)^0.5 -> 0 | P36: ='RFM input'!P193*(1+vanilla9)^0.5 -> 0 | Q36: ='RFM input'!Q193*(1+vanilla10)^0.5 -> 0
D37: =Asset26 -> 0 | H37: ='RFM input'!H194*(1+vanilla1)^0.5 -> 0 | I37: ='RFM input'!I194*(1+vanilla2)^0.5 -> 0 | J37: ='RFM input'!J194*(1+vanilla3)^0.5 -> 0 | K37: ='RFM input'!K194*(1+vanilla4)^0.5 -> 0 | L37: ='RFM input'!L194*(1+vanilla5)^0.5 -> 0 | M37: ='RFM input'!M194*(1+vanilla6)^0.5 -> 0 | N37: ='RFM input'!N194*(1+vanilla7)^0.5 -> 0 | O37: ='RFM input'!O194*(1+vanilla8)^0.5 -> 0 | P37: ='RFM input'!P194*(1+vanilla9)^0.5 -> 0 | Q37: ='RFM input'!Q194*(1+vanilla10)^0.5 -> 0
D38: =Asset27 -> 0 | H38: ='RFM input'!H195*(1+vanilla1)^0.5 -> 0 | I38: ='RFM input'!I195*(1+vanilla2)^0.5 -> 0 | J38: ='RFM input'!J195*(1+vanilla3)^0.5 -> 0 | K38: ='RFM input'!K195*(1+vanilla4)^0.5 -> 0 | L38: ='RFM input'!L195*(1+vanilla5)^0.5 -> 0 | M38: ='RFM input'!M195*(1+vanilla6)^0.5 -> 0 | N38: ='RFM input'!N195*(1+vanilla7)^0.5 -> 0 | O38: ='RFM input'!O195*(1+vanilla8)^0.5 -> 0 | P38: ='RFM input'!P195*(1+vanilla9)^0.5 -> 0 | Q38: ='RFM input'!Q195*(1+vanilla10)^0.5 -> 0
D39: =Asset28 -> 0 | H39: ='RFM input'!H196*(1+vanilla1)^0.5 -> 0 | I39: ='RFM input'!I196*(1+vanilla2)^0.5 -> 0 | J39: ='RFM input'!J196*(1+vanilla3)^0.5 -> 0 | K39: ='RFM input'!K196*(1+vanilla4)^0.5 -> 0 | L39: ='RFM input'!L196*(1+vanilla5)^0.5 -> 0 | M39: ='RFM input'!M196*(1+vanilla6)^0.5 -> 0 | N39: ='RFM input'!N196*(1+vanilla7)^0.5 -> 0 | O39: ='RFM input'!O196*(1+vanilla8)^0.5 -> 0 | P39: ='RFM input'!P196*(1+vanilla9)^0.5 -> 0 | Q39: ='RFM input'!Q196*(1+vanilla10)^0.5 -> 0
D40: =Asset29 -> 0 | H40: ='RFM input'!H197*(1+vanilla1)^0.5 -> 0 | I40: ='RFM input'!I197*(1+vanilla2)^0.5 -> 0 | J40: ='RFM input'!J197*(1+vanilla3)^0.5 -> 0 | K40: ='RFM input'!K197*(1+vanilla4)^0.5 -> 0 | L40: ='RFM input'!L197*(1+vanilla5)^0.5 -> 0 | M40: ='RFM input'!M197*(1+vanilla6)^0.5 -> 0 | N40: ='RFM input'!N197*(1+vanilla7)^0.5 -> 0 | O40: ='RFM input'!O197*(1+vanilla8)^0.5 -> 0 | P40: ='RFM input'!P197*(1+vanilla9)^0.5 -> 0 | Q40: ='RFM input'!Q197*(1+vanilla10)^0.5 -> 0
D41: =Asset30 -> 0 | H41: ='RFM input'!H198*(1+vanilla1)^0.5 -> 0 | I41: ='RFM input'!I198*(1+vanilla2)^0.5 -> 0 | J41: ='RFM input'!J198*(1+vanilla3)^0.5 -> 0 | K41: ='RFM input'!K198*(1+vanilla4)^0.5 -> 0 | L41: ='RFM input'!L198*(1+vanilla5)^0.5 -> 0 | M41: ='RFM input'!M198*(1+vanilla6)^0.5 -> 0 | N41: ='RFM input'!N198*(1+vanilla7)^0.5 -> 0 | O41: ='RFM input'!O198*(1+vanilla8)^0.5 -> 0 | P41: ='RFM input'!P198*(1+vanilla9)^0.5 -> 0 | Q41: ='RFM input'!Q198*(1+vanilla10)^0.5 -> 0
D42: =Asset31 -> 0 | H42: ='RFM input'!H199*(1+vanilla1)^0.5 -> 0 | I42: ='RFM input'!I199*(1+vanilla2)^0.5 -> 0 | J42: ='RFM input'!J199*(1+vanilla3)^0.5 -> 0 | K42: ='RFM input'!K199*(1+vanilla4)^0.5 -> 0 | L42: ='RFM input'!L199*(1+vanilla5)^0.5 -> 0 | M42: ='RFM input'!M199*(1+vanilla6)^0.5 -> 0 | N42: ='RFM input'!N199*(1+vanilla7)^0.5 -> 0 | O42: ='RFM input'!O199*(1+vanilla8)^0.5 -> 0 | P42: ='RFM input'!P199*(1+vanilla9)^0.5 -> 0 | Q42: ='RFM input'!Q199*(1+vanilla10)^0.5 -> 0
D43: =Asset32 -> 0 | H43: ='RFM input'!H200*(1+vanilla1)^0.5 -> 0 | I43: ='RFM input'!I200*(1+vanilla2)^0.5 -> 0 | J43: ='RFM input'!J200*(1+vanilla3)^0.5 -> 0 | K43: ='RFM input'!K200*(1+vanilla4)^0.5 -> 0 | L43: ='RFM input'!L200*(1+vanilla5)^0.5 -> 0 | M43: ='RFM input'!M200*(1+vanilla6)^0.5 -> 0 | N43: ='RFM input'!N200*(1+vanilla7)^0.5 -> 0 | O43: ='RFM input'!O200*(1+vanilla8)^0.5 -> 0 | P43: ='RFM input'!P200*(1+vanilla9)^0.5 -> 0 | Q43: ='RFM input'!Q200*(1+vanilla10)^0.5 -> 0
D44: =Asset33 -> 0 | H44: ='RFM input'!H201*(1+vanilla1)^0.5 -> 0 | I44: ='RFM input'!I201*(1+vanilla2)^0.5 -> 0 | J44: ='RFM input'!J201*(1+vanilla3)^0.5 -> 0 | K44: ='RFM input'!K201*(1+vanilla4)^0.5 -> 0 | L44: ='RFM input'!L201*(1+vanilla5)^0.5 -> 0 | M44: ='RFM input'!M201*(1+vanilla6)^0.5 -> 0 | N44: ='RFM input'!N201*(1+vanilla7)^0.5 -> 0 | O44: ='RFM input'!O201*(1+vanilla8)^0.5 -> 0 | P44: ='RFM input'!P201*(1+vanilla9)^0.5 -> 0 | Q44: ='RFM input'!Q201*(1+vanilla10)^0.5 -> 0
D45: =Asset34 -> 0 | H45: ='RFM input'!H202*(1+vanilla1)^0.5 -> 0 | I45: ='RFM input'!I202*(1+vanilla2)^0.5 -> 0 | J45: ='RFM input'!J202*(1+vanilla3)^0.5 -> 0 | K45: ='RFM input'!K202*(1+vanilla4)^0.5 -> 0 | L45: ='RFM input'!L202*(1+vanilla5)^0.5 -> 0 | M45: ='RFM input'!M202*(1+vanilla6)^0.5 -> 0 | N45: ='RFM input'!N202*(1+vanilla7)^0.5 -> 0 | O45: ='RFM input'!O202*(1+vanilla8)^0.5 -> 0 | P45: ='RFM input'!P202*(1+vanilla9)^0.5 -> 0 | Q45: ='RFM input'!Q202*(1+vanilla10)^0.5 -> 0
D46: =Asset35 -> 0 | H46: ='RFM input'!H203*(1+vanilla1)^0.5 -> 0 | I46: ='RFM input'!I203*(1+vanilla2)^0.5 -> 0 | J46: ='RFM input'!J203*(1+vanilla3)^0.5 -> 0 | K46: ='RFM input'!K203*(1+vanilla4)^0.5 -> 0 | L46: ='RFM input'!L203*(1+vanilla5)^0.5 -> 0 | M46: ='RFM input'!M203*(1+vanilla6)^0.5 -> 0 | N46: ='RFM input'!N203*(1+vanilla7)^0.5 -> 0 | O46: ='RFM input'!O203*(1+vanilla8)^0.5 -> 0 | P46: ='RFM input'!P203*(1+vanilla9)^0.5 -> 0 | Q46: ='RFM input'!Q203*(1+vanilla10)^0.5 -> 0
D47: =Asset36 -> 0 | H47: ='RFM input'!H204*(1+vanilla1)^0.5 -> 0 | I47: ='RFM input'!I204*(1+vanilla2)^0.5 -> 0 | J47: ='RFM input'!J204*(1+vanilla3)^0.5 -> 0 | K47: ='RFM input'!K204*(1+vanilla4)^0.5 -> 0 | L47: ='RFM input'!L204*(1+vanilla5)^0.5 -> 0 | M47: ='RFM input'!M204*(1+vanilla6)^0.5 -> 0 | N47: ='RFM input'!N204*(1+vanilla7)^0.5 -> 0 | O47: ='RFM input'!O204*(1+vanilla8)^0.5 -> 0 | P47: ='RFM input'!P204*(1+vanilla9)^0.5 -> 0 | Q47: ='RFM input'!Q204*(1+vanilla10)^0.5 -> 0
D48: =Asset37 -> 0 | H48: ='RFM input'!H205*(1+vanilla1)^0.5 -> 0 | I48: ='RFM input'!I205*(1+vanilla2)^0.5 -> 0 | J48: ='RFM input'!J205*(1+vanilla3)^0.5 -> 0 | K48: ='RFM input'!K205*(1+vanilla4)^0.5 -> 0 | L48: ='RFM input'!L205*(1+vanilla5)^0.5 -> 0 | M48: ='RFM input'!M205*(1+vanilla6)^0.5 -> 0 | N48: ='RFM input'!N205*(1+vanilla7)^0.5 -> 0 | O48: ='RFM input'!O205*(1+vanilla8)^0.5 -> 0 | P48: ='RFM input'!P205*(1+vanilla9)^0.5 -> 0 | Q48: ='RFM input'!Q205*(1+vanilla10)^0.5 -> 0
D49: =Asset38 -> 0 | H49: ='RFM input'!H206*(1+vanilla1)^0.5 -> 0 | I49: ='RFM input'!I206*(1+vanilla2)^0.5 -> 0 | J49: ='RFM input'!J206*(1+vanilla3)^0.5 -> 0 | K49: ='RFM input'!K206*(1+vanilla4)^0.5 -> 0 | L49: ='RFM input'!L206*(1+vanilla5)^0.5 -> 0 | M49: ='RFM input'!M206*(1+vanilla6)^0.5 -> 0 | N49: ='RFM input'!N206*(1+vanilla7)^0.5 -> 0 | O49: ='RFM input'!O206*(1+vanilla8)^0.5 -> 0 | P49: ='RFM input'!P206*(1+vanilla9)^0.5 -> 0 | Q49: ='RFM input'!Q206*(1+vanilla10)^0.5 -> 0
D50: =Asset39 -> 0 | H50: ='RFM input'!H207*(1+vanilla1)^0.5 -> 0 | I50: ='RFM input'!I207*(1+vanilla2)^0.5 -> 0 | J50: ='RFM input'!J207*(1+vanilla3)^0.5 -> 0 | K50: ='RFM input'!K207*(1+vanilla4)^0.5 -> 0 | L50: ='RFM input'!L207*(1+vanilla5)^0.5 -> 0 | M50: ='RFM input'!M207*(1+vanilla6)^0.5 -> 0 | N50: ='RFM input'!N207*(1+vanilla7)^0.5 -> 0 | O50: ='RFM input'!O207*(1+vanilla8)^0.5 -> 0 | P50: ='RFM input'!P207*(1+vanilla9)^0.5 -> 0 | Q50: ='RFM input'!Q207*(1+vanilla10)^0.5 -> 0
D51: =Asset40 -> 0 | H51: ='RFM input'!H208*(1+vanilla1)^0.5 -> 0 | I51: ='RFM input'!I208*(1+vanilla2)^0.5 -> 0 | J51: ='RFM input'!J208*(1+vanilla3)^0.5 -> 0 | K51: ='RFM input'!K208*(1+vanilla4)^0.5 -> 0 | L51: ='RFM input'!L208*(1+vanilla5)^0.5 -> 0 | M51: ='RFM input'!M208*(1+vanilla6)^0.5 -> 0 | N51: ='RFM input'!N208*(1+vanilla7)^0.5 -> 0 | O51: ='RFM input'!O208*(1+vanilla8)^0.5 -> 0 | P51: ='RFM input'!P208*(1+vanilla9)^0.5 -> 0 | Q51: ='RFM input'!Q208*(1+vanilla10)^0.5 -> 0
D52: =Asset41 -> 0 | H52: ='RFM input'!H209*(1+vanilla1)^0.5 -> 0 | I52: ='RFM input'!I209*(1+vanilla2)^0.5 -> 0 | J52: ='RFM input'!J209*(1+vanilla3)^0.5 -> 0 | K52: ='RFM input'!K209*(1+vanilla4)^0.5 -> 0 | L52: ='RFM input'!L209*(1+vanilla5)^0.5 -> 0 | M52: ='RFM input'!M209*(1+vanilla6)^0.5 -> 0 | N52: ='RFM input'!N209*(1+vanilla7)^0.5 -> 0 | O52: ='RFM input'!O209*(1+vanilla8)^0.5 -> 0 | P52: ='RFM input'!P209*(1+vanilla9)^0.5 -> 0 | Q52: ='RFM input'!Q209*(1+vanilla10)^0.5 -> 0
D53: =Asset42 -> 0 | H53: ='RFM input'!H210*(1+vanilla1)^0.5 -> 0 | I53: ='RFM input'!I210*(1+vanilla2)^0.5 -> 0 | J53: ='RFM input'!J210*(1+vanilla3)^0.5 -> 0 | K53: ='RFM input'!K210*(1+vanilla4)^0.5 -> 0 | L53: ='RFM input'!L210*(1+vanilla5)^0.5 -> 0 | M53: ='RFM input'!M210*(1+vanilla6)^0.5 -> 0 | N53: ='RFM input'!N210*(1+vanilla7)^0.5 -> 0 | O53: ='RFM input'!O210*(1+vanilla8)^0.5 -> 0 | P53: ='RFM input'!P210*(1+vanilla9)^0.5 -> 0 | Q53: ='RFM input'!Q210*(1+vanilla10)^0.5 -> 0
D54: =Asset43 -> 0 | H54: ='RFM input'!H211*(1+vanilla1)^0.5 -> 0 | I54: ='RFM input'!I211*(1+vanilla2)^0.5 -> 0 | J54: ='RFM input'!J211*(1+vanilla3)^0.5 -> 0 | K54: ='RFM input'!K211*(1+vanilla4)^0.5 -> 0 | L54: ='RFM input'!L211*(1+vanilla5)^0.5 -> 0 | M54: ='RFM input'!M211*(1+vanilla6)^0.5 -> 0 | N54: ='RFM input'!N211*(1+vanilla7)^0.5 -> 0 | O54: ='RFM input'!O211*(1+vanilla8)^0.5 -> 0 | P54: ='RFM input'!P211*(1+vanilla9)^0.5 -> 0 | Q54: ='RFM input'!Q211*(1+vanilla10)^0.5 -> 0
D55: =Asset44 -> 0 | H55: ='RFM input'!H212*(1+vanilla1)^0.5 -> 0 | I55: ='RFM input'!I212*(1+vanilla2)^0.5 -> 0 | J55: ='RFM input'!J212*(1+vanilla3)^0.5 -> 0 | K55: ='RFM input'!K212*(1+vanilla4)^0.5 -> 0 | L55: ='RFM input'!L212*(1+vanilla5)^0.5 -> 0 | M55: ='RFM input'!M212*(1+vanilla6)^0.5 -> 0 | N55: ='RFM input'!N212*(1+vanilla7)^0.5 -> 0 | O55: ='RFM input'!O212*(1+vanilla8)^0.5 -> 0 | P55: ='RFM input'!P212*(1+vanilla9)^0.5 -> 0 | Q55: ='RFM input'!Q212*(1+vanilla10)^0.5 -> 0
D56: =Asset45 -> 0 | H56: ='RFM input'!H213*(1+vanilla1)^0.5 -> 0 | I56: ='RFM input'!I213*(1+vanilla2)^0.5 -> 0 | J56: ='RFM input'!J213*(1+vanilla3)^0.5 -> 0 | K56: ='RFM input'!K213*(1+vanilla4)^0.5 -> 0 | L56: ='RFM input'!L213*(1+vanilla5)^0.5 -> 0 | M56: ='RFM input'!M213*(1+vanilla6)^0.5 -> 0 | N56: ='RFM input'!N213*(1+vanilla7)^0.5 -> 0 | O56: ='RFM input'!O213*(1+vanilla8)^0.5 -> 0 | P56: ='RFM input'!P213*(1+vanilla9)^0.5 -> 0 | Q56: ='RFM input'!Q213*(1+vanilla10)^0.5 -> 0
D57: =Asset46 -> 0 | H57: ='RFM input'!H214*(1+vanilla1)^0.5 -> 0 | I57: ='RFM input'!I214*(1+vanilla2)^0.5 -> 0 | J57: ='RFM input'!J214*(1+vanilla3)^0.5 -> 0 | K57: ='RFM input'!K214*(1+vanilla4)^0.5 -> 0 | L57: ='RFM input'!L214*(1+vanilla5)^0.5 -> 0 | M57: ='RFM input'!M214*(1+vanilla6)^0.5 -> 0 | N57: ='RFM input'!N214*(1+vanilla7)^0.5 -> 0 | O57: ='RFM input'!O214*(1+vanilla8)^0.5 -> 0 | P57: ='RFM input'!P214*(1+vanilla9)^0.5 -> 0 | Q57: ='RFM input'!Q214*(1+vanilla10)^0.5 -> 0
D58: =Asset47 -> Spare straight-line tax asset class | H58: ='RFM input'!H215*(1+vanilla1)^0.5 -> 0 | I58: ='RFM input'!I215*(1+vanilla2)^0.5 -> 0 | J58: ='RFM input'!J215*(1+vanilla3)^0.5 -> 0 | K58: ='RFM input'!K215*(1+vanilla4)^0.5 -> 0 | L58: ='RFM input'!L215*(1+vanilla5)^0.5 -> 0 | M58: ='RFM input'!M215*(1+vanilla6)^0.5 -> 0 | N58: ='RFM input'!N215*(1+vanilla7)^0.5 -> 0 | O58: ='RFM input'!O215*(1+vanilla8)^0.5 -> 0 | P58: ='RFM input'!P215*(1+vanilla9)^0.5 -> 0 | Q58: ='RFM input'!Q215*(1+vanilla10)^0.5 -> 0
D59: =Asset48 -> BUILDING INSTALLATION | H59: ='RFM input'!H216*(1+vanilla1)^0.5 -> 0.05635685699 | I59: ='RFM input'!I216*(1+vanilla2)^0.5 -> 0.01438450765 | J59: ='RFM input'!J216*(1+vanilla3)^0.5 -> 0.001085553136 | K59: ='RFM input'!K216*(1+vanilla4)^0.5 -> 0 | L59: ='RFM input'!L216*(1+vanilla5)^0.5 -> 0 | M59: ='RFM input'!M216*(1+vanilla6)^0.5 -> 0 | N59: ='RFM input'!N216*(1+vanilla7)^0.5 -> 0 | O59: ='RFM input'!O216*(1+vanilla8)^0.5 -> 0 | P59: ='RFM input'!P216*(1+vanilla9)^0.5 -> 0 | Q59: ='RFM input'!Q216*(1+vanilla10)^0.5 -> 0
D60: =Asset49 -> IN-HOUSE SOFTWARE | H60: ='RFM input'!H217*(1+vanilla1)^0.5 -> 0 | I60: ='RFM input'!I217*(1+vanilla2)^0.5 -> 0 | J60: ='RFM input'!J217*(1+vanilla3)^0.5 -> 0 | K60: ='RFM input'!K217*(1+vanilla4)^0.5 -> 0 | L60: ='RFM input'!L217*(1+vanilla5)^0.5 -> 0 | M60: ='RFM input'!M217*(1+vanilla6)^0.5 -> 0 | N60: ='RFM input'!N217*(1+vanilla7)^0.5 -> 0 | O60: ='RFM input'!O217*(1+vanilla8)^0.5 -> 0 | P60: ='RFM input'!P217*(1+vanilla9)^0.5 -> 0 | Q60: ='RFM input'!Q217*(1+vanilla10)^0.5 -> 0
D61: =Asset50 -> Equity raising costs | H61: ='RFM input'!H218*(1+vanilla1)^0.5 -> 0 | I61: ='RFM input'!I218*(1+vanilla2)^0.5 -> 0 | J61: ='RFM input'!J218*(1+vanilla3)^0.5 -> 0 | K61: ='RFM input'!K218*(1+vanilla4)^0.5 -> 0 | L61: ='RFM input'!L218*(1+vanilla5)^0.5 -> 0 | M61: ='RFM input'!M218*(1+vanilla6)^0.5 -> 0 | N61: ='RFM input'!N218*(1+vanilla7)^0.5 -> 0 | O61: ='RFM input'!O218*(1+vanilla8)^0.5 -> 0 | P61: ='RFM input'!P218*(1+vanilla9)^0.5 -> 0 | Q61: ='RFM input'!Q218*(1+vanilla10)^0.5 -> 0
C63: Real Actual Net Capex - As Commissioned | H63: =SUM(H64:H113) -> 0.2375506174 | I63: =SUM(I64:I113) -> 0.5381693471 | J63: 0.1376187878 | K63: 0.6883594519 | L63: 0.4767159152 | M63: 1.331008801 | N63: 0.004161933141 | O63: 0.8237277188 | P63: 0.02212408301 | Q63: 0
D64: =Asset1 -> AC FILTERS | H64: ='RFM input'!H331*(1+vanilla1)^0.5 -> 0 | I64: ='RFM input'!I331*(1+vanilla2)^0.5 -> 0 | J64: ='RFM input'!J331*(1+vanilla3)^0.5 -> 0 | K64: ='RFM input'!K331*(1+vanilla4)^0.5 -> 0 | L64: ='RFM input'!L331*(1+vanilla5)^0.5 -> 0 | M64: ='RFM input'!M331*(1+vanilla6)^0.5 -> 0 | N64: ='RFM input'!N331*(1+vanilla7)^0.5 -> 0 | O64: ='RFM input'!O331*(1+vanilla8)^0.5 -> 0 | P64: ='RFM input'!P331*(1+vanilla9)^0.5 -> 0 | Q64: ='RFM input'!Q331*(1+vanilla10)^0.5 -> 0
D65: =Asset2 -> AC SWITCHYARD | H65: ='RFM input'!H332*(1+vanilla1)^0.5 -> 0 | I65: ='RFM input'!I332*(1+vanilla2)^0.5 -> 0 | J65: ='RFM input'!J332*(1+vanilla3)^0.5 -> 0 | K65: ='RFM input'!K332*(1+vanilla4)^0.5 -> 0.3935230473 | L65: ='RFM input'!L332*(1+vanilla5)^0.5 -> 0 | M65: ='RFM input'!M332*(1+vanilla6)^0.5 -> 0 | N65: ='RFM input'!N332*(1+vanilla7)^0.5 -> 0 | O65: ='RFM input'!O332*(1+vanilla8)^0.5 -> 0 | P65: ='RFM input'!P332*(1+vanilla9)^0.5 -> 0 | Q65: ='RFM input'!Q332*(1+vanilla10)^0.5 -> 0
D66: =Asset3 -> AUXILIARY SYSTEMS | H66: ='RFM input'!H333*(1+vanilla1)^0.5 -> 0 | I66: ='RFM input'!I333*(1+vanilla2)^0.5 -> 0 | J66: ='RFM input'!J333*(1+vanilla3)^0.5 -> 0.006383574338 | K66: ='RFM input'!K333*(1+vanilla4)^0.5 -> 0 | L66: ='RFM input'!L333*(1+vanilla5)^0.5 -> 0 | M66: ='RFM input'!M333*(1+vanilla6)^0.5 -> 0 | N66: ='RFM input'!N333*(1+vanilla7)^0.5 -> 0 | O66: ='RFM input'!O333*(1+vanilla8)^0.5 -> 0 | P66: ='RFM input'!P333*(1+vanilla9)^0.5 -> 0 | Q66: ='RFM input'!Q333*(1+vanilla10)^0.5 -> 0
D67: =Asset4 -> CABLE | H67: ='RFM input'!H334*(1+vanilla1)^0.5 -> 0.1235554251 | I67: ='RFM input'!I334*(1+vanilla2)^0.5 -> 0 | J67: ='RFM input'!J334*(1+vanilla3)^0.5 -> 0.1301496603 | K67: ='RFM input'!K334*(1+vanilla4)^0.5 -> 0 | L67: ='RFM input'!L334*(1+vanilla5)^0.5 -> 0 | M67: ='RFM input'!M334*(1+vanilla6)^0.5 -> 0 | N67: ='RFM input'!N334*(1+vanilla7)^0.5 -> 0 | O67: ='RFM input'!O334*(1+vanilla8)^0.5 -> 0 | P67: ='RFM input'!P334*(1+vanilla9)^0.5 -> 0 | Q67: ='RFM input'!Q334*(1+vanilla10)^0.5 -> 0
D68: =Asset5 -> CONTROL SYSTEM | H68: ='RFM input'!H335*(1+vanilla1)^0.5 -> 0 | I68: ='RFM input'!I335*(1+vanilla2)^0.5 -> 0 | J68: ='RFM input'!J335*(1+vanilla3)^0.5 -> 0 | K68: ='RFM input'!K335*(1+vanilla4)^0.5 -> 0 | L68: ='RFM input'!L335*(1+vanilla5)^0.5 -> 0 | M68: ='RFM input'!M335*(1+vanilla6)^0.5 -> 0 | N68: ='RFM input'!N335*(1+vanilla7)^0.5 -> 0 | O68: ='RFM input'!O335*(1+vanilla8)^0.5 -> 0 | P68: ='RFM input'!P335*(1+vanilla9)^0.5 -> 0 | Q68: ='RFM input'!Q335*(1+vanilla10)^0.5 -> 0
D69: =Asset6 -> CONVERTER TRANSFORMER | H69: ='RFM input'!H336*(1+vanilla1)^0.5 -> 0.0387156717 | I69: ='RFM input'!I336*(1+vanilla2)^0.5 -> 0.4321896811 | J69: ='RFM input'!J336*(1+vanilla3)^0.5 -> 0 | K69: ='RFM input'!K336*(1+vanilla4)^0.5 -> 0.1271677707 | L69: ='RFM input'!L336*(1+vanilla5)^0.5 -> 0.4585680642 | M69: ='RFM input'!M336*(1+vanilla6)^0.5 -> 1.331008801 | N69: ='RFM input'!N336*(1+vanilla7)^0.5 -> 0.004161933141 | O69: ='RFM input'!O336*(1+vanilla8)^0.5 -> 0.01057804239 | P69: ='RFM input'!P336*(1+vanilla9)^0.5 -> 0.02212408301 | Q69: ='RFM input'!Q336*(1+vanilla10)^0.5 -> 0
D70: =Asset7 -> DC FILTER | H70: ='RFM input'!H337*(1+vanilla1)^0.5 -> 0.01892266364 | I70: ='RFM input'!I337*(1+vanilla2)^0.5 -> 0 | J70: ='RFM input'!J337*(1+vanilla3)^0.5 -> 0 | K70: ='RFM input'!K337*(1+vanilla4)^0.5 -> 0 | L70: ='RFM input'!L337*(1+vanilla5)^0.5 -> 0 | M70: ='RFM input'!M337*(1+vanilla6)^0.5 -> 0 | N70: ='RFM input'!N337*(1+vanilla7)^0.5 -> 0 | O70: ='RFM input'!O337*(1+vanilla8)^0.5 -> 0 | P70: ='RFM input'!P337*(1+vanilla9)^0.5 -> 0 | Q70: ='RFM input'!Q337*(1+vanilla10)^0.5 -> 0
D71: =Asset8 -> DC SWITCHYARD | H71: ='RFM input'!H338*(1+vanilla1)^0.5 -> 0 | I71: ='RFM input'!I338*(1+vanilla2)^0.5 -> 0 | J71: ='RFM input'!J338*(1+vanilla3)^0.5 -> 0 | K71: ='RFM input'!K338*(1+vanilla4)^0.5 -> 0.167668634 | L71: ='RFM input'!L338*(1+vanilla5)^0.5 -> 0.01814785094 | M71: ='RFM input'!M338*(1+vanilla6)^0.5 -> 0 | N71: ='RFM input'!N338*(1+vanilla7)^0.5 -> 0 | O71: ='RFM input'!O338*(1+vanilla8)^0.5 -> 0.8131496764 | P71: ='RFM input'!P338*(1+vanilla9)^0.5 -> 0 | Q71: ='RFM input'!Q338*(1+vanilla10)^0.5 -> 0
D72: =Asset9 -> EASEMENT | H72: ='RFM input'!H339*(1+vanilla1)^0.5 -> 0 | I72: ='RFM input'!I339*(1+vanilla2)^0.5 -> 0 | J72: ='RFM input'!J339*(1+vanilla3)^0.5 -> 0 | K72: ='RFM input'!K339*(1+vanilla4)^0.5 -> 0 | L72: ='RFM input'!L339*(1+vanilla5)^0.5 -> 0 | M72: ='RFM input'!M339*(1+vanilla6)^0.5 -> 0 | N72: ='RFM input'!N339*(1+vanilla7)^0.5 -> 0 | O72: ='RFM input'!O339*(1+vanilla8)^0.5 -> 0 | P72: ='RFM input'!P339*(1+vanilla9)^0.5 -> 0 | Q72: ='RFM input'!Q339*(1+vanilla10)^0.5 -> 0
D73: =Asset10 -> FREEHOLD LAND | H73: ='RFM input'!H340*(1+vanilla1)^0.5 -> 0 | I73: ='RFM input'!I340*(1+vanilla2)^0.5 -> 0 | J73: ='RFM input'!J340*(1+vanilla3)^0.5 -> 0 | K73: ='RFM input'!K340*(1+vanilla4)^0.5 -> 0 | L73: ='RFM input'!L340*(1+vanilla5)^0.5 -> 0 | M73: ='RFM input'!M340*(1+vanilla6)^0.5 -> 0 | N73: ='RFM input'!N340*(1+vanilla7)^0.5 -> 0 | O73: ='RFM input'!O340*(1+vanilla8)^0.5 -> 0 | P73: ='RFM input'!P340*(1+vanilla9)^0.5 -> 0 | Q73: ='RFM input'!Q340*(1+vanilla10)^0.5 -> 0
D74: =Asset11 -> MEASURING DEVICES | H74: ='RFM input'!H341*(1+vanilla1)^0.5 -> 0 | I74: ='RFM input'!I341*(1+vanilla2)^0.5 -> 0 | J74: ='RFM input'!J341*(1+vanilla3)^0.5 -> 0 | K74: ='RFM input'!K341*(1+vanilla4)^0.5 -> 0 | L74: ='RFM input'!L341*(1+vanilla5)^0.5 -> 0 | M74: ='RFM input'!M341*(1+vanilla6)^0.5 -> 0 | N74: ='RFM input'!N341*(1+vanilla7)^0.5 -> 0 | O74: ='RFM input'!O341*(1+vanilla8)^0.5 -> 0 | P74: ='RFM input'!P341*(1+vanilla9)^0.5 -> 0 | Q74: ='RFM input'!Q341*(1+vanilla10)^0.5 -> 0
D75: =Asset12 -> MOTOR VEHICLES | H75: ='RFM input'!H342*(1+vanilla1)^0.5 -> 0 | I75: ='RFM input'!I342*(1+vanilla2)^0.5 -> 0 | J75: ='RFM input'!J342*(1+vanilla3)^0.5 -> 0 | K75: ='RFM input'!K342*(1+vanilla4)^0.5 -> 0 | L75: ='RFM input'!L342*(1+vanilla5)^0.5 -> 0 | M75: ='RFM input'!M342*(1+vanilla6)^0.5 -> 0 | N75: ='RFM input'!N342*(1+vanilla7)^0.5 -> 0 | O75: ='RFM input'!O342*(1+vanilla8)^0.5 -> 0 | P75: ='RFM input'!P342*(1+vanilla9)^0.5 -> 0 | Q75: ='RFM input'!Q342*(1+vanilla10)^0.5 -> 0
D76: =Asset13 -> OTHER | H76: ='RFM input'!H343*(1+vanilla1)^0.5 -> 0 | I76: ='RFM input'!I343*(1+vanilla2)^0.5 -> 0 | J76: ='RFM input'!J343*(1+vanilla3)^0.5 -> 0 | K76: ='RFM input'!K343*(1+vanilla4)^0.5 -> 0 | L76: ='RFM input'!L343*(1+vanilla5)^0.5 -> 0 | M76: ='RFM input'!M343*(1+vanilla6)^0.5 -> 0 | N76: ='RFM input'!N343*(1+vanilla7)^0.5 -> 0 | O76: ='RFM input'!O343*(1+vanilla8)^0.5 -> 0 | P76: ='RFM input'!P343*(1+vanilla9)^0.5 -> 0 | Q76: ='RFM input'!Q343*(1+vanilla10)^0.5 -> 0
D77: =Asset14 -> OVERHEAD LINES | H77: ='RFM input'!H344*(1+vanilla1)^0.5 -> 0 | I77: ='RFM input'!I344*(1+vanilla2)^0.5 -> 0 | J77: ='RFM input'!J344*(1+vanilla3)^0.5 -> 0 | K77: ='RFM input'!K344*(1+vanilla4)^0.5 -> 0 | L77: ='RFM input'!L344*(1+vanilla5)^0.5 -> 0 | M77: ='RFM input'!M344*(1+vanilla6)^0.5 -> 0 | N77: ='RFM input'!N344*(1+vanilla7)^0.5 -> 0 | O77: ='RFM input'!O344*(1+vanilla8)^0.5 -> 0 | P77: ='RFM input'!P344*(1+vanilla9)^0.5 -> 0 | Q77: ='RFM input'!Q344*(1+vanilla10)^0.5 -> 0
D78: =Asset15 -> SMOOTHING REACTOR | H78: ='RFM input'!H345*(1+vanilla1)^0.5 -> 0 | I78: ='RFM input'!I345*(1+vanilla2)^0.5 -> 0 | J78: ='RFM input'!J345*(1+vanilla3)^0.5 -> 0 | K78: ='RFM input'!K345*(1+vanilla4)^0.5 -> 0 | L78: ='RFM input'!L345*(1+vanilla5)^0.5 -> 0 | M78: ='RFM input'!M345*(1+vanilla6)^0.5 -> 0 | N78: ='RFM input'!N345*(1+vanilla7)^0.5 -> 0 | O78: ='RFM input'!O345*(1+vanilla8)^0.5 -> 0 | P78: ='RFM input'!P345*(1+vanilla9)^0.5 -> 0 | Q78: ='RFM input'!Q345*(1+vanilla10)^0.5 -> 0
D79: =Asset16 -> STATION POWER SUPPLY | H79: ='RFM input'!H346*(1+vanilla1)^0.5 -> 0 | I79: ='RFM input'!I346*(1+vanilla2)^0.5 -> 0 | J79: ='RFM input'!J346*(1+vanilla3)^0.5 -> 0 | K79: ='RFM input'!K346*(1+vanilla4)^0.5 -> 0 | L79: ='RFM input'!L346*(1+vanilla5)^0.5 -> 0 | M79: ='RFM input'!M346*(1+vanilla6)^0.5 -> 0 | N79: ='RFM input'!N346*(1+vanilla7)^0.5 -> 0 | O79: ='RFM input'!O346*(1+vanilla8)^0.5 -> 0 | P79: ='RFM input'!P346*(1+vanilla9)^0.5 -> 0 | Q79: ='RFM input'!Q346*(1+vanilla10)^0.5 -> 0
D80: =Asset17 -> SWITCHYARD COMPONENTS | H80: ='RFM input'!H347*(1+vanilla1)^0.5 -> 0 | I80: ='RFM input'!I347*(1+vanilla2)^0.5 -> 0 | J80: ='RFM input'!J347*(1+vanilla3)^0.5 -> 0 | K80: ='RFM input'!K347*(1+vanilla4)^0.5 -> 0 | L80: ='RFM input'!L347*(1+vanilla5)^0.5 -> 0 | M80: ='RFM input'!M347*(1+vanilla6)^0.5 -> 0 | N80: ='RFM input'!N347*(1+vanilla7)^0.5 -> 0 | O80: ='RFM input'!O347*(1+vanilla8)^0.5 -> 0 | P80: ='RFM input'!P347*(1+vanilla9)^0.5 -> 0 | Q80: ='RFM input'!Q347*(1+vanilla10)^0.5 -> 0
D81: =Asset18 -> VALVE COOLING | H81: ='RFM input'!H348*(1+vanilla1)^0.5 -> 0 | I81: ='RFM input'!I348*(1+vanilla2)^0.5 -> 0 | J81: ='RFM input'!J348*(1+vanilla3)^0.5 -> 0 | K81: ='RFM input'!K348*(1+vanilla4)^0.5 -> 0 | L81: ='RFM input'!L348*(1+vanilla5)^0.5 -> 0 | M81: ='RFM input'!M348*(1+vanilla6)^0.5 -> 0 | N81: ='RFM input'!N348*(1+vanilla7)^0.5 -> 0 | O81: ='RFM input'!O348*(1+vanilla8)^0.5 -> 0 | P81: ='RFM input'!P348*(1+vanilla9)^0.5 -> 0 | Q81: ='RFM input'!Q348*(1+vanilla10)^0.5 -> 0
D82: =Asset19 -> VALVE HALL | H82: ='RFM input'!H349*(1+vanilla1)^0.5 -> 0 | I82: ='RFM input'!I349*(1+vanilla2)^0.5 -> 0.09159515842 | J82: ='RFM input'!J349*(1+vanilla3)^0.5 -> 0 | K82: ='RFM input'!K349*(1+vanilla4)^0.5 -> 0 | L82: ='RFM input'!L349*(1+vanilla5)^0.5 -> 0 | M82: ='RFM input'!M349*(1+vanilla6)^0.5 -> 0 | N82: ='RFM input'!N349*(1+vanilla7)^0.5 -> 0 | O82: ='RFM input'!O349*(1+vanilla8)^0.5 -> 0 | P82: ='RFM input'!P349*(1+vanilla9)^0.5 -> 0 | Q82: ='RFM input'!Q349*(1+vanilla10)^0.5 -> 0
D83: =Asset20 -> 0 | H83: ='RFM input'!H350*(1+vanilla1)^0.5 -> 0 | I83: ='RFM input'!I350*(1+vanilla2)^0.5 -> 0 | J83: ='RFM input'!J350*(1+vanilla3)^0.5 -> 0 | K83: ='RFM input'!K350*(1+vanilla4)^0.5 -> 0 | L83: ='RFM input'!L350*(1+vanilla5)^0.5 -> 0 | M83: ='RFM input'!M350*(1+vanilla6)^0.5 -> 0 | N83: ='RFM input'!N350*(1+vanilla7)^0.5 -> 0 | O83: ='RFM input'!O350*(1+vanilla8)^0.5 -> 0 | P83: ='RFM input'!P350*(1+vanilla9)^0.5 -> 0 | Q83: ='RFM input'!Q350*(1+vanilla10)^0.5 -> 0
D84: =Asset21 -> 0 | H84: ='RFM input'!H351*(1+vanilla1)^0.5 -> 0 | I84: ='RFM input'!I351*(1+vanilla2)^0.5 -> 0 | J84: ='RFM input'!J351*(1+vanilla3)^0.5 -> 0 | K84: ='RFM input'!K351*(1+vanilla4)^0.5 -> 0 | L84: ='RFM input'!L351*(1+vanilla5)^0.5 -> 0 | M84: ='RFM input'!M351*(1+vanilla6)^0.5 -> 0 | N84: ='RFM input'!N351*(1+vanilla7)^0.5 -> 0 | O84: ='RFM input'!O351*(1+vanilla8)^0.5 -> 0 | P84: ='RFM input'!P351*(1+vanilla9)^0.5 -> 0 | Q84: ='RFM input'!Q351*(1+vanilla10)^0.5 -> 0
D85: =Asset22 -> 0 | H85: ='RFM input'!H352*(1+vanilla1)^0.5 -> 0 | I85: ='RFM input'!I352*(1+vanilla2)^0.5 -> 0 | J85: ='RFM input'!J352*(1+vanilla3)^0.5 -> 0 | K85: ='RFM input'!K352*(1+vanilla4)^0.5 -> 0 | L85: ='RFM input'!L352*(1+vanilla5)^0.5 -> 0 | M85: ='RFM input'!M352*(1+vanilla6)^0.5 -> 0 | N85: ='RFM input'!N352*(1+vanilla7)^0.5 -> 0 | O85: ='RFM input'!O352*(1+vanilla8)^0.5 -> 0 | P85: ='RFM input'!P352*(1+vanilla9)^0.5 -> 0 | Q85: ='RFM input'!Q352*(1+vanilla10)^0.5 -> 0
D86: =Asset23 -> 0 | H86: ='RFM input'!H353*(1+vanilla1)^0.5 -> 0 | I86: ='RFM input'!I353*(1+vanilla2)^0.5 -> 0 | J86: ='RFM input'!J353*(1+vanilla3)^0.5 -> 0 | K86: ='RFM input'!K353*(1+vanilla4)^0.5 -> 0 | L86: ='RFM input'!L353*(1+vanilla5)^0.5 -> 0 | M86: ='RFM input'!M353*(1+vanilla6)^0.5 -> 0 | N86: ='RFM input'!N353*(1+vanilla7)^0.5 -> 0 | O86: ='RFM input'!O353*(1+vanilla8)^0.5 -> 0 | P86: ='RFM input'!P353*(1+vanilla9)^0.5 -> 0 | Q86: ='RFM input'!Q353*(1+vanilla10)^0.5 -> 0
D87: =Asset24 -> 0 | H87: ='RFM input'!H354*(1+vanilla1)^0.5 -> 0 | I87: ='RFM input'!I354*(1+vanilla2)^0.5 -> 0 | J87: ='RFM input'!J354*(1+vanilla3)^0.5 -> 0 | K87: ='RFM input'!K354*(1+vanilla4)^0.5 -> 0 | L87: ='RFM input'!L354*(1+vanilla5)^0.5 -> 0 | M87: ='RFM input'!M354*(1+vanilla6)^0.5 -> 0 | N87: ='RFM input'!N354*(1+vanilla7)^0.5 -> 0 | O87: ='RFM input'!O354*(1+vanilla8)^0.5 -> 0 | P87: ='RFM input'!P354*(1+vanilla9)^0.5 -> 0 | Q87: ='RFM input'!Q354*(1+vanilla10)^0.5 -> 0
D88: =Asset25 -> 0 | H88: ='RFM input'!H355*(1+vanilla1)^0.5 -> 0 | I88: ='RFM input'!I355*(1+vanilla2)^0.5 -> 0 | J88: ='RFM input'!J355*(1+vanilla3)^0.5 -> 0 | K88: ='RFM input'!K355*(1+vanilla4)^0.5 -> 0 | L88: ='RFM input'!L355*(1+vanilla5)^0.5 -> 0 | M88: ='RFM input'!M355*(1+vanilla6)^0.5 -> 0 | N88: ='RFM input'!N355*(1+vanilla7)^0.5 -> 0 | O88: ='RFM input'!O355*(1+vanilla8)^0.5 -> 0 | P88: ='RFM input'!P355*(1+vanilla9)^0.5 -> 0 | Q88: ='RFM input'!Q355*(1+vanilla10)^0.5 -> 0
D89: =Asset26 -> 0 | H89: ='RFM input'!H356*(1+vanilla1)^0.5 -> 0 | I89: ='RFM input'!I356*(1+vanilla2)^0.5 -> 0 | J89: ='RFM input'!J356*(1+vanilla3)^0.5 -> 0 | K89: ='RFM input'!K356*(1+vanilla4)^0.5 -> 0 | L89: ='RFM input'!L356*(1+vanilla5)^0.5 -> 0 | M89: ='RFM input'!M356*(1+vanilla6)^0.5 -> 0 | N89: ='RFM input'!N356*(1+vanilla7)^0.5 -> 0 | O89: ='RFM input'!O356*(1+vanilla8)^0.5 -> 0 | P89: ='RFM input'!P356*(1+vanilla9)^0.5 -> 0 | Q89: ='RFM input'!Q356*(1+vanilla10)^0.5 -> 0
D90: =Asset27 -> 0 | H90: ='RFM input'!H357*(1+vanilla1)^0.5 -> 0 | I90: ='RFM input'!I357*(1+vanilla2)^0.5 -> 0 | J90: ='RFM input'!J357*(1+vanilla3)^0.5 -> 0 | K90: ='RFM input'!K357*(1+vanilla4)^0.5 -> 0 | L90: ='RFM input'!L357*(1+vanilla5)^0.5 -> 0 | M90: ='RFM input'!M357*(1+vanilla6)^0.5 -> 0 | N90: ='RFM input'!N357*(1+vanilla7)^0.5 -> 0 | O90: ='RFM input'!O357*(1+vanilla8)^0.5 -> 0 | P90: ='RFM input'!P357*(1+vanilla9)^0.5 -> 0 | Q90: ='RFM input'!Q357*(1+vanilla10)^0.5 -> 0
D91: =Asset28 -> 0 | H91: ='RFM input'!H358*(1+vanilla1)^0.5 -> 0 | I91: ='RFM input'!I358*(1+vanilla2)^0.5 -> 0 | J91: ='RFM input'!J358*(1+vanilla3)^0.5 -> 0 | K91: ='RFM input'!K358*(1+vanilla4)^0.5 -> 0 | L91: ='RFM input'!L358*(1+vanilla5)^0.5 -> 0 | M91: ='RFM input'!M358*(1+vanilla6)^0.5 -> 0 | N91: ='RFM input'!N358*(1+vanilla7)^0.5 -> 0 | O91: ='RFM input'!O358*(1+vanilla8)^0.5 -> 0 | P91: ='RFM input'!P358*(1+vanilla9)^0.5 -> 0 | Q91: ='RFM input'!Q358*(1+vanilla10)^0.5 -> 0
D92: =Asset29 -> 0 | H92: ='RFM input'!H359*(1+vanilla1)^0.5 -> 0 | I92: ='RFM input'!I359*(1+vanilla2)^0.5 -> 0 | J92: ='RFM input'!J359*(1+vanilla3)^0.5 -> 0 | K92: ='RFM input'!K359*(1+vanilla4)^0.5 -> 0 | L92: ='RFM input'!L359*(1+vanilla5)^0.5 -> 0 | M92: ='RFM input'!M359*(1+vanilla6)^0.5 -> 0 | N92: ='RFM input'!N359*(1+vanilla7)^0.5 -> 0 | O92: ='RFM input'!O359*(1+vanilla8)^0.5 -> 0 | P92: ='RFM input'!P359*(1+vanilla9)^0.5 -> 0 | Q92: ='RFM input'!Q359*(1+vanilla10)^0.5 -> 0
D93: =Asset30 -> 0 | H93: ='RFM input'!H360*(1+vanilla1)^0.5 -> 0 | I93: ='RFM input'!I360*(1+vanilla2)^0.5 -> 0 | J93: ='RFM input'!J360*(1+vanilla3)^0.5 -> 0 | K93: ='RFM input'!K360*(1+vanilla4)^0.5 -> 0 | L93: ='RFM input'!L360*(1+vanilla5)^0.5 -> 0 | M93: ='RFM input'!M360*(1+vanilla6)^0.5 -> 0 | N93: ='RFM input'!N360*(1+vanilla7)^0.5 -> 0 | O93: ='RFM input'!O360*(1+vanilla8)^0.5 -> 0 | P93: ='RFM input'!P360*(1+vanilla9)^0.5 -> 0 | Q93: ='RFM input'!Q360*(1+vanilla10)^0.5 -> 0
D94: =Asset31 -> 0 | H94: ='RFM input'!H361*(1+vanilla1)^0.5 -> 0 | I94: ='RFM input'!I361*(1+vanilla2)^0.5 -> 0 | J94: ='RFM input'!J361*(1+vanilla3)^0.5 -> 0 | K94: ='RFM input'!K361*(1+vanilla4)^0.5 -> 0 | L94: ='RFM input'!L361*(1+vanilla5)^0.5 -> 0 | M94: ='RFM input'!M361*(1+vanilla6)^0.5 -> 0 | N94: ='RFM input'!N361*(1+vanilla7)^0.5 -> 0 | O94: ='RFM input'!O361*(1+vanilla8)^0.5 -> 0 | P94: ='RFM input'!P361*(1+vanilla9)^0.5 -> 0 | Q94: ='RFM input'!Q361*(1+vanilla10)^0.5 -> 0
D95: =Asset32 -> 0 | H95: ='RFM input'!H362*(1+vanilla1)^0.5 -> 0 | I95: ='RFM input'!I362*(1+vanilla2)^0.5 -> 0 | J95: ='RFM input'!J362*(1+vanilla3)^0.5 -> 0 | K95: ='RFM input'!K362*(1+vanilla4)^0.5 -> 0 | L95: ='RFM input'!L362*(1+vanilla5)^0.5 -> 0 | M95: ='RFM input'!M362*(1+vanilla6)^0.5 -> 0 | N95: ='RFM input'!N362*(1+vanilla7)^0.5 -> 0 | O95: ='RFM input'!O362*(1+vanilla8)^0.5 -> 0 | P95: ='RFM input'!P362*(1+vanilla9)^0.5 -> 0 | Q95: ='RFM input'!Q362*(1+vanilla10)^0.5 -> 0
D96: =Asset33 -> 0 | H96: ='RFM input'!H363*(1+vanilla1)^0.5 -> 0 | I96: ='RFM input'!I363*(1+vanilla2)^0.5 -> 0 | J96: ='RFM input'!J363*(1+vanilla3)^0.5 -> 0 | K96: ='RFM input'!K363*(1+vanilla4)^0.5 -> 0 | L96: ='RFM input'!L363*(1+vanilla5)^0.5 -> 0 | M96: ='RFM input'!M363*(1+vanilla6)^0.5 -> 0 | N96: ='RFM input'!N363*(1+vanilla7)^0.5 -> 0 | O96: ='RFM input'!O363*(1+vanilla8)^0.5 -> 0 | P96: ='RFM input'!P363*(1+vanilla9)^0.5 -> 0 | Q96: ='RFM input'!Q363*(1+vanilla10)^0.5 -> 0
D97: =Asset34 -> 0 | H97: ='RFM input'!H364*(1+vanilla1)^0.5 -> 0 | I97: ='RFM input'!I364*(1+vanilla2)^0.5 -> 0 | J97: ='RFM input'!J364*(1+vanilla3)^0.5 -> 0 | K97: ='RFM input'!K364*(1+vanilla4)^0.5 -> 0 | L97: ='RFM input'!L364*(1+vanilla5)^0.5 -> 0 | M97: ='RFM input'!M364*(1+vanilla6)^0.5 -> 0 | N97: ='RFM input'!N364*(1+vanilla7)^0.5 -> 0 | O97: ='RFM input'!O364*(1+vanilla8)^0.5 -> 0 | P97: ='RFM input'!P364*(1+vanilla9)^0.5 -> 0 | Q97: ='RFM input'!Q364*(1+vanilla10)^0.5 -> 0
D98: =Asset35 -> 0 | H98: ='RFM input'!H365*(1+vanilla1)^0.5 -> 0 | I98: ='RFM input'!I365*(1+vanilla2)^0.5 -> 0 | J98: ='RFM input'!J365*(1+vanilla3)^0.5 -> 0 | K98: ='RFM input'!K365*(1+vanilla4)^0.5 -> 0 | L98: ='RFM input'!L365*(1+vanilla5)^0.5 -> 0 | M98: ='RFM input'!M365*(1+vanilla6)^0.5 -> 0 | N98: ='RFM input'!N365*(1+vanilla7)^0.5 -> 0 | O98: ='RFM input'!O365*(1+vanilla8)^0.5 -> 0 | P98: ='RFM input'!P365*(1+vanilla9)^0.5 -> 0 | Q98: ='RFM input'!Q365*(1+vanilla10)^0.5 -> 0
D99: =Asset36 -> 0 | H99: ='RFM input'!H366*(1+vanilla1)^0.5 -> 0 | I99: ='RFM input'!I366*(1+vanilla2)^0.5 -> 0 | J99: ='RFM input'!J366*(1+vanilla3)^0.5 -> 0 | K99: ='RFM input'!K366*(1+vanilla4)^0.5 -> 0 | L99: ='RFM input'!L366*(1+vanilla5)^0.5 -> 0 | M99: ='RFM input'!M366*(1+vanilla6)^0.5 -> 0 | N99: ='RFM input'!N366*(1+vanilla7)^0.5 -> 0 | O99: ='RFM input'!O366*(1+vanilla8)^0.5 -> 0 | P99: ='RFM input'!P366*(1+vanilla9)^0.5 -> 0 | Q99: ='RFM input'!Q366*(1+vanilla10)^0.5 -> 0
D100: =Asset37 -> 0 | H100: ='RFM input'!H367*(1+vanilla1)^0.5 -> 0 | I100: ='RFM input'!I367*(1+vanilla2)^0.5 -> 0 | J100: ='RFM input'!J367*(1+vanilla3)^0.5 -> 0 | K100: ='RFM input'!K367*(1+vanilla4)^0.5 -> 0 | L100: ='RFM input'!L367*(1+vanilla5)^0.5 -> 0 | M100: ='RFM input'!M367*(1+vanilla6)^0.5 -> 0 | N100: ='RFM input'!N367*(1+vanilla7)^0.5 -> 0 | O100: ='RFM input'!O367*(1+vanilla8)^0.5 -> 0 | P100: ='RFM input'!P367*(1+vanilla9)^0.5 -> 0 | Q100: ='RFM input'!Q367*(1+vanilla10)^0.5 -> 0
D101: =Asset38 -> 0 | H101: ='RFM input'!H368*(1+vanilla1)^0.5 -> 0 | I101: ='RFM input'!I368*(1+vanilla2)^0.5 -> 0 | J101: ='RFM input'!J368*(1+vanilla3)^0.5 -> 0 | K101: ='RFM input'!K368*(1+vanilla4)^0.5 -> 0 | L101: ='RFM input'!L368*(1+vanilla5)^0.5 -> 0 | M101: ='RFM input'!M368*(1+vanilla6)^0.5 -> 0 | N101: ='RFM input'!N368*(1+vanilla7)^0.5 -> 0 | O101: ='RFM input'!O368*(1+vanilla8)^0.5 -> 0 | P101: ='RFM input'!P368*(1+vanilla9)^0.5 -> 0 | Q101: ='RFM input'!Q368*(1+vanilla10)^0.5 -> 0
D102: =Asset39 -> 0 | H102: ='RFM input'!H369*(1+vanilla1)^0.5 -> 0 | I102: ='RFM input'!I369*(1+vanilla2)^0.5 -> 0 | J102: ='RFM input'!J369*(1+vanilla3)^0.5 -> 0 | K102: ='RFM input'!K369*(1+vanilla4)^0.5 -> 0 | L102: ='RFM input'!L369*(1+vanilla5)^0.5 -> 0 | M102: ='RFM input'!M369*(1+vanilla6)^0.5 -> 0 | N102: ='RFM input'!N369*(1+vanilla7)^0.5 -> 0 | O102: ='RFM input'!O369*(1+vanilla8)^0.5 -> 0 | P102: ='RFM input'!P369*(1+vanilla9)^0.5 -> 0 | Q102: ='RFM input'!Q369*(1+vanilla10)^0.5 -> 0
D103: =Asset40 -> 0 | H103: ='RFM input'!H370*(1+vanilla1)^0.5 -> 0 | I103: ='RFM input'!I370*(1+vanilla2)^0.5 -> 0 | J103: ='RFM input'!J370*(1+vanilla3)^0.5 -> 0 | K103: ='RFM input'!K370*(1+vanilla4)^0.5 -> 0 | L103: ='RFM input'!L370*(1+vanilla5)^0.5 -> 0 | M103: ='RFM input'!M370*(1+vanilla6)^0.5 -> 0 | N103: ='RFM input'!N370*(1+vanilla7)^0.5 -> 0 | O103: ='RFM input'!O370*(1+vanilla8)^0.5 -> 0 | P103: ='RFM input'!P370*(1+vanilla9)^0.5 -> 0 | Q103: ='RFM input'!Q370*(1+vanilla10)^0.5 -> 0
D104: =Asset41 -> 0 | H104: ='RFM input'!H371*(1+vanilla1)^0.5 -> 0 | I104: ='RFM input'!I371*(1+vanilla2)^0.5 -> 0 | J104: ='RFM input'!J371*(1+vanilla3)^0.5 -> 0 | K104: ='RFM input'!K371*(1+vanilla4)^0.5 -> 0 | L104: ='RFM input'!L371*(1+vanilla5)^0.5 -> 0 | M104: ='RFM input'!M371*(1+vanilla6)^0.5 -> 0 | N104: ='RFM input'!N371*(1+vanilla7)^0.5 -> 0 | O104: ='RFM input'!O371*(1+vanilla8)^0.5 -> 0 | P104: ='RFM input'!P371*(1+vanilla9)^0.5 -> 0 | Q104: ='RFM input'!Q371*(1+vanilla10)^0.5 -> 0
D105: =Asset42 -> 0 | H105: ='RFM input'!H372*(1+vanilla1)^0.5 -> 0 | I105: ='RFM input'!I372*(1+vanilla2)^0.5 -> 0 | J105: ='RFM input'!J372*(1+vanilla3)^0.5 -> 0 | K105: ='RFM input'!K372*(1+vanilla4)^0.5 -> 0 | L105: ='RFM input'!L372*(1+vanilla5)^0.5 -> 0 | M105: ='RFM input'!M372*(1+vanilla6)^0.5 -> 0 | N105: ='RFM input'!N372*(1+vanilla7)^0.5 -> 0 | O105: ='RFM input'!O372*(1+vanilla8)^0.5 -> 0 | P105: ='RFM input'!P372*(1+vanilla9)^0.5 -> 0 | Q105: ='RFM input'!Q372*(1+vanilla10)^0.5 -> 0
D106: =Asset43 -> 0 | H106: ='RFM input'!H373*(1+vanilla1)^0.5 -> 0 | I106: ='RFM input'!I373*(1+vanilla2)^0.5 -> 0 | J106: ='RFM input'!J373*(1+vanilla3)^0.5 -> 0 | K106: ='RFM input'!K373*(1+vanilla4)^0.5 -> 0 | L106: ='RFM input'!L373*(1+vanilla5)^0.5 -> 0 | M106: ='RFM input'!M373*(1+vanilla6)^0.5 -> 0 | N106: ='RFM input'!N373*(1+vanilla7)^0.5 -> 0 | O106: ='RFM input'!O373*(1+vanilla8)^0.5 -> 0 | P106: ='RFM input'!P373*(1+vanilla9)^0.5 -> 0 | Q106: ='RFM input'!Q373*(1+vanilla10)^0.5 -> 0
D107: =Asset44 -> 0 | H107: ='RFM input'!H374*(1+vanilla1)^0.5 -> 0 | I107: ='RFM input'!I374*(1+vanilla2)^0.5 -> 0 | J107: ='RFM input'!J374*(1+vanilla3)^0.5 -> 0 | K107: ='RFM input'!K374*(1+vanilla4)^0.5 -> 0 | L107: ='RFM input'!L374*(1+vanilla5)^0.5 -> 0 | M107: ='RFM input'!M374*(1+vanilla6)^0.5 -> 0 | N107: ='RFM input'!N374*(1+vanilla7)^0.5 -> 0 | O107: ='RFM input'!O374*(1+vanilla8)^0.5 -> 0 | P107: ='RFM input'!P374*(1+vanilla9)^0.5 -> 0 | Q107: ='RFM input'!Q374*(1+vanilla10)^0.5 -> 0
D108: =Asset45 -> 0 | H108: ='RFM input'!H375*(1+vanilla1)^0.5 -> 0 | I108: ='RFM input'!I375*(1+vanilla2)^0.5 -> 0 | J108: ='RFM input'!J375*(1+vanilla3)^0.5 -> 0 | K108: ='RFM input'!K375*(1+vanilla4)^0.5 -> 0 | L108: ='RFM input'!L375*(1+vanilla5)^0.5 -> 0 | M108: ='RFM input'!M375*(1+vanilla6)^0.5 -> 0 | N108: ='RFM input'!N375*(1+vanilla7)^0.5 -> 0 | O108: ='RFM input'!O375*(1+vanilla8)^0.5 -> 0 | P108: ='RFM input'!P375*(1+vanilla9)^0.5 -> 0 | Q108: ='RFM input'!Q375*(1+vanilla10)^0.5 -> 0
D109: =Asset46 -> 0 | H109: ='RFM input'!H376*(1+vanilla1)^0.5 -> 0 | I109: ='RFM input'!I376*(1+vanilla2)^0.5 -> 0 | J109: ='RFM input'!J376*(1+vanilla3)^0.5 -> 0 | K109: ='RFM input'!K376*(1+vanilla4)^0.5 -> 0 | L109: ='RFM input'!L376*(1+vanilla5)^0.5 -> 0 | M109: ='RFM input'!M376*(1+vanilla6)^0.5 -> 0 | N109: ='RFM input'!N376*(1+vanilla7)^0.5 -> 0 | O109: ='RFM input'!O376*(1+vanilla8)^0.5 -> 0 | P109: ='RFM input'!P376*(1+vanilla9)^0.5 -> 0 | Q109: ='RFM input'!Q376*(1+vanilla10)^0.5 -> 0
D110: =Asset47 -> Spare straight-line tax asset class | H110: ='RFM input'!H377*(1+vanilla1)^0.5 -> 0 | I110: ='RFM input'!I377*(1+vanilla2)^0.5 -> 0 | J110: ='RFM input'!J377*(1+vanilla3)^0.5 -> 0 | K110: ='RFM input'!K377*(1+vanilla4)^0.5 -> 0 | L110: ='RFM input'!L377*(1+vanilla5)^0.5 -> 0 | M110: ='RFM input'!M377*(1+vanilla6)^0.5 -> 0 | N110: ='RFM input'!N377*(1+vanilla7)^0.5 -> 0 | O110: ='RFM input'!O377*(1+vanilla8)^0.5 -> 0 | P110: ='RFM input'!P377*(1+vanilla9)^0.5 -> 0 | Q110: ='RFM input'!Q377*(1+vanilla10)^0.5 -> 0
D111: =Asset48 -> BUILDING INSTALLATION | H111: ='RFM input'!H378*(1+vanilla1)^0.5 -> 0.05635685699 | I111: ='RFM input'!I378*(1+vanilla2)^0.5 -> 0.01438450765 | J111: ='RFM input'!J378*(1+vanilla3)^0.5 -> 0.001085553136 | K111: ='RFM input'!K378*(1+vanilla4)^0.5 -> 0 | L111: ='RFM input'!L378*(1+vanilla5)^0.5 -> 0 | M111: ='RFM input'!M378*(1+vanilla6)^0.5 -> 0 | N111: ='RFM input'!N378*(1+vanilla7)^0.5 -> 0 | O111: ='RFM input'!O378*(1+vanilla8)^0.5 -> 0 | P111: ='RFM input'!P378*(1+vanilla9)^0.5 -> 0 | Q111: ='RFM input'!Q378*(1+vanilla10)^0.5 -> 0
D112: =Asset49 -> IN-HOUSE SOFTWARE | H112: ='RFM input'!H379*(1+vanilla1)^0.5 -> 0 | I112: ='RFM input'!I379*(1+vanilla2)^0.5 -> 0 | J112: ='RFM input'!J379*(1+vanilla3)^0.5 -> 0 | K112: ='RFM input'!K379*(1+vanilla4)^0.5 -> 0 | L112: ='RFM input'!L379*(1+vanilla5)^0.5 -> 0 | M112: ='RFM input'!M379*(1+vanilla6)^0.5 -> 0 | N112: ='RFM input'!N379*(1+vanilla7)^0.5 -> 0 | O112: ='RFM input'!O379*(1+vanilla8)^0.5 -> 0 | P112: ='RFM input'!P379*(1+vanilla9)^0.5 -> 0 | Q112: ='RFM input'!Q379*(1+vanilla10)^0.5 -> 0
D113: =Asset50 -> Equity raising costs | H113: ='RFM input'!H380*(1+vanilla1)^0.5 -> 0 | I113: ='RFM input'!I380*(1+vanilla2)^0.5 -> 0 | J113: ='RFM input'!J380*(1+vanilla3)^0.5 -> 0 | K113: ='RFM input'!K380*(1+vanilla4)^0.5 -> 0 | L113: ='RFM input'!L380*(1+vanilla5)^0.5 -> 0 | M113: ='RFM input'!M380*(1+vanilla6)^0.5 -> 0 | N113: ='RFM input'!N380*(1+vanilla7)^0.5 -> 0 | O113: ='RFM input'!O380*(1+vanilla8)^0.5 -> 0 | P113: ='RFM input'!P380*(1+vanilla9)^0.5 -> 0 | Q113: ='RFM input'!Q380*(1+vanilla10)^0.5 -> 0
C115: ="Real "&'RFM input'!$G$398& " Straight-line Depreciation" -> Real Actual Straight-line Depreciation | H115: =H128+H141+H154+H167+H180+H193+H206+H219+H232+H245+H258+H271+H284+H297+H310+H323+H336+H349+H362+H375+H388+H401+H414+H427+H440+H453+H466+H479+H492+H505+H518+H531+H544+H557+H570+H583+H596+H609+H622+H635+H648+H661+H674+H687+H700+H713+H726+H739+H752+H765 -> -31.19152993 | I115: =I128+I141+I154+I167+I180+I193+I206+I219+I232+I245+I258+I271+I284+I297+I310+I323+I336+I349+I362+I375+I388+I401+I414+I427+I440+I453+I466+I479+I492+I505+I518+I531+I544+I557+I570+I583+I596+I609+I622+I635+I648+I661+I674+I687+I700+I713+I726+I739+I752+I765 -> -31.19976361 | J115: -31.22299356 | K115: -31.22648723 | L115: -31.24657263 | M115: -30.53676917 | N115: =N128+N141+N154+N167+N180+N193+N206+N219+N232+N245+N258+N271+N284+N297+N310+N323+N336+N349+N362+N375+N388+N401+N414+N427+N440+N453+N466+N479+N492+N505+N518+N531+N544+N557+N570+N583+N596+N609+N622+N635+N648+N661+N674+N687+N700+N713+N726+N739+N752+N765 -> -30.60015055 | O115: -30.60034873 | P115: -30.62118119 | Q115: 0
C116: =Asset1 -> AC FILTERS | E116: Opening RAB | H116: =IF(H$3>A1remlife,A1value-SUM($G116:G116),IF(A1remlife="N/A","n/a",A1value/A1remlife)) -> 1.231172719 | I116: =IF(I$3>A1remlife,A1value-SUM($G116:H116),IF(A1remlife="N/A","n/a",A1value/A1remlife)) -> 1.231172719 | J116: =IF(J$3>A1remlife,A1value-SUM($G116:I116),IF(A1remlife="N/A","n/a",A1value/A1remlife)) -> 1.231172719 | K116: =IF(K$3>A1remlife,A1value-SUM($G116:J116),IF(A1remlife="N/A","n/a",A1value/A1remlife)) -> 1.231172719 | L116: =IF(L$3>A1remlife,A1value-SUM($G116:K116),IF(A1remlife="N/A","n/a",A1value/A1remlife)) -> 1.231172719 | M116: =IF(M$3>A1remlife,A1value-SUM($G116:L116),IF(A1remlife="N/A","n/a",A1value/A1remlife)) -> 1.231172719 | N116: =IF(N$3>A1remlife,A1value-SUM($G116:M116),IF(A1remlife="N/A","n/a",A1value/A1remlife)) -> 1.231172719 | O116: =IF(O$3>A1remlife,A1value-SUM($G116:N116),IF(A1remlife="N/A","n/a",A1value/A1remlife)) -> 1.231172719 | P116: =IF(P$3>A1remlife,A1value-SUM($G116:O116),IF(A1remlife="N/A","n/a",A1value/A1remlife)) -> 1.231172719 | Q116: =IF(Q$3>A1remlife,A1value-SUM($G116:P116),IF(A1remlife="N/A","n/a",A1value/A1remlife)) -> 1.231172719
E117: Capex in year
F118: 1 | I118: =IF(A1stdlife="n/a","n/a",IF(I$3>(A1stdlife+$F118),('RFM input'!$H$331*(1+vanilla1)^0.5)-SUM($H118:H118),('RFM input'!$H$331*(1+vanilla1)^0.5)/A1stdlife)) -> 0 | J118: =IF(A1stdlife="n/a","n/a",IF(J$3>(A1stdlife+$F118),('RFM input'!$H$331*(1+vanilla1)^0.5)-SUM($H118:I118),('RFM input'!$H$331*(1+vanilla1)^0.5)/A1stdlife)) -> 0 | K118: =IF(A1stdlife="n/a","n/a",IF(K$3>(A1stdlife+$F118),('RFM input'!$H$331*(1+vanilla1)^0.5)-SUM($H118:J118),('RFM input'!$H$331*(1+vanilla1)^0.5)/A1stdlife)) -> 0 | L118: =IF(A1stdlife="n/a","n/a",IF(L$3>(A1stdlife+$F118),('RFM input'!$H$331*(1+vanilla1)^0.5)-SUM($H118:K118),('RFM input'!$H$331*(1+vanilla1)^0.5)/A1stdlife)) -> 0 | M118: =IF(A1stdlife="n/a","n/a",IF(M$3>(A1stdlife+$F118),('RFM input'!$H$331*(1+vanilla1)^0.5)-SUM($H118:L118),('RFM input'!$H$331*(1+vanilla1)^0.5)/A1stdlife)) -> 0 | N118: =IF(A1stdlife="n/a","n/a",IF(N$3>(A1stdlife+$F118),('RFM input'!$H$331*(1+vanilla1)^0.5)-SUM($H118:M118),('RFM input'!$H$331*(1+vanilla1)^0.5)/A1stdlife)) -> 0 | O118: =IF(A1stdlife="n/a","n/a",IF(O$3>(A1stdlife+$F118),('RFM input'!$H$331*(1+vanilla1)^0.5)-SUM($H118:N118),('RFM input'!$H$331*(1+vanilla1)^0.5)/A1stdlife)) -> 0 | P118: =IF(A1stdlife="n/a","n/a",IF(P$3>(A1stdlife+$F118),('RFM input'!$H$331*(1+vanilla1)^0.5)-SUM($H118:O118),('RFM input'!$H$331*(1+vanilla1)^0.5)/A1stdlife)) -> 0 | Q118: =IF(A1stdlife="n/a","n/a",IF(Q$3>(A1stdlife+$F118),('RFM input'!$H$331*(1+vanilla1)^0.5)-SUM($H118:P118),('RFM input'!$H$331*(1+vanilla1)^0.5)/A1stdlife)) -> 0
F119: 2 | J119: =IF(A1stdlife="n/a","n/a",IF(J$3>(A1stdlife+$F119),('RFM input'!$I$331*(1+vanilla2)^0.5)-SUM($I119:I119),('RFM input'!$I$331*(1+vanilla2)^0.5)/A1stdlife)) -> 0 | K119: =IF(A1stdlife="n/a","n/a",IF(K$3>(A1stdlife+$F119),('RFM input'!$I$331*(1+vanilla2)^0.5)-SUM($I119:J119),('RFM input'!$I$331*(1+vanilla2)^0.5)/A1stdlife)) -> 0 | L119: =IF(A1stdlife="n/a","n/a",IF(L$3>(A1stdlife+$F119),('RFM input'!$I$331*(1+vanilla2)^0.5)-SUM($I119:K119),('RFM input'!$I$331*(1+vanilla2)^0.5)/A1stdlife)) -> 0 | M119: =IF(A1stdlife="n/a","n/a",IF(M$3>(A1stdlife+$F119),('RFM input'!$I$331*(1+vanilla2)^0.5)-SUM($I119:L119),('RFM input'!$I$331*(1+vanilla2)^0.5)/A1stdlife)) -> 0 | N119: =IF(A1stdlife="n/a","n/a",IF(N$3>(A1stdlife+$F119),('RFM input'!$I$331*(1+vanilla2)^0.5)-SUM($I119:M119),('RFM input'!$I$331*(1+vanilla2)^0.5)/A1stdlife)) -> 0 | O119: =IF(A1stdlife="n/a","n/a",IF(O$3>(A1stdlife+$F119),('RFM input'!$I$331*(1+vanilla2)^0.5)-SUM($I119:N119),('RFM input'!$I$331*(1+vanilla2)^0.5)/A1stdlife)) -> 0 | P119: =IF(A1stdlife="n/a","n/a",IF(P$3>(A1stdlife+$F119),('RFM input'!$I$331*(1+vanilla2)^0.5)-SUM($I119:O119),('RFM input'!$I$331*(1+vanilla2)^0.5)/A1stdlife)) -> 0 | Q119: =IF(A1stdlife="n/a","n/a",IF(Q$3>(A1stdlife+$F119),('RFM input'!$I$331*(1+vanilla2)^0.5)-SUM($I119:P119),('RFM input'!$I$331*(1+vanilla2)^0.5)/A1stdlife)) -> 0
F120: 3 | K120: =IF(A1stdlife="n/a","n/a",IF(K$3>(A1stdlife+$F120),('RFM input'!$J$331*(1+vanilla3)^0.5)-SUM($J120:J120),('RFM input'!$J$331*(1+vanilla3)^0.5)/A1stdlife)) -> 0 | L120: =IF(A1stdlife="n/a","n/a",IF(L$3>(A1stdlife+$F120),('RFM input'!$J$331*(1+vanilla3)^0.5)-SUM($J120:K120),('RFM input'!$J$331*(1+vanilla3)^0.5)/A1stdlife)) -> 0 | M120: =IF(A1stdlife="n/a","n/a",IF(M$3>(A1stdlife+$F120),('RFM input'!$J$331*(1+vanilla3)^0.5)-SUM($J120:L120),('RFM input'!$J$331*(1+vanilla3)^0.5)/A1stdlife)) -> 0 | N120: =IF(A1stdlife="n/a","n/a",IF(N$3>(A1stdlife+$F120),('RFM input'!$J$331*(1+vanilla3)^0.5)-SUM($J120:M120),('RFM input'!$J$331*(1+vanilla3)^0.5)/A1stdlife)) -> 0 | O120: =IF(A1stdlife="n/a","n/a",IF(O$3>(A1stdlife+$F120),('RFM input'!$J$331*(1+vanilla3)^0.5)-SUM($J120:N120),('RFM input'!$J$331*(1+vanilla3)^0.5)/A1stdlife)) -> 0 | P120: =IF(A1stdlife="n/a","n/a",IF(P$3>(A1stdlife+$F120),('RFM input'!$J$331*(1+vanilla3)^0.5)-SUM($J120:O120),('RFM input'!$J$331*(1+vanilla3)^0.5)/A1stdlife)) -> 0 | Q120: =IF(A1stdlife="n/a","n/a",IF(Q$3>(A1stdlife+$F120),('RFM input'!$J$331*(1+vanilla3)^0.5)-SUM($J120:P120),('RFM input'!$J$331*(1+vanilla3)^0.5)/A1stdlife)) -> 0
F121: 4 | L121: =IF(A1stdlife="n/a","n/a",IF(L$3>(A1stdlife+$F121),('RFM input'!$K$331*(1+vanilla4)^0.5)-SUM($K121:K121),('RFM input'!$K$331*(1+vanilla4)^0.5)/A1stdlife)) -> 0 | M121: =IF(A1stdlife="n/a","n/a",IF(M$3>(A1stdlife+$F121),('RFM input'!$K$331*(1+vanilla4)^0.5)-SUM($K121:L121),('RFM input'!$K$331*(1+vanilla4)^0.5)/A1stdlife)) -> 0 | N121: =IF(A1stdlife="n/a","n/a",IF(N$3>(A1stdlife+$F121),('RFM input'!$K$331*(1+vanilla4)^0.5)-SUM($K121:M121),('RFM input'!$K$331*(1+vanilla4)^0.5)/A1stdlife)) -> 0 | O121: =IF(A1stdlife="n/a","n/a",IF(O$3>(A1stdlife+$F121),('RFM input'!$K$331*(1+vanilla4)^0.5)-SUM($K121:N121),('RFM input'!$K$331*(1+vanilla4)^0.5)/A1stdlife)) -> 0 | P121: =IF(A1stdlife="n/a","n/a",IF(P$3>(A1stdlife+$F121),('RFM input'!$K$331*(1+vanilla4)^0.5)-SUM($K121:O121),('RFM input'!$K$331*(1+vanilla4)^0.5)/A1stdlife)) -> 0 | Q121: =IF(A1stdlife="n/a","n/a",IF(Q$3>(A1stdlife+$F121),('RFM input'!$K$331*(1+vanilla4)^0.5)-SUM($K121:P121),('RFM input'!$K$331*(1+vanilla4)^0.5)/A1stdlife)) -> 0
F122: 5 | M122: =IF(A1stdlife="n/a","n/a",IF(M$3>(A1stdlife+$F122),('RFM input'!$L$331*(1+vanilla5)^0.5)-SUM($L122:L122),('RFM input'!$L$331*(1+vanilla5)^0.5)/A1stdlife)) -> 0 | N122: =IF(A1stdlife="n/a","n/a",IF(N$3>(A1stdlife+$F122),('RFM input'!$L$331*(1+vanilla5)^0.5)-SUM($L122:M122),('RFM input'!$L$331*(1+vanilla5)^0.5)/A1stdlife)) -> 0 | O122: =IF(A1stdlife="n/a","n/a",IF(O$3>(A1stdlife+$F122),('RFM input'!$L$331*(1+vanilla5)^0.5)-SUM($L122:N122),('RFM input'!$L$331*(1+vanilla5)^0.5)/A1stdlife)) -> 0 | P122: =IF(A1stdlife="n/a","n/a",IF(P$3>(A1stdlife+$F122),('RFM input'!$L$331*(1+vanilla5)^0.5)-SUM($L122:O122),('RFM input'!$L$331*(1+vanilla5)^0.5)/A1stdlife)) -> 0 | Q122: =IF(A1stdlife="n/a","n/a",IF(Q$3>(A1stdlife+$F122),('RFM input'!$L$331*(1+vanilla5)^0.5)-SUM($L122:P122),('RFM input'!$L$331*(1+vanilla5)^0.5)/A1stdlife)) -> 0
F123: 6 | N123: =IF(A1stdlife="n/a","n/a",IF(N$3>(A1stdlife+$F123),('RFM input'!$M$331*(1+vanilla6)^0.5)-SUM($M123:M123),('RFM input'!$M$331*(1+vanilla6)^0.5)/A1stdlife)) -> 0 | O123: =IF(A1stdlife="n/a","n/a",IF(O$3>(A1stdlife+$F123),('RFM input'!$M$331*(1+vanilla6)^0.5)-SUM($M123:N123),('RFM input'!$M$331*(1+vanilla6)^0.5)/A1stdlife)) -> 0 | P123: =IF(A1stdlife="n/a","n/a",IF(P$3>(A1stdlife+$F123),('RFM input'!$M$331*(1+vanilla6)^0.5)-SUM($M123:O123),('RFM input'!$M$331*(1+vanilla6)^0.5)/A1stdlife)) -> 0 | Q123: =IF(A1stdlife="n/a","n/a",IF(Q$3>(A1stdlife+$F123),('RFM input'!$M$331*(1+vanilla6)^0.5)-SUM($M123:P123),('RFM input'!$M$331*(1+vanilla6)^0.5)/A1stdlife)) -> 0
F124: 7 | O124: =IF(A1stdlife="n/a","n/a",IF(O$3>(A1stdlife+$F124),('RFM input'!$N$331*(1+vanilla7)^0.5)-SUM($N124:N124),('RFM input'!$N$331*(1+vanilla7)^0.5)/A1stdlife)) -> 0 | P124: =IF(A1stdlife="n/a","n/a",IF(P$3>(A1stdlife+$F124),('RFM input'!$N$331*(1+vanilla7)^0.5)-SUM($N124:O124),('RFM input'!$N$331*(1+vanilla7)^0.5)/A1stdlife)) -> 0 | Q124: =IF(A1stdlife="n/a","n/a",IF(Q$3>(A1stdlife+$F124),('RFM input'!$N$331*(1+vanilla7)^0.5)-SUM($N124:P124),('RFM input'!$N$331*(1+vanilla7)^0.5)/A1stdlife)) -> 0
F125: 8 | P125: =IF(A1stdlife="n/a","n/a",IF(P$3>(A1stdlife+$F125),('RFM input'!$O$331*(1+vanilla8)^0.5)-SUM($O125:O125),('RFM input'!$O$331*(1+vanilla8)^0.5)/A1stdlife)) -> 0 | Q125: =IF(A1stdlife="n/a","n/a",IF(Q$3>(A1stdlife+$F125),('RFM input'!$O$331*(1+vanilla8)^0.5)-SUM($O125:P125),('RFM input'!$O$331*(1+vanilla8)^0.5)/A1stdlife)) -> 0
F126: 9 | Q126: =IF(A1stdlife="n/a","n/a",IF(Q$3>(A1stdlife+$F126),('RFM input'!$P$331*(1+vanilla9)^0.5)-SUM($P126:P126),('RFM input'!$P$331*(1+vanilla9)^0.5)/A1stdlife)) -> 0
F127: 10
D128: =Asset1 -> AC FILTERS | H128: =IF(OR('RFM input'!$E$396='RFM input'!$G$395,'RFM input'!$E$396='RFM input'!$G$396),-INDEX('RFM input'!H$402:H$451,MATCH($D128,'RFM input'!$E$402:$E$451,0),1),-SUM(H116:H127)) -> -1.231172719 | I128: =IF(OR('RFM input'!$E$396='RFM input'!$G$395,'RFM input'!$E$396='RFM input'!$G$396),-INDEX('RFM input'!I$402:I$451,MATCH($D128,'RFM input'!$E$402:$E$451,0),1),-SUM(I116:I127)) -> -1.231172719 | J128: =IF(COUNT($H128:I128)>='RFM input'!$AA$7,0,IF(OR('RFM input'!$E$396='RFM input'!$G$395,'RFM input'!$E$396='RFM input'!$G$396),-INDEX('RFM input'!J$402:J$451,MATCH($D128,'RFM input'!$E$402:$E$451,0),1),-SUM(J116:J127))) -> -1.231172719 | K128: =IF(COUNT($H128:J128)>='RFM input'!$AA$7,0,IF(OR('RFM input'!$E$396='RFM input'!$G$395,'RFM input'!$E$396='RFM input'!$G$396),-INDEX('RFM input'!K$402:K$451,MATCH($D128,'RFM input'!$E$402:$E$451,0),1),-SUM(K116:K127))) -> -1.231172719 | L128: =IF(COUNT($H128:K128)>='RFM input'!$AA$7,0,IF(OR('RFM input'!$E$396='RFM input'!$G$395,'RFM input'!$E$396='RFM input'!$G$396),-INDEX('RFM input'!L$402:L$451,MATCH($D128,'RFM input'!$E$402:$E$451,0),1),-SUM(L116:L127))) -> -1.231172719 | M128: =IF(COUNT($H128:L128)>='RFM input'!$AA$7,0,IF(OR('RFM input'!$E$396='RFM input'!$G$395,'RFM input'!$E$396='RFM input'!$G$396),-INDEX('RFM input'!M$402:M$451,MATCH($D128,'RFM input'!$E$402:$E$451,0),1),-SUM(M116:M127))) -> -1.231172719 | N128: =IF(COUNT($H128:M128)>='RFM input'!$AA$7,0,IF(OR('RFM input'!$E$396='RFM input'!$G$395,'RFM input'!$E$396='RFM input'!$G$396),-INDEX('RFM input'!N$402:N$451,MATCH($D128,'RFM input'!$E$402:$E$451,0),1),-SUM(N116:N127))) -> -1.231172719 | O128: =IF(COUNT($H128:N128)>='RFM input'!$AA$7,0,IF(OR('RFM input'!$E$396='RFM input'!$G$395,'RFM input'!$E$396='RFM input'!$G$396),-INDEX('RFM input'!O$402:O$451,MATCH($D128,'RFM input'!$E$402:$E$451,0),1),-SUM(O116:O127))) -> -1.231172719 | P128: =IF(COUNT($H128:O128)>='RFM input'!$AA$7,0,IF(OR('RFM input'!$E$396='RFM input'!$G$395,'RFM input'!$E$396='RFM input'!$G$396),-INDEX('RFM input'!P$402:P$451,MATCH($D128,'RFM input'!$E$402:$E$451,0),1),-SUM(P116:P127))) -> -1.231172719 | Q128: =IF(COUNT($H128:P128)>='RFM input'!$AA$7,0,IF(OR('RFM input'!$E$396='RFM input'!$G$395,'RFM input'!$E$396='RFM input'!$G$396),-INDEX('RFM input'!Q$402:Q$451,MATCH($D128,'RFM input'!$E$402:$E$451,0),1),-SUM(Q116:Q127))) -> 0
C129: =Asset2 -> AC SWITCHYARD | E129: Opening RAB | H129: =IF(H$3>A2remlife,A2value-SUM($G129:G129),IF(A2remlife="N/A","n/a",A2value/A2remlife)) -> 0.180149531 | I129: =IF(I$3>A2remlife,A2value-SUM($G129:H129),IF(A2remlife="N/A","n/a",A2value/A2remlife)) -> 0.180149531 | J129: =IF(J$3>A2remlife,A2value-SUM($G129:I129),IF(A2remlife="N/A","n/a",A2value/A2remlife)) -> 0.180149531 | K129: =IF(K$3>A2remlife,A2value-SUM($G129:J129),IF(A2remlife="N/A","n/a",A2value/A2remlife)) -> 0.180149531 | L129: =IF(L$3>A2remlife,A2value-SUM($G129:K129),IF(A2remlife="N/A","n/a",A2value/A2remlife)) -> 0.180149531 | M129: =IF(M$3>A2remlife,A2value-SUM($G129:L129),IF(A2remlife="N/A","n/a",A2value/A2remlife)) -> 0.180149531 | N129: =IF(N$3>A2remlife,A2value-SUM($G129:M129),IF(A2remlife="N/A","n/a",A2value/A2remlife)) -> 0.180149531 | O129: =IF(O$3>A2remlife,A2value-SUM($G129:N129),IF(A2remlife="N/A","n/a",A2value/A2remlife)) -> 0.180149531 | P129: =IF(P$3>A2remlife,A2value-SUM($G129:O129),IF(A2remlife="N/A","n/a",A2value/A2remlife)) -> 0.180149531 | Q129: =IF(Q$3>A2remlife,A2value-SUM($G129:P129),IF(A2remlife="N/A","n/a",A2value/A2remlife)) -> 0.180149531
E130: Capex in year
F131: 1 | I131: =IF(A2stdlife="n/a","n/a",IF(I$3>(A2stdlife+$F131),('RFM input'!$H$332*(1+vanilla1)^0.5)-SUM($H131:H131),('RFM input'!$H$332*(1+vanilla1)^0.5)/A2stdlife)) -> 0 | J131: =IF(A2stdlife="n/a","n/a",IF(J$3>(A2stdlife+$F131),('RFM input'!$H$332*(1+vanilla1)^0.5)-SUM($H131:I131),('RFM input'!$H$332*(1+vanilla1)^0.5)/A2stdlife)) -> 0 | K131: =IF(A2stdlife="n/a","n/a",IF(K$3>(A2stdlife+$F131),('RFM input'!$H$332*(1+vanilla1)^0.5)-SUM($H131:J131),('RFM input'!$H$332*(1+vanilla1)^0.5)/A2stdlife)) -> 0 | L131: =IF(A2stdlife="n/a","n/a",IF(L$3>(A2stdlife+$F131),('RFM input'!$H$332*(1+vanilla1)^0.5)-SUM($H131:K131),('RFM input'!$H$332*(1+vanilla1)^0.5)/A2stdlife)) -> 0 | M131: =IF(A2stdlife="n/a","n/a",IF(M$3>(A2stdlife+$F131),('RFM input'!$H$332*(1+vanilla1)^0.5)-SUM($H131:L131),('RFM input'!$H$332*(1+vanilla1)^0.5)/A2stdlife)) -> 0 | N131: =IF(A2stdlife="n/a","n/a",IF(N$3>(A2stdlife+$F131),('RFM input'!$H$332*(1+vanilla1)^0.5)-SUM($H131:M131),('RFM input'!$H$332*(1+vanilla1)^0.5)/A2stdlife)) -> 0 | O131: =IF(A2stdlife="n/a","n/a",IF(O$3>(A2stdlife+$F131),('RFM input'!$H$332*(1+vanilla1)^0.5)-SUM($H131:N131),('RFM input'!$H$332*(1+vanilla1)^0.5)/A2stdlife)) -> 0 | P131: =IF(A2stdlife="n/a","n/a",IF(P$3>(A2stdlife+$F131),('RFM input'!$H$332*(1+vanilla1)^0.5)-SUM($H131:O131),('RFM input'!$H$332*(1+vanilla1)^0.5)/A2stdlife)) -> 0 | Q131: =IF(A2stdlife="n/a","n/a",IF(Q$3>(A2stdlife+$F131),('RFM input'!$H$332*(1+vanilla1)^0.5)-SUM($H131:P131),('RFM input'!$H$332*(1+vanilla1)^0.5)/A2stdlife)) -> 0
F132: 2 | J132: =IF(A2stdlife="n/a","n/a",IF(J$3>(A2stdlife+$F132),('RFM input'!$I$332*(1+vanilla2)^0.5)-SUM($I132:I132),('RFM input'!$I$332*(1+vanilla2)^0.5)/A2stdlife)) -> 0 | K132: =IF(A2stdlife="n/a","n/a",IF(K$3>(A2stdlife+$F132),('RFM input'!$I$332*(1+vanilla2)^0.5)-SUM($I132:J132),('RFM input'!$I$332*(1+vanilla2)^0.5)/A2stdlife)) -> 0 | L132: =IF(A2stdlife="n/a","n/a",IF(L$3>(A2stdlife+$F132),('RFM input'!$I$332*(1+vanilla2)^0.5)-SUM($I132:K132),('RFM input'!$I$332*(1+vanilla2)^0.5)/A2stdlife)) -> 0 | M132: =IF(A2stdlife="n/a","n/a",IF(M$3>(A2stdlife+$F132),('RFM input'!$I$332*(1+vanilla2)^0.5)-SUM($I132:L132),('RFM input'!$I$332*(1+vanilla2)^0.5)/A2stdlife)) -> 0 | N132: =IF(A2stdlife="n/a","n/a",IF(N$3>(A2stdlife+$F132),('RFM input'!$I$332*(1+vanilla2)^0.5)-SUM($I132:M132),('RFM input'!$I$332*(1+vanilla2)^0.5)/A2stdlife)) -> 0 | O132: =IF(A2stdlife="n/a","n/a",IF(O$3>(A2stdlife+$F132),('RFM input'!$I$332*(1+vanilla2)^0.5)-SUM($I132:N132),('RFM input'!$I$332*(1+vanilla2)^0.5)/A2stdlife)) -> 0 | P132: =IF(A2stdlife="n/a","n/a",IF(P$3>(A2stdlife+$F132),('RFM input'!$I$332*(1+vanilla2)^0.5)-SUM($I132:O132),('RFM input'!$I$332*(1+vanilla2)^0.5)/A2stdlife)) -> 0 | Q132: =IF(A2stdlife="n/a","n/a",IF(Q$3>(A2stdlife+$F132),('RFM input'!$I$332*(1+vanilla2)^0.5)-SUM($I132:P132),('RFM input'!$I$332*(1+vanilla2)^0.5)/A2stdlife)) -> 0
F133: 3 | K133: =IF(A2stdlife="n/a","n/a",IF(K$3>(A2stdlife+$F133),('RFM input'!$J$332*(1+vanilla3)^0.5)-SUM($J133:J133),('RFM input'!$J$332*(1+vanilla3)^0.5)/A2stdlife)) -> 0 | L133: =IF(A2stdlife="n/a","n/a",IF(L$3>(A2stdlife+$F133),('RFM input'!$J$332*(1+vanilla3)^0.5)-SUM($J133:K133),('RFM input'!$J$332*(1+vanilla3)^0.5)/A2stdlife)) -> 0 | M133: =IF(A2stdlife="n/a","n/a",IF(M$3>(A2stdlife+$F133),('RFM input'!$J$332*(1+vanilla3)^0.5)-SUM($J133:L133),('RFM input'!$J$332*(1+vanilla3)^0.5)/A2stdlife)) -> 0 | N133: =IF(A2stdlife="n/a","n/a",IF(N$3>(A2stdlife+$F133),('RFM input'!$J$332*(1+vanilla3)^0.5)-SUM($J133:M133),('RFM input'!$J$332*(1+vanilla3)^0.5)/A2stdlife)) -> 0 | O133: =IF(A2stdlife="n/a","n/a",IF(O$3>(A2stdlife+$F133),('RFM input'!$J$332*(1+vanilla3)^0.5)-SUM($J133:N133),('RFM input'!$J$332*(1+vanilla3)^0.5)/A2stdlife)) -> 0 | P133: =IF(A2stdlife="n/a","n/a",IF(P$3>(A2stdlife+$F133),('RFM input'!$J$332*(1+vanilla3)^0.5)-SUM($J133:O133),('RFM input'!$J$332*(1+vanilla3)^0.5)/A2stdlife)) -> 0 | Q133: =IF(A2stdlife="n/a","n/a",IF(Q$3>(A2stdlife+$F133),('RFM input'!$J$332*(1+vanilla3)^0.5)-SUM($J133:P133),('RFM input'!$J$332*(1+vanilla3)^0.5)/A2stdlife)) -> 0
F134: 4 | L134: =IF(A2stdlife="n/a","n/a",IF(L$3>(A2stdlife+$F134),('RFM input'!$K$332*(1+vanilla4)^0.5)-SUM($K134:K134),('RFM input'!$K$332*(1+vanilla4)^0.5)/A2stdlife)) -> 0.009838076182 | M134: =IF(A2stdlife="n/a","n/a",IF(M$3>(A2stdlife+$F134),('RFM input'!$K$332*(1+vanilla4)^0.5)-SUM($K134:L134),('RFM input'!$K$332*(1+vanilla4)^0.5)/A2stdlife)) -> 0.009838076182 | N134: =IF(A2stdlife="n/a","n/a",IF(N$3>(A2stdlife+$F134),('RFM input'!$K$332*(1+vanilla4)^0.5)-SUM($K134:M134),('RFM input'!$K$332*(1+vanilla4)^0.5)/A2stdlife)) -> 0.009838076182 | O134: =IF(A2stdlife="n/a","n/a",IF(O$3>(A2stdlife+$F134),('RFM input'!$K$332*(1+vanilla4)^0.5)-SUM($K134:N134),('RFM input'!$K$332*(1+vanilla4)^0.5)/A2stdlife)) -> 0.009838076182 | P134: =IF(A2stdlife="n/a","n/a",IF(P$3>(A2stdlife+$F134),('RFM input'!$K$332*(1+vanilla4)^0.5)-SUM($K134:O134),('RFM input'!$K$332*(1+vanilla4)^0.5)/A2stdlife)) -> 0.009838076182 | Q134: =IF(A2stdlife="n/a","n/a",IF(Q$3>(A2stdlife+$F134),('RFM input'!$K$332*(1+vanilla4)^0.5)-SUM($K134:P134),('RFM input'!$K$332*(1+vanilla4)^0.5)/A2stdlife)) -> 0.009838076182
F135: 5 | M135: =IF(A2stdlife="n/a","n/a",IF(M$3>(A2stdlife+$F135),('RFM input'!$L$332*(1+vanilla5)^0.5)-SUM($L135:L135),('RFM input'!$L$332*(1+vanilla5)^0.5)/A2stdlife)) -> 0 | N135: =IF(A2stdlife="n/a","n/a",IF(N$3>(A2stdlife+$F135),('RFM input'!$L$332*(1+vanilla5)^0.5)-SUM($L135:M135),('RFM input'!$L$332*(1+vanilla5)^0.5)/A2stdlife)) -> 0 | O135: =IF(A2stdlife="n/a","n/a",IF(O$3>(A2stdlife+$F135),('RFM input'!$L$332*(1+vanilla5)^0.5)-SUM($L135:N135),('RFM input'!$L$332*(1+vanilla5)^0.5)/A2stdlife)) -> 0 | P135: =IF(A2stdlife="n/a","n/a",IF(P$3>(A2stdlife+$F135),('RFM input'!$L$332*(1+vanilla5)^0.5)-SUM($L135:O135),('RFM input'!$L$332*(1+vanilla5)^0.5)/A2stdlife)) -> 0 | Q135: =IF(A2stdlife="n/a","n/a",IF(Q$3>(A2stdlife+$F135),('RFM input'!$L$332*(1+vanilla5)^0.5)-SUM($L135:P135),('RFM input'!$L$332*(1+vanilla5)^0.5)/A2stdlife)) -> 0
F136: 6 | N136: =IF(A2stdlife="n/a","n/a",IF(N$3>(A2stdlife+$F136),('RFM input'!$M$332*(1+vanilla6)^0.5)-SUM($M136:M136),('RFM input'!$M$332*(1+vanilla6)^0.5)/A2stdlife)) -> 0 | O136: =IF(A2stdlife="n/a","n/a",IF(O$3>(A2stdlife+$F136),('RFM input'!$M$332*(1+vanilla6)^0.5)-SUM($M136:N136),('RFM input'!$M$332*(1+vanilla6)^0.5)/A2stdlife)) -> 0 | P136: =IF(A2stdlife="n/a","n/a",IF(P$3>(A2stdlife+$F136),('RFM input'!$M$332*(1+vanilla6)^0.5)-SUM($M136:O136),('RFM input'!$M$332*(1+vanilla6)^0.5)/A2stdlife)) -> 0 | Q136: =IF(A2stdlife="n/a","n/a",IF(Q$3>(A2stdlife+$F136),('RFM input'!$M$332*(1+vanilla6)^0.5)-SUM($M136:P136),('RFM input'!$M$332*(1+vanilla6)^0.5)/A2stdlife)) -> 0
F137: 7 | O137: =IF(A2stdlife="n/a","n/a",IF(O$3>(A2stdlife+$F137),('RFM input'!$N$332*(1+vanilla7)^0.5)-SUM($N137:N137),('RFM input'!$N$332*(1+vanilla7)^0.5)/A2stdlife)) -> 0 | P137: =IF(A2stdlife="n/a","n/a",IF(P$3>(A2stdlife+$F137),('RFM input'!$N$332*(1+vanilla7)^0.5)-SUM($N137:O137),('RFM input'!$N$332*(1+vanilla7)^0.5)/A2stdlife)) -> 0 | Q137: =IF(A2stdlife="n/a","n/a",IF(Q$3>(A2stdlife+$F137),('RFM input'!$N$332*(1+vanilla7)^0.5)-SUM($N137:P137),('RFM input'!$N$332*(1+vanilla7)^0.5)/A2stdlife)) -> 0
F138: 8 | P138: =IF(A2stdlife="n/a","n/a",IF(P$3>(A2stdlife+$F138),('RFM input'!$O$332*(1+vanilla8)^0.5)-SUM($O138:O138),('RFM input'!$O$332*(1+vanilla8)^0.5)/A2stdlife)) -> 0 | Q138: =IF(A2stdlife="n/a","n/a",IF(Q$3>(A2stdlife+$F138),('RFM input'!$O$332*(1+vanilla8)^0.5)-SUM($O138:P138),('RFM input'!$O$332*(1+vanilla8)^0.5)/A2stdlife)) -> 0
F139: 9 | Q139: =IF(A2stdlife="n/a","n/a",IF(Q$3>(A2stdlife+$F139),('RFM input'!$P$332*(1+vanilla9)^0.5)-SUM($P139:P139),('RFM input'!$P$332*(1+vanilla9)^0.5)/A2stdlife)) -> 0
F140: 10
D141: =Asset2 -> AC SWITCHYARD | H141: =IF(OR('RFM input'!$E$396='RFM input'!$G$395,'RFM input'!$E$396='RFM input'!$G$396),-INDEX('RFM input'!H$402:H$451,MATCH($D141,'RFM input'!$E$402:$E$451,0),1),-SUM(H129:H140)) -> -0.180149531 | I141: =IF(OR('RFM input'!$E$396='RFM input'!$G$395,'RFM input'!$E$396='RFM input'!$G$396),-INDEX('RFM input'!I$402:I$451,MATCH($D141,'RFM input'!$E$402:$E$451,0),1),-SUM(I129:I140)) -> -0.180149531 | J141: =IF(COUNT($H141:I141)>='RFM input'!$AA$7,0,IF(OR('RFM input'!$E$396='RFM input'!$G$395,'RFM input'!$E$396='RFM input'!$G$396),-INDEX('RFM input'!J$402:J$451,MATCH($D141,'RFM input'!$E$402:$E$451,0),1),-SUM(J129:J140))) -> -0.180149531 | K141: =IF(COUNT($H141:J141)>='RFM input'!$AA$7,0,IF(OR('RFM input'!$E$396='RFM input'!$G$395,'RFM input'!$E$396='RFM input'!$G$396),-INDEX('RFM input'!K$402:K$451,MATCH($D141,'RFM input'!$E$402:$E$451,0),1),-SUM(K129:K140))) -> -0.180149531 | L141: =IF(COUNT($H141:K141)>='RFM input'!$AA$7,0,IF(OR('RFM input'!$E$396='RFM input'!$G$395,'RFM input'!$E$396='RFM input'!$G$396),-INDEX('RFM input'!L$402:L$451,MATCH($D141,'RFM input'!$E$402:$E$451,0),1),-SUM(L129:L140))) -> -0.1899876071 | M141: =IF(COUNT($H141:L141)>='RFM input'!$AA$7,0,IF(OR('RFM input'!$E$396='RFM input'!$G$395,'RFM input'!$E$396='RFM input'!$G$396),-INDEX('RFM input'!M$402:M$451,MATCH($D141,'RFM input'!$E$402:$E$451,0),1),-SUM(M129:M140))) -> -0.1899876071 | N141: =IF(COUNT($H141:M141)>='RFM input'!$AA$7,0,IF(OR('RFM input'!$E$396='RFM input'!$G$395,'RFM input'!$E$396='RFM input'!$G$396),-INDEX('RFM input'!N$402:N$451,MATCH($D141,'RFM input'!$E$402:$E$451,0),1),-SUM(N129:N140))) -> -0.1899876071 | O141: =IF(COUNT($H141:N141)>='RFM input'!$AA$7,0,IF(OR('RFM input'!$E$396='RFM input'!$G$395,'RFM input'!$E$396='RFM input'!$G$396),-INDEX('RFM input'!O$402:O$451,MATCH($D141,'RFM input'!$E$402:$E$451,0),1),-SUM(O129:O140))) -> -0.1899876071 | P141: =IF(COUNT($H141:O141)>='RFM input'!$AA$7,0,IF(OR('RFM input'!$E$396='RFM input'!$G$395,'RFM input'!$E$396='RFM input'!$G$396),-INDEX('RFM input'!P$402:P$451,MATCH($D141,'RFM input'!$E$402:$E$451,0),1),-SUM(P129:P140))) -> -0.1899876071 | Q141: =IF(COUNT($H141:P141)>='RFM input'!$AA$7,0,IF(OR('RFM input'!$E$396='RFM input'!$G$395,'RFM input'!$E$396='RFM input'!$G$396),-INDEX('RFM input'!Q$402:Q$451,MATCH($D141,'RFM input'!$E$402:$E$451,0),1),-SUM(Q129:Q140))) -> 0
C142: =Asset3 -> AUXILIARY SYSTEMS | E142: Opening RAB | H142: =IF(H$3>A3remlife,A3value-SUM($G142:G142),IF(A3remlife="N/A","n/a",A3value/A3remlife)) -> 0.4516691527 | I142: =IF(I$3>A3remlife,A3value-SUM($G142:H142),IF(A3remlife="N/A","n/a",A3value/A3remlife)) -> 0.4516691527 | J142: =IF(J$3>A3remlife,A3value-SUM($G142:I142),IF(A3remlife="N/A","n/a",A3value/A3remlife)) -> 0.4516691527 | K142: =IF(K$3>A3remlife,A3value-SUM($G142:J142),IF(A3remlife="N/A","n/a",A3value/A3remlife)) -> 0.4516691527 | L142: =IF(L$3>A3remlife,A3value-SUM($G142:K142),IF(A3remlife="N/A","n/a",A3value/A3remlife)) -> 0.4516691527 | M142: =IF(M$3>A3remlife,A3value-SUM($G142:L142),IF(A3remlife="N/A","n/a",A3value/A3remlife)) -> 0.4516691527 | N142: =IF(N$3>A3remlife,A3value-SUM($G142:M142),IF(A3remlife="N/A","n/a",A3value/A3remlife)) -> 0.4516691527 | O142: =IF(O$3>A3remlife,A3value-SUM($G142:N142),IF(A3remlife="N/A","n/a",A3value/A3remlife)) -> 0.4516691527 | P142: =IF(P$3>A3remlife,A3value-SUM($G142:O142),IF(A3remlife="N/A","n/a",A3value/A3remlife)) -> 0.4516691527 | Q142: =IF(Q$3>A3remlife,A3value-SUM($G142:P142),IF(A3remlife="N/A","n/a",A3value/A3remlife)) -> 0.4516691527
E143: Capex in year
F144: 1 | I144: =IF(A3stdlife="n/a","n/a",IF(I$3>(A3stdlife+$F144),('RFM input'!$H$333*(1+vanilla1)^0.5)-SUM($H144:H144),('RFM input'!$H$333*(1+vanilla1)^0.5)/A3stdlife)) -> 0 | J144: =IF(A3stdlife="n/a","n/a",IF(J$3>(A3stdlife+$F144),('RFM input'!$H$333*(1+vanilla1)^0.5)-SUM($H144:I144),('RFM input'!$H$333*(1+vanilla1)^0.5)/A3stdlife)) -> 0 | K144: =IF(A3stdlife="n/a","n/a",IF(K$3>(A3stdlife+$F144),('RFM input'!$H$333*(1+vanilla1)^0.5)-SUM($H144:J144),('RFM input'!$H$333*(1+vanilla1)^0.5)/A3stdlife)) -> 0 | L144: =IF(A3stdlife="n/a","n/a",IF(L$3>(A3stdlife+$F144),('RFM input'!$H$333*(1+vanilla1)^0.5)-SUM($H144:K144),('RFM input'!$H$333*(1+vanilla1)^0.5)/A3stdlife)) -> 0 | M144: =IF(A3stdlife="n/a","n/a",IF(M$3>(A3stdlife+$F144),('RFM input'!$H$333*(1+vanilla1)^0.5)-SUM($H144:L144),('RFM input'!$H$333*(1+vanilla1)^0.5)/A3stdlife)) -> 0 | N144: =IF(A3stdlife="n/a","n/a",IF(N$3>(A3stdlife+$F144),('RFM input'!$H$333*(1+vanilla1)^0.5)-SUM($H144:M144),('RFM input'!$H$333*(1+vanilla1)^0.5)/A3stdlife)) -> 0 | O144: =IF(A3stdlife="n/a","n/a",IF(O$3>(A3stdlife+$F144),('RFM input'!$H$333*(1+vanilla1)^0.5)-SUM($H144:N144),('RFM input'!$H$333*(1+vanilla1)^0.5)/A3stdlife)) -> 0 | P144: =IF(A3stdlife="n/a","n/a",IF(P$3>(A3stdlife+$F144),('RFM input'!$H$333*(1+vanilla1)^0.5)-SUM($H144:O144),('RFM input'!$H$333*(1+vanilla1)^0.5)/A3stdlife)) -> 0 | Q144: =IF(A3stdlife="n/a","n/a",IF(Q$3>(A3stdlife+$F144),('RFM input'!$H$333*(1+vanilla1)^0.5)-SUM($H144:P144),('RFM input'!$H$333*(1+vanilla1)^0.5)/A3stdlife)) -> 0
F145: 2 | J145: =IF(A3stdlife="n/a","n/a",IF(J$3>(A3stdlife+$F145),('RFM input'!$I$333*(1+vanilla2)^0.5)-SUM($I145:I145),('RFM input'!$I$333*(1+vanilla2)^0.5)/A3stdlife)) -> 0 | K145: =IF(A3stdlife="n/a","n/a",IF(K$3>(A3stdlife+$F145),('RFM input'!$I$333*(1+vanilla2)^0.5)-SUM($I145:J145),('RFM input'!$I$333*(1+vanilla2)^0.5)/A3stdlife)) -> 0 | L145: =IF(A3stdlife="n/a","n/a",IF(L$3>(A3stdlife+$F145),('RFM input'!$I$333*(1+vanilla2)^0.5)-SUM($I145:K145),('RFM input'!$I$333*(1+vanilla2)^0.5)/A3stdlife)) -> 0 | M145: =IF(A3stdlife="n/a","n/a",IF(M$3>(A3stdlife+$F145),('RFM input'!$I$333*(1+vanilla2)^0.5)-SUM($I145:L145),('RFM input'!$I$333*(1+vanilla2)^0.5)/A3stdlife)) -> 0 | N145: =IF(A3stdlife="n/a","n/a",IF(N$3>(A3stdlife+$F145),('RFM input'!$I$333*(1+vanilla2)^0.5)-SUM($I145:M145),('RFM input'!$I$333*(1+vanilla2)^0.5)/A3stdlife)) -> 0 | O145: =IF(A3stdlife="n/a","n/a",IF(O$3>(A3stdlife+$F145),('RFM input'!$I$333*(1+vanilla2)^0.5)-SUM($I145:N145),('RFM input'!$I$333*(1+vanilla2)^0.5)/A3stdlife)) -> 0 | P145: =IF(A3stdlife="n/a","n/a",IF(P$3>(A3stdlife+$F145),('RFM input'!$I$333*(1+vanilla2)^0.5)-SUM($I145:O145),('RFM input'!$I$333*(1+vanilla2)^0.5)/A3stdlife)) -> 0 | Q145: =IF(A3stdlife="n/a","n/a",IF(Q$3>(A3stdlife+$F145),('RFM input'!$I$333*(1+vanilla2)^0.5)-SUM($I145:P145),('RFM input'!$I$333*(1+vanilla2)^0.5)/A3stdlife)) -> 0
F146: 3 | K146: =IF(A3stdlife="n/a","n/a",IF(K$3>(A3stdlife+$F146),('RFM input'!$J$333*(1+vanilla3)^0.5)-SUM($J146:J146),('RFM input'!$J$333*(1+vanilla3)^0.5)/A3stdlife)) -> 0.0002127858113 | L146: =IF(A3stdlife="n/a","n/a",IF(L$3>(A3stdlife+$F146),('RFM input'!$J$333*(1+vanilla3)^0.5)-SUM($J146:K146),('RFM input'!$J$333*(1+vanilla3)^0.5)/A3stdlife)) -> 0.0002127858113 | M146: =IF(A3stdlife="n/a","n/a",IF(M$3>(A3stdlife+$F146),('RFM input'!$J$333*(1+vanilla3)^0.5)-SUM($J146:L146),('RFM input'!$J$333*(1+vanilla3)^0.5)/A3stdlife)) -> 0.0002127858113 | N146: =IF(A3stdlife="n/a","n/a",IF(N$3>(A3stdlife+$F146),('RFM input'!$J$333*(1+vanilla3)^0.5)-SUM($J146:M146),('RFM input'!$J$333*(1+vanilla3)^0.5)/A3stdlife)) -> 0.0002127858113 | O146: =IF(A3stdlife="n/a","n/a",IF(O$3>(A3stdlife+$F146),('RFM input'!$J$333*(1+vanilla3)^0.5)-SUM($J146:N146),('RFM input'!$J$333*(1+vanilla3)^0.5)/A3stdlife)) -> 0.0002127858113 | P146: =IF(A3stdlife="n/a","n/a",IF(P$3>(A3stdlife+$F146),('RFM input'!$J$333*(1+vanilla3)^0.5)-SUM($J146:O146),('RFM input'!$J$333*(1+vanilla3)^0.5)/A3stdlife)) -> 0.0002127858113 | Q146: =IF(A3stdlife="n/a","n/a",IF(Q$3>(A3stdlife+$F146),('RFM input'!$J$333*(1+vanilla3)^0.5)-SUM($J146:P146),('RFM input'!$J$333*(1+vanilla3)^0.5)/A3stdlife)) -> 0.0002127858113
F147: 4 | L147: =IF(A3stdlife="n/a","n/a",IF(L$3>(A3stdlife+$F147),('RFM input'!$K$333*(1+vanilla4)^0.5)-SUM($K147:K147),('RFM input'!$K$333*(1+vanilla4)^0.5)/A3stdlife)) -> 0 | M147: =IF(A3stdlife="n/a","n/a",IF(M$3>(A3stdlife+$F147),('RFM input'!$K$333*(1+vanilla4)^0.5)-SUM($K147:L147),('RFM input'!$K$333*(1+vanilla4)^0.5)/A3stdlife)) -> 0 | N147: =IF(A3stdlife="n/a","n/a",IF(N$3>(A3stdlife+$F147),('RFM input'!$K$333*(1+vanilla4)^0.5)-SUM($K147:M147),('RFM input'!$K$333*(1+vanilla4)^0.5)/A3stdlife)) -> 0 | O147: =IF(A3stdlife="n/a","n/a",IF(O$3>(A3stdlife+$F147),('RFM input'!$K$333*(1+vanilla4)^0.5)-SUM($K147:N147),('RFM input'!$K$333*(1+vanilla4)^0.5)/A3stdlife)) -> 0 | P147: =IF(A3stdlife="n/a","n/a",IF(P$3>(A3stdlife+$F147),('RFM input'!$K$333*(1+vanilla4)^0.5)-SUM($K147:O147),('RFM input'!$K$333*(1+vanilla4)^0.5)/A3stdlife)) -> 0 | Q147: =IF(A3stdlife="n/a","n/a",IF(Q$3>(A3stdlife+$F147),('RFM input'!$K$333*(1+vanilla4)^0.5)-SUM($K147:P147),('RFM input'!$K$333*(1+vanilla4)^0.5)/A3stdlife)) -> 0
F148: 5 | M148: =IF(A3stdlife="n/a","n/a",IF(M$3>(A3stdlife+$F148),('RFM input'!$L$333*(1+vanilla5)^0.5)-SUM($L148:L148),('RFM input'!$L$333*(1+vanilla5)^0.5)/A3stdlife)) -> 0 | N148: =IF(A3stdlife="n/a","n/a",IF(N$3>(A3stdlife+$F148),('RFM input'!$L$333*(1+vanilla5)^0.5)-SUM($L148:M148),('RFM input'!$L$333*(1+vanilla5)^0.5)/A3stdlife)) -> 0 | O148: =IF(A3stdlife="n/a","n/a",IF(O$3>(A3stdlife+$F148),('RFM input'!$L$333*(1+vanilla5)^0.5)-SUM($L148:N148),('RFM input'!$L$333*(1+vanilla5)^0.5)/A3stdlife)) -> 0 | P148: =IF(A3stdlife="n/a","n/a",IF(P$3>(A3stdlife+$F148),('RFM input'!$L$333*(1+vanilla5)^0.5)-SUM($L148:O148),('RFM input'!$L$333*(1+vanilla5)^0.5)/A3stdlife)) -> 0 | Q148: =IF(A3stdlife="n/a","n/a",IF(Q$3>(A3stdlife+$F148),('RFM input'!$L$333*(1+vanilla5)^0.5)-SUM($L148:P148),('RFM input'!$L$333*(1+vanilla5)^0.5)/A3stdlife)) -> 0
F149: 6 | N149: =IF(A3stdlife="n/a","n/a",IF(N$3>(A3stdlife+$F149),('RFM input'!$M$333*(1+vanilla6)^0.5)-SUM($M149:M149),('RFM input'!$M$333*(1+vanilla6)^0.5)/A3stdlife)) -> 0 | O149: =IF(A3stdlife="n/a","n/a",IF(O$3>(A3stdlife+$F149),('RFM input'!$M$333*(1+vanilla6)^0.5)-SUM($M149:N149),('RFM input'!$M$333*(1+vanilla6)^0.5)/A3stdlife)) -> 0 | P149: =IF(A3stdlife="n/a","n/a",IF(P$3>(A3stdlife+$F149),('RFM input'!$M$333*(1+vanilla6)^0.5)-SUM($M149:O149),('RFM input'!$M$333*(1+vanilla6)^0.5)/A3stdlife)) -> 0 | Q149: =IF(A3stdlife="n/a","n/a",IF(Q$3>(A3stdlife+$F149),('RFM input'!$M$333*(1+vanilla6)^0.5)-SUM($M149:P149),('RFM input'!$M$333*(1+vanilla6)^0.5)/A3stdlife)) -> 0
F150: 7 | O150: =IF(A3stdlife="n/a","n/a",IF(O$3>(A3stdlife+$F150),('RFM input'!$N$333*(1+vanilla7)^0.5)-SUM($N150:N150),('RFM input'!$N$333*(1+vanilla7)^0.5)/A3stdlife)) -> 0 | P150: =IF(A3stdlife="n/a","n/a",IF(P$3>(A3stdlife+$F150),('RFM input'!$N$333*(1+vanilla7)^0.5)-SUM($N150:O150),('RFM input'!$N$333*(1+vanilla7)^0.5)/A3stdlife)) -> 0 | Q150: =IF(A3stdlife="n/a","n/a",IF(Q$3>(A3stdlife+$F150),('RFM input'!$N$333*(1+vanilla7)^0.5)-SUM($N150:P150),('RFM input'!$N$333*(1+vanilla7)^0.5)/A3stdlife)) -> 0
F151: 8 | P151: =IF(A3stdlife="n/a","n/a",IF(P$3>(A3stdlife+$F151),('RFM input'!$O$333*(1+vanilla8)^0.5)-SUM($O151:O151),('RFM input'!$O$333*(1+vanilla8)^0.5)/A3stdlife)) -> 0 | Q151: =IF(A3stdlife="n/a","n/a",IF(Q$3>(A3stdlife+$F151),('RFM input'!$O$333*(1+vanilla8)^0.5)-SUM($O151:P151),('RFM input'!$O$333*(1+vanilla8)^0.5)/A3stdlife)) -> 0
F152: 9 | Q152: =IF(A3stdlife="n/a","n/a",IF(Q$3>(A3stdlife+$F152),('RFM input'!$P$333*(1+vanilla9)^0.5)-SUM($P152:P152),('RFM input'!$P$333*(1+vanilla9)^0.5)/A3stdlife)) -> 0
F153: 10
D154: =Asset3 -> AUXILIARY SYSTEMS | H154: =IF(OR('RFM input'!$E$396='RFM input'!$G$395,'RFM input'!$E$396='RFM input'!$G$396),-INDEX('RFM input'!H$402:H$451,MATCH($D154,'RFM input'!$E$402:$E$451,0),1),-SUM(H142:H153)) -> -0.4516691527 | I154: =IF(OR('RFM input'!$E$396='RFM input'!$G$395,'RFM input'!$E$396='RFM input'!$G$396),-INDEX('RFM input'!I$402:I$451,MATCH($D154,'RFM input'!$E$402:$E$451,0),1),-SUM(I142:I153)) -> -0.4516691527 | J154: =IF(COUNT($H154:I154)>='RFM input'!$AA$7,0,IF(OR('RFM input'!$E$396='RFM input'!$G$395,'RFM input'!$E$396='RFM input'!$G$396),-INDEX('RFM input'!J$402:J$451,MATCH($D154,'RFM input'!$E$402:$E$451,0),1),-SUM(J142:J153))) -> -0.4516691527 | K154: =IF(COUNT($H154:J154)>='RFM input'!$AA$7,0,IF(OR('RFM input'!$E$396='RFM input'!$G$395,'RFM input'!$E$396='RFM input'!$G$396),-INDEX('RFM input'!K$402:K$451,MATCH($D154,'RFM input'!$E$402:$E$451,0),1),-SUM(K142:K153))) -> -0.4518819385 | L154: =IF(COUNT($H154:K154)>='RFM input'!$AA$7,0,IF(OR('RFM input'!$E$396='RFM input'!$G$395,'RFM input'!$E$396='RFM input'!$G$396),-INDEX('RFM input'!L$402:L$451,MATCH($D154,'RFM input'!$E$402:$E$451,0),1),-SUM(L142:L153))) -> -0.4518819385 | M154: =IF(COUNT($H154:L154)>='RFM input'!$AA$7,0,IF(OR('RFM input'!$E$396='RFM input'!$G$395,'RFM input'!$E$396='RFM input'!$G$396),-INDEX('RFM input'!M$402:M$451,MATCH($D154,'RFM input'!$E$402:$E$451,0),1),-SUM(M142:M153))) -> -0.4518819385 | N154: =IF(COUNT($H154:M154)>='RFM input'!$AA$7,0,IF(OR('RFM input'!$E$396='RFM input'!$G$395,'RFM input'!$E$396='RFM input'!$G$396),-INDEX('RFM input'!N$402:N$451,MATCH($D154,'RFM input'!$E$402:$E$451,0),1),-SUM(N142:N153))) -> -0.4518819385 | O154: =IF(COUNT($H154:N154)>='RFM input'!$AA$7,0,IF(OR('RFM input'!$E$396='RFM input'!$G$395,'RFM input'!$E$396='RFM input'!$G$396),-INDEX('RFM input'!O$402:O$451,MATCH($D154,'RFM input'!$E$402:$E$451,0),1),-SUM(O142:O153))) -> -0.4518819385 | P154: =IF(COUNT($H154:O154)>='RFM input'!$AA$7,0,IF(OR('RFM input'!$E$396='RFM input'!$G$395,'RFM input'!$E$396='RFM input'!$G$396),-INDEX('RFM input'!P$402:P$451,MATCH($D154,'RFM input'!$E$402:$E$451,0),1),-SUM(P142:P153))) -> -0.4518819385 | Q154: =IF(COUNT($H154:P154)>='RFM input'!$AA$7,0,IF(OR('RFM input'!$E$396='RFM input'!$G$395,'RFM input'!$E$396='RFM input'!$G$396),-INDEX('RFM input'!Q$402:Q$451,MATCH($D154,'RFM input'!$E$402:$E$451,0),1),-SUM(Q142:Q153))) -> 0
C155: =Asset4 -> CABLE | E155: Opening RAB | H155: =IF(H$3>A4remlife,A4value-SUM($G155:G155),IF(A4remlife="N/A","n/a",A4value/A4remlife)) -> 14.58337001 | I155: =IF(I$3>A4remlife,A4value-SUM($G155:H155),IF(A4remlife="N/A","n/a",A4value/A4remlife)) -> 14.58337001 | J155: =IF(J$3>A4remlife,A4value-SUM($G155:I155),IF(A4remlife="N/A","n/a",A4value/A4remlife)) -> 14.58337001 | K155: =IF(K$3>A4remlife,A4value-SUM($G155:J155),IF(A4remlife="N/A","n/a",A4value/A4remlife)) -> 14.58337001 | L155: =IF(L$3>A4remlife,A4value-SUM($G155:K155),IF(A4remlife="N/A","n/a",A4value/A4remlife)) -> 14.58337001 | M155: =IF(M$3>A4remlife,A4value-SUM($G155:L155),IF(A4remlife="N/A","n/a",A4value/A4remlife)) -> 14.58337001 | N155: =IF(N$3>A4remlife,A4value-SUM($G155:M155),IF(A4remlife="N/A","n/a",A4value/A4remlife)) -> 14.58337001 | O155: =IF(O$3>A4remlife,A4value-SUM($G155:N155),IF(A4remlife="N/A","n/a",A4value/A4remlife)) -> 14.58337001 | P155: =IF(P$3>A4remlife,A4value-SUM($G155:O155),IF(A4remlife="N/A","n/a",A4value/A4remlife)) -> 14.58337001 | Q155: =IF(Q$3>A4remlife,A4value-SUM($G155:P155),IF(A4remlife="N/A","n/a",A4value/A4remlife)) -> 14.58337001
E156: Capex in year
F157: 1 | I157: =IF(A4stdlife="n/a","n/a",IF(I$3>(A4stdlife+$F157),('RFM input'!$H$334*(1+vanilla1)^0.5)-SUM($H157:H157),('RFM input'!$H$334*(1+vanilla1)^0.5)/A4stdlife)) -> 0.003088885627 | J157: =IF(A4stdlife="n/a","n/a",IF(J$3>(A4stdlife+$F157),('RFM input'!$H$334*(1+vanilla1)^0.5)-SUM($H157:I157),('RFM input'!$H$334*(1+vanilla1)^0.5)/A4stdlife)) -> 0.003088885627 | K157: =IF(A4stdlife="n/a","n/a",IF(K$3>(A4stdlife+$F157),('RFM input'!$H$334*(1+vanilla1)^0.5)-SUM($H157:J157),('RFM input'!$H$334*(1+vanilla1)^0.5)/A4stdlife)) -> 0.003088885627 | L157: =IF(A4stdlife="n/a","n/a",IF(L$3>(A4stdlife+$F157),('RFM input'!$H$334*(1+vanilla1)^0.5)-SUM($H157:K157),('RFM input'!$H$334*(1+vanilla1)^0.5)/A4stdlife)) -> 0.003088885627 | M157: =IF(A4stdlife="n/a","n/a",IF(M$3>(A4stdlife+$F157),('RFM input'!$H$334*(1+vanilla1)^0.5)-SUM($H157:L157),('RFM input'!$H$334*(1+vanilla1)^0.5)/A4stdlife)) -> 0.003088885627 | N157: =IF(A4stdlife="n/a","n/a",IF(N$3>(A4stdlife+$F157),('RFM input'!$H$334*(1+vanilla1)^0.5)-SUM($H157:M157),('RFM input'!$H$334*(1+vanilla1)^0.5)/A4stdlife)) -> 0.003088885627 | O157: =IF(A4stdlife="n/a","n/a",IF(O$3>(A4stdlife+$F157),('RFM input'!$H$334*(1+vanilla1)^0.5)-SUM($H157:N157),('RFM input'!$H$334*(1+vanilla1)^0.5)/A4stdlife)) -> 0.003088885627 | P157: =IF(A4stdlife="n/a","n/a",IF(P$3>(A4stdlife+$F157),('RFM input'!$H$334*(1+vanilla1)^0.5)-SUM($H157:O157),('RFM input'!$H$334*(1+vanilla1)^0.5)/A4stdlife)) -> 0.003088885627 | Q157: =IF(A4stdlife="n/a","n/a",IF(Q$3>(A4stdlife+$F157),('RFM input'!$H$334*(1+vanilla1)^0.5)-SUM($H157:P157),('RFM input'!$H$334*(1+vanilla1)^0.5)/A4stdlife)) -> 0.003088885627
F158: 2 | J158: =IF(A4stdlife="n/a","n/a",IF(J$3>(A4stdlife+$F158),('RFM input'!$I$334*(1+vanilla2)^0.5)-SUM($I158:I158),('RFM input'!$I$334*(1+vanilla2)^0.5)/A4stdlife)) -> 0 | K158: =IF(A4stdlife="n/a","n/a",IF(K$3>(A4stdlife+$F158),('RFM input'!$I$334*(1+vanilla2)^0.5)-SUM($I158:J158),('RFM input'!$I$334*(1+vanilla2)^0.5)/A4stdlife)) -> 0 | L158: =IF(A4stdlife="n/a","n/a",IF(L$3>(A4stdlife+$F158),('RFM input'!$I$334*(1+vanilla2)^0.5)-SUM($I158:K158),('RFM input'!$I$334*(1+vanilla2)^0.5)/A4stdlife)) -> 0 | M158: =IF(A4stdlife="n/a","n/a",IF(M$3>(A4stdlife+$F158),('RFM input'!$I$334*(1+vanilla2)^0.5)-SUM($I158:L158),('RFM input'!$I$334*(1+vanilla2)^0.5)/A4stdlife)) -> 0 | N158: =IF(A4stdlife="n/a","n/a",IF(N$3>(A4stdlife+$F158),('RFM input'!$I$334*(1+vanilla2)^0.5)-SUM($I158:M158),('RFM input'!$I$334*(1+vanilla2)^0.5)/A4stdlife)) -> 0 | O158: =IF(A4stdlife="n/a","n/a",IF(O$3>(A4stdlife+$F158),('RFM input'!$I$334*(1+vanilla2)^0.5)-SUM($I158:N158),('RFM input'!$I$334*(1+vanilla2)^0.5)/A4stdlife)) -> 0 | P158: =IF(A4stdlife="n/a","n/a",IF(P$3>(A4stdlife+$F158),('RFM input'!$I$334*(1+vanilla2)^0.5)-SUM($I158:O158),('RFM input'!$I$334*(1+vanilla2)^0.5)/A4stdlife)) -> 0 | Q158: =IF(A4stdlife="n/a","n/a",IF(Q$3>(A4stdlife+$F158),('RFM input'!$I$334*(1+vanilla2)^0.5)-SUM($I158:P158),('RFM input'!$I$334*(1+vanilla2)^0.5)/A4stdlife)) -> 0
F159: 3 | K159: =IF(A4stdlife="n/a","n/a",IF(K$3>(A4stdlife+$F159),('RFM input'!$J$334*(1+vanilla3)^0.5)-SUM($J159:J159),('RFM input'!$J$334*(1+vanilla3)^0.5)/A4stdlife)) -> 0.003253741508 | L159: =IF(A4stdlife="n/a","n/a",IF(L$3>(A4stdlife+$F159),('RFM input'!$J$334*(1+vanilla3)^0.5)-SUM($J159:K159),('RFM input'!$J$334*(1+vanilla3)^0.5)/A4stdlife)) -> 0.003253741508 | M159: =IF(A4stdlife="n/a","n/a",IF(M$3>(A4stdlife+$F159),('RFM input'!$J$334*(1+vanilla3)^0.5)-SUM($J159:L159),('RFM input'!$J$334*(1+vanilla3)^0.5)/A4stdlife)) -> 0.003253741508 | N159: =IF(A4stdlife="n/a","n/a",IF(N$3>(A4stdlife+$F159),('RFM input'!$J$334*(1+vanilla3)^0.5)-SUM($J159:M159),('RFM input'!$J$334*(1+vanilla3)^0.5)/A4stdlife)) -> 0.003253741508 | O159: =IF(A4stdlife="n/a","n/a",IF(O$3>(A4stdlife+$F159),('RFM input'!$J$334*(1+vanilla3)^0.5)-SUM($J159:N159),('RFM input'!$J$334*(1+vanilla3)^0.5)/A4stdlife)) -> 0.003253741508 | P159: =IF(A4stdlife="n/a","n/a",IF(P$3>(A4stdlife+$F159),('RFM input'!$J$334*(1+vanilla3)^0.5)-SUM($J159:O159),('RFM input'!$J$334*(1+vanilla3)^0.5)/A4stdlife)) -> 0.003253741508 | Q159: =IF(A4stdlife="n/a","n/a",IF(Q$3>(A4stdlife+$F159),('RFM input'!$J$334*(1+vanilla3)^0.5)-SUM($J159:P159),('RFM input'!$J$334*(1+vanilla3)^0.5)/A4stdlife)) -> 0.003253741508
F160: 4 | L160: =IF(A4stdlife="n/a","n/a",IF(L$3>(A4stdlife+$F160),('RFM input'!$K$334*(1+vanilla4)^0.5)-SUM($K160:K160),('RFM input'!$K$334*(1+vanilla4)^0.5)/A4stdlife)) -> 0 | M160: =IF(A4stdlife="n/a","n/a",IF(M$3>(A4stdlife+$F160),('RFM input'!$K$334*(1+vanilla4)^0.5)-SUM($K160:L160),('RFM input'!$K$334*(1+vanilla4)^0.5)/A4stdlife)) -> 0 | N160: =IF(A4stdlife="n/a","n/a",IF(N$3>(A4stdlife+$F160),('RFM input'!$K$334*(1+vanilla4)^0.5)-SUM($K160:M160),('RFM input'!$K$334*(1+vanilla4)^0.5)/A4stdlife)) -> 0 | O160: =IF(A4stdlife="n/a","n/a",IF(O$3>(A4stdlife+$F160),('RFM input'!$K$334*(1+vanilla4)^0.5)-SUM($K160:N160),('RFM input'!$K$334*(1+vanilla4)^0.5)/A4stdlife)) -> 0 | P160: =IF(A4stdlife="n/a","n/a",IF(P$3>(A4stdlife+$F160),('RFM input'!$K$334*(1+vanilla4)^0.5)-SUM($K160:O160),('RFM input'!$K$334*(1+vanilla4)^0.5)/A4stdlife)) -> 0 | Q160: =IF(A4stdlife="n/a","n/a",IF(Q$3>(A4stdlife+$F160),('RFM input'!$K$334*(1+vanilla4)^0.5)-SUM($K160:P160),('RFM input'!$K$334*(1+vanilla4)^0.5)/A4stdlife)) -> 0
F161: 5 | M161: =IF(A4stdlife="n/a","n/a",IF(M$3>(A4stdlife+$F161),('RFM input'!$L$334*(1+vanilla5)^0.5)-SUM($L161:L161),('RFM input'!$L$334*(1+vanilla5)^0.5)/A4stdlife)) -> 0 | N161: =IF(A4stdlife="n/a","n/a",IF(N$3>(A4stdlife+$F161),('RFM input'!$L$334*(1+vanilla5)^0.5)-SUM($L161:M161),('RFM input'!$L$334*(1+vanilla5)^0.5)/A4stdlife)) -> 0 | O161: =IF(A4stdlife="n/a","n/a",IF(O$3>(A4stdlife+$F161),('RFM input'!$L$334*(1+vanilla5)^0.5)-SUM($L161:N161),('RFM input'!$L$334*(1+vanilla5)^0.5)/A4stdlife)) -> 0 | P161: =IF(A4stdlife="n/a","n/a",IF(P$3>(A4stdlife+$F161),('RFM input'!$L$334*(1+vanilla5)^0.5)-SUM($L161:O161),('RFM input'!$L$334*(1+vanilla5)^0.5)/A4stdlife)) -> 0 | Q161: =IF(A4stdlife="n/a","n/a",IF(Q$3>(A4stdlife+$F161),('RFM input'!$L$334*(1+vanilla5)^0.5)-SUM($L161:P161),('RFM input'!$L$334*(1+vanilla5)^0.5)/A4stdlife)) -> 0
F162: 6 | N162: =IF(A4stdlife="n/a","n/a",IF(N$3>(A4stdlife+$F162),('RFM input'!$M$334*(1+vanilla6)^0.5)-SUM($M162:M162),('RFM input'!$M$334*(1+vanilla6)^0.5)/A4stdlife)) -> 0 | O162: =IF(A4stdlife="n/a","n/a",IF(O$3>(A4stdlife+$F162),('RFM input'!$M$334*(1+vanilla6)^0.5)-SUM($M162:N162),('RFM input'!$M$334*(1+vanilla6)^0.5)/A4stdlife)) -> 0 | P162: =IF(A4stdlife="n/a","n/a",IF(P$3>(A4stdlife+$F162),('RFM input'!$M$334*(1+vanilla6)^0.5)-SUM($M162:O162),('RFM input'!$M$334*(1+vanilla6)^0.5)/A4stdlife)) -> 0 | Q162: =IF(A4stdlife="n/a","n/a",IF(Q$3>(A4stdlife+$F162),('RFM input'!$M$334*(1+vanilla6)^0.5)-SUM($M162:P162),('RFM input'!$M$334*(1+vanilla6)^0.5)/A4stdlife)) -> 0
F163: 7 | O163: =IF(A4stdlife="n/a","n/a",IF(O$3>(A4stdlife+$F163),('RFM input'!$N$334*(1+vanilla7)^0.5)-SUM($N163:N163),('RFM input'!$N$334*(1+vanilla7)^0.5)/A4stdlife)) -> 0 | P163: =IF(A4stdlife="n/a","n/a",IF(P$3>(A4stdlife+$F163),('RFM input'!$N$334*(1+vanilla7)^0.5)-SUM($N163:O163),('RFM input'!$N$334*(1+vanilla7)^0.5)/A4stdlife)) -> 0 | Q163: =IF(A4stdlife="n/a","n/a",IF(Q$3>(A4stdlife+$F163),('RFM input'!$N$334*(1+vanilla7)^0.5)-SUM($N163:P163),('RFM input'!$N$334*(1+vanilla7)^0.5)/A4stdlife)) -> 0
F164: 8 | P164: =IF(A4stdlife="n/a","n/a",IF(P$3>(A4stdlife+$F164),('RFM input'!$O$334*(1+vanilla8)^0.5)-SUM($O164:O164),('RFM input'!$O$334*(1+vanilla8)^0.5)/A4stdlife)) -> 0 | Q164: =IF(A4stdlife="n/a","n/a",IF(Q$3>(A4stdlife+$F164),('RFM input'!$O$334*(1+vanilla8)^0.5)-SUM($O164:P164),('RFM input'!$O$334*(1+vanilla8)^0.5)/A4stdlife)) -> 0
F165: 9 | Q165: =IF(A4stdlife="n/a","n/a",IF(Q$3>(A4stdlife+$F165),('RFM input'!$P$334*(1+vanilla9)^0.5)-SUM($P165:P165),('RFM input'!$P$334*(1+vanilla9)^0.5)/A4stdlife)) -> 0
F166: 10
D167: =Asset4 -> CABLE | H167: =IF(OR('RFM input'!$E$396='RFM input'!$G$395,'RFM input'!$E$396='RFM input'!$G$396),-INDEX('RFM input'!H$402:H$451,MATCH($D167,'RFM input'!$E$402:$E$451,0),1),-SUM(H155:H166)) -> -14.58337001 | I167: =IF(OR('RFM input'!$E$396='RFM input'!$G$395,'RFM input'!$E$396='RFM input'!$G$396),-INDEX('RFM input'!I$402:I$451,MATCH($D167,'RFM input'!$E$402:$E$451,0),1),-SUM(I155:I166)) -> -14.58645889 | J167: =IF(COUNT($H167:I167)>='RFM input'!$AA$7,0,IF(OR('RFM input'!$E$396='RFM input'!$G$395,'RFM input'!$E$396='RFM input'!$G$396),-INDEX('RFM input'!J$402:J$451,MATCH($D167,'RFM input'!$E$402:$E$451,0),1),-SUM(J155:J166))) -> -14.58645889 | K167: =IF(COUNT($H167:J167)>='RFM input'!$AA$7,0,IF(OR('RFM input'!$E$396='RFM input'!$G$395,'RFM input'!$E$396='RFM input'!$G$396),-INDEX('RFM input'!K$402:K$451,MATCH($D167,'RFM input'!$E$402:$E$451,0),1),-SUM(K155:K166))) -> -14.58971263 | L167: =IF(COUNT($H167:K167)>='RFM input'!$AA$7,0,IF(OR('RFM input'!$E$396='RFM input'!$G$395,'RFM input'!$E$396='RFM input'!$G$396),-INDEX('RFM input'!L$402:L$451,MATCH($D167,'RFM input'!$E$402:$E$451,0),1),-SUM(L155:L166))) -> -14.58971263 | M167: =IF(COUNT($H167:L167)>='RFM input'!$AA$7,0,IF(OR('RFM input'!$E$396='RFM input'!$G$395,'RFM input'!$E$396='RFM input'!$G$396),-INDEX('RFM input'!M$402:M$451,MATCH($D167,'RFM input'!$E$402:$E$451,0),1),-SUM(M155:M166))) -> -14.58971263 | N167: =IF(COUNT($H167:M167)>='RFM input'!$AA$7,0,IF(OR('RFM input'!$E$396='RFM input'!$G$395,'RFM input'!$E$396='RFM input'!$G$396),-INDEX('RFM input'!N$402:N$451,MATCH($D167,'RFM input'!$E$402:$E$451,0),1),-SUM(N155:N166))) -> -14.58971263 | O167: =IF(COUNT($H167:N167)>='RFM input'!$AA$7,0,IF(OR('RFM input'!$E$396='RFM input'!$G$395,'RFM input'!$E$396='RFM input'!$G$396),-INDEX('RFM input'!O$402:O$451,MATCH($D167,'RFM input'!$E$402:$E$451,0),1),-SUM(O155:O166))) -> -14.58971263 | P167: =IF(COUNT($H167:O167)>='RFM input'!$AA$7,0,IF(OR('RFM input'!$E$396='RFM input'!$G$395,'RFM input'!$E$396='RFM input'!$G$396),-INDEX('RFM input'!P$402:P$451,MATCH($D167,'RFM input'!$E$402:$E$451,0),1),-SUM(P155:P166))) -> -14.58971263 | Q167: =IF(COUNT($H167:P167)>='RFM input'!$AA$7,0,IF(OR('RFM input'!$E$396='RFM input'!$G$395,'RFM input'!$E$396='RFM input'!$G$396),-INDEX('RFM input'!Q$402:Q$451,MATCH($D167,'RFM input'!$E$402:$E$451,0),1),-SUM(Q155:Q166))) -> 0
C168: =Asset5 -> CONTROL SYSTEM | E168: Opening RAB | H168: =IF(H$3>A5remlife,A5value-SUM($G168:G168),IF(A5remlife="N/A","n/a",A5value/A5remlife)) -> 0.2260019852 | I168: =IF(I$3>A5remlife,A5value-SUM($G168:H168),IF(A5remlife="N/A","n/a",A5value/A5remlife)) -> 0.2260019852 | J168: =IF(J$3>A5remlife,A5value-SUM($G168:I168),IF(A5remlife="N/A","n/a",A5value/A5remlife)) -> 0.2260019852 | K168: =IF(K$3>A5remlife,A5value-SUM($G168:J168),IF(A5remlife="N/A","n/a",A5value/A5remlife)) -> 0.2260019852 | L168: =IF(L$3>A5remlife,A5value-SUM($G168:K168),IF(A5remlife="N/A","n/a",A5value/A5remlife)) -> 0.2260019852 | M168: =IF(M$3>A5remlife,A5value-SUM($G168:L168),IF(A5remlife="N/A","n/a",A5value/A5remlife)) -> 0.2260019852 | N168: =IF(N$3>A5remlife,A5value-SUM($G168:M168),IF(A5remlife="N/A","n/a",A5value/A5remlife)) -> 0.2260019852 | O168: =IF(O$3>A5remlife,A5value-SUM($G168:N168),IF(A5remlife="N/A","n/a",A5value/A5remlife)) -> 0.2260019852 | P168: =IF(P$3>A5remlife,A5value-SUM($G168:O168),IF(A5remlife="N/A","n/a",A5value/A5remlife)) -> 0.2260019852 | Q168: =IF(Q$3>A5remlife,A5value-SUM($G168:P168),IF(A5remlife="N/A","n/a",A5value/A5remlife)) -> 0.2260019852
E169: Capex in year
F170: 1 | I170: =IF(A5stdlife="n/a","n/a",IF(I$3>(A5stdlife+$F170),('RFM input'!$H$335*(1+vanilla1)^0.5)-SUM($H170:H170),('RFM input'!$H$335*(1+vanilla1)^0.5)/A5stdlife)) -> 0 | J170: =IF(A5stdlife="n/a","n/a",IF(J$3>(A5stdlife+$F170),('RFM input'!$H$335*(1+vanilla1)^0.5)-SUM($H170:I170),('RFM input'!$H$335*(1+vanilla1)^0.5)/A5stdlife)) -> 0 | K170: =IF(A5stdlife="n/a","n/a",IF(K$3>(A5stdlife+$F170),('RFM input'!$H$335*(1+vanilla1)^0.5)-SUM($H170:J170),('RFM input'!$H$335*(1+vanilla1)^0.5)/A5stdlife)) -> 0 | L170: =IF(A5stdlife="n/a","n/a",IF(L$3>(A5stdlife+$F170),('RFM input'!$H$335*(1+vanilla1)^0.5)-SUM($H170:K170),('RFM input'!$H$335*(1+vanilla1)^0.5)/A5stdlife)) -> 0 | M170: =IF(A5stdlife="n/a","n/a",IF(M$3>(A5stdlife+$F170),('RFM input'!$H$335*(1+vanilla1)^0.5)-SUM($H170:L170),('RFM input'!$H$335*(1+vanilla1)^0.5)/A5stdlife)) -> 0 | N170: =IF(A5stdlife="n/a","n/a",IF(N$3>(A5stdlife+$F170),('RFM input'!$H$335*(1+vanilla1)^0.5)-SUM($H170:M170),('RFM input'!$H$335*(1+vanilla1)^0.5)/A5stdlife)) -> 0 | O170: =IF(A5stdlife="n/a","n/a",IF(O$3>(A5stdlife+$F170),('RFM input'!$H$335*(1+vanilla1)^0.5)-SUM($H170:N170),('RFM input'!$H$335*(1+vanilla1)^0.5)/A5stdlife)) -> 0 | P170: =IF(A5stdlife="n/a","n/a",IF(P$3>(A5stdlife+$F170),('RFM input'!$H$335*(1+vanilla1)^0.5)-SUM($H170:O170),('RFM input'!$H$335*(1+vanilla1)^0.5)/A5stdlife)) -> 0 | Q170: =IF(A5stdlife="n/a","n/a",IF(Q$3>(A5stdlife+$F170),('RFM input'!$H$335*(1+vanilla1)^0.5)-SUM($H170:P170),('RFM input'!$H$335*(1+vanilla1)^0.5)/A5stdlife)) -> 0
F171: 2 | J171: =IF(A5stdlife="n/a","n/a",IF(J$3>(A5stdlife+$F171),('RFM input'!$I$335*(1+vanilla2)^0.5)-SUM($I171:I171),('RFM input'!$I$335*(1+vanilla2)^0.5)/A5stdlife)) -> 0 | K171: =IF(A5stdlife="n/a","n/a",IF(K$3>(A5stdlife+$F171),('RFM input'!$I$335*(1+vanilla2)^0.5)-SUM($I171:J171),('RFM input'!$I$335*(1+vanilla2)^0.5)/A5stdlife)) -> 0 | L171: =IF(A5stdlife="n/a","n/a",IF(L$3>(A5stdlife+$F171),('RFM input'!$I$335*(1+vanilla2)^0.5)-SUM($I171:K171),('RFM input'!$I$335*(1+vanilla2)^0.5)/A5stdlife)) -> 0 | M171: =IF(A5stdlife="n/a","n/a",IF(M$3>(A5stdlife+$F171),('RFM input'!$I$335*(1+vanilla2)^0.5)-SUM($I171:L171),('RFM input'!$I$335*(1+vanilla2)^0.5)/A5stdlife)) -> 0 | N171: =IF(A5stdlife="n/a","n/a",IF(N$3>(A5stdlife+$F171),('RFM input'!$I$335*(1+vanilla2)^0.5)-SUM($I171:M171),('RFM input'!$I$335*(1+vanilla2)^0.5)/A5stdlife)) -> 0 | O171: =IF(A5stdlife="n/a","n/a",IF(O$3>(A5stdlife+$F171),('RFM input'!$I$335*(1+vanilla2)^0.5)-SUM($I171:N171),('RFM input'!$I$335*(1+vanilla2)^0.5)/A5stdlife)) -> 0 | P171: =IF(A5stdlife="n/a","n/a",IF(P$3>(A5stdlife+$F171),('RFM input'!$I$335*(1+vanilla2)^0.5)-SUM($I171:O171),('RFM input'!$I$335*(1+vanilla2)^0.5)/A5stdlife)) -> 0 | Q171: =IF(A5stdlife="n/a","n/a",IF(Q$3>(A5stdlife+$F171),('RFM input'!$I$335*(1+vanilla2)^0.5)-SUM($I171:P171),('RFM input'!$I$335*(1+vanilla2)^0.5)/A5stdlife)) -> 0
F172: 3 | K172: =IF(A5stdlife="n/a","n/a",IF(K$3>(A5stdlife+$F172),('RFM input'!$J$335*(1+vanilla3)^0.5)-SUM($J172:J172),('RFM input'!$J$335*(1+vanilla3)^0.5)/A5stdlife)) -> 0 | L172: =IF(A5stdlife="n/a","n/a",IF(L$3>(A5stdlife+$F172),('RFM input'!$J$335*(1+vanilla3)^0.5)-SUM($J172:K172),('RFM input'!$J$335*(1+vanilla3)^0.5)/A5stdlife)) -> 0 | M172: =IF(A5stdlife="n/a","n/a",IF(M$3>(A5stdlife+$F172),('RFM input'!$J$335*(1+vanilla3)^0.5)-SUM($J172:L172),('RFM input'!$J$335*(1+vanilla3)^0.5)/A5stdlife)) -> 0 | N172: =IF(A5stdlife="n/a","n/a",IF(N$3>(A5stdlife+$F172),('RFM input'!$J$335*(1+vanilla3)^0.5)-SUM($J172:M172),('RFM input'!$J$335*(1+vanilla3)^0.5)/A5stdlife)) -> 0 | O172: =IF(A5stdlife="n/a","n/a",IF(O$3>(A5stdlife+$F172),('RFM input'!$J$335*(1+vanilla3)^0.5)-SUM($J172:N172),('RFM input'!$J$335*(1+vanilla3)^0.5)/A5stdlife)) -> 0 | P172: =IF(A5stdlife="n/a","n/a",IF(P$3>(A5stdlife+$F172),('RFM input'!$J$335*(1+vanilla3)^0.5)-SUM($J172:O172),('RFM input'!$J$335*(1+vanilla3)^0.5)/A5stdlife)) -> 0 | Q172: =IF(A5stdlife="n/a","n/a",IF(Q$3>(A5stdlife+$F172),('RFM input'!$J$335*(1+vanilla3)^0.5)-SUM($J172:P172),('RFM input'!$J$335*(1+vanilla3)^0.5)/A5stdlife)) -> 0
F173: 4 | L173: =IF(A5stdlife="n/a","n/a",IF(L$3>(A5stdlife+$F173),('RFM input'!$K$335*(1+vanilla4)^0.5)-SUM($K173:K173),('RFM input'!$K$335*(1+vanilla4)^0.5)/A5stdlife)) -> 0 | M173: =IF(A5stdlife="n/a","n/a",IF(M$3>(A5stdlife+$F173),('RFM input'!$K$335*(1+vanilla4)^0.5)-SUM($K173:L173),('RFM input'!$K$335*(1+vanilla4)^0.5)/A5stdlife)) -> 0 | N173: =IF(A5stdlife="n/a","n/a",IF(N$3>(A5stdlife+$F173),('RFM input'!$K$335*(1+vanilla4)^0.5)-SUM($K173:M173),('RFM input'!$K$335*(1+vanilla4)^0.5)/A5stdlife)) -> 0 | O173: =IF(A5stdlife="n/a","n/a",IF(O$3>(A5stdlife+$F173),('RFM input'!$K$335*(1+vanilla4)^0.5)-SUM($K173:N173),('RFM input'!$K$335*(1+vanilla4)^0.5)/A5stdlife)) -> 0 | P173: =IF(A5stdlife="n/a","n/a",IF(P$3>(A5stdlife+$F173),('RFM input'!$K$335*(1+vanilla4)^0.5)-SUM($K173:O173),('RFM input'!$K$335*(1+vanilla4)^0.5)/A5stdlife)) -> 0 | Q173: =IF(A5stdlife="n/a","n/a",IF(Q$3>(A5stdlife+$F173),('RFM input'!$K$335*(1+vanilla4)^0.5)-SUM($K173:P173),('RFM input'!$K$335*(1+vanilla4)^0.5)/A5stdlife)) -> 0
F174: 5 | M174: =IF(A5stdlife="n/a","n/a",IF(M$3>(A5stdlife+$F174),('RFM input'!$L$335*(1+vanilla5)^0.5)-SUM($L174:L174),('RFM input'!$L$335*(1+vanilla5)^0.5)/A5stdlife)) -> 0 | N174: =IF(A5stdlife="n/a","n/a",IF(N$3>(A5stdlife+$F174),('RFM input'!$L$335*(1+vanilla5)^0.5)-SUM($L174:M174),('RFM input'!$L$335*(1+vanilla5)^0.5)/A5stdlife)) -> 0 | O174: =IF(A5stdlife="n/a","n/a",IF(O$3>(A5stdlife+$F174),('RFM input'!$L$335*(1+vanilla5)^0.5)-SUM($L174:N174),('RFM input'!$L$335*(1+vanilla5)^0.5)/A5stdlife)) -> 0 | P174: =IF(A5stdlife="n/a","n/a",IF(P$3>(A5stdlife+$F174),('RFM input'!$L$335*(1+vanilla5)^0.5)-SUM($L174:O174),('RFM input'!$L$335*(1+vanilla5)^0.5)/A5stdlife)) -> 0 | Q174: =IF(A5stdlife="n/a","n/a",IF(Q$3>(A5stdlife+$F174),('RFM input'!$L$335*(1+vanilla5)^0.5)-SUM($L174:P174),('RFM input'!$L$335*(1+vanilla5)^0.5)/A5stdlife)) -> 0
F175: 6 | N175: =IF(A5stdlife="n/a","n/a",IF(N$3>(A5stdlife+$F175),('RFM input'!$M$335*(1+vanilla6)^0.5)-SUM($M175:M175),('RFM input'!$M$335*(1+vanilla6)^0.5)/A5stdlife)) -> 0 | O175: =IF(A5stdlife="n/a","n/a",IF(O$3>(A5stdlife+$F175),('RFM input'!$M$335*(1+vanilla6)^0.5)-SUM($M175:N175),('RFM input'!$M$335*(1+vanilla6)^0.5)/A5stdlife)) -> 0 | P175: =IF(A5stdlife="n/a","n/a",IF(P$3>(A5stdlife+$F175),('RFM input'!$M$335*(1+vanilla6)^0.5)-SUM($M175:O175),('RFM input'!$M$335*(1+vanilla6)^0.5)/A5stdlife)) -> 0 | Q175: =IF(A5stdlife="n/a","n/a",IF(Q$3>(A5stdlife+$F175),('RFM input'!$M$335*(1+vanilla6)^0.5)-SUM($M175:P175),('RFM input'!$M$335*(1+vanilla6)^0.5)/A5stdlife)) -> 0
F176: 7 | O176: =IF(A5stdlife="n/a","n/a",IF(O$3>(A5stdlife+$F176),('RFM input'!$N$335*(1+vanilla7)^0.5)-SUM($N176:N176),('RFM input'!$N$335*(1+vanilla7)^0.5)/A5stdlife)) -> 0 | P176: =IF(A5stdlife="n/a","n/a",IF(P$3>(A5stdlife+$F176),('RFM input'!$N$335*(1+vanilla7)^0.5)-SUM($N176:O176),('RFM input'!$N$335*(1+vanilla7)^0.5)/A5stdlife)) -> 0 | Q176: =IF(A5stdlife="n/a","n/a",IF(Q$3>(A5stdlife+$F176),('RFM input'!$N$335*(1+vanilla7)^0.5)-SUM($N176:P176),('RFM input'!$N$335*(1+vanilla7)^0.5)/A5stdlife)) -> 0
F177: 8 | P177: =IF(A5stdlife="n/a","n/a",IF(P$3>(A5stdlife+$F177),('RFM input'!$O$335*(1+vanilla8)^0.5)-SUM($O177:O177),('RFM input'!$O$335*(1+vanilla8)^0.5)/A5stdlife)) -> 0 | Q177: =IF(A5stdlife="n/a","n/a",IF(Q$3>(A5stdlife+$F177),('RFM input'!$O$335*(1+vanilla8)^0.5)-SUM($O177:P177),('RFM input'!$O$335*(1+vanilla8)^0.5)/A5stdlife)) -> 0
F178: 9 | Q178: =IF(A5stdlife="n/a","n/a",IF(Q$3>(A5stdlife+$F178),('RFM input'!$P$335*(1+vanilla9)^0.5)-SUM($P178:P178),('RFM input'!$P$335*(1+vanilla9)^0.5)/A5stdlife)) -> 0
F179: 10
D180: =Asset5 -> CONTROL SYSTEM | H180: =IF(OR('RFM input'!$E$396='RFM input'!$G$395,'RFM input'!$E$396='RFM input'!$G$396),-INDEX('RFM input'!H$402:H$451,MATCH($D180,'RFM input'!$E$402:$E$451,0),1),-SUM(H168:H179)) -> -0.2260019852 | I180: =IF(OR('RFM input'!$E$396='RFM input'!$G$395,'RFM input'!$E$396='RFM input'!$G$396),-INDEX('RFM input'!I$402:I$451,MATCH($D180,'RFM input'!$E$402:$E$451,0),1),-SUM(I168:I179)) -> -0.2260019852 | J180: =IF(COUNT($H180:I180)>='RFM input'!$AA$7,0,IF(OR('RFM input'!$E$396='RFM input'!$G$395,'RFM input'!$E$396='RFM input'!$G$396),-INDEX('RFM input'!J$402:J$451,MATCH($D180,'RFM input'!$E$402:$E$451,0),1),-SUM(J168:J179))) -> -0.2260019852 | K180: =IF(COUNT($H180:J180)>='RFM input'!$AA$7,0,IF(OR('RFM input'!$E$396='RFM input'!$G$395,'RFM input'!$E$396='RFM input'!$G$396),-INDEX('RFM input'!K$402:K$451,MATCH($D180,'RFM input'!$E$402:$E$451,0),1),-SUM(K168:K179))) -> -0.2260019852 | L180: =IF(COUNT($H180:K180)>='RFM input'!$AA$7,0,IF(OR('RFM input'!$E$396='RFM input'!$G$395,'RFM input'!$E$396='RFM input'!$G$396),-INDEX('RFM input'!L$402:L$451,MATCH($D180,'RFM input'!$E$402:$E$451,0),1),-SUM(L168:L179))) -> -0.2260019852 | M180: =IF(COUNT($H180:L180)>='RFM input'!$AA$7,0,IF(OR('RFM input'!$E$396='RFM input'!$G$395,'RFM input'!$E$396='RFM input'!$G$396),-INDEX('RFM input'!M$402:M$451,MATCH($D180,'RFM input'!$E$402:$E$451,0),1),-SUM(M168:M179))) -> -0.2260019852 | N180: =IF(COUNT($H180:M180)>='RFM input'!$AA$7,0,IF(OR('RFM input'!$E$396='RFM input'!$G$395,'RFM input'!$E$396='RFM input'!$G$396),-INDEX('RFM input'!N$402:N$451,MATCH($D180,'RFM input'!$E$402:$E$451,0),1),-SUM(N168:N179))) -> -0.2260019852 | O180: =IF(COUNT($H180:N180)>='RFM input'!$AA$7,0,IF(OR('RFM input'!$E$396='RFM input'!$G$395,'RFM input'!$E$396='RFM input'!$G$396),-INDEX('RFM input'!O$402:O$451,MATCH($D180,'RFM input'!$E$402:$E$451,0),1),-SUM(O168:O179))) -> -0.2260019852 | P180: =IF(COUNT($H180:O180)>='RFM input'!$AA$7,0,IF(OR('RFM input'!$E$396='RFM input'!$G$395,'RFM input'!$E$396='RFM input'!$G$396),-INDEX('RFM input'!P$402:P$451,MATCH($D180,'RFM input'!$E$402:$E$451,0),1),-SUM(P168:P179))) -> -0.2260019852 | Q180: =IF(COUNT($H180:P180)>='RFM input'!$AA$7,0,IF(OR('RFM input'!$E$396='RFM input'!$G$395,'RFM input'!$E$396='RFM input'!$G$396),-INDEX('RFM input'!Q$402:Q$451,MATCH($D180,'RFM input'!$E$402:$E$451,0),1),-SUM(Q168:Q179))) -> 0
C181: =Asset6 -> CONVERTER TRANSFORMER | E181: Opening RAB | H181: =IF(H$3>A6remlife,A6value-SUM($G181:G181),IF(A6remlife="N/A","n/a",A6value/A6remlife)) -> 8.669878465 | I181: =IF(I$3>A6remlife,A6value-SUM($G181:H181),IF(A6remlife="N/A","n/a",A6value/A6remlife)) -> 8.669878465 | J181: =IF(J$3>A6remlife,A6value-SUM($G181:I181),IF(A6remlife="N/A","n/a",A6value/A6remlife)) -> 8.669878465 | K181: =IF(K$3>A6remlife,A6value-SUM($G181:J181),IF(A6remlife="N/A","n/a",A6value/A6remlife)) -> 8.669878465 | L181: =IF(L$3>A6remlife,A6value-SUM($G181:K181),IF(A6remlife="N/A","n/a",A6value/A6remlife)) -> 8.669878465 | M181: =IF(M$3>A6remlife,A6value-SUM($G181:L181),IF(A6remlife="N/A","n/a",A6value/A6remlife)) -> 8.669878465 | N181: =IF(N$3>A6remlife,A6value-SUM($G181:M181),IF(A6remlife="N/A","n/a",A6value/A6remlife)) -> 8.669878465 | O181: =IF(O$3>A6remlife,A6value-SUM($G181:N181),IF(A6remlife="N/A","n/a",A6value/A6remlife)) -> 8.669878465 | P181: =IF(P$3>A6remlife,A6value-SUM($G181:O181),IF(A6remlife="N/A","n/a",A6value/A6remlife)) -> 8.669878465 | Q181: =IF(Q$3>A6remlife,A6value-SUM($G181:P181),IF(A6remlife="N/A","n/a",A6value/A6remlife)) -> 8.669878465
E182: Capex in year
F183: 1 | I183: =IF(A6stdlife="n/a","n/a",IF(I$3>(A6stdlife+$F183),('RFM input'!$H$336*(1+vanilla1)^0.5)-SUM($H183:H183),('RFM input'!$H$336*(1+vanilla1)^0.5)/A6stdlife)) -> 0.001843603414 | J183: =IF(A6stdlife="n/a","n/a",IF(J$3>(A6stdlife+$F183),('RFM input'!$H$336*(1+vanilla1)^0.5)-SUM($H183:I183),('RFM input'!$H$336*(1+vanilla1)^0.5)/A6stdlife)) -> 0.001843603414 | K183: =IF(A6stdlife="n/a","n/a",IF(K$3>(A6stdlife+$F183),('RFM input'!$H$336*(1+vanilla1)^0.5)-SUM($H183:J183),('RFM input'!$H$336*(1+vanilla1)^0.5)/A6stdlife)) -> 0.001843603414 | L183: =IF(A6stdlife="n/a","n/a",IF(L$3>(A6stdlife+$F183),('RFM input'!$H$336*(1+vanilla1)^0.5)-SUM($H183:K183),('RFM input'!$H$336*(1+vanilla1)^0.5)/A6stdlife)) -> 0.001843603414 | M183: =IF(A6stdlife="n/a","n/a",IF(M$3>(A6stdlife+$F183),('RFM input'!$H$336*(1+vanilla1)^0.5)-SUM($H183:L183),('RFM input'!$H$336*(1+vanilla1)^0.5)/A6stdlife)) -> 0.001843603414 | N183: =IF(A6stdlife="n/a","n/a",IF(N$3>(A6stdlife+$F183),('RFM input'!$H$336*(1+vanilla1)^0.5)-SUM($H183:M183),('RFM input'!$H$336*(1+vanilla1)^0.5)/A6stdlife)) -> 0.001843603414 | O183: =IF(A6stdlife="n/a","n/a",IF(O$3>(A6stdlife+$F183),('RFM input'!$H$336*(1+vanilla1)^0.5)-SUM($H183:N183),('RFM input'!$H$336*(1+vanilla1)^0.5)/A6stdlife)) -> 0.001843603414 | P183: =IF(A6stdlife="n/a","n/a",IF(P$3>(A6stdlife+$F183),('RFM input'!$H$336*(1+vanilla1)^0.5)-SUM($H183:O183),('RFM input'!$H$336*(1+vanilla1)^0.5)/A6stdlife)) -> 0.001843603414 | Q183: =IF(A6stdlife="n/a","n/a",IF(Q$3>(A6stdlife+$F183),('RFM input'!$H$336*(1+vanilla1)^0.5)-SUM($H183:P183),('RFM input'!$H$336*(1+vanilla1)^0.5)/A6stdlife)) -> 0.001843603414
F184: 2 | J184: =IF(A6stdlife="n/a","n/a",IF(J$3>(A6stdlife+$F184),('RFM input'!$I$336*(1+vanilla2)^0.5)-SUM($I184:I184),('RFM input'!$I$336*(1+vanilla2)^0.5)/A6stdlife)) -> 0.020580461 | K184: =IF(A6stdlife="n/a","n/a",IF(K$3>(A6stdlife+$F184),('RFM input'!$I$336*(1+vanilla2)^0.5)-SUM($I184:J184),('RFM input'!$I$336*(1+vanilla2)^0.5)/A6stdlife)) -> 0.020580461 | L184: =IF(A6stdlife="n/a","n/a",IF(L$3>(A6stdlife+$F184),('RFM input'!$I$336*(1+vanilla2)^0.5)-SUM($I184:K184),('RFM input'!$I$336*(1+vanilla2)^0.5)/A6stdlife)) -> 0.020580461 | M184: =IF(A6stdlife="n/a","n/a",IF(M$3>(A6stdlife+$F184),('RFM input'!$I$336*(1+vanilla2)^0.5)-SUM($I184:L184),('RFM input'!$I$336*(1+vanilla2)^0.5)/A6stdlife)) -> 0.020580461 | N184: =IF(A6stdlife="n/a","n/a",IF(N$3>(A6stdlife+$F184),('RFM input'!$I$336*(1+vanilla2)^0.5)-SUM($I184:M184),('RFM input'!$I$336*(1+vanilla2)^0.5)/A6stdlife)) -> 0.020580461 | O184: =IF(A6stdlife="n/a","n/a",IF(O$3>(A6stdlife+$F184),('RFM input'!$I$336*(1+vanilla2)^0.5)-SUM($I184:N184),('RFM input'!$I$336*(1+vanilla2)^0.5)/A6stdlife)) -> 0.020580461 | P184: =IF(A6stdlife="n/a","n/a",IF(P$3>(A6stdlife+$F184),('RFM input'!$I$336*(1+vanilla2)^0.5)-SUM($I184:O184),('RFM input'!$I$336*(1+vanilla2)^0.5)/A6stdlife)) -> 0.020580461 | Q184: =IF(A6stdlife="n/a","n/a",IF(Q$3>(A6stdlife+$F184),('RFM input'!$I$336*(1+vanilla2)^0.5)-SUM($I184:P184),('RFM input'!$I$336*(1+vanilla2)^0.5)/A6stdlife)) -> 0.020580461
F185: 3 | K185: =IF(A6stdlife="n/a","n/a",IF(K$3>(A6stdlife+$F185),('RFM input'!$J$336*(1+vanilla3)^0.5)-SUM($J185:J185),('RFM input'!$J$336*(1+vanilla3)^0.5)/A6stdlife)) -> 0 | L185: =IF(A6stdlife="n/a","n/a",IF(L$3>(A6stdlife+$F185),('RFM input'!$J$336*(1+vanilla3)^0.5)-SUM($J185:K185),('RFM input'!$J$336*(1+vanilla3)^0.5)/A6stdlife)) -> 0 | M185: =IF(A6stdlife="n/a","n/a",IF(M$3>(A6stdlife+$F185),('RFM input'!$J$336*(1+vanilla3)^0.5)-SUM($J185:L185),('RFM input'!$J$336*(1+vanilla3)^0.5)/A6stdlife)) -> 0 | N185: =IF(A6stdlife="n/a","n/a",IF(N$3>(A6stdlife+$F185),('RFM input'!$J$336*(1+vanilla3)^0.5)-SUM($J185:M185),('RFM input'!$J$336*(1+vanilla3)^0.5)/A6stdlife)) -> 0 | O185: =IF(A6stdlife="n/a","n/a",IF(O$3>(A6stdlife+$F185),('RFM input'!$J$336*(1+vanilla3)^0.5)-SUM($J185:N185),('RFM input'!$J$336*(1+vanilla3)^0.5)/A6stdlife)) -> 0 | P185: =IF(A6stdlife="n/a","n/a",IF(P$3>(A6stdlife+$F185),('RFM input'!$J$336*(1+vanilla3)^0.5)-SUM($J185:O185),('RFM input'!$J$336*(1+vanilla3)^0.5)/A6stdlife)) -> 0 | Q185: =IF(A6stdlife="n/a","n/a",IF(Q$3>(A6stdlife+$F185),('RFM input'!$J$336*(1+vanilla3)^0.5)-SUM($J185:P185),('RFM input'!$J$336*(1+vanilla3)^0.5)/A6stdlife)) -> 0
F186: 4 | L186: =IF(A6stdlife="n/a","n/a",IF(L$3>(A6stdlife+$F186),('RFM input'!$K$336*(1+vanilla4)^0.5)-SUM($K186:K186),('RFM input'!$K$336*(1+vanilla4)^0.5)/A6stdlife)) -> 0.006055608127 | M186: =IF(A6stdlife="n/a","n/a",IF(M$3>(A6stdlife+$F186),('RFM input'!$K$336*(1+vanilla4)^0.5)-SUM($K186:L186),('RFM input'!$K$336*(1+vanilla4)^0.5)/A6stdlife)) -> 0.006055608127 | N186: =IF(A6stdlife="n/a","n/a",IF(N$3>(A6stdlife+$F186),('RFM input'!$K$336*(1+vanilla4)^0.5)-SUM($K186:M186),('RFM input'!$K$336*(1+vanilla4)^0.5)/A6stdlife)) -> 0.006055608127 | O186: =IF(A6stdlife="n/a","n/a",IF(O$3>(A6stdlife+$F186),('RFM input'!$K$336*(1+vanilla4)^0.5)-SUM($K186:N186),('RFM input'!$K$336*(1+vanilla4)^0.5)/A6stdlife)) -> 0.006055608127 | P186: =IF(A6stdlife="n/a","n/a",IF(P$3>(A6stdlife+$F186),('RFM input'!$K$336*(1+vanilla4)^0.5)-SUM($K186:O186),('RFM input'!$K$336*(1+vanilla4)^0.5)/A6stdlife)) -> 0.006055608127 | Q186: =IF(A6stdlife="n/a","n/a",IF(Q$3>(A6stdlife+$F186),('RFM input'!$K$336*(1+vanilla4)^0.5)-SUM($K186:P186),('RFM input'!$K$336*(1+vanilla4)^0.5)/A6stdlife)) -> 0.006055608127
F187: 5 | M187: =IF(A6stdlife="n/a","n/a",IF(M$3>(A6stdlife+$F187),('RFM input'!$L$336*(1+vanilla5)^0.5)-SUM($L187:L187),('RFM input'!$L$336*(1+vanilla5)^0.5)/A6stdlife)) -> 0.02183657449 | N187: =IF(A6stdlife="n/a","n/a",IF(N$3>(A6stdlife+$F187),('RFM input'!$L$336*(1+vanilla5)^0.5)-SUM($L187:M187),('RFM input'!$L$336*(1+vanilla5)^0.5)/A6stdlife)) -> 0.02183657449 | O187: =IF(A6stdlife="n/a","n/a",IF(O$3>(A6stdlife+$F187),('RFM input'!$L$336*(1+vanilla5)^0.5)-SUM($L187:N187),('RFM input'!$L$336*(1+vanilla5)^0.5)/A6stdlife)) -> 0.02183657449 | P187: =IF(A6stdlife="n/a","n/a",IF(P$3>(A6stdlife+$F187),('RFM input'!$L$336*(1+vanilla5)^0.5)-SUM($L187:O187),('RFM input'!$L$336*(1+vanilla5)^0.5)/A6stdlife)) -> 0.02183657449 | Q187: =IF(A6stdlife="n/a","n/a",IF(Q$3>(A6stdlife+$F187),('RFM input'!$L$336*(1+vanilla5)^0.5)-SUM($L187:P187),('RFM input'!$L$336*(1+vanilla5)^0.5)/A6stdlife)) -> 0.02183657449
F188: 6 | N188: =IF(A6stdlife="n/a","n/a",IF(N$3>(A6stdlife+$F188),('RFM input'!$M$336*(1+vanilla6)^0.5)-SUM($M188:M188),('RFM input'!$M$336*(1+vanilla6)^0.5)/A6stdlife)) -> 0.06338137148 | O188: =IF(A6stdlife="n/a","n/a",IF(O$3>(A6stdlife+$F188),('RFM input'!$M$336*(1+vanilla6)^0.5)-SUM($M188:N188),('RFM input'!$M$336*(1+vanilla6)^0.5)/A6stdlife)) -> 0.06338137148 | P188: =IF(A6stdlife="n/a","n/a",IF(P$3>(A6stdlife+$F188),('RFM input'!$M$336*(1+vanilla6)^0.5)-SUM($M188:O188),('RFM input'!$M$336*(1+vanilla6)^0.5)/A6stdlife)) -> 0.06338137148 | Q188: =IF(A6stdlife="n/a","n/a",IF(Q$3>(A6stdlife+$F188),('RFM input'!$M$336*(1+vanilla6)^0.5)-SUM($M188:P188),('RFM input'!$M$336*(1+vanilla6)^0.5)/A6stdlife)) -> 0.06338137148
F189: 7 | O189: =IF(A6stdlife="n/a","n/a",IF(O$3>(A6stdlife+$F189),('RFM input'!$N$336*(1+vanilla7)^0.5)-SUM($N189:N189),('RFM input'!$N$336*(1+vanilla7)^0.5)/A6stdlife)) -> 0.0001981872924 | P189: =IF(A6stdlife="n/a","n/a",IF(P$3>(A6stdlife+$F189),('RFM input'!$N$336*(1+vanilla7)^0.5)-SUM($N189:O189),('RFM input'!$N$336*(1+vanilla7)^0.5)/A6stdlife)) -> 0.0001981872924 | Q189: =IF(A6stdlife="n/a","n/a",IF(Q$3>(A6stdlife+$F189),('RFM input'!$N$336*(1+vanilla7)^0.5)-SUM($N189:P189),('RFM input'!$N$336*(1+vanilla7)^0.5)/A6stdlife)) -> 0.0001981872924
F190: 8 | P190: =IF(A6stdlife="n/a","n/a",IF(P$3>(A6stdlife+$F190),('RFM input'!$O$336*(1+vanilla8)^0.5)-SUM($O190:O190),('RFM input'!$O$336*(1+vanilla8)^0.5)/A6stdlife)) -> 0.0005037163043 | Q190: =IF(A6stdlife="n/a","n/a",IF(Q$3>(A6stdlife+$F190),('RFM input'!$O$336*(1+vanilla8)^0.5)-SUM($O190:P190),('RFM input'!$O$336*(1+vanilla8)^0.5)/A6stdlife)) -> 0.0005037163043
F191: 9 | Q191: =IF(A6stdlife="n/a","n/a",IF(Q$3>(A6stdlife+$F191),('RFM input'!$P$336*(1+vanilla9)^0.5)-SUM($P191:P191),('RFM input'!$P$336*(1+vanilla9)^0.5)/A6stdlife)) -> 0.001053527763
F192: 10
D193: =Asset6 -> CONVERTER TRANSFORMER | H193: =IF(OR('RFM input'!$E$396='RFM input'!$G$395,'RFM input'!$E$396='RFM input'!$G$396),-INDEX('RFM input'!H$402:H$451,MATCH($D193,'RFM input'!$E$402:$E$451,0),1),-SUM(H181:H192)) -> -8.669878465 | I193: =IF(OR('RFM input'!$E$396='RFM input'!$G$395,'RFM input'!$E$396='RFM input'!$G$396),-INDEX('RFM input'!I$402:I$451,MATCH($D193,'RFM input'!$E$402:$E$451,0),1),-SUM(I181:I192)) -> -8.671722068 | J193: =IF(COUNT($H193:I193)>='RFM input'!$AA$7,0,IF(OR('RFM input'!$E$396='RFM input'!$G$395,'RFM input'!$E$396='RFM input'!$G$396),-INDEX('RFM input'!J$402:J$451,MATCH($D193,'RFM input'!$E$402:$E$451,0),1),-SUM(J181:J192))) -> -8.692302529 | K193: =IF(COUNT($H193:J193)>='RFM input'!$AA$7,0,IF(OR('RFM input'!$E$396='RFM input'!$G$395,'RFM input'!$E$396='RFM input'!$G$396),-INDEX('RFM input'!K$402:K$451,MATCH($D193,'RFM input'!$E$402:$E$451,0),1),-SUM(K181:K192))) -> -8.692302529 | L193: =IF(COUNT($H193:K193)>='RFM input'!$AA$7,0,IF(OR('RFM input'!$E$396='RFM input'!$G$395,'RFM input'!$E$396='RFM input'!$G$396),-INDEX('RFM input'!L$402:L$451,MATCH($D193,'RFM input'!$E$402:$E$451,0),1),-SUM(L181:L192))) -> -8.698358138 | M193: =IF(COUNT($H193:L193)>='RFM input'!$AA$7,0,IF(OR('RFM input'!$E$396='RFM input'!$G$395,'RFM input'!$E$396='RFM input'!$G$396),-INDEX('RFM input'!M$402:M$451,MATCH($D193,'RFM input'!$E$402:$E$451,0),1),-SUM(M181:M192))) -> -8.720194712 | N193: =IF(COUNT($H193:M193)>='RFM input'!$AA$7,0,IF(OR('RFM input'!$E$396='RFM input'!$G$395,'RFM input'!$E$396='RFM input'!$G$396),-INDEX('RFM input'!N$402:N$451,MATCH($D193,'RFM input'!$E$402:$E$451,0),1),-SUM(N181:N192))) -> -8.783576083 | O193: =IF(COUNT($H193:N193)>='RFM input'!$AA$7,0,IF(OR('RFM input'!$E$396='RFM input'!$G$395,'RFM input'!$E$396='RFM input'!$G$396),-INDEX('RFM input'!O$402:O$451,MATCH($D193,'RFM input'!$E$402:$E$451,0),1),-SUM(O181:O192))) -> -8.783774271 | P193: =IF(COUNT($H193:O193)>='RFM input'!$AA$7,0,IF(OR('RFM input'!$E$396='RFM input'!$G$395,'RFM input'!$E$396='RFM input'!$G$396),-INDEX('RFM input'!P$402:P$451,MATCH($D193,'RFM input'!$E$402:$E$451,0),1),-SUM(P181:P192))) -> -8.784277987 | Q193: =IF(COUNT($H193:P193)>='RFM input'!$AA$7,0,IF(OR('RFM input'!$E$396='RFM input'!$G$395,'RFM input'!$E$396='RFM input'!$G$396),-INDEX('RFM input'!Q$402:Q$451,MATCH($D193,'RFM input'!$E$402:$E$451,0),1),-SUM(Q181:Q192))) -> 0
C194: =Asset7 -> DC FILTER | E194: Opening RAB | H194: =IF(H$3>A7remlife,A7value-SUM($G194:G194),IF(A7remlife="N/A","n/a",A7value/A7remlife)) -> 0.02686195024 | I194: =IF(I$3>A7remlife,A7value-SUM($G194:H194),IF(A7remlife="N/A","n/a",A7value/A7remlife)) -> 0.02686195024 | J194: =IF(J$3>A7remlife,A7value-SUM($G194:I194),IF(A7remlife="N/A","n/a",A7value/A7remlife)) -> 0.02686195024 | K194: =IF(K$3>A7remlife,A7value-SUM($G194:J194),IF(A7remlife="N/A","n/a",A7value/A7remlife)) -> 0.02686195024 | L194: =IF(L$3>A7remlife,A7value-SUM($G194:K194),IF(A7remlife="N/A","n/a",A7value/A7remlife)) -> 0.02686195024 | M194: =IF(M$3>A7remlife,A7value-SUM($G194:L194),IF(A7remlife="N/A","n/a",A7value/A7remlife)) -> 0.02686195024 | N194: =IF(N$3>A7remlife,A7value-SUM($G194:M194),IF(A7remlife="N/A","n/a",A7value/A7remlife)) -> 0.02686195024 | O194: =IF(O$3>A7remlife,A7value-SUM($G194:N194),IF(A7remlife="N/A","n/a",A7value/A7remlife)) -> 0.02686195024 | P194: =IF(P$3>A7remlife,A7value-SUM($G194:O194),IF(A7remlife="N/A","n/a",A7value/A7remlife)) -> 0.02686195024 | Q194: =IF(Q$3>A7remlife,A7value-SUM($G194:P194),IF(A7remlife="N/A","n/a",A7value/A7remlife)) -> 0.02686195024
E195: Capex in year
F196: 1 | I196: =IF(A7stdlife="n/a","n/a",IF(I$3>(A7stdlife+$F196),('RFM input'!$H$337*(1+vanilla1)^0.5)-SUM($H196:H196),('RFM input'!$H$337*(1+vanilla1)^0.5)/A7stdlife)) -> 0.001892266364 | J196: =IF(A7stdlife="n/a","n/a",IF(J$3>(A7stdlife+$F196),('RFM input'!$H$337*(1+vanilla1)^0.5)-SUM($H196:I196),('RFM input'!$H$337*(1+vanilla1)^0.5)/A7stdlife)) -> 0.001892266364 | K196: =IF(A7stdlife="n/a","n/a",IF(K$3>(A7stdlife+$F196),('RFM input'!$H$337*(1+vanilla1)^0.5)-SUM($H196:J196),('RFM input'!$H$337*(1+vanilla1)^0.5)/A7stdlife)) -> 0.001892266364 | L196: =IF(A7stdlife="n/a","n/a",IF(L$3>(A7stdlife+$F196),('RFM input'!$H$337*(1+vanilla1)^0.5)-SUM($H196:K196),('RFM input'!$H$337*(1+vanilla1)^0.5)/A7stdlife)) -> 0.001892266364 | M196: =IF(A7stdlife="n/a","n/a",IF(M$3>(A7stdlife+$F196),('RFM input'!$H$337*(1+vanilla1)^0.5)-SUM($H196:L196),('RFM input'!$H$337*(1+vanilla1)^0.5)/A7stdlife)) -> 0.001892266364 | N196: =IF(A7stdlife="n/a","n/a",IF(N$3>(A7stdlife+$F196),('RFM input'!$H$337*(1+vanilla1)^0.5)-SUM($H196:M196),('RFM input'!$H$337*(1+vanilla1)^0.5)/A7stdlife)) -> 0.001892266364 | O196: =IF(A7stdlife="n/a","n/a",IF(O$3>(A7stdlife+$F196),('RFM input'!$H$337*(1+vanilla1)^0.5)-SUM($H196:N196),('RFM input'!$H$337*(1+vanilla1)^0.5)/A7stdlife)) -> 0.001892266364 | P196: =IF(A7stdlife="n/a","n/a",IF(P$3>(A7stdlife+$F196),('RFM input'!$H$337*(1+vanilla1)^0.5)-SUM($H196:O196),('RFM input'!$H$337*(1+vanilla1)^0.5)/A7stdlife)) -> 0.001892266364 | Q196: =IF(A7stdlife="n/a","n/a",IF(Q$3>(A7stdlife+$F196),('RFM input'!$H$337*(1+vanilla1)^0.5)-SUM($H196:P196),('RFM input'!$H$337*(1+vanilla1)^0.5)/A7stdlife)) -> 0.001892266364
F197: 2 | J197: =IF(A7stdlife="n/a","n/a",IF(J$3>(A7stdlife+$F197),('RFM input'!$I$337*(1+vanilla2)^0.5)-SUM($I197:I197),('RFM input'!$I$337*(1+vanilla2)^0.5)/A7stdlife)) -> 0 | K197: =IF(A7stdlife="n/a","n/a",IF(K$3>(A7stdlife+$F197),('RFM input'!$I$337*(1+vanilla2)^0.5)-SUM($I197:J197),('RFM input'!$I$337*(1+vanilla2)^0.5)/A7stdlife)) -> 0 | L197: =IF(A7stdlife="n/a","n/a",IF(L$3>(A7stdlife+$F197),('RFM input'!$I$337*(1+vanilla2)^0.5)-SUM($I197:K197),('RFM input'!$I$337*(1+vanilla2)^0.5)/A7stdlife)) -> 0 | M197: =IF(A7stdlife="n/a","n/a",IF(M$3>(A7stdlife+$F197),('RFM input'!$I$337*(1+vanilla2)^0.5)-SUM($I197:L197),('RFM input'!$I$337*(1+vanilla2)^0.5)/A7stdlife)) -> 0 | N197: =IF(A7stdlife="n/a","n/a",IF(N$3>(A7stdlife+$F197),('RFM input'!$I$337*(1+vanilla2)^0.5)-SUM($I197:M197),('RFM input'!$I$337*(1+vanilla2)^0.5)/A7stdlife)) -> 0 | O197: =IF(A7stdlife="n/a","n/a",IF(O$3>(A7stdlife+$F197),('RFM input'!$I$337*(1+vanilla2)^0.5)-SUM($I197:N197),('RFM input'!$I$337*(1+vanilla2)^0.5)/A7stdlife)) -> 0 | P197: =IF(A7stdlife="n/a","n/a",IF(P$3>(A7stdlife+$F197),('RFM input'!$I$337*(1+vanilla2)^0.5)-SUM($I197:O197),('RFM input'!$I$337*(1+vanilla2)^0.5)/A7stdlife)) -> 0 | Q197: =IF(A7stdlife="n/a","n/a",IF(Q$3>(A7stdlife+$F197),('RFM input'!$I$337*(1+vanilla2)^0.5)-SUM($I197:P197),('RFM input'!$I$337*(1+vanilla2)^0.5)/A7stdlife)) -> 0
F198: 3 | K198: =IF(A7stdlife="n/a","n/a",IF(K$3>(A7stdlife+$F198),('RFM input'!$J$337*(1+vanilla3)^0.5)-SUM($J198:J198),('RFM input'!$J$337*(1+vanilla3)^0.5)/A7stdlife)) -> 0 | L198: =IF(A7stdlife="n/a","n/a",IF(L$3>(A7stdlife+$F198),('RFM input'!$J$337*(1+vanilla3)^0.5)-SUM($J198:K198),('RFM input'!$J$337*(1+vanilla3)^0.5)/A7stdlife)) -> 0 | M198: =IF(A7stdlife="n/a","n/a",IF(M$3>(A7stdlife+$F198),('RFM input'!$J$337*(1+vanilla3)^0.5)-SUM($J198:L198),('RFM input'!$J$337*(1+vanilla3)^0.5)/A7stdlife)) -> 0 | N198: =IF(A7stdlife="n/a","n/a",IF(N$3>(A7stdlife+$F198),('RFM input'!$J$337*(1+vanilla3)^0.5)-SUM($J198:M198),('RFM input'!$J$337*(1+vanilla3)^0.5)/A7stdlife)) -> 0 | O198: =IF(A7stdlife="n/a","n/a",IF(O$3>(A7stdlife+$F198),('RFM input'!$J$337*(1+vanilla3)^0.5)-SUM($J198:N198),('RFM input'!$J$337*(1+vanilla3)^0.5)/A7stdlife)) -> 0 | P198: =IF(A7stdlife="n/a","n/a",IF(P$3>(A7stdlife+$F198),('RFM input'!$J$337*(1+vanilla3)^0.5)-SUM($J198:O198),('RFM input'!$J$337*(1+vanilla3)^0.5)/A7stdlife)) -> 0 | Q198: =IF(A7stdlife="n/a","n/a",IF(Q$3>(A7stdlife+$F198),('RFM input'!$J$337*(1+vanilla3)^0.5)-SUM($J198:P198),('RFM input'!$J$337*(1+vanilla3)^0.5)/A7stdlife)) -> 0
F199: 4 | L199: =IF(A7stdlife="n/a","n/a",IF(L$3>(A7stdlife+$F199),('RFM input'!$K$337*(1+vanilla4)^0.5)-SUM($K199:K199),('RFM input'!$K$337*(1+vanilla4)^0.5)/A7stdlife)) -> 0 | M199: =IF(A7stdlife="n/a","n/a",IF(M$3>(A7stdlife+$F199),('RFM input'!$K$337*(1+vanilla4)^0.5)-SUM($K199:L199),('RFM input'!$K$337*(1+vanilla4)^0.5)/A7stdlife)) -> 0 | N199: =IF(A7stdlife="n/a","n/a",IF(N$3>(A7stdlife+$F199),('RFM input'!$K$337*(1+vanilla4)^0.5)-SUM($K199:M199),('RFM input'!$K$337*(1+vanilla4)^0.5)/A7stdlife)) -> 0 | O199: =IF(A7stdlife="n/a","n/a",IF(O$3>(A7stdlife+$F199),('RFM input'!$K$337*(1+vanilla4)^0.5)-SUM($K199:N199),('RFM input'!$K$337*(1+vanilla4)^0.5)/A7stdlife)) -> 0 | P199: =IF(A7stdlife="n/a","n/a",IF(P$3>(A7stdlife+$F199),('RFM input'!$K$337*(1+vanilla4)^0.5)-SUM($K199:O199),('RFM input'!$K$337*(1+vanilla4)^0.5)/A7stdlife)) -> 0 | Q199: =IF(A7stdlife="n/a","n/a",IF(Q$3>(A7stdlife+$F199),('RFM input'!$K$337*(1+vanilla4)^0.5)-SUM($K199:P199),('RFM input'!$K$337*(1+vanilla4)^0.5)/A7stdlife)) -> 0
F200: 5 | M200: =IF(A7stdlife="n/a","n/a",IF(M$3>(A7stdlife+$F200),('RFM input'!$L$337*(1+vanilla5)^0.5)-SUM($L200:L200),('RFM input'!$L$337*(1+vanilla5)^0.5)/A7stdlife)) -> 0 | N200: =IF(A7stdlife="n/a","n/a",IF(N$3>(A7stdlife+$F200),('RFM input'!$L$337*(1+vanilla5)^0.5)-SUM($L200:M200),('RFM input'!$L$337*(1+vanilla5)^0.5)/A7stdlife)) -> 0 | O200: =IF(A7stdlife="n/a","n/a",IF(O$3>(A7stdlife+$F200),('RFM input'!$L$337*(1+vanilla5)^0.5)-SUM($L200:N200),('RFM input'!$L$337*(1+vanilla5)^0.5)/A7stdlife)) -> 0 | P200: =IF(A7stdlife="n/a","n/a",IF(P$3>(A7stdlife+$F200),('RFM input'!$L$337*(1+vanilla5)^0.5)-SUM($L200:O200),('RFM input'!$L$337*(1+vanilla5)^0.5)/A7stdlife)) -> 0 | Q200: =IF(A7stdlife="n/a","n/a",IF(Q$3>(A7stdlife+$F200),('RFM input'!$L$337*(1+vanilla5)^0.5)-SUM($L200:P200),('RFM input'!$L$337*(1+vanilla5)^0.5)/A7stdlife)) -> 0
F201: 6 | N201: =IF(A7stdlife="n/a","n/a",IF(N$3>(A7stdlife+$F201),('RFM input'!$M$337*(1+vanilla6)^0.5)-SUM($M201:M201),('RFM input'!$M$337*(1+vanilla6)^0.5)/A7stdlife)) -> 0 | O201: =IF(A7stdlife="n/a","n/a",IF(O$3>(A7stdlife+$F201),('RFM input'!$M$337*(1+vanilla6)^0.5)-SUM($M201:N201),('RFM input'!$M$337*(1+vanilla6)^0.5)/A7stdlife)) -> 0 | P201: =IF(A7stdlife="n/a","n/a",IF(P$3>(A7stdlife+$F201),('RFM input'!$M$337*(1+vanilla6)^0.5)-SUM($M201:O201),('RFM input'!$M$337*(1+vanilla6)^0.5)/A7stdlife)) -> 0 | Q201: =IF(A7stdlife="n/a","n/a",IF(Q$3>(A7stdlife+$F201),('RFM input'!$M$337*(1+vanilla6)^0.5)-SUM($M201:P201),('RFM input'!$M$337*(1+vanilla6)^0.5)/A7stdlife)) -> 0
F202: 7 | O202: =IF(A7stdlife="n/a","n/a",IF(O$3>(A7stdlife+$F202),('RFM input'!$N$337*(1+vanilla7)^0.5)-SUM($N202:N202),('RFM input'!$N$337*(1+vanilla7)^0.5)/A7stdlife)) -> 0 | P202: =IF(A7stdlife="n/a","n/a",IF(P$3>(A7stdlife+$F202),('RFM input'!$N$337*(1+vanilla7)^0.5)-SUM($N202:O202),('RFM input'!$N$337*(1+vanilla7)^0.5)/A7stdlife)) -> 0 | Q202: =IF(A7stdlife="n/a","n/a",IF(Q$3>(A7stdlife+$F202),('RFM input'!$N$337*(1+vanilla7)^0.5)-SUM($N202:P202),('RFM input'!$N$337*(1+vanilla7)^0.5)/A7stdlife)) -> 0
F203: 8 | P203: =IF(A7stdlife="n/a","n/a",IF(P$3>(A7stdlife+$F203),('RFM input'!$O$337*(1+vanilla8)^0.5)-SUM($O203:O203),('RFM input'!$O$337*(1+vanilla8)^0.5)/A7stdlife)) -> 0 | Q203: =IF(A7stdlife="n/a","n/a",IF(Q$3>(A7stdlife+$F203),('RFM input'!$O$337*(1+vanilla8)^0.5)-SUM($O203:P203),('RFM input'!$O$337*(1+vanilla8)^0.5)/A7stdlife)) -> 0
F204: 9 | Q204: =IF(A7stdlife="n/a","n/a",IF(Q$3>(A7stdlife+$F204),('RFM input'!$P$337*(1+vanilla9)^0.5)-SUM($P204:P204),('RFM input'!$P$337*(1+vanilla9)^0.5)/A7stdlife)) -> 0
F205: 10
D206: =Asset7 -> DC FILTER | H206: =IF(OR('RFM input'!$E$396='RFM input'!$G$395,'RFM input'!$E$396='RFM input'!$G$396),-INDEX('RFM input'!H$402:H$451,MATCH($D206,'RFM input'!$E$402:$E$451,0),1),-SUM(H194:H205)) -> -0.02686195024 | I206: =IF(OR('RFM input'!$E$396='RFM input'!$G$395,'RFM input'!$E$396='RFM input'!$G$396),-INDEX('RFM input'!I$402:I$451,MATCH($D206,'RFM input'!$E$402:$E$451,0),1),-SUM(I194:I205)) -> -0.02875421661 | J206: =IF(COUNT($H206:I206)>='RFM input'!$AA$7,0,IF(OR('RFM input'!$E$396='RFM input'!$G$395,'RFM input'!$E$396='RFM input'!$G$396),-INDEX('RFM input'!J$402:J$451,MATCH($D206,'RFM input'!$E$402:$E$451,0),1),-SUM(J194:J205))) -> -0.02875421661 | K206: =IF(COUNT($H206:J206)>='RFM input'!$AA$7,0,IF(OR('RFM input'!$E$396='RFM input'!$G$395,'RFM input'!$E$396='RFM input'!$G$396),-INDEX('RFM input'!K$402:K$451,MATCH($D206,'RFM input'!$E$402:$E$451,0),1),-SUM(K194:K205))) -> -0.02875421661 | L206: =IF(COUNT($H206:K206)>='RFM input'!$AA$7,0,IF(OR('RFM input'!$E$396='RFM input'!$G$395,'RFM input'!$E$396='RFM input'!$G$396),-INDEX('RFM input'!L$402:L$451,MATCH($D206,'RFM input'!$E$402:$E$451,0),1),-SUM(L194:L205))) -> -0.02875421661 | M206: =IF(COUNT($H206:L206)>='RFM input'!$AA$7,0,IF(OR('RFM input'!$E$396='RFM input'!$G$395,'RFM input'!$E$396='RFM input'!$G$396),-INDEX('RFM input'!M$402:M$451,MATCH($D206,'RFM input'!$E$402:$E$451,0),1),-SUM(M194:M205))) -> -0.02875421661 | N206: =IF(COUNT($H206:M206)>='RFM input'!$AA$7,0,IF(OR('RFM input'!$E$396='RFM input'!$G$395,'RFM input'!$E$396='RFM input'!$G$396),-INDEX('RFM input'!N$402:N$451,MATCH($D206,'RFM input'!$E$402:$E$451,0),1),-SUM(N194:N205))) -> -0.02875421661 | O206: =IF(COUNT($H206:N206)>='RFM input'!$AA$7,0,IF(OR('RFM input'!$E$396='RFM input'!$G$395,'RFM input'!$E$396='RFM input'!$G$396),-INDEX('RFM input'!O$402:O$451,MATCH($D206,'RFM input'!$E$402:$E$451,0),1),-SUM(O194:O205))) -> -0.02875421661 | P206: =IF(COUNT($H206:O206)>='RFM input'!$AA$7,0,IF(OR('RFM input'!$E$396='RFM input'!$G$395,'RFM input'!$E$396='RFM input'!$G$396),-INDEX('RFM input'!P$402:P$451,MATCH($D206,'RFM input'!$E$402:$E$451,0),1),-SUM(P194:P205))) -> -0.02875421661 | Q206: =IF(COUNT($H206:P206)>='RFM input'!$AA$7,0,IF(OR('RFM input'!$E$396='RFM input'!$G$395,'RFM input'!$E$396='RFM input'!$G$396),-INDEX('RFM input'!Q$402:Q$451,MATCH($D206,'RFM input'!$E$402:$E$451,0),1),-SUM(Q194:Q205))) -> 0
... 1377 more rows

Sheet Total RAB roll forward
C2: ='DMS input'!$C$16&" - Total Asset Roll Forward"&" - TNSP RFM - version "&Intro!$M$4 -> Basslink - Total Asset Roll Forward - TNSP RFM - version 4.1
G3: 0 | H3: =G3+1 -> 1 | I3: 2 | J3: 3 | K3: 4 | L3: 5 | M3: 6
C4: Year | G4: ='RFM input'!G60 -> 2005-06 | H4: ='RFM input'!H60 -> 2006-07 | I4: ='RFM input'!I60 -> 2007-08 | J4: ='RFM input'!J60 -> 2008-09 | K4: ='RFM input'!K60 -> 2009-10 | L4: ='RFM input'!L60 -> 2010-11 | M4: ='RFM input'!M60 -> 2011-12 | N4: ='RFM input'!N60 -> 2012-13 | O4: ='RFM input'!O60 -> 2013-14 | P4: ='RFM input'!P60 -> 2014-15 | Q4: ='RFM input'!Q60 -> 2015-16
C5: Asset Values – Partially As Incurred ($m Nominal)
C7: Nominal Opening Regulatory Asset Base | G7: =SUM(G8:G57) -> 976.4568665 | H7: =SUM(H8:H57) -> 976.4568665 | I7: 968.8649959 | J7: 977.9177275 | K7: 967.5528396 | L7: 961.3883839 | M7: 957.0145565 | N7: 937.6229482 | O7: 923.8575187 | P7: 913.7844853 | Q7: 0
D8: =Asset1 -> AC FILTERS | G8: ='RAB roll forward'!G770 -> 12.31172719 | H8: =G8+G60+G112+G164+G216+G268 -> 12.31172719 | I8: =H8+H60+H112 -> 11.35053596 | J8: =IF(COUNT($H8:I8)>='RFM input'!$AA$7,0,I8+I60+I112) -> 10.5368348 | K8: =IF(COUNT($H8:J8)>='RFM input'!$AA$7,0,J8+J60+J112) -> 9.439406132 | L8: =IF(COUNT($H8:K8)>='RFM input'!$AA$7,0,K8+K60+K112) -> 8.327803482 | M8: =IF(COUNT($H8:L8)>='RFM input'!$AA$7,0,L8+L60+L112) -> 7.171361459 | N8: =IF(COUNT($H8:M8)>='RFM input'!$AA$7,0,M8+M60+M112) -> 5.813979446 | O8: =IF(COUNT($H8:N8)>='RFM input'!$AA$7,0,N8+N60+N112) -> 4.461372665 | P8: =IF(COUNT($H8:O8)>='RFM input'!$AA$7,0,O8+O60+O112) -> 3.056485146 | Q8: =IF(COUNT($H8:P8)>='RFM input'!$AA$7,0,P8+P60+P112) -> 0
D9: =Asset2 -> AC SWITCHYARD | G9: ='RAB roll forward'!G771 -> 7.205981239 | H9: 7.205981239 | I9: 7.199649018 | J9: =IF(COUNT($H9:I9)>='RFM input'!$AA$7,0,I9+I61+I113) -> 7.317231525 | K9: =IF(COUNT($H9:J9)>='RFM input'!$AA$7,0,J9+J61+J113) -> 7.297360405 | L9: =IF(COUNT($H9:K9)>='RFM input'!$AA$7,0,K9+K61+K113) -> 7.750767 | M9: =IF(COUNT($H9:L9)>='RFM input'!$AA$7,0,L9+L61+L113) -> 7.782853104 | N9: =IF(COUNT($H9:M9)>='RFM input'!$AA$7,0,M9+M61+M113) -> 7.682056274 | O9: =IF(COUNT($H9:N9)>='RFM input'!$AA$7,0,N9+N61+N113) -> 7.643121338 | P9: =IF(COUNT($H9:O9)>='RFM input'!$AA$7,0,O9+O61+O113) -> 7.630077072 | Q9: =IF(COUNT($H9:P9)>='RFM input'!$AA$7,0,P9+P61+P113) -> 0
D10: =Asset3 -> AUXILIARY SYSTEMS | G10: ='RAB roll forward'!G772 -> 13.55007458 | H10: 13.55007458 | I10: 13.42194936 | J10: =IF(COUNT($H10:I10)>='RFM input'!$AA$7,0,I10+I62+I114) -> 13.51897879 | K10: =IF(COUNT($H10:J10)>='RFM input'!$AA$7,0,J10+J62+J114) -> 13.35858493 | L10: =IF(COUNT($H10:K10)>='RFM input'!$AA$7,0,K10+K62+K114) -> 13.2393872 | M10: =IF(COUNT($H10:L10)>='RFM input'!$AA$7,0,L10+L62+L114) -> 13.1465168 | N10: =IF(COUNT($H10:M10)>='RFM input'!$AA$7,0,M10+M62+M114) -> 12.81945133 | O10: =IF(COUNT($H10:N10)>='RFM input'!$AA$7,0,N10+N62+N114) -> 12.59040451 | P10: =IF(COUNT($H10:O10)>='RFM input'!$AA$7,0,O10+O62+O114) -> 12.39565 | Q10: =IF(COUNT($H10:P10)>='RFM input'!$AA$7,0,P10+P62+P114) -> 0
D11: =Asset4 -> CABLE | G11: ='RAB roll forward'!G773 -> 583.3348003 | H11: 583.3348003 | I11: 582.9493649 | J11: =IF(COUNT($H11:I11)>='RFM input'!$AA$7,0,I11+I63+I115) -> 592.4700172 | K11: =IF(COUNT($H11:J11)>='RFM input'!$AA$7,0,J11+J63+J115) -> 591.0043234 | L11: =IF(COUNT($H11:K11)>='RFM input'!$AA$7,0,K11+K63+K115) -> 591.817399 | M11: =IF(COUNT($H11:L11)>='RFM input'!$AA$7,0,L11+L63+L115) -> 594.1710947 | N11: =IF(COUNT($H11:M11)>='RFM input'!$AA$7,0,M11+M63+M115) -> 586.373682 | O11: =IF(COUNT($H11:N11)>='RFM input'!$AA$7,0,N11+N63+N115) -> 583.2948078 | P11: =IF(COUNT($H11:O11)>='RFM input'!$AA$7,0,O11+O63+O115) -> 582.186366 | Q11: =IF(COUNT($H11:P11)>='RFM input'!$AA$7,0,P11+P63+P115) -> 0
D12: =Asset5 -> CONTROL SYSTEM | G12: ='RAB roll forward'!G774 -> 4.520039704 | H12: 4.520039704 | I12: 4.399763431 | J12: =IF(COUNT($H12:I12)>='RFM input'!$AA$7,0,I12+I64+I116) -> 4.34935466 | K12: =IF(COUNT($H12:J12)>='RFM input'!$AA$7,0,J12+J64+J116) -> 4.206744347 | L12: =IF(COUNT($H12:K12)>='RFM input'!$AA$7,0,K12+K64+K116) -> 4.074905066 | M12: =IF(COUNT($H12:L12)>='RFM input'!$AA$7,0,L12+L64+L116) -> 3.945533099 | N12: =IF(COUNT($H12:M12)>='RFM input'!$AA$7,0,M12+M64+M116) -> 3.739156599 | O12: =IF(COUNT($H12:N12)>='RFM input'!$AA$7,0,N12+N64+N116) -> 3.557727889 | P12: =IF(COUNT($H12:O12)>='RFM input'!$AA$7,0,O12+O64+O116) -> 3.380075088 | Q12: =IF(COUNT($H12:P12)>='RFM input'!$AA$7,0,P12+P64+P116) -> 0
D13: =Asset6 -> CONVERTER TRANSFORMER | G13: ='RAB roll forward'!G775 -> 182.0674478 | H13: 182.0674478 | I13: 177.7087264 | J13: =IF(COUNT($H13:I13)>='RFM input'!$AA$7,0,I13+I65+I117) -> 176.6102114 | K13: =IF(COUNT($H13:J13)>='RFM input'!$AA$7,0,J13+J65+J117) -> 171.3525332 | L13: =IF(COUNT($H13:K13)>='RFM input'!$AA$7,0,K13+K65+K117) -> 166.7040534 | M13: =IF(COUNT($H13:L13)>='RFM input'!$AA$7,0,L13+L65+L117) -> 162.5778982 | N13: =IF(COUNT($H13:M13)>='RFM input'!$AA$7,0,M13+M65+M117) -> 156.376908 | O13: =IF(COUNT($H13:N13)>='RFM input'!$AA$7,0,N13+N65+N117) -> 149.6073759 | P13: =IF(COUNT($H13:O13)>='RFM input'!$AA$7,0,O13+O65+O117) -> 143.0479527 | Q13: =IF(COUNT($H13:P13)>='RFM input'!$AA$7,0,P13+P65+P117) -> 0
D14: =Asset7 -> DC FILTER | G14: ='RAB roll forward'!G776 -> 0.2686195024 | H14: 0.2686195024 | I14: 0.2671238804 | J14: =IF(COUNT($H14:I14)>='RFM input'!$AA$7,0,I14+I66+I118) -> 0.2482065246 | K14: =IF(COUNT($H14:J14)>='RFM input'!$AA$7,0,J14+J66+J118) -> 0.2226275022 | L14: =IF(COUNT($H14:K14)>='RFM input'!$AA$7,0,K14+K66+K118) -> 0.1967291677 | M14: =IF(COUNT($H14:L14)>='RFM input'!$AA$7,0,L14+L66+L118) -> 0.1697929817 | N14: =IF(COUNT($H14:M14)>='RFM input'!$AA$7,0,M14+M66+M118) -> 0.1381286433 | O14: =IF(COUNT($H14:N14)>='RFM input'!$AA$7,0,N14+N66+N118) -> 0.1065969331 | P14: =IF(COUNT($H14:O14)>='RFM input'!$AA$7,0,O14+O66+O118) -> 0.07385592208 | Q14: =IF(COUNT($H14:P14)>='RFM input'!$AA$7,0,P14+P66+P118) -> 0
D15: =Asset8 -> DC SWITCHYARD | G15: ='RAB roll forward'!G777 -> 1.482286036 | H15: 1.482286036 | I15: 1.480983485 | J15: =IF(COUNT($H15:I15)>='RFM input'!$AA$7,0,I15+I67+I119) -> 1.505170463 | K15: =IF(COUNT($H15:J15)>='RFM input'!$AA$7,0,J15+J67+J119) -> 1.50108293 | L15: =IF(COUNT($H15:K15)>='RFM input'!$AA$7,0,K15+K67+K119) -> 1.692054989 | M15: =IF(COUNT($H15:L15)>='RFM input'!$AA$7,0,L15+L67+L119) -> 1.720366369 | N15: =IF(COUNT($H15:M15)>='RFM input'!$AA$7,0,M15+M67+M119) -> 1.698436936 | O15: =IF(COUNT($H15:N15)>='RFM input'!$AA$7,0,N15+N67+N119) -> 1.690196319 | P15: =IF(COUNT($H15:O15)>='RFM input'!$AA$7,0,O15+O67+O119) -> 2.701908483 | Q15: =IF(COUNT($H15:P15)>='RFM input'!$AA$7,0,P15+P67+P119) -> 0
D16: =Asset9 -> EASEMENT | G16: ='RAB roll forward'!G778 -> 7.751826606 | H16: 7.751826606 | I16: 7.944475551 | J16: =IF(COUNT($H16:I16)>='RFM input'!$AA$7,0,I16+I68+I120) -> 8.283904645 | K16: =IF(COUNT($H16:J16)>='RFM input'!$AA$7,0,J16+J68+J120) -> 8.485727349 | L16: =IF(COUNT($H16:K16)>='RFM input'!$AA$7,0,K16+K68+K120) -> 8.73341885 | M16: =IF(COUNT($H16:L16)>='RFM input'!$AA$7,0,L16+L68+L120) -> 9.017805389 | N16: =IF(COUNT($H16:M16)>='RFM input'!$AA$7,0,M16+M68+M120) -> 9.164585537 | O16: =IF(COUNT($H16:N16)>='RFM input'!$AA$7,0,N16+N68+N120) -> 9.39392952 | P16: =IF(COUNT($H16:O16)>='RFM input'!$AA$7,0,O16+O68+O120) -> 9.669142299 | Q16: =IF(COUNT($H16:P16)>='RFM input'!$AA$7,0,P16+P68+P120) -> 0
D17: =Asset10 -> FREEHOLD LAND | G17: ='RAB roll forward'!G779 -> 2.444517267 | H17: 2.444517267 | I17: 2.505268584 | J17: =IF(COUNT($H17:I17)>='RFM input'!$AA$7,0,I17+I69+I121) -> 2.612306618 | K17: =IF(COUNT($H17:J17)>='RFM input'!$AA$7,0,J17+J69+J121) -> 2.675950854 | L17: =IF(COUNT($H17:K17)>='RFM input'!$AA$7,0,K17+K69+K121) -> 2.75405969 | M17: =IF(COUNT($H17:L17)>='RFM input'!$AA$7,0,L17+L69+L121) -> 2.843740205 | N17: =IF(COUNT($H17:M17)>='RFM input'!$AA$7,0,M17+M69+M121) -> 2.890026923 | O17: =IF(COUNT($H17:N17)>='RFM input'!$AA$7,0,N17+N69+N121) -> 2.962349919 | P17: =IF(COUNT($H17:O17)>='RFM input'!$AA$7,0,O17+O69+O121) -> 3.049137514 | Q17: =IF(COUNT($H17:P17)>='RFM input'!$AA$7,0,P17+P69+P121) -> 0
D18: =Asset11 -> MEASURING DEVICES | G18: ='RAB roll forward'!G780 -> 7.895002684 | H18: 7.895002684 | I18: 7.278630403 | J18: =IF(COUNT($H18:I18)>='RFM input'!$AA$7,0,I18+I70+I122) -> 6.756837418 | K18: =IF(COUNT($H18:J18)>='RFM input'!$AA$7,0,J18+J70+J122) -> 6.053101695 | L18: =IF(COUNT($H18:K18)>='RFM input'!$AA$7,0,K18+K70+K122) -> 5.340276778 | M18: =IF(COUNT($H18:L18)>='RFM input'!$AA$7,0,L18+L70+L122) -> 4.598698222 | N18: =IF(COUNT($H18:M18)>='RFM input'!$AA$7,0,M18+M70+M122) -> 3.728265141 | O18: =IF(COUNT($H18:N18)>='RFM input'!$AA$7,0,N18+N70+N122) -> 2.860894219 | P18: =IF(COUNT($H18:O18)>='RFM input'!$AA$7,0,O18+O70+O122) -> 1.959997817 | Q18: =IF(COUNT($H18:P18)>='RFM input'!$AA$7,0,P18+P70+P122) -> 0
D19: =Asset12 -> MOTOR VEHICLES | G19: ='RAB roll forward'!G781 -> 0.03726218234 | H19: 0.03726218234 | I19: 0.03051793386 | J19: =IF(COUNT($H19:I19)>='RFM input'!$AA$7,0,I19+I71+I123) -> 0.02396090437 | K19: =IF(COUNT($H19:J19)>='RFM input'!$AA$7,0,J19+J71+J123) -> 0.0163478971 | L19: =IF(COUNT($H19:K19)>='RFM input'!$AA$7,0,K19+K71+K123) -> 0.008428606687 | M19: =IF(COUNT($H19:L19)>='RFM input'!$AA$7,0,L19+L71+L123) -> 6.15091319e-05 | N19: =IF(COUNT($H19:M19)>='RFM input'!$AA$7,0,M19+M71+M123) -> 6.251029783e-05 | O19: =IF(COUNT($H19:N19)>='RFM input'!$AA$7,0,N19+N71+N123) -> 6.40746196e-05 | P19: =IF(COUNT($H19:O19)>='RFM input'!$AA$7,0,O19+O71+O123) -> 6.595180572e-05 | Q19: =IF(COUNT($H19:P19)>='RFM input'!$AA$7,0,P19+P71+P123) -> 0
D20: =Asset13 -> OTHER | G20: ='RAB roll forward'!G782 -> 3.62320643 | H20: 3.62320643 | I20: 2.967426147 | J20: =IF(COUNT($H20:I20)>='RFM input'!$AA$7,0,I20+I72+I124) -> 2.329850195 | K20: =IF(COUNT($H20:J20)>='RFM input'!$AA$7,0,J20+J72+J124) -> 1.589595728 | L20: =IF(COUNT($H20:K20)>='RFM input'!$AA$7,0,K20+K72+K124) -> 0.8195596721 | M20: =IF(COUNT($H20:L20)>='RFM input'!$AA$7,0,L20+L72+L124) -> 0.005980870367 | N20: =IF(COUNT($H20:M20)>='RFM input'!$AA$7,0,M20+M72+M124) -> 0.006078219224 | O20: =IF(COUNT($H20:N20)>='RFM input'!$AA$7,0,N20+N72+N124) -> 0.006230326812 | P20: =IF(COUNT($H20:O20)>='RFM input'!$AA$7,0,O20+O72+O124) -> 0.006412855918 | Q20: =IF(COUNT($H20:P20)>='RFM input'!$AA$7,0,P20+P72+P124) -> 0
D21: =Asset14 -> OVERHEAD LINES | G21: ='RAB roll forward'!G783 -> 84.08708783 | H21: 84.08708783 | I21: 84.01319672 | J21: =IF(COUNT($H21:I21)>='RFM input'!$AA$7,0,I21+I73+I125) -> 85.38527504 | K21: =IF(COUNT($H21:J21)>='RFM input'!$AA$7,0,J21+J73+J125) -> 85.15339758 | L21: =IF(COUNT($H21:K21)>='RFM input'!$AA$7,0,K21+K73+K125) -> 85.27048617 | M21: =IF(COUNT($H21:L21)>='RFM input'!$AA$7,0,L21+L73+L125) -> 85.6095474 | N21: =IF(COUNT($H21:M21)>='RFM input'!$AA$7,0,M21+M73+M125) -> 84.48600914 | O21: =IF(COUNT($H21:N21)>='RFM input'!$AA$7,0,N21+N73+N125) -> 84.04232598 | P21: =IF(COUNT($H21:O21)>='RFM input'!$AA$7,0,O21+O73+O125) -> 83.88254315 | Q21: =IF(COUNT($H21:P21)>='RFM input'!$AA$7,0,P21+P73+P125) -> 0
D22: =Asset15 -> SMOOTHING REACTOR | G22: ='RAB roll forward'!G784 -> 1.894111876 | H22: 1.894111876 | I22: 1.885485 | J22: =IF(COUNT($H22:I22)>='RFM input'!$AA$7,0,I22+I74+I126) -> 1.908958946 | K22: =IF(COUNT($H22:J22)>='RFM input'!$AA$7,0,J22+J74+J126) -> 1.89594472 | L22: =IF(COUNT($H22:K22)>='RFM input'!$AA$7,0,K22+K74+K126) -> 1.890313007 | M22: =IF(COUNT($H22:L22)>='RFM input'!$AA$7,0,L22+L74+L126) -> 1.889114768 | N22: =IF(COUNT($H22:M22)>='RFM input'!$AA$7,0,M22+M74+M126) -> 1.855067367 | O22: =IF(COUNT($H22:N22)>='RFM input'!$AA$7,0,N22+N74+N126) -> 1.835639848 | P22: =IF(COUNT($H22:O22)>='RFM input'!$AA$7,0,O22+O74+O126) -> 1.821919818 | Q22: =IF(COUNT($H22:P22)>='RFM input'!$AA$7,0,P22+P74+P126) -> 0
D23: =Asset16 -> STATION POWER SUPPLY | G23: ='RAB roll forward'!G785 -> 9.136219936 | H23: 9.136219936 | I23: 8.639943477 | J23: =IF(COUNT($H23:I23)>='RFM input'!$AA$7,0,I23+I75+I127) -> 8.267779853 | K23: =IF(COUNT($H23:J23)>='RFM input'!$AA$7,0,J23+J75+J127) -> 7.696230543 | L23: =IF(COUNT($H23:K23)>='RFM input'!$AA$7,0,K23+K75+K127) -> 7.129065838 | M23: =IF(COUNT($H23:L23)>='RFM input'!$AA$7,0,L23+L75+L127) -> 6.54628602 | N23: =IF(COUNT($H23:M23)>='RFM input'!$AA$7,0,M23+M75+M127) -> 5.811377828 | O23: =IF(COUNT($H23:N23)>='RFM input'!$AA$7,0,N23+N75+N127) -> 5.101651355 | P23: =IF(COUNT($H23:O23)>='RFM input'!$AA$7,0,O23+O75+O127) -> 4.374557138 | Q23: =IF(COUNT($H23:P23)>='RFM input'!$AA$7,0,P23+P75+P127) -> 0
D24: =Asset17 -> SWITCHYARD COMPONENTS | G24: ='RAB roll forward'!G786 -> 3.814052551 | H24: 3.814052551 | I24: 3.810700971 | J24: =IF(COUNT($H24:I24)>='RFM input'!$AA$7,0,I24+I76+I128) -> 3.872936195 | K24: =IF(COUNT($H24:J24)>='RFM input'!$AA$7,0,J24+J76+J128) -> 3.862418614 | L24: =IF(COUNT($H24:K24)>='RFM input'!$AA$7,0,K24+K76+K128) -> 3.86772956 | M24: =IF(COUNT($H24:L24)>='RFM input'!$AA$7,0,L24+L76+L128) -> 3.883108822 | N24: =IF(COUNT($H24:M24)>='RFM input'!$AA$7,0,M24+M76+M128) -> 3.832146967 | O24: =IF(COUNT($H24:N24)>='RFM input'!$AA$7,0,N24+N76+N128) -> 3.812022226 | P24: =IF(COUNT($H24:O24)>='RFM input'!$AA$7,0,O24+O76+O128) -> 3.804774739 | Q24: =IF(COUNT($H24:P24)>='RFM input'!$AA$7,0,P24+P76+P128) -> 0
D25: =Asset18 -> VALVE COOLING | G25: ='RAB roll forward'!G787 -> 0.6457199578 | H25: 0.6457199578 | I25: 0.6106446623 | J25: =IF(COUNT($H25:I25)>='RFM input'!$AA$7,0,I25+I77+I129) -> 0.5843412807 | K25: =IF(COUNT($H25:J25)>='RFM input'!$AA$7,0,J25+J77+J129) -> 0.5439459313 | L25: =IF(COUNT($H25:K25)>='RFM input'!$AA$7,0,K25+K77+K129) -> 0.5038604723 | M25: =IF(COUNT($H25:L25)>='RFM input'!$AA$7,0,L25+L77+L129) -> 0.4626713851 | N25: =IF(COUNT($H25:M25)>='RFM input'!$AA$7,0,M25+M77+M129) -> 0.4107303318 | O25: =IF(COUNT($H25:N25)>='RFM input'!$AA$7,0,N25+N77+N129) -> 0.360569045 | P25: =IF(COUNT($H25:O25)>='RFM input'!$AA$7,0,O25+O77+O129) -> 0.3091802595 | Q25: =IF(COUNT($H25:P25)>='RFM input'!$AA$7,0,P25+P77+P129) -> 0
D26: =Asset19 -> VALVE HALL | G26: ='RAB roll forward'!G788 -> 32.33191575 | H26: 32.33191575 | I26: 32.30350424 | J26: =IF(COUNT($H26:I26)>='RFM input'!$AA$7,0,I26+I78+I130) -> 32.92769098 | K26: =IF(COUNT($H26:J26)>='RFM input'!$AA$7,0,J26+J78+J130) -> 32.83836819 | L26: =IF(COUNT($H26:K26)>='RFM input'!$AA$7,0,K26+K78+K130) -> 32.88362472 | M26: =IF(COUNT($H26:L26)>='RFM input'!$AA$7,0,L26+L78+L130) -> 33.01448864 | N26: =IF(COUNT($H26:M26)>='RFM input'!$AA$7,0,M26+M78+M130) -> 32.58132247 | O26: =IF(COUNT($H26:N26)>='RFM input'!$AA$7,0,N26+N78+N130) -> 32.41034057 | P26: =IF(COUNT($H26:O26)>='RFM input'!$AA$7,0,O26+O78+O130) -> 32.34884902 | Q26: =IF(COUNT($H26:P26)>='RFM input'!$AA$7,0,P26+P78+P130) -> 0
D27: =Asset20 -> 0 | G27: ='RAB roll forward'!G789 -> 0 | H27: 0 | I27: 0 | J27: =IF(COUNT($H27:I27)>='RFM input'!$AA$7,0,I27+I79+I131) -> 0 | K27: =IF(COUNT($H27:J27)>='RFM input'!$AA$7,0,J27+J79+J131) -> 0 | L27: =IF(COUNT($H27:K27)>='RFM input'!$AA$7,0,K27+K79+K131) -> 0 | M27: =IF(COUNT($H27:L27)>='RFM input'!$AA$7,0,L27+L79+L131) -> 0 | N27: =IF(COUNT($H27:M27)>='RFM input'!$AA$7,0,M27+M79+M131) -> 0 | O27: =IF(COUNT($H27:N27)>='RFM input'!$AA$7,0,N27+N79+N131) -> 0 | P27: =IF(COUNT($H27:O27)>='RFM input'!$AA$7,0,O27+O79+O131) -> 0 | Q27: =IF(COUNT($H27:P27)>='RFM input'!$AA$7,0,P27+P79+P131) -> 0
D28: =Asset21 -> 0 | G28: ='RAB roll forward'!G790 -> 0 | H28: 0 | I28: 0 | J28: =IF(COUNT($H28:I28)>='RFM input'!$AA$7,0,I28+I80+I132) -> 0 | K28: =IF(COUNT($H28:J28)>='RFM input'!$AA$7,0,J28+J80+J132) -> 0 | L28: =IF(COUNT($H28:K28)>='RFM input'!$AA$7,0,K28+K80+K132) -> 0 | M28: =IF(COUNT($H28:L28)>='RFM input'!$AA$7,0,L28+L80+L132) -> 0 | N28: =IF(COUNT($H28:M28)>='RFM input'!$AA$7,0,M28+M80+M132) -> 0 | O28: =IF(COUNT($H28:N28)>='RFM input'!$AA$7,0,N28+N80+N132) -> 0 | P28: =IF(COUNT($H28:O28)>='RFM input'!$AA$7,0,O28+O80+O132) -> 0 | Q28: =IF(COUNT($H28:P28)>='RFM input'!$AA$7,0,P28+P80+P132) -> 0
D29: =Asset22 -> 0 | G29: ='RAB roll forward'!G791 -> 0 | H29: 0 | I29: 0 | J29: =IF(COUNT($H29:I29)>='RFM input'!$AA$7,0,I29+I81+I133) -> 0 | K29: =IF(COUNT($H29:J29)>='RFM input'!$AA$7,0,J29+J81+J133) -> 0 | L29: =IF(COUNT($H29:K29)>='RFM input'!$AA$7,0,K29+K81+K133) -> 0 | M29: =IF(COUNT($H29:L29)>='RFM input'!$AA$7,0,L29+L81+L133) -> 0 | N29: =IF(COUNT($H29:M29)>='RFM input'!$AA$7,0,M29+M81+M133) -> 0 | O29: =IF(COUNT($H29:N29)>='RFM input'!$AA$7,0,N29+N81+N133) -> 0 | P29: =IF(COUNT($H29:O29)>='RFM input'!$AA$7,0,O29+O81+O133) -> 0 | Q29: =IF(COUNT($H29:P29)>='RFM input'!$AA$7,0,P29+P81+P133) -> 0
D30: =Asset23 -> 0 | G30: ='RAB roll forward'!G792 -> 0 | H30: 0 | I30: 0 | J30: =IF(COUNT($H30:I30)>='RFM input'!$AA$7,0,I30+I82+I134) -> 0 | K30: =IF(COUNT($H30:J30)>='RFM input'!$AA$7,0,J30+J82+J134) -> 0 | L30: =IF(COUNT($H30:K30)>='RFM input'!$AA$7,0,K30+K82+K134) -> 0 | M30: =IF(COUNT($H30:L30)>='RFM input'!$AA$7,0,L30+L82+L134) -> 0 | N30: =IF(COUNT($H30:M30)>='RFM input'!$AA$7,0,M30+M82+M134) -> 0 | O30: =IF(COUNT($H30:N30)>='RFM input'!$AA$7,0,N30+N82+N134) -> 0 | P30: =IF(COUNT($H30:O30)>='RFM input'!$AA$7,0,O30+O82+O134) -> 0 | Q30: =IF(COUNT($H30:P30)>='RFM input'!$AA$7,0,P30+P82+P134) -> 0
D31: =Asset24 -> 0 | G31: ='RAB roll forward'!G793 -> 0 | H31: 0 | I31: 0 | J31: =IF(COUNT($H31:I31)>='RFM input'!$AA$7,0,I31+I83+I135) -> 0 | K31: =IF(COUNT($H31:J31)>='RFM input'!$AA$7,0,J31+J83+J135) -> 0 | L31: =IF(COUNT($H31:K31)>='RFM input'!$AA$7,0,K31+K83+K135) -> 0 | M31: =IF(COUNT($H31:L31)>='RFM input'!$AA$7,0,L31+L83+L135) -> 0 | N31: =IF(COUNT($H31:M31)>='RFM input'!$AA$7,0,M31+M83+M135) -> 0 | O31: =IF(COUNT($H31:N31)>='RFM input'!$AA$7,0,N31+N83+N135) -> 0 | P31: =IF(COUNT($H31:O31)>='RFM input'!$AA$7,0,O31+O83+O135) -> 0 | Q31: =IF(COUNT($H31:P31)>='RFM input'!$AA$7,0,P31+P83+P135) -> 0
D32: =Asset25 -> 0 | G32: ='RAB roll forward'!G794 -> 0 | H32: 0 | I32: 0 | J32: =IF(COUNT($H32:I32)>='RFM input'!$AA$7,0,I32+I84+I136) -> 0 | K32: =IF(COUNT($H32:J32)>='RFM input'!$AA$7,0,J32+J84+J136) -> 0 | L32: =IF(COUNT($H32:K32)>='RFM input'!$AA$7,0,K32+K84+K136) -> 0 | M32: =IF(COUNT($H32:L32)>='RFM input'!$AA$7,0,L32+L84+L136) -> 0 | N32: =IF(COUNT($H32:M32)>='RFM input'!$AA$7,0,M32+M84+M136) -> 0 | O32: =IF(COUNT($H32:N32)>='RFM input'!$AA$7,0,N32+N84+N136) -> 0 | P32: =IF(COUNT($H32:O32)>='RFM input'!$AA$7,0,O32+O84+O136) -> 0 | Q32: =IF(COUNT($H32:P32)>='RFM input'!$AA$7,0,P32+P84+P136) -> 0
D33: =Asset26 -> 0 | G33: ='RAB roll forward'!G795 -> 0 | H33: 0 | I33: 0 | J33: =IF(COUNT($H33:I33)>='RFM input'!$AA$7,0,I33+I85+I137) -> 0 | K33: =IF(COUNT($H33:J33)>='RFM input'!$AA$7,0,J33+J85+J137) -> 0 | L33: =IF(COUNT($H33:K33)>='RFM input'!$AA$7,0,K33+K85+K137) -> 0 | M33: =IF(COUNT($H33:L33)>='RFM input'!$AA$7,0,L33+L85+L137) -> 0 | N33: =IF(COUNT($H33:M33)>='RFM input'!$AA$7,0,M33+M85+M137) -> 0 | O33: =IF(COUNT($H33:N33)>='RFM input'!$AA$7,0,N33+N85+N137) -> 0 | P33: =IF(COUNT($H33:O33)>='RFM input'!$AA$7,0,O33+O85+O137) -> 0 | Q33: =IF(COUNT($H33:P33)>='RFM input'!$AA$7,0,P33+P85+P137) -> 0
D34: =Asset27 -> 0 | G34: ='RAB roll forward'!G796 -> 0 | H34: 0 | I34: 0 | J34: =IF(COUNT($H34:I34)>='RFM input'!$AA$7,0,I34+I86+I138) -> 0 | K34: =IF(COUNT($H34:J34)>='RFM input'!$AA$7,0,J34+J86+J138) -> 0 | L34: =IF(COUNT($H34:K34)>='RFM input'!$AA$7,0,K34+K86+K138) -> 0 | M34: =IF(COUNT($H34:L34)>='RFM input'!$AA$7,0,L34+L86+L138) -> 0 | N34: =IF(COUNT($H34:M34)>='RFM input'!$AA$7,0,M34+M86+M138) -> 0 | O34: =IF(COUNT($H34:N34)>='RFM input'!$AA$7,0,N34+N86+N138) -> 0 | P34: =IF(COUNT($H34:O34)>='RFM input'!$AA$7,0,O34+O86+O138) -> 0 | Q34: =IF(COUNT($H34:P34)>='RFM input'!$AA$7,0,P34+P86+P138) -> 0
D35: =Asset28 -> 0 | G35: ='RAB roll forward'!G797 -> 0 | H35: 0 | I35: 0 | J35: =IF(COUNT($H35:I35)>='RFM input'!$AA$7,0,I35+I87+I139) -> 0 | K35: =IF(COUNT($H35:J35)>='RFM input'!$AA$7,0,J35+J87+J139) -> 0 | L35: =IF(COUNT($H35:K35)>='RFM input'!$AA$7,0,K35+K87+K139) -> 0 | M35: =IF(COUNT($H35:L35)>='RFM input'!$AA$7,0,L35+L87+L139) -> 0 | N35: =IF(COUNT($H35:M35)>='RFM input'!$AA$7,0,M35+M87+M139) -> 0 | O35: =IF(COUNT($H35:N35)>='RFM input'!$AA$7,0,N35+N87+N139) -> 0 | P35: =IF(COUNT($H35:O35)>='RFM input'!$AA$7,0,O35+O87+O139) -> 0 | Q35: =IF(COUNT($H35:P35)>='RFM input'!$AA$7,0,P35+P87+P139) -> 0
D36: =Asset29 -> 0 | G36: ='RAB roll forward'!G798 -> 0 | H36: 0 | I36: 0 | J36: =IF(COUNT($H36:I36)>='RFM input'!$AA$7,0,I36+I88+I140) -> 0 | K36: =IF(COUNT($H36:J36)>='RFM input'!$AA$7,0,J36+J88+J140) -> 0 | L36: =IF(COUNT($H36:K36)>='RFM input'!$AA$7,0,K36+K88+K140) -> 0 | M36: =IF(COUNT($H36:L36)>='RFM input'!$AA$7,0,L36+L88+L140) -> 0 | N36: =IF(COUNT($H36:M36)>='RFM input'!$AA$7,0,M36+M88+M140) -> 0 | O36: =IF(COUNT($H36:N36)>='RFM input'!$AA$7,0,N36+N88+N140) -> 0 | P36: =IF(COUNT($H36:O36)>='RFM input'!$AA$7,0,O36+O88+O140) -> 0 | Q36: =IF(COUNT($H36:P36)>='RFM input'!$AA$7,0,P36+P88+P140) -> 0
D37: =Asset30 -> 0 | G37: ='RAB roll forward'!G799 -> 0 | H37: 0 | I37: 0 | J37: =IF(COUNT($H37:I37)>='RFM input'!$AA$7,0,I37+I89+I141) -> 0 | K37: =IF(COUNT($H37:J37)>='RFM input'!$AA$7,0,J37+J89+J141) -> 0 | L37: =IF(COUNT($H37:K37)>='RFM input'!$AA$7,0,K37+K89+K141) -> 0 | M37: =IF(COUNT($H37:L37)>='RFM input'!$AA$7,0,L37+L89+L141) -> 0 | N37: =IF(COUNT($H37:M37)>='RFM input'!$AA$7,0,M37+M89+M141) -> 0 | O37: =IF(COUNT($H37:N37)>='RFM input'!$AA$7,0,N37+N89+N141) -> 0 | P37: =IF(COUNT($H37:O37)>='RFM input'!$AA$7,0,O37+O89+O141) -> 0 | Q37: =IF(COUNT($H37:P37)>='RFM input'!$AA$7,0,P37+P89+P141) -> 0
D38: =Asset31 -> 0 | G38: ='RAB roll forward'!G800 -> 0 | H38: =G38+G90+G142+G194+G246+G298 -> 0 | I38: =H38+H90+H142 -> 0 | J38: =IF(COUNT($H38:I38)>='RFM input'!$AA$7,0,I38+I90+I142) -> 0 | K38: =IF(COUNT($H38:J38)>='RFM input'!$AA$7,0,J38+J90+J142) -> 0 | L38: =IF(COUNT($H38:K38)>='RFM input'!$AA$7,0,K38+K90+K142) -> 0 | M38: =IF(COUNT($H38:L38)>='RFM input'!$AA$7,0,L38+L90+L142) -> 0 | N38: =IF(COUNT($H38:M38)>='RFM input'!$AA$7,0,M38+M90+M142) -> 0 | O38: =IF(COUNT($H38:N38)>='RFM input'!$AA$7,0,N38+N90+N142) -> 0 | P38: =IF(COUNT($H38:O38)>='RFM input'!$AA$7,0,O38+O90+O142) -> 0 | Q38: =IF(COUNT($H38:P38)>='RFM input'!$AA$7,0,P38+P90+P142) -> 0
D39: =Asset32 -> 0 | G39: ='RAB roll forward'!G801 -> 0 | H39: 0 | I39: 0 | J39: =IF(COUNT($H39:I39)>='RFM input'!$AA$7,0,I39+I91+I143) -> 0 | K39: =IF(COUNT($H39:J39)>='RFM input'!$AA$7,0,J39+J91+J143) -> 0 | L39: =IF(COUNT($H39:K39)>='RFM input'!$AA$7,0,K39+K91+K143) -> 0 | M39: =IF(COUNT($H39:L39)>='RFM input'!$AA$7,0,L39+L91+L143) -> 0 | N39: =IF(COUNT($H39:M39)>='RFM input'!$AA$7,0,M39+M91+M143) -> 0 | O39: =IF(COUNT($H39:N39)>='RFM input'!$AA$7,0,N39+N91+N143) -> 0 | P39: =IF(COUNT($H39:O39)>='RFM input'!$AA$7,0,O39+O91+O143) -> 0 | Q39: =IF(COUNT($H39:P39)>='RFM input'!$AA$7,0,P39+P91+P143) -> 0
D40: =Asset33 -> 0 | G40: ='RAB roll forward'!G802 -> 0 | H40: 0 | I40: 0 | J40: =IF(COUNT($H40:I40)>='RFM input'!$AA$7,0,I40+I92+I144) -> 0 | K40: =IF(COUNT($H40:J40)>='RFM input'!$AA$7,0,J40+J92+J144) -> 0 | L40: =IF(COUNT($H40:K40)>='RFM input'!$AA$7,0,K40+K92+K144) -> 0 | M40: =IF(COUNT($H40:L40)>='RFM input'!$AA$7,0,L40+L92+L144) -> 0 | N40: =IF(COUNT($H40:M40)>='RFM input'!$AA$7,0,M40+M92+M144) -> 0 | O40: =IF(COUNT($H40:N40)>='RFM input'!$AA$7,0,N40+N92+N144) -> 0 | P40: =IF(COUNT($H40:O40)>='RFM input'!$AA$7,0,O40+O92+O144) -> 0 | Q40: =IF(COUNT($H40:P40)>='RFM input'!$AA$7,0,P40+P92+P144) -> 0
D41: =Asset34 -> 0 | G41: ='RAB roll forward'!G803 -> 0 | H41: 0 | I41: 0 | J41: =IF(COUNT($H41:I41)>='RFM input'!$AA$7,0,I41+I93+I145) -> 0 | K41: =IF(COUNT($H41:J41)>='RFM input'!$AA$7,0,J41+J93+J145) -> 0 | L41: =IF(COUNT($H41:K41)>='RFM input'!$AA$7,0,K41+K93+K145) -> 0 | M41: =IF(COUNT($H41:L41)>='RFM input'!$AA$7,0,L41+L93+L145) -> 0 | N41: =IF(COUNT($H41:M41)>='RFM input'!$AA$7,0,M41+M93+M145) -> 0 | O41: =IF(COUNT($H41:N41)>='RFM input'!$AA$7,0,N41+N93+N145) -> 0 | P41: =IF(COUNT($H41:O41)>='RFM input'!$AA$7,0,O41+O93+O145) -> 0 | Q41: =IF(COUNT($H41:P41)>='RFM input'!$AA$7,0,P41+P93+P145) -> 0
D42: =Asset35 -> 0 | G42: ='RAB roll forward'!G804 -> 0 | H42: 0 | I42: 0 | J42: =IF(COUNT($H42:I42)>='RFM input'!$AA$7,0,I42+I94+I146) -> 0 | K42: =IF(COUNT($H42:J42)>='RFM input'!$AA$7,0,J42+J94+J146) -> 0 | L42: =IF(COUNT($H42:K42)>='RFM input'!$AA$7,0,K42+K94+K146) -> 0 | M42: =IF(COUNT($H42:L42)>='RFM input'!$AA$7,0,L42+L94+L146) -> 0 | N42: =IF(COUNT($H42:M42)>='RFM input'!$AA$7,0,M42+M94+M146) -> 0 | O42: =IF(COUNT($H42:N42)>='RFM input'!$AA$7,0,N42+N94+N146) -> 0 | P42: =IF(COUNT($H42:O42)>='RFM input'!$AA$7,0,O42+O94+O146) -> 0 | Q42: =IF(COUNT($H42:P42)>='RFM input'!$AA$7,0,P42+P94+P146) -> 0
D43: =Asset36 -> 0 | G43: ='RAB roll forward'!G805 -> 0 | H43: 0 | I43: 0 | J43: =IF(COUNT($H43:I43)>='RFM input'!$AA$7,0,I43+I95+I147) -> 0 | K43: =IF(COUNT($H43:J43)>='RFM input'!$AA$7,0,J43+J95+J147) -> 0 | L43: =IF(COUNT($H43:K43)>='RFM input'!$AA$7,0,K43+K95+K147) -> 0 | M43: =IF(COUNT($H43:L43)>='RFM input'!$AA$7,0,L43+L95+L147) -> 0 | N43: =IF(COUNT($H43:M43)>='RFM input'!$AA$7,0,M43+M95+M147) -> 0 | O43: =IF(COUNT($H43:N43)>='RFM input'!$AA$7,0,N43+N95+N147) -> 0 | P43: =IF(COUNT($H43:O43)>='RFM input'!$AA$7,0,O43+O95+O147) -> 0 | Q43: =IF(COUNT($H43:P43)>='RFM input'!$AA$7,0,P43+P95+P147) -> 0
D44: =Asset37 -> 0 | G44: ='RAB roll forward'!G806 -> 0 | H44: 0 | I44: 0 | J44: =IF(COUNT($H44:I44)>='RFM input'!$AA$7,0,I44+I96+I148) -> 0 | K44: =IF(COUNT($H44:J44)>='RFM input'!$AA$7,0,J44+J96+J148) -> 0 | L44: =IF(COUNT($H44:K44)>='RFM input'!$AA$7,0,K44+K96+K148) -> 0 | M44: =IF(COUNT($H44:L44)>='RFM input'!$AA$7,0,L44+L96+L148) -> 0 | N44: =IF(COUNT($H44:M44)>='RFM input'!$AA$7,0,M44+M96+M148) -> 0 | O44: =IF(COUNT($H44:N44)>='RFM input'!$AA$7,0,N44+N96+N148) -> 0 | P44: =IF(COUNT($H44:O44)>='RFM input'!$AA$7,0,O44+O96+O148) -> 0 | Q44: =IF(COUNT($H44:P44)>='RFM input'!$AA$7,0,P44+P96+P148) -> 0
D45: =Asset38 -> 0 | G45: ='RAB roll forward'!G807 -> 0 | H45: 0 | I45: 0 | J45: =IF(COUNT($H45:I45)>='RFM input'!$AA$7,0,I45+I97+I149) -> 0 | K45: =IF(COUNT($H45:J45)>='RFM input'!$AA$7,0,J45+J97+J149) -> 0 | L45: =IF(COUNT($H45:K45)>='RFM input'!$AA$7,0,K45+K97+K149) -> 0 | M45: =IF(COUNT($H45:L45)>='RFM input'!$AA$7,0,L45+L97+L149) -> 0 | N45: =IF(COUNT($H45:M45)>='RFM input'!$AA$7,0,M45+M97+M149) -> 0 | O45: =IF(COUNT($H45:N45)>='RFM input'!$AA$7,0,N45+N97+N149) -> 0 | P45: =IF(COUNT($H45:O45)>='RFM input'!$AA$7,0,O45+O97+O149) -> 0 | Q45: =IF(COUNT($H45:P45)>='RFM input'!$AA$7,0,P45+P97+P149) -> 0
D46: =Asset39 -> 0 | G46: ='RAB roll forward'!G808 -> 0 | H46: 0 | I46: 0 | J46: =IF(COUNT($H46:I46)>='RFM input'!$AA$7,0,I46+I98+I150) -> 0 | K46: =IF(COUNT($H46:J46)>='RFM input'!$AA$7,0,J46+J98+J150) -> 0 | L46: =IF(COUNT($H46:K46)>='RFM input'!$AA$7,0,K46+K98+K150) -> 0 | M46: =IF(COUNT($H46:L46)>='RFM input'!$AA$7,0,L46+L98+L150) -> 0 | N46: =IF(COUNT($H46:M46)>='RFM input'!$AA$7,0,M46+M98+M150) -> 0 | O46: =IF(COUNT($H46:N46)>='RFM input'!$AA$7,0,N46+N98+N150) -> 0 | P46: =IF(COUNT($H46:O46)>='RFM input'!$AA$7,0,O46+O98+O150) -> 0 | Q46: =IF(COUNT($H46:P46)>='RFM input'!$AA$7,0,P46+P98+P150) -> 0
D47: =Asset40 -> 0 | G47: ='RAB roll forward'!G809 -> 0 | H47: 0 | I47: 0 | J47: =IF(COUNT($H47:I47)>='RFM input'!$AA$7,0,I47+I99+I151) -> 0 | K47: =IF(COUNT($H47:J47)>='RFM input'!$AA$7,0,J47+J99+J151) -> 0 | L47: =IF(COUNT($H47:K47)>='RFM input'!$AA$7,0,K47+K99+K151) -> 0 | M47: =IF(COUNT($H47:L47)>='RFM input'!$AA$7,0,L47+L99+L151) -> 0 | N47: =IF(COUNT($H47:M47)>='RFM input'!$AA$7,0,M47+M99+M151) -> 0 | O47: =IF(COUNT($H47:N47)>='RFM input'!$AA$7,0,N47+N99+N151) -> 0 | P47: =IF(COUNT($H47:O47)>='RFM input'!$AA$7,0,O47+O99+O151) -> 0 | Q47: =IF(COUNT($H47:P47)>='RFM input'!$AA$7,0,P47+P99+P151) -> 0
D48: =Asset41 -> 0 | G48: ='RAB roll forward'!G810 -> 0 | H48: 0 | I48: 0 | J48: =IF(COUNT($H48:I48)>='RFM input'!$AA$7,0,I48+I100+I152) -> 0 | K48: =IF(COUNT($H48:J48)>='RFM input'!$AA$7,0,J48+J100+J152) -> 0 | L48: =IF(COUNT($H48:K48)>='RFM input'!$AA$7,0,K48+K100+K152) -> 0 | M48: =IF(COUNT($H48:L48)>='RFM input'!$AA$7,0,L48+L100+L152) -> 0 | N48: =IF(COUNT($H48:M48)>='RFM input'!$AA$7,0,M48+M100+M152) -> 0 | O48: =IF(COUNT($H48:N48)>='RFM input'!$AA$7,0,N48+N100+N152) -> 0 | P48: =IF(COUNT($H48:O48)>='RFM input'!$AA$7,0,O48+O100+O152) -> 0 | Q48: =IF(COUNT($H48:P48)>='RFM input'!$AA$7,0,P48+P100+P152) -> 0
D49: =Asset42 -> 0 | G49: ='RAB roll forward'!G811 -> 0 | H49: 0 | I49: 0 | J49: =IF(COUNT($H49:I49)>='RFM input'!$AA$7,0,I49+I101+I153) -> 0 | K49: =IF(COUNT($H49:J49)>='RFM input'!$AA$7,0,J49+J101+J153) -> 0 | L49: =IF(COUNT($H49:K49)>='RFM input'!$AA$7,0,K49+K101+K153) -> 0 | M49: =IF(COUNT($H49:L49)>='RFM input'!$AA$7,0,L49+L101+L153) -> 0 | N49: =IF(COUNT($H49:M49)>='RFM input'!$AA$7,0,M49+M101+M153) -> 0 | O49: =IF(COUNT($H49:N49)>='RFM input'!$AA$7,0,N49+N101+N153) -> 0 | P49: =IF(COUNT($H49:O49)>='RFM input'!$AA$7,0,O49+O101+O153) -> 0 | Q49: =IF(COUNT($H49:P49)>='RFM input'!$AA$7,0,P49+P101+P153) -> 0
D50: =Asset43 -> 0 | G50: ='RAB roll forward'!G812 -> 0 | H50: 0 | I50: 0 | J50: =IF(COUNT($H50:I50)>='RFM input'!$AA$7,0,I50+I102+I154) -> 0 | K50: =IF(COUNT($H50:J50)>='RFM input'!$AA$7,0,J50+J102+J154) -> 0 | L50: =IF(COUNT($H50:K50)>='RFM input'!$AA$7,0,K50+K102+K154) -> 0 | M50: =IF(COUNT($H50:L50)>='RFM input'!$AA$7,0,L50+L102+L154) -> 0 | N50: =IF(COUNT($H50:M50)>='RFM input'!$AA$7,0,M50+M102+M154) -> 0 | O50: =IF(COUNT($H50:N50)>='RFM input'!$AA$7,0,N50+N102+N154) -> 0 | P50: =IF(COUNT($H50:O50)>='RFM input'!$AA$7,0,O50+O102+O154) -> 0 | Q50: =IF(COUNT($H50:P50)>='RFM input'!$AA$7,0,P50+P102+P154) -> 0
D51: =Asset44 -> 0 | G51: ='RAB roll forward'!G813 -> 0 | H51: 0 | I51: 0 | J51: =IF(COUNT($H51:I51)>='RFM input'!$AA$7,0,I51+I103+I155) -> 0 | K51: =IF(COUNT($H51:J51)>='RFM input'!$AA$7,0,J51+J103+J155) -> 0 | L51: =IF(COUNT($H51:K51)>='RFM input'!$AA$7,0,K51+K103+K155) -> 0 | M51: =IF(COUNT($H51:L51)>='RFM input'!$AA$7,0,L51+L103+L155) -> 0 | N51: =IF(COUNT($H51:M51)>='RFM input'!$AA$7,0,M51+M103+M155) -> 0 | O51: =IF(COUNT($H51:N51)>='RFM input'!$AA$7,0,N51+N103+N155) -> 0 | P51: =IF(COUNT($H51:O51)>='RFM input'!$AA$7,0,O51+O103+O155) -> 0 | Q51: =IF(COUNT($H51:P51)>='RFM input'!$AA$7,0,P51+P103+P155) -> 0
D52: =Asset45 -> 0 | G52: ='RAB roll forward'!G814 -> 0 | H52: 0 | I52: 0 | J52: =IF(COUNT($H52:I52)>='RFM input'!$AA$7,0,I52+I104+I156) -> 0 | K52: =IF(COUNT($H52:J52)>='RFM input'!$AA$7,0,J52+J104+J156) -> 0 | L52: =IF(COUNT($H52:K52)>='RFM input'!$AA$7,0,K52+K104+K156) -> 0 | M52: =IF(COUNT($H52:L52)>='RFM input'!$AA$7,0,L52+L104+L156) -> 0 | N52: =IF(COUNT($H52:M52)>='RFM input'!$AA$7,0,M52+M104+M156) -> 0 | O52: =IF(COUNT($H52:N52)>='RFM input'!$AA$7,0,N52+N104+N156) -> 0 | P52: =IF(COUNT($H52:O52)>='RFM input'!$AA$7,0,O52+O104+O156) -> 0 | Q52: =IF(COUNT($H52:P52)>='RFM input'!$AA$7,0,P52+P104+P156) -> 0
D53: =Asset46 -> 0 | G53: ='RAB roll forward'!G815 -> 0 | H53: 0 | I53: 0 | J53: =IF(COUNT($H53:I53)>='RFM input'!$AA$7,0,I53+I105+I157) -> 0 | K53: =IF(COUNT($H53:J53)>='RFM input'!$AA$7,0,J53+J105+J157) -> 0 | L53: =IF(COUNT($H53:K53)>='RFM input'!$AA$7,0,K53+K105+K157) -> 0 | M53: =IF(COUNT($H53:L53)>='RFM input'!$AA$7,0,L53+L105+L157) -> 0 | N53: =IF(COUNT($H53:M53)>='RFM input'!$AA$7,0,M53+M105+M157) -> 0 | O53: =IF(COUNT($H53:N53)>='RFM input'!$AA$7,0,N53+N105+N157) -> 0 | P53: =IF(COUNT($H53:O53)>='RFM input'!$AA$7,0,O53+O105+O157) -> 0 | Q53: =IF(COUNT($H53:P53)>='RFM input'!$AA$7,0,P53+P105+P157) -> 0
D54: =Asset47 -> Spare straight-line tax asset class | G54: ='RAB roll forward'!G816 -> 0 | H54: 0 | I54: 0 | J54: =IF(COUNT($H54:I54)>='RFM input'!$AA$7,0,I54+I106+I158) -> 0 | K54: =IF(COUNT($H54:J54)>='RFM input'!$AA$7,0,J54+J106+J158) -> 0 | L54: =IF(COUNT($H54:K54)>='RFM input'!$AA$7,0,K54+K106+K158) -> 0 | M54: =IF(COUNT($H54:L54)>='RFM input'!$AA$7,0,L54+L106+L158) -> 0 | N54: =IF(COUNT($H54:M54)>='RFM input'!$AA$7,0,M54+M106+M158) -> 0 | O54: =IF(COUNT($H54:N54)>='RFM input'!$AA$7,0,N54+N106+N158) -> 0 | P54: =IF(COUNT($H54:O54)>='RFM input'!$AA$7,0,O54+O106+O158) -> 0 | Q54: =IF(COUNT($H54:P54)>='RFM input'!$AA$7,0,P54+P106+P158) -> 0
D55: =Asset48 -> BUILDING INSTALLATION | G55: ='RAB roll forward'!G817 -> 18.05496712 | H55: 18.05496712 | I55: 18.09710572 | J55: =IF(COUNT($H55:I55)>='RFM input'!$AA$7,0,I55+I107+I159) -> 18.40787995 | K55: =IF(COUNT($H55:J55)>='RFM input'!$AA$7,0,J55+J107+J159) -> 18.35914762 | L55: =IF(COUNT($H55:K55)>='RFM input'!$AA$7,0,K55+K107+K159) -> 18.38446121 | M55: =IF(COUNT($H55:L55)>='RFM input'!$AA$7,0,L55+L107+L159) -> 18.45763656 | N55: =IF(COUNT($H55:M55)>='RFM input'!$AA$7,0,M55+M107+M159) -> 18.21547657 | O55: =IF(COUNT($H55:N55)>='RFM input'!$AA$7,0,N55+N107+N159) -> 18.11989828 | P55: =IF(COUNT($H55:O55)>='RFM input'!$AA$7,0,O55+O107+O159) -> 18.0855343 | Q55: =IF(COUNT($H55:P55)>='RFM input'!$AA$7,0,P55+P107+P159) -> 0
D56: =Asset49 -> IN-HOUSE SOFTWARE | G56: ='RAB roll forward'!G818 -> 0 | H56: 0 | I56: 0 | J56: =IF(COUNT($H56:I56)>='RFM input'!$AA$7,0,I56+I108+I160) -> 0 | K56: =IF(COUNT($H56:J56)>='RFM input'!$AA$7,0,J56+J108+J160) -> 0 | L56: =IF(COUNT($H56:K56)>='RFM input'!$AA$7,0,K56+K108+K160) -> 0 | M56: =IF(COUNT($H56:L56)>='RFM input'!$AA$7,0,L56+L108+L160) -> 0 | N56: =IF(COUNT($H56:M56)>='RFM input'!$AA$7,0,M56+M108+M160) -> 0 | O56: =IF(COUNT($H56:N56)>='RFM input'!$AA$7,0,N56+N108+N160) -> 0 | P56: =IF(COUNT($H56:O56)>='RFM input'!$AA$7,0,O56+O108+O160) -> 0 | Q56: =IF(COUNT($H56:P56)>='RFM input'!$AA$7,0,P56+P108+P160) -> 0
D57: =Asset50 -> Equity raising costs | G57: ='RAB roll forward'!G819 -> 0 | H57: 0 | I57: 0 | J57: =IF(COUNT($H57:I57)>='RFM input'!$AA$7,0,I57+I109+I161) -> 0 | K57: =IF(COUNT($H57:J57)>='RFM input'!$AA$7,0,J57+J109+J161) -> 0 | L57: =IF(COUNT($H57:K57)>='RFM input'!$AA$7,0,K57+K109+K161) -> 0 | M57: =IF(COUNT($H57:L57)>='RFM input'!$AA$7,0,L57+L109+L161) -> 0 | N57: =IF(COUNT($H57:M57)>='RFM input'!$AA$7,0,M57+M109+M161) -> 0 | O57: =IF(COUNT($H57:N57)>='RFM input'!$AA$7,0,N57+N109+N161) -> 0 | P57: =IF(COUNT($H57:O57)>='RFM input'!$AA$7,0,O57+O109+O161) -> 0 | Q57: =IF(COUNT($H57:P57)>='RFM input'!$AA$7,0,P57+P109+P161) -> 0
C59: Nominal Actual Net Capex | G59: =SUM(G60:G109) -> 0 | H59: =SUM(H60:H109) -> 0.2444948498 | I59: 0.567667058 | J59: 0.1513639043 | K59: 0.7755572387 | L59: 0.5527814266 | M59: 1.593643912 | N59: 0.005064276745 | O59: 1.027402173 | P59: 0.02840290316 | Q59: 0
D60: =Asset1 -> AC FILTERS | G60: ='RAB roll forward'!G822 -> 0 | H60: ='RAB roll forward'!H822 -> 0 | I60: ='RAB roll forward'!I822 -> 0 | J60: ='RAB roll forward'!J822 -> 0 | K60: ='RAB roll forward'!K822 -> 0 | L60: ='RAB roll forward'!L822 -> 0 | M60: ='RAB roll forward'!M822 -> 0 | N60: ='RAB roll forward'!N822 -> 0 | O60: ='RAB roll forward'!O822 -> 0 | P60: ='RAB roll forward'!P822 -> 0 | Q60: ='RAB roll forward'!Q822 -> 0
D61: =Asset2 -> AC SWITCHYARD | G61: ='RAB roll forward'!G823 -> 0 | H61: ='RAB roll forward'!H823 -> 0 | I61: ='RAB roll forward'!I823 -> 0 | J61: ='RAB roll forward'!J823 -> 0 | K61: ='RAB roll forward'!K823 -> 0.4433724954 | L61: ='RAB roll forward'!L823 -> 0 | M61: ='RAB roll forward'!M823 -> 0 | N61: ='RAB roll forward'!N823 -> 0 | O61: ='RAB roll forward'!O823 -> 0 | P61: ='RAB roll forward'!P823 -> 0 | Q61: ='RAB roll forward'!Q823 -> 0
D62: =Asset3 -> AUXILIARY SYSTEMS | G62: ='RAB roll forward'!G824 -> 0 | H62: ='RAB roll forward'!H824 -> 0 | I62: ='RAB roll forward'!I824 -> 0 | J62: ='RAB roll forward'!J824 -> 0.007021154235 | K62: ='RAB roll forward'!K824 -> 0 | L62: ='RAB roll forward'!L824 -> 0 | M62: ='RAB roll forward'!M824 -> 0 | N62: ='RAB roll forward'!N824 -> 0 | O62: ='RAB roll forward'!O824 -> 0 | P62: ='RAB roll forward'!P824 -> 0 | Q62: ='RAB roll forward'!Q824 -> 0
D63: =Asset4 -> CABLE | G63: ='RAB roll forward'!G825 -> 0 | H63: ='RAB roll forward'!H825 -> 0.1271672767 | I63: ='RAB roll forward'!I825 -> 0 | J63: ='RAB roll forward'!J825 -> 0.1431487738 | K63: ='RAB roll forward'!K825 -> 0 | L63: ='RAB roll forward'!L825 -> 0 | M63: ='RAB roll forward'!M825 -> 0 | N63: ='RAB roll forward'!N825 -> 0 | O63: ='RAB roll forward'!O825 -> 0 | P63: ='RAB roll forward'!P825 -> 0 | Q63: ='RAB roll forward'!Q825 -> 0
D64: =Asset5 -> CONTROL SYSTEM | G64: ='RAB roll forward'!G826 -> 0 | H64: ='RAB roll forward'!H826 -> 0 | I64: ='RAB roll forward'!I826 -> 0 | J64: ='RAB roll forward'!J826 -> 0 | K64: ='RAB roll forward'!K826 -> 0 | L64: ='RAB roll forward'!L826 -> 0 | M64: ='RAB roll forward'!M826 -> 0 | N64: ='RAB roll forward'!N826 -> 0 | O64: ='RAB roll forward'!O826 -> 0 | P64: ='RAB roll forward'!P826 -> 0 | Q64: ='RAB roll forward'!Q826 -> 0
D65: =Asset6 -> CONVERTER TRANSFORMER | G65: ='RAB roll forward'!G827 -> 0 | H65: ='RAB roll forward'!H827 -> 0.03984743312 | I65: ='RAB roll forward'!I827 -> 0.4558785186 | J65: ='RAB roll forward'!J827 -> 0 | K65: ='RAB roll forward'!K827 -> 0.1432767209 | L65: ='RAB roll forward'!L827 -> 0.5317378771 | M65: ='RAB roll forward'!M827 -> 1.593643912 | N65: ='RAB roll forward'!N827 -> 0.005064276745 | O65: ='RAB roll forward'!O827 -> 0.01319356323 | P65: ='RAB roll forward'!P827 -> 0.02840290316 | Q65: ='RAB roll forward'!Q827 -> 0
D66: =Asset7 -> DC FILTER | G66: ='RAB roll forward'!G828 -> 0 | H66: ='RAB roll forward'!H828 -> 0.01947582311 | I66: ='RAB roll forward'!I828 -> 0 | J66: ='RAB roll forward'!J828 -> 0 | K66: ='RAB roll forward'!K828 -> 0 | L66: ='RAB roll forward'!L828 -> 0 | M66: ='RAB roll forward'!M828 -> 0 | N66: ='RAB roll forward'!N828 -> 0 | O66: ='RAB roll forward'!O828 -> 0 | P66: ='RAB roll forward'!P828 -> 0 | Q66: ='RAB roll forward'!Q828 -> 0
D67: =Asset8 -> DC SWITCHYARD | G67: ='RAB roll forward'!G829 -> 0 | H67: ='RAB roll forward'!H829 -> 0 | I67: ='RAB roll forward'!I829 -> 0 | J67: ='RAB roll forward'!J829 -> 0 | K67: ='RAB roll forward'!K829 -> 0.1889080224 | L67: ='RAB roll forward'!L829 -> 0.02104354945 | M67: ='RAB roll forward'!M829 -> 0 | N67: ='RAB roll forward'!N829 -> 0 | O67: ='RAB roll forward'!O829 -> 1.01420861 | P67: ='RAB roll forward'!P829 -> 0 | Q67: ='RAB roll forward'!Q829 -> 0
D68: =Asset9 -> EASEMENT | G68: ='RAB roll forward'!G830 -> 0 | H68: ='RAB roll forward'!H830 -> 0 | I68: ='RAB roll forward'!I830 -> 0 | J68: ='RAB roll forward'!J830 -> 0 | K68: ='RAB roll forward'!K830 -> 0 | L68: ='RAB roll forward'!L830 -> 0 | M68: ='RAB roll forward'!M830 -> 0 | N68: ='RAB roll forward'!N830 -> 0 | O68: ='RAB roll forward'!O830 -> 0 | P68: ='RAB roll forward'!P830 -> 0 | Q68: ='RAB roll forward'!Q830 -> 0
D69: =Asset10 -> FREEHOLD LAND | G69: ='RAB roll forward'!G831 -> 0 | H69: ='RAB roll forward'!H831 -> 0 | I69: ='RAB roll forward'!I831 -> 0 | J69: ='RAB roll forward'!J831 -> 0 | K69: ='RAB roll forward'!K831 -> 0 | L69: ='RAB roll forward'!L831 -> 0 | M69: ='RAB roll forward'!M831 -> 0 | N69: ='RAB roll forward'!N831 -> 0 | O69: ='RAB roll forward'!O831 -> 0 | P69: ='RAB roll forward'!P831 -> 0 | Q69: ='RAB roll forward'!Q831 -> 0
D70: =Asset11 -> MEASURING DEVICES | G70: ='RAB roll forward'!G832 -> 0 | H70: ='RAB roll forward'!H832 -> 0 | I70: ='RAB roll forward'!I832 -> 0 | J70: ='RAB roll forward'!J832 -> 0 | K70: ='RAB roll forward'!K832 -> 0 | L70: ='RAB roll forward'!L832 -> 0 | M70: ='RAB roll forward'!M832 -> 0 | N70: ='RAB roll forward'!N832 -> 0 | O70: ='RAB roll forward'!O832 -> 0 | P70: ='RAB roll forward'!P832 -> 0 | Q70: ='RAB roll forward'!Q832 -> 0
D71: =Asset12 -> MOTOR VEHICLES | G71: ='RAB roll forward'!G833 -> 0 | H71: ='RAB roll forward'!H833 -> 0 | I71: ='RAB roll forward'!I833 -> 0 | J71: ='RAB roll forward'!J833 -> 0 | K71: ='RAB roll forward'!K833 -> 0 | L71: ='RAB roll forward'!L833 -> 0 | M71: ='RAB roll forward'!M833 -> 0 | N71: ='RAB roll forward'!N833 -> 0 | O71: ='RAB roll forward'!O833 -> 0 | P71: ='RAB roll forward'!P833 -> 0 | Q71: ='RAB roll forward'!Q833 -> 0
D72: =Asset13 -> OTHER | G72: ='RAB roll forward'!G834 -> 0 | H72: ='RAB roll forward'!H834 -> 0 | I72: ='RAB roll forward'!I834 -> 0 | J72: ='RAB roll forward'!J834 -> 0 | K72: ='RAB roll forward'!K834 -> 0 | L72: ='RAB roll forward'!L834 -> 0 | M72: ='RAB roll forward'!M834 -> 0 | N72: ='RAB roll forward'!N834 -> 0 | O72: ='RAB roll forward'!O834 -> 0 | P72: ='RAB roll forward'!P834 -> 0 | Q72: ='RAB roll forward'!Q834 -> 0
D73: =Asset14 -> OVERHEAD LINES | G73: ='RAB roll forward'!G835 -> 0 | H73: ='RAB roll forward'!H835 -> 0 | I73: ='RAB roll forward'!I835 -> 0 | J73: ='RAB roll forward'!J835 -> 0 | K73: ='RAB roll forward'!K835 -> 0 | L73: ='RAB roll forward'!L835 -> 0 | M73: ='RAB roll forward'!M835 -> 0 | N73: ='RAB roll forward'!N835 -> 0 | O73: ='RAB roll forward'!O835 -> 0 | P73: ='RAB roll forward'!P835 -> 0 | Q73: ='RAB roll forward'!Q835 -> 0
D74: =Asset15 -> SMOOTHING REACTOR | G74: ='RAB roll forward'!G836 -> 0 | H74: ='RAB roll forward'!H836 -> 0 | I74: ='RAB roll forward'!I836 -> 0 | J74: ='RAB roll forward'!J836 -> 0 | K74: ='RAB roll forward'!K836 -> 0 | L74: ='RAB roll forward'!L836 -> 0 | M74: ='RAB roll forward'!M836 -> 0 | N74: ='RAB roll forward'!N836 -> 0 | O74: ='RAB roll forward'!O836 -> 0 | P74: ='RAB roll forward'!P836 -> 0 | Q74: ='RAB roll forward'!Q836 -> 0
D75: =Asset16 -> STATION POWER SUPPLY | G75: ='RAB roll forward'!G837 -> 0 | H75: ='RAB roll forward'!H837 -> 0 | I75: ='RAB roll forward'!I837 -> 0 | J75: ='RAB roll forward'!J837 -> 0 | K75: ='RAB roll forward'!K837 -> 0 | L75: ='RAB roll forward'!L837 -> 0 | M75: ='RAB roll forward'!M837 -> 0 | N75: ='RAB roll forward'!N837 -> 0 | O75: ='RAB roll forward'!O837 -> 0 | P75: ='RAB roll forward'!P837 -> 0 | Q75: ='RAB roll forward'!Q837 -> 0
D76: =Asset17 -> SWITCHYARD COMPONENTS | G76: ='RAB roll forward'!G838 -> 0 | H76: ='RAB roll forward'!H838 -> 0 | I76: ='RAB roll forward'!I838 -> 0 | J76: ='RAB roll forward'!J838 -> 0 | K76: ='RAB roll forward'!K838 -> 0 | L76: ='RAB roll forward'!L838 -> 0 | M76: ='RAB roll forward'!M838 -> 0 | N76: ='RAB roll forward'!N838 -> 0 | O76: ='RAB roll forward'!O838 -> 0 | P76: ='RAB roll forward'!P838 -> 0 | Q76: ='RAB roll forward'!Q838 -> 0
D77: =Asset18 -> VALVE COOLING | G77: ='RAB roll forward'!G839 -> 0 | H77: ='RAB roll forward'!H839 -> 0 | I77: ='RAB roll forward'!I839 -> 0 | J77: ='RAB roll forward'!J839 -> 0 | K77: ='RAB roll forward'!K839 -> 0 | L77: ='RAB roll forward'!L839 -> 0 | M77: ='RAB roll forward'!M839 -> 0 | N77: ='RAB roll forward'!N839 -> 0 | O77: ='RAB roll forward'!O839 -> 0 | P77: ='RAB roll forward'!P839 -> 0 | Q77: ='RAB roll forward'!Q839 -> 0
D78: =Asset19 -> VALVE HALL | G78: ='RAB roll forward'!G840 -> 0 | H78: ='RAB roll forward'!H840 -> 0 | I78: ='RAB roll forward'!I840 -> 0.09661559951 | J78: ='RAB roll forward'!J840 -> 0 | K78: ='RAB roll forward'!K840 -> 0 | L78: ='RAB roll forward'!L840 -> 0 | M78: ='RAB roll forward'!M840 -> 0 | N78: ='RAB roll forward'!N840 -> 0 | O78: ='RAB roll forward'!O840 -> 0 | P78: ='RAB roll forward'!P840 -> 0 | Q78: ='RAB roll forward'!Q840 -> 0
D79: =Asset20 -> 0 | G79: ='RAB roll forward'!G841 -> 0 | H79: ='RAB roll forward'!H841 -> 0 | I79: ='RAB roll forward'!I841 -> 0 | J79: ='RAB roll forward'!J841 -> 0 | K79: ='RAB roll forward'!K841 -> 0 | L79: ='RAB roll forward'!L841 -> 0 | M79: ='RAB roll forward'!M841 -> 0 | N79: ='RAB roll forward'!N841 -> 0 | O79: ='RAB roll forward'!O841 -> 0 | P79: ='RAB roll forward'!P841 -> 0 | Q79: ='RAB roll forward'!Q841 -> 0
D80: =Asset21 -> 0 | G80: ='RAB roll forward'!G842 -> 0 | H80: ='RAB roll forward'!H842 -> 0 | I80: ='RAB roll forward'!I842 -> 0 | J80: ='RAB roll forward'!J842 -> 0 | K80: ='RAB roll forward'!K842 -> 0 | L80: ='RAB roll forward'!L842 -> 0 | M80: ='RAB roll forward'!M842 -> 0 | N80: ='RAB roll forward'!N842 -> 0 | O80: ='RAB roll forward'!O842 -> 0 | P80: ='RAB roll forward'!P842 -> 0 | Q80: ='RAB roll forward'!Q842 -> 0
D81: =Asset22 -> 0 | G81: ='RAB roll forward'!G843 -> 0 | H81: ='RAB roll forward'!H843 -> 0 | I81: ='RAB roll forward'!I843 -> 0 | J81: ='RAB roll forward'!J843 -> 0 | K81: ='RAB roll forward'!K843 -> 0 | L81: ='RAB roll forward'!L843 -> 0 | M81: ='RAB roll forward'!M843 -> 0 | N81: ='RAB roll forward'!N843 -> 0 | O81: ='RAB roll forward'!O843 -> 0 | P81: ='RAB roll forward'!P843 -> 0 | Q81: ='RAB roll forward'!Q843 -> 0
D82: =Asset23 -> 0 | G82: ='RAB roll forward'!G844 -> 0 | H82: ='RAB roll forward'!H844 -> 0 | I82: ='RAB roll forward'!I844 -> 0 | J82: ='RAB roll forward'!J844 -> 0 | K82: ='RAB roll forward'!K844 -> 0 | L82: ='RAB roll forward'!L844 -> 0 | M82: ='RAB roll forward'!M844 -> 0 | N82: ='RAB roll forward'!N844 -> 0 | O82: ='RAB roll forward'!O844 -> 0 | P82: ='RAB roll forward'!P844 -> 0 | Q82: ='RAB roll forward'!Q844 -> 0
D83: =Asset24 -> 0 | G83: ='RAB roll forward'!G845 -> 0 | H83: ='RAB roll forward'!H845 -> 0 | I83: ='RAB roll forward'!I845 -> 0 | J83: ='RAB roll forward'!J845 -> 0 | K83: ='RAB roll forward'!K845 -> 0 | L83: ='RAB roll forward'!L845 -> 0 | M83: ='RAB roll forward'!M845 -> 0 | N83: ='RAB roll forward'!N845 -> 0 | O83: ='RAB roll forward'!O845 -> 0 | P83: ='RAB roll forward'!P845 -> 0 | Q83: ='RAB roll forward'!Q845 -> 0
D84: =Asset25 -> 0 | G84: ='RAB roll forward'!G846 -> 0 | H84: ='RAB roll forward'!H846 -> 0 | I84: ='RAB roll forward'!I846 -> 0 | J84: ='RAB roll forward'!J846 -> 0 | K84: ='RAB roll forward'!K846 -> 0 | L84: ='RAB roll forward'!L846 -> 0 | M84: ='RAB roll forward'!M846 -> 0 | N84: ='RAB roll forward'!N846 -> 0 | O84: ='RAB roll forward'!O846 -> 0 | P84: ='RAB roll forward'!P846 -> 0 | Q84: ='RAB roll forward'!Q846 -> 0
D85: =Asset26 -> 0 | G85: ='RAB roll forward'!G847 -> 0 | H85: ='RAB roll forward'!H847 -> 0 | I85: ='RAB roll forward'!I847 -> 0 | J85: ='RAB roll forward'!J847 -> 0 | K85: ='RAB roll forward'!K847 -> 0 | L85: ='RAB roll forward'!L847 -> 0 | M85: ='RAB roll forward'!M847 -> 0 | N85: ='RAB roll forward'!N847 -> 0 | O85: ='RAB roll forward'!O847 -> 0 | P85: ='RAB roll forward'!P847 -> 0 | Q85: ='RAB roll forward'!Q847 -> 0
D86: =Asset27 -> 0 | G86: ='RAB roll forward'!G848 -> 0 | H86: ='RAB roll forward'!H848 -> 0 | I86: ='RAB roll forward'!I848 -> 0 | J86: ='RAB roll forward'!J848 -> 0 | K86: ='RAB roll forward'!K848 -> 0 | L86: ='RAB roll forward'!L848 -> 0 | M86: ='RAB roll forward'!M848 -> 0 | N86: ='RAB roll forward'!N848 -> 0 | O86: ='RAB roll forward'!O848 -> 0 | P86: ='RAB roll forward'!P848 -> 0 | Q86: ='RAB roll forward'!Q848 -> 0
D87: =Asset28 -> 0 | G87: ='RAB roll forward'!G849 -> 0 | H87: ='RAB roll forward'!H849 -> 0 | I87: ='RAB roll forward'!I849 -> 0 | J87: ='RAB roll forward'!J849 -> 0 | K87: ='RAB roll forward'!K849 -> 0 | L87: ='RAB roll forward'!L849 -> 0 | M87: ='RAB roll forward'!M849 -> 0 | N87: ='RAB roll forward'!N849 -> 0 | O87: ='RAB roll forward'!O849 -> 0 | P87: ='RAB roll forward'!P849 -> 0 | Q87: ='RAB roll forward'!Q849 -> 0
